Workbook

Sheet MODELE
Z1: CODE: DAS-PRO-16
Z2: DATE:30/08/2019
Z3: VERSION:07
Z4: PAGE:1
A8: SYMBOLE | B8: MACHINE | C8: REF ARTICLE | D8: DESIGNATION | E8: COMPTEUR HIER à8H | F8: COMPTEUR HIER à 17H | G8: COMPTEUR HIER à 22H | H8: COMPTEUR AUJOURD’HUI à 8h | I8: CADENCE | J8: NOMBRE DE PIECES FINIS PAR CYCLE | K8: PIECES SUIVANT COMPTEU 8h-->17h | L8: PIECES SUIVANT COMPTEUR 17H-->22H | M8: PIECES SUIVANT COMPTEUR 6h-->8h | N8: NOMBRE D'HEURES DE TRAVAIL 8h-->17h | O8: NOMBRE D'HEURES DE TRAVAIL 17H-->22H | P8: NOMBRE D'HEURES DE TRAVAIL 6h-->8h | Q8: NOMBRE D'HEURES DE TRAVAIL | R8: OBSERVATIONS | S8: Pieces manquantes | T8: PIECES NC | U8: Pieces REELLES | V8: Nombre des pieces à retoucher | W8: Cause de la non-conformité | X8: Effet de la non-conformité | Y8: Valeur de l'effet | Z8: NOMBRES D'HEURES SUIVANT LES PIECES REELLES | AA8: RENDEMENT | AB8: Fiche de contrôle qualité début de serie | AC8: Affutage | AD8: Gamme d'usingae | AE8: ALERTES | AF8: A | AG8: P | AH8: Q | AI8: OEE | AJ8: OEE
A9: A | B9: SST16 | C9: =IFERROR(VLOOKUP(D9,Pieces!A:B,2,0)," ") ->  | I9: =IFERROR(VLOOKUP(D9,Pieces!A:C,3,0),"") ->  | K9: =(F9-E9)*J9 -> 0 | L9: =(G9-F9)*J9 -> 0 | M9: =(H9-G9)*J9 -> 0 | N9: =IF(I9="","",K9/I9) ->  | O9: =IF(I9="","",L9/I9) ->  | P9: =IF(I9="","",M9/I9) ->  | Q9: 15 | S9: =U9+T9-K9-L9-M9 -> 0 | U9: =(K9+L9+M9)-T9-V9 -> 0 | Z9: =IF(OR(I9="",I9=0),0,(U9+T9)/I9) -> 0 | AA9: =IF(OR(Q9=0,I9=0),"",Z9/Q9*100) -> 0 | AE9: =IF(AA9>85," ","WARNING") -> WARNING | AF9: =(N9+O9+P9)/(Q9*3600) ->  | AG9: =((3600/I9)*U9)/(N9+O9+P9) ->  | AH9: =(U9-T9)/U9 ->  | AI9: =AF9*AG9*AH9 ->  | AJ9: =((U9-T9)*(3600/I9))/(Q9*3600) -> 
A10: B | B10: SB16 | C10: =IFERROR(VLOOKUP(D10,Pieces!A:B,2,0)," ") ->  | I10: =IFERROR(VLOOKUP(D10,Pieces!A:C,3,0),"") ->  | K10: =(F10-E10)*J10 -> 0 | L10: =(G10-F10)*J10 -> 0 | M10: =(H10-G10)*J10 -> 0 | N10: =IF(I10="","",K10/I10) ->  | O10: =IF(I10="","",L10/I10) ->  | P10: =IF(I10="","",M10/I10) ->  | Q10: 15 | S10: =U10+T10-K10-L10-M10 -> 0 | U10: =(K10+L10+M10)-T10-V10 -> 0 | Z10: =IF(OR(I10="",I10=0),0,(U10+T10)/I10) -> 0 | AA10: =IF(OR(Q10=0,I10=0),"",Z10/Q10*100) -> 0 | AE10: =IF(AA10>85," ","WARNING") -> WARNING | AF10: =(N10+O10+P10)/(Q10*3600) ->  | AG10: =((3600/I10)*U10)/(N10+O10+P10) ->  | AH10: =(U10-T10)/U10 ->  | AI10: =AF10*AG10*AH10 ->  | AJ10: =((U10-T10)*(3600/I10))/(Q10*3600) -> 
A11: C | B11: BIGLIA 301 SM | C11: =IFERROR(VLOOKUP(D11,Pieces!A:B,2,0)," ") ->  | I11: =IFERROR(VLOOKUP(D11,Pieces!A:C,3,0),"") ->  | K11: 0 | L11: 0 | M11: 0 | Q11: 15 | S11: =U11+T11-K11-L11-M11 -> 0 | U11: 0 | Z11: 0 | AA11: 0 | AE11: WARNING
A12: D | B12: BIGLIA 42 S2M bitourelle | C12: =IFERROR(VLOOKUP(D12,Pieces!A:B,2,0)," ") ->  | I12: =IFERROR(VLOOKUP(D12,Pieces!A:C,3,0),"") ->  | K12: 0 | L12: 0 | M12: 0 | Q12: 15 | S12: 0 | U12: 0 | Z12: 0 | AA12: 0 | AE12: WARNING
A13: E | B13: L32 | C13: =IFERROR(VLOOKUP(D13,Pieces!A:B,2,0)," ") ->  | I13: =IFERROR(VLOOKUP(D13,Pieces!A:C,3,0),"") ->  | K13: 0 | L13: 0 | M13: 0 | Q13: 15 | S13: 0 | U13: 0 | Z13: 0 | AA13: 0 | AE13: WARNING
A14: F | B14: TSUGAMI | C14: =IFERROR(VLOOKUP(D14,Pieces!A:B,2,0)," ") ->  | I14: =IFERROR(VLOOKUP(D14,Pieces!A:C,3,0),"") ->  | K14: 0 | L14: 0 | M14: 0 | Q14: 15 | S14: 0 | U14: 0 | Z14: 0 | AA14: 0 | AE14: WARNING
A15: G | B15: Tour STAR SV-32-J | C15: =IFERROR(VLOOKUP(D15,Pieces!A:B,2,0)," ") ->  | I15: =IFERROR(VLOOKUP(D15,Pieces!A:C,3,0),"") ->  | K15: =(F15-E15)*J15 -> 0 | L15: =(G15-F15)*J15 -> 0 | M15: =(H15-G15)*J15 -> 0 | N15: =IF(I15="","",K15/I15) ->  | O15: =IF(I15="","",L15/I15) ->  | P15: =IF(I15="","",M15/I15) ->  | Q15: 15 | S15: =U15+T15-K15-L15-M15 -> 0 | U15: =(K15+L15+M15)-T15-V15 -> 0 | Z15: =IF(OR(I15="",I15=0),0,(U15+T15)/I15) -> 0 | AA15: =IF(OR(Q15=0,I15=0),"",Z15/Q15*100) -> 0 | AE15: =IF(AA15>85," ","WARNING") -> WARNING
A16: H | B16: Tour CNC STAR SB avec embarreur LNS Express 220 | C16: =IFERROR(VLOOKUP(D16,Pieces!A:B,2,0)," ") ->  | I16: =IFERROR(VLOOKUP(D16,Pieces!A:C,3,0),"") ->  | K16: 0 | L16: 0 | M16: 0 | Q16: 15 | S16: 0 | U16: 0 | Z16: 0 | AA16: 0 | AE16: WARNING
A17: I | B17: MULTIBROCHE | C17: =IFERROR(VLOOKUP(D17,Pieces!A:B,2,0)," ") ->  | I17: =IFERROR(VLOOKUP(D17,Pieces!A:C,3,0),"") ->  | K17: 0 | L17: 0 | M17: 0 | Q17: 9 | S17: 0 | U17: 0 | Z17: 0 | AA17: 0 | AE17: WARNING
A18: J | B18: Tour CNC WEILER UD 24 - 100 | C18: =IFERROR(VLOOKUP(D18,Pieces!A:B,2,0)," ") ->  | I18: =IFERROR(VLOOKUP(D18,Pieces!A:C,3,0),"") ->  | K18: 0 | L18: 0 | M18: 0 | Q18: 9 | S18: 0 | U18: 0 | Z18: 0 | AA18: 0 | AE18: WARNING
A19: K | B19: TOUR WEILER | C19: =IFERROR(VLOOKUP(D19,Pieces!A:B,2,0)," ") ->  | I19: =IFERROR(VLOOKUP(D19,Pieces!A:C,3,0),"") ->  | K19: 0 | L19: 0 | M19: 0 | Q19: 9 | S19: 0 | U19: 0 | Z19: 0 | AA19: 0 | AE19: WARNING
A20: L | B20: NAKAMURA | C20: =IFERROR(VLOOKUP(D20,Pieces!A:B,2,0)," ") ->  | I20: =IFERROR(VLOOKUP(D20,Pieces!A:C,3,0),"") ->  | K20: 0 | L20: 0 | M20: 0 | Q20: 9 | S20: 0 | U20: 0 | Z20: 0 | AA20: 0 | AE20: WARNING
A21: M | B21: MORI SEIKI 3 axes | C21: =IFERROR(VLOOKUP(D21,Pieces!A:B,2,0)," ") ->  | I21: =IFERROR(VLOOKUP(D21,Pieces!A:C,3,0),"") ->  | K21: 0 | L21: 0 | M21: 0 | Q21: 15 | S21: 0 | U21: 0 | Z21: 0 | AA21: 0 | AE21: WARNING
A22: N | B22: MORI SEIKI 5 axes | C22: =IFERROR(VLOOKUP(D22,Pieces!A:B,2,0)," ") ->  | I22: =IFERROR(VLOOKUP(D22,Pieces!A:C,3,0),"") ->  | K22: 0 | L22: 0 | M22: 0 | Q22: 15 | S22: 0 | U22: 0 | Z22: 0 | AA22: 0 | AE22: WARNING
A23: O | B23: HARDING | C23: =IFERROR(VLOOKUP(D23,Pieces!A:B,2,0)," ") ->  | I23: =IFERROR(VLOOKUP(D23,Pieces!A:C,3,0),"") ->  | K23: =(F23-E23)*J23 -> 0 | L23: =(G23-F23)*J23 -> 0 | M23: =(H23-G23)*J23 -> 0 | N23: =IF(I23="","",K23/I23) ->  | O23: =IF(I23="","",L23/I23) ->  | P23: =IF(I23="","",M23/I23) ->  | Q23: 15 | S23: =U23+T23-K23-L23-M23 -> 0 | U23: =(K23+L23+M23)-T23-V23 -> 0 | Z23: =IF(OR(I23="",I23=0),0,(U23+T23)/I23) -> 0 | AA23: =IF(OR(Q23=0,I23=0),"",Z23/Q23*100) -> 0 | AE23: =IF(AA23>85," ","WARNING") -> WARNING | AF23: =(N23+O23+P23)/(Q23*3600) ->  | AG23: =((3600/I23)*U23)/(N23+O23+P23) ->  | AH23: =(U23-T23)/U23 ->  | AI23: =AF23*AG23*AH23 ->  | AJ23: =((U23-T23)*(3600/I23))/(Q23*3600) -> 
A24: O | B24: HARDING | C24: =IFERROR(VLOOKUP(D24,Pieces!A:B,2,0)," ") ->  | I24: =IFERROR(VLOOKUP(D24,Pieces!A:C,3,0),"") ->  | K24: 0 | L24: 0 | M24: 0 | Q24: 15 | S24: 0 | U24: 0 | Z24: 0 | AA24: 0 | AE24: WARNING
A25: P | B25: KITAMURA | C25: =IFERROR(VLOOKUP(D25,Pieces!A:B,2,0)," ") ->  | I25: =IFERROR(VLOOKUP(D25,Pieces!A:C,3,0),"") ->  | K25: =(F25-E25)*J25 -> 0 | L25: =(G25-F25)*J25 -> 0 | M25: =(H25-G25)*J25 -> 0 | N25: =IF(I25="","",K25/I25) ->  | O25: =IF(I25="","",L25/I25) ->  | P25: =IF(I25="","",M25/I25) ->  | Q25: 15 | S25: =U25+T25-K25-L25-M25 -> 0 | U25: =(K25+L25+M25)-T25-V25 -> 0 | Z25: =IF(OR(I25="",I25=0),0,(U25+T25)/I25) -> 0 | AA25: =IF(OR(Q25=0,I25=0),"",Z25/Q25*100) -> 0 | AE25: =IF(AA25>85," ","WARNING") -> WARNING
S27: Taux de NC journalière | U27: =#REF!/#REF! -> 
J31: Approbateur:
J32: Date:
J33: Visa:

Sheet Pieces
A1: desgination | B1: reference | C1: Cadence réelle | D1: machine
A2: BUSS. DIS. 14-3003 1320X28.7 AVP CARB | B2: 510081
A3: A1-AXE MET | B3: 20086-2 | C3: 45
A4: Anneau FX 25,2*32*21- par chutes | B4: 0-4180 | C4: 60
A5: AOE 950 12 BOX SPINA INOX | B5: SPINA00010 | C5: 8
A6: AOE 950/12/9.5 SPINA INOX | B6: SPINA00009 | C6: 15
A7: AOE 956/14/40 SPINA INOX | B7: SPINA00011 | C7: 15
A8: armature intérieure-MULTI | B8: E355306 | C8: 400
A9: Arrêt | B9: - | C9: 1
A10: AXE | B10: 2018012-01 | C10: 120
A11: AXE 100x8-M4 | B11: AXE 100x8-M4 | C11: 28
A12: AXE 140 INOX D8 L66 140/76 | B12: AXE-IN-D8-L66 | C12: 100
A13: AXE 90 INOX D7 | B13: AXE-IN-D7 | C13: 80
A14: AXE AVEC INSERT INTEGRES | B14: 2018110-01 | C14: 12
A15: AXE BOITIER TFR+KB | B15: I081-95-CP8 | C15: 12 | D15: BIGLIA MIM
A16: AXE COLLIER ISUZU TFR NON ZINGUEE | B16: I138-139-CP3 | C16: 40
A17: AXE D15-M11x100 | B17: G022-CP1 | C17: 30
A18: AXE D'ARTICULATION | B18: 200101 | C18: 120
A19: AXE D'ARTICULATION -NV SB16 | B19: 200101-NVSB16 | C19: 135
A20: AXE DE FREIN OM40 PROD | B20: M030-PROD | C20: 90
A21: AXE DIRECTION ISUZU | B21: I059 | C21: 70
A22: AXE ESC H11 | B22: 20111-21 | C22: 40
A23: AXE ETRIER FORD RANGER-PROD | B23: FO011-PROD | C23: 30
A24: AXE ETRIER MITSUBISHI D21.2 PROD | B24: MI029-CP1-PROD | C24: 30
A25: AXE ETRIER MITSUBISHI D21.9 AVEC SOUFFLET-CP1 PROD | B25: MI030-CP1-PROD | C25: 30
A26: AXE ETRIER SUP MITSUBISHI L200(536) | B26: MI029 | C26: 30
A27: AXE FEMELLE | B27: AXE FEMELLE-D16 | C27: 30
A28: AXE FEMELLE | B28: 2018051-01 | C28: 30
A29: AXE FEMELLE M8X55 | B29: 2018106-02-02 | C29: 30
A30: AXE FOURCHETTE | B30: 19037-1 | C30: 70
A31: AXE FOURCHETTE SIMPLE | B31: 2018013-01 | C31: 120
A32: AXE GM JUMELLE MITSUBITCHI | B32: MI013-CP1 | C32: 50
A33: AXE INOX D8 LG720mm | B33: 3-72-70033 | C33: 90
A34: AXE INOX 303 | B34: 500-1-46933 | C34: 28
A35: AXE JUMELLE-CP2 - chariotage sur nak | B35: TF48-57-I162-CP2 | C35: 50
A36: AXE L=124mm JEMELLE FORD PROD | B36: FO021-CP2 | C36: 50
A37: AXE LAITON Ø10.2*41.3 | B37: AXE-LAIT 10.2X41.3 | C37: 100
A38: AXE LEVIER PORTE | B38: P210203 | C38: 120
A39: AXE LISSE D8 | B39: Tz36000005388 | C39: 110
A40: AXE MALE AVEC TROU | B40: AXE MALE A-T D16 | C40: 30
A41: AXE MALE EN I | B41: 2018146-02 | C41: 30
A42: AXE MALE L=100 | B42: 2018130 | C42: 30 | D42: l32
A43: AXE MALE SANS TROU | B43: AXE MALE S-T D16 | D43: L32
A44: AXE MALE V02 | B44: 2018106-02-01 | C44: 12 | D44: l32
A45: AXE MALE-001 | B45: 2018122-03 | C45: 60 | D45: l32
A46: AXE PORTE TURBINE D10 | B46: A001 | C46: 43 | D46: PROD 09/2021
A47: Axe tendeur de 10 | B47: AXE - T - D10 | C47: 360
A48: AXE TENDEUR DE 11 | B48: AXE-T- D11 | C48: 90
A49: AXE TRIANGLE SUSPENSION-CP1 PROD | B49: I094-CP1-PROD | C49: 100
A50: BAGUE GALVANISEE 16X11X4 | B50: G022-CP5 | C50: 120
A51: Bague 10.5x25x75 | B51: 181075 | C51: 30
A52: BAGUE 12*22*56,2 | B52: 12x22x56.2 | C52: 32
A53: BAGUE 12*22*65 | B53: 12x22x65 | C53: 50
A54: BAGUE 12*25*60.5 | B54: 181270 | C54: 60 | D54: B42
A55: BAGUE 18*14.5*68 | B55: BAG 18x14.5 | C55: 120
A56: Bague acier 10x14x102 | B56: 10x14x102 | C56: 120
A57: BAGUE ACIER 12*9*11 | B57: 12x9x11 | C57: 120
A58: Bague acier 12x11x9.5(4g) | B58: 12*11*9,5 | C58: 120
A59: bague acier 14*20*48 | B59: 14*20*48 | C59: 120 | D59: pf42 ebauche
A60: BAGUE ACIER 8.5x6.5x10 | B60: 8.5x6.5x10 | C60: 120
A61: BAGUE ACIER 8.5x6.5x5.8 | B61: 8.5x6.5x5.8 | C61: 120
A62: bague acier galvanisée 10x14x112 | B62: 10x14x112 | C62: 80
A63: BAGUE ACIER GALVANISEE 14*10*102 | B63: 14X10X102 | C63: 70
A64: BAGUE ACIER GALVANISEE 14*10*112 | B64: 10x14x112 | C64: 70
A65: Bague acier nécessaire OM40 | B65: M018-CP1
A66: BAGUE ACIER NECESSAIRE-CP1 PROD | B66: m020-cp1 | C66: 120
A67: Bague acier Ø13 | B67: 12.75x28.2x8.5 | C67: 120
A68: bague allu 27*14,5*55 | B68: 14,5x27x55 | C68: 120
A69: BAGUE ALU 14,5*27*42 | B69: 14.5x27x42 | C69: 90
A70: BAGUE ALU 18*27*43 | B70: 18X27X43 | C70: 90
A71: Bague aluminium 14,4*24*40 biglia | B71: 4-7828 | C71: 60
A72: bague aluminum lg30 | B72: -
A73: BAGUE BOUGIE CULASSE | B73: D001 | C73: 90
A74: BAGUE BRUTE 12x20x14,5 | B74: 4-8661 | C74: 80
A75: Bague galvanisée 16*28*62 | B75: 4-8591-1 | C75: 60
A76: Bague brute 20x28x43 | B76: 4-76 86 | C76: 60
A77: bague butée | B77: 7171-N | C77: 120
A78: bague butée interne Ø25 | B78: 7159 | C78: 120
A79: BAGUE D12*D8.3*10.4 | B79: T1201-1000-040 | C79: 120 | D79: l32
A80: BAGUE D12*D8.3*D3.6 | B80: T1201-1000-030 | C80: 120
A81: BAGUE D32*22 L=21 | B81: G011 | C81: 39
A82: BAGUE DE CENTRAGE D20 | B82: 890625 | C82: 70
A83: bague decolletée 7009 | B83: 7009
A84: BAGUE DU FIXATION D25 PROD | B84: 895700-D25-PROD | C84: 60
A85: BAGUE ECHAPPEMENT ISUZU | B85: I056 | C85: 20
A86: BAGUE EN ACIER AXE RESSORT NM+AM OM40 | B86: M018-28-29-32-CP1 | C86: 15
A87: BAGUE EN LAITON AXE RESSORT NM+AM OM40 | B87: M018-28-29-32-CP2 | C87: 75
A88: bague épaulée 12*25*41 | B88: 181241 | C88: 60
A89: BAGUE EPAULEE 14*20*60 | B89: 18126100 | C89: 30
A90: bague epaulee 14*30*66,5 | B90: 4-8209 | C90: 20
A91: BAGUE EXT SILENT BLOC FORD BT50 | B91: FO020-CP1 | C91: 90
A92: Bague Galvanisée 14*22,9*54,2 | B92: 0-5928A-1 | C92: 30
A93: BAGUE GALVANISEE 10*16*80 | B93: 0-3738 | C93: 120 | D93: tour weiler
A94: Bague galvanisée 10x16x50 | B94: 0-3748-1 | C94: 120 | D94: CHUTTE NAK
A95: Bague Galvanisée 12*16*36 | B95: 4-7935-1 | C95: 120 | D95: chutte
A96: Bague Galvanisée 12*18*44+A647 | B96: 0-6128-1 | C96: 120
A97: Bague Galvanisée 12*20*38-weiller | B97: 4-7029-1 | C97: 70
A98: Bague Galvanisée 12*22*69 - WEILLER | B98: 4-7062-1 | C98: 70
A99: Bague galvanisée 12x16x32 | B99: 4-7002 | C99: 120
A100: Bague galvanisée 12x16x32- weiller | B100: 4-7002 | C100: 70
A101: bague galvanisée 12x20x40-chutte nak | B101: 4-7634-1 | C101: 60
A102: Bague galvanisée 12x22x65 | B102: 12*22*42 | C102: 120 | D102: travail de chutte sur weileur
A103: bague galvanisée 14x20x52 | B103: 4- 72 83 | C103: 120 | D103: percage sur nak apres decoupage sur pf25
A104: Bague Galvanisée 16*20*38 - CHUTES | B104: 0-4236-1 | C104: 50
A105: Bague Galvanisée 16*22*38- weiller | B105: 0-4238-1 | C105: 50
A106: Bague Galvanisée 16*28*100 | B106: 4-7002-1 | C106: 40
A107: Bague Galvanisée 16*28*62 | B107: 4-8591-1 | C107: 30
A108: Bague Galvanisée 16*28*66 | B108: 4-7003-1 | C108: 30
A109: Bague Galvanisée 16*28*66-novembre | B109: 4-7003-1-b301 | C109: 40
A110: Bague galvanisée 16x28x100 - biglia b301 | B110: 4-7002 | C110: 20
A111: Bague galvanisée 18x22x42-WEILLER | B111: 4-7235-1 | C111: 70
A112: bague galvanisée 20*26*45-chutes weiller | B112: 0-4989-1 | C112: 60
A113: bague galvanisée 20x26x50- weiller | B113: 0-5023-1 | C113: 70
A114: Bague Galvanisée 20x26x7-WEILLER | B114: 4- 8362-1 | C114: 50
A115: BAGUE HEXAGONE TARAUDEE M16*150 | B115: 4-7986-1
A116: bague int silent bloc 18-14-68.8 | B116: 90162000 | C116: 90
A117: Bague Int silent bloc canter | B117: I043
A118: BAGUE INT SILENT BLOC FORD BT50 | B118: FO020-CP2 | C118: 120
A119: BAGUE INT SILENT BLOC INF-CP2 PROD | B119: I016-CP1-PROD
A120: BAGUE INT SILENT BLOC MIT | B120: MI23-CP2 | C120: 120
A121: BAGUE INT SILENT BLOC MITSUBISHI PROD | B121: I044-CP2-PROD | C121: 120
A122: BAGUE INT SILENT BLOC RESSORT-CP2 PROD | B122: MI031-CP1-PROD | C122: 120
A123: BAGUE L=62mm SUPPORT CABINE TFR | B123: TF62-CP4 | C123: 120
A124: BAGUE L=78 SUPP CABINE D'MAX | B124: I164-CP6 | C124: 120
A125: BAGUE LAITON 10,2*12,7 | B125: I043-CP2-PROD | C125: 90
A126: BAGUE LAITON 13*8.5*12 | B126: 13x8.5x12 | C126: 120
A127: Bague laiton necessaire axe ressort | B127: 12.7x7.3x10.4 | C127: 90
A128: BAGUE LAITON NECESSAIRE AXE RESSORT AR F110 | B128: F042-CP1 | C128: 75
A129: BAGUE LAITON NECESSAIRE AXE RESSORT AV F110 | B129: F043-cp1 | C129: 75
A130: BAGUE RIVET COUVERCLE T80 | B130: BAG-T80 | C130: 400
A131: Bague tarraudée | B131: 5016 | C131: 120
A132: BAGUE TUBE DEAU FORD PROD | B132: FO012-CP1-PROD | C132: 30
A133: bielle direction | B133: 36X40X28 | C133: 120
A134: bossage purge M6 | B134: ALBS06100L08 | C134: 50
A135: BOUCHON ALUMINIUM D38 | B135: BOUCH-ALU-D38 | C135: 25
A136: Bouchon carter | B136: I009 | C136: 25
A137: bouchon Fan out 72 | B137: Part C | C137: 90
A138: BOUCHON INOX D12-7.1-sb16 nv | B138: BCH-IN-D12-7.1 | C138: 69
A139: BOUCHON INOX D14 | B139: BOUCH-IN-D14 | C139: 60
A140: BOUCHON INOX D7.9 140X76X3 | B140: BCH-IN-D7.9 | C140: 60
A141: BOUCHON INOX D8.1 140X76X3 | B141: BCH-IN-D8.1 | C141: 60
A142: BOULON AXE RESSORT NM OM40 | B142: M018-29-CP3 | C142: 15
A143: BOULON D'ASSEMBLAGE PROD | B143: B001-CP1 | C143: 120
A144: Boulon support moteur Ford | B144: FO008-cp3 | C144: 120
A145: Boulon support moteur Ford GM | B145: FO008-cp3 | C145: 120
A146: BRIDE TDW200 | B146: 99MATBRIDE200
A147: BROCHE ACIER D13 ZINGUE L180 mj c decembre2021 | B147: BROCH L 180 | C147: 130
A148: BROCHE ACIER D13 ZINGUE L180 mj c | B148: BROCH L 180 | C148: 140
A149: BROCHE ACIER D13 ZINGUE L180 | B149: BROCH L 180 | C149: 120
A150: BROCHE ACIER D13 ZINGUE L230 | B150: BROCH L 230 | C150: 120
A151: Bronzina 16/18*10.3 | B151: 511040 | C151: 100
A152: BUSS D13/20X18,2 AVP CARB-BAGUE ACIER D20 | B152: 510087 | C152: 70
A153: BUSS DIS 14-3003 1320x28.7 AVP CARB | B153: 510081 | C153: 70
A154: BUTEE INTERNE METALLIQUE | B154: 651525 | C154: 70
A155: Butée interne métallique | B155: 651525 | C155: 90
A156: CAL ACIER SUSPENSION TOYOTA | B156: I090-CP3
A157: CAL SUSPENSION PM ISUZU | B157: I006 | C157: 60 | D157: kitamura
A158: CAL SUSPENSION PM ISUZU-fraisage + percage sur centre | B158: I006 | C158: 60
A159: CHARNIERE DE PORTE ISUZU D/B NON COUPEE - 894155315 | B159: I078 | C159: 90
A160: CHEMISE 440 DIN | B160: 040DECO0032 | C160: 120
A161: CHEMISE 82US-43BUS PF01245B- biglia mjm | B161: 040DECO0009 | C161: 25
A162: CHEMISE 840-450 DIN | B162: 040DECO0015- nak | C162: 15
A163: Chemise Fan out 72 | B163: - | C163: 15
A164: Clamping ring 240Fo -percage | B164: OTT-171-TSUGAMI | C164: 200 | D164: chq 20 min / 40pcs
A165: clamping ring 240fo | B165: OTT-171-L32 | C165: 350
A166: Clamping ring 360FO | B166: OTT-172-TSUGAMI | C166: 200
A167: CORDGRIP M20 FOR PRIMARY FANOUT biglia | B167: 301-601-002 | C167: 45
A168: CORDGRIP M20 FOR PRIMARY FANOUT L32 | B168: 301-601-002 | C168: 30
A169: CRIMP BODY FOR SECONDARY FAN OUT | B169: OPE-047 | C169: 120
A170: Culot bougie GM Culasse-percage harding | B170: D002 | C170: 48 | D170: harding
A171: CULOT BOUGIE GM EN ACIER PROD-decolletage | B171: D002-AC-PROD | C171: 90
A172: Culot Bougie PM Culasse - decolletage | B172: D003 | C172: 90
A173: DECOUPAGE AXE 100 INOX D8 L60 | B173: AXE-IN-D8-L60
A174: douille carre 24 | B174: 215215011 | C174: 100
A175: douille Ø4 | B175: 15-0795
A176: ECROU 430-440 DECOLLETE- nak | B176: 020DECO0004 | C176: 30
A177: ECROU 430-440 DECOLLETE- nak PH2 | B177: 020DECO0004 | C177: 45
A178: ECROU 6.5X10 | B178: ECR-6.5X10 | C178: 120
A179: ECROU 6.5X10
A180: ECROU 85-85B reprise | B180: 020DECO0006 | C180: 30
A181: ECROU 85-85B reprise chanfrien | B181: 020DECO0006- chanfrien | C181: 30
A182: ecrou acier hex 10 | B182: ECROU h10 | C182: 120
A183: Ecrou alu D38-JAMEL | B183: Ecrou M27
A184: ECROU BIELLE DIRECTION DROITE | B184: I113
A185: ECROU BIELLE DROITE | B185: I113-CP1 | C185: 90
A186: ECROU BRIDE HEX 22 M14*1.5 | B186: ECR BRIDE HEX 22 | C186: 120
A187: ECROU BRIDE HEX 24 PROD | B187: ECROU-H24-PROD | C187: 90
A188: Ecrou bride M14*1.5 | B188: - | C188: 90
A189: Ecrou collier ISUZU TFR | B189: I138-cp | D189: chanfrein sur NAKAMURA
A190: ECROU DE BLOC | B190: 4-7326 | C190: 90 | D190: CARRE SUR CENTRE
A191: ECROU DE FUSEE | B191: 601130 | C191: 35 | D191: reprise taraudage sur nak
A192: ecrou de fusée | B192: 601130-NAK | C192: 45
A193: ECROU DE FUSEE- HARDING | B193: 601130 | C193: 22
A194: Ecrou de roue Mitsubitchi PM | B194: MI08-cp1 | C194: 120
A195: ECROU DE ROUE NISSAN PM | B195: NIS001
A196: Ecrou de roue origine | B196: I143 | C196: 90
A197: Ecrou de roue TFR ISUZU | B197: I025 | C197: 80
A198: ECROU DE ROUE TFR ISUZU -nak | B198: I143-CP1 | C198: 80
A199: ECROU DEMI CARTER ISUZU | B199: I096-CP2 | C199: 60
A200: ecrou frein | B200: 551275 | C200: 60
... 557 more rows

Sheet 21-4-22
A1: 21-04-2022 | Z1: CODE: DAS-PRO-16
Z2: DATE:30/08/2019
Z3: VERSION:07
Z4: PAGE:1
A8: SYMBOLE | B8: MACHINE | C8: REF ARTICLE | D8: DESIGNATION | E8: COMPTEUR AUJOURD’HUI à 8h | F8: COMPTEUR HIER à 17H | G8: COMPTEUR HIER à 22H | H8: COMPTEUR AUJOURD’HUI à 8h | I8: CADENCE | J8: NOMBRE DE PIECES FINIS PAR CYCLE | K8: PIECES SUIVANT COMPTEU 8h-->17h | L8: PIECES SUIVANT COMPTEUR 17H-->22H | M8: PIECES SUIVANT COMPTEUR 6h-->8h | N8: NOMBRE D'HEURES DE TRAVAIL 8h-->17h | O8: NOMBRE D'HEURES DE TRAVAIL 17H-->22H | P8: NOMBRE D'HEURES DE TRAVAIL 6h-->8h | Q8: NOMBRE D'HEURES DE TRAVAIL | R8: OBSERVATIONS | S8: Pieces manquantes | T8: PIECES NC | U8: Pieces REELLES | V8: Nombre des pieces à retoucher | W8: Cause de la non-conformité | X8: Effet de la non-conformité | Y8: Valeur de l'effet | Z8: NOMBRES D'HEURES SUIVANT LES PIECES REELLES | AA8: RENDEMENT | AB8: Fiche de contrôle qualité début de serie | AC8: Affutage | AD8: Gamme d'usingae | AE8: ALERTES | AF8: A | AG8: P | AH8: Q | AI8: OEE | AJ8: OEE
A9: A | B9: SST16 | C9: =IFERROR(VLOOKUP(D9,Pieces!A:B,2,0)," ") -> 200101 | D9: AXE D'ARTICULATION | E9: 8251 | F9: 8974 | G9: 9174 | H9: 9450 | I9: =IFERROR(VLOOKUP(D9,Pieces!A:C,3,0),"") -> 120 | J9: 1 | K9: =(F9-E9)*J9 -> 723 | L9: =(G9-F9)*J9 -> 200 | M9: =(H9-G9)*J9 -> 276 | N9: =IF(I9="","",K9/I9) -> 6.025 | O9: =IF(I9="","",L9/I9) -> 1.666666667 | P9: =IF(I9="","",M9/I9) -> 2.3 | Q9: 12 | S9: =U9+T9-K9-L9-M9 -> 0 | U9: =(K9+L9+M9)-T9-V9 -> 1199 | Z9: =IF(OR(I9="",I9=0),0,(U9+T9)/I9) -> 9.991666667 | AA9: =IF(OR(Q9=0,I9=0),"",Z9/Q9*100) -> 83.26388889 | AE9: =IF(AA9>85," ","WARNING") -> WARNING | AF9: =(N9+O9+P9)/(Q9*3600) -> 0.0002312885802 | AG9: =((3600/I9)*U9)/(N9+O9+P9) -> 3600 | AH9: =(U9-T9)/U9 -> 1 | AI9: =AF9*AG9*AH9 -> 0.8326388889 | AJ9: =((U9-T9)*(3600/I9))/(Q9*3600) -> 0.8326388889
A10: B | B10: SB16 | C10: =IFERROR(VLOOKUP(D10,Pieces!A:B,2,0)," ") -> G022-CP1 | D10: AXE D15-M11*100 maj-c | E10: 0 | F10: 0 | G10: 0 | H10: 0 | I10: =IFERROR(VLOOKUP(D10,Pieces!A:C,3,0),"") -> 46 | J10: 1 | K10: =(F10-E10)*J10 -> 0 | L10: =(G10-F10)*J10 -> 0 | M10: =(H10-G10)*J10 -> 0 | N10: =IF(I10="","",K10/I10) -> 0 | O10: =IF(I10="","",L10/I10) -> 0 | P10: =IF(I10="","",M10/I10) -> 0 | Q10: 12 | S10: =U10+T10-K10-L10-M10 -> 0 | U10: =(K10+L10+M10)-T10-V10 -> 0 | Z10: =IF(OR(I10="",I10=0),0,(U10+T10)/I10) -> 0 | AA10: =IF(OR(Q10=0,I10=0),"",Z10/Q10*100) -> 0 | AE10: =IF(AA10>85," ","WARNING") -> WARNING | AF10: =(N10+O10+P10)/(Q10*3600) -> 0 | AG10: =((3600/I10)*U10)/(N10+O10+P10) ->  | AH10: =(U10-T10)/U10 ->  | AI10: =AF10*AG10*AH10 ->  | AJ10: =((U10-T10)*(3600/I10))/(Q10*3600) -> 0
A11: C | B11: BIGLIA 301 SM | C11: =IFERROR(VLOOKUP(D11,Pieces!A:B,2,0)," ") -> 510090 | D11: Inserto Esag M8 12x12 | E11: 966 | F11: 1164 | G11: 1205 | H11: 1309 | I11: =IFERROR(VLOOKUP(D11,Pieces!A:C,3,0),"") -> 50 | J11: 1 | K11: 198 | L11: 41 | M11: 104 | N11: 3.96 | O11: 0.82 | P11: 2.08 | Q11: 12 | S11: =U11+T11-K11-L11-M11 -> 0 | T11: 6 | U11: 337 | W11: Plaquette chariotage usée | Z11: 6.86 | AA11: 57.16666667 | AE11: WARNING | AF11: 0.0001587962963 | AG11: 3537.026239 | AH11: 0.9821958457 | AI11: 0.5516666667 | AJ11: 0.5516666667
A12: D | B12: BIGLIA 42 S2M bitourelle | C12: =IFERROR(VLOOKUP(D12,Pieces!A:B,2,0)," ") -> G028/G015 | D12: GOUJON M14*1.5 L=52 NON FRAISEE | E12: 0 | F12: 228 | G12: 228 | H12: 228 | I12: =IFERROR(VLOOKUP(D12,Pieces!A:C,3,0),"") -> 56 | J12: 1 | K12: 228 | L12: 0 | M12: 0 | N12: 4.071428571 | O12: 0 | P12: 0 | Q12: 9 | S12: 0 | U12: 228 | Z12: 4.071428571 | AA12: 45.23809524 | AE12: WARNING | AF12: 0.0001256613757 | AG12: 3600 | AH12: 1 | AI12: 0.4523809524 | AJ12: 0.4523809524
A13: E | B13: L32 | C13: =IFERROR(VLOOKUP(D13,Pieces!A:B,2,0)," ") -> 200200-2022 | D13: Embout de tige-2022 | E13: 4771 | F13: 4900 | G13: 4945 | H13: 4945 | I13: =IFERROR(VLOOKUP(D13,Pieces!A:C,3,0),"") -> 40 | J13: 1 | K13: 129 | L13: 45 | M13: 0 | N13: 3.225 | O13: 1.125 | P13: 0 | Q13: 9 | S13: 0 | U13: 174 | Z13: 4.35 | AA13: 48.33333333 | AE13: WARNING | AF13: 0.0001342592593 | AG13: 3600 | AH13: 1 | AI13: 0.4833333333 | AJ13: 0.4833333333
A14: F | B14: TSUGAMI | C14: =IFERROR(VLOOKUP(D14,Pieces!A:B,2,0)," ") -> I097 maj | D14: ECROU DE ROUE FORD RANGER- finition rayon 18-04-2022 MANUELLE | E14: 9172 | F14: 9557 | G14: 9557 | H14: 9557 | I14: =IFERROR(VLOOKUP(D14,Pieces!A:C,3,0),"") -> 75 | J14: 1 | K14: 385 | L14: 0 | M14: 0 | N14: 5.133333333 | O14: 0 | P14: 0 | Q14: 7 | S14: 0 | U14: 385 | Z14: 5.133333333 | AA14: 73.33333333 | AE14: WARNING | AF14: 0.0002037037037 | AG14: 3600 | AH14: 1 | AI14: 0.7333333333 | AJ14: 0.7333333333
A15: G | B15: Tour STAR SV-32-J | C15: =IFERROR(VLOOKUP(D15,Pieces!A:B,2,0)," ") -> 68.0815 | D15: Buse droite à collerette Ø8 M445 FRD | E15: 16860 | F15: 17157 | G15: 17260 | H15: 17387 | I15: =IFERROR(VLOOKUP(D15,Pieces!A:C,3,0),"") -> 60 | J15: 1 | K15: 297 | L15: 103 | M15: 127 | N15: 4.95 | O15: 1.716666667 | P15: 2.116666667 | Q15: 12 | S15: 0 | U15: 527 | Z15: 8.783333333 | AA15: 73.19444444 | AE15: WARNING | AF15: 0.0002033179012 | AG15: 3600 | AH15: 1 | AI15: 0.7319444444 | AJ15: 0.7319444444
A16: H | B16: Tour CNC STAR SB avec embarreur LNS Express 220 | C16: =IFERROR(VLOOKUP(D16,Pieces!A:B,2,0)," ") -> 200300 | D16: TIGE DE PISTON-maj ca | E16: 3083 | F16: 3254 | G16: 3300 | H16: 3375 | I16: =IFERROR(VLOOKUP(D16,Pieces!A:C,3,0),"") -> 29 | J16: 1 | K16: 171 | L16: 46 | M16: 75 | N16: 5.896551724 | O16: 1.586206897 | P16: 2.586206897 | Q16: 12 | S16: 0 | U16: 292 | Z16: 10.06896552 | AA16: 83.90804598 | AE16: WARNING | AF16: 0.0002330779055 | AG16: 3600 | AH16: 1 | AI16: 0.8390804598 | AJ16: 0.8390804598
A17: I | B17: MULTIBROCHE | C17: =IFERROR(VLOOKUP(D17,Pieces!A:B,2,0)," ") -> MPS000300 | D17: raccord HEX 17 | E17: 0 | F17: 0 | G17: 0 | H17: 0 | I17: =IFERROR(VLOOKUP(D17,Pieces!A:C,3,0),"") -> 500 | J17: 1 | K17: 0 | L17: 0 | M17: 0 | N17: 0 | O17: 0 | P17: 0 | Q17: 12 | S17: 0 | U17: 0 | Z17: 0 | AA17: 0 | AE17: WARNING | AF17: 0 | AJ17: 0
A18: J | B18: Tour CNC WEILER UD 24 - 100 | C18: =IFERROR(VLOOKUP(D18,Pieces!A:B,2,0)," ") -> 181035 | D18: BAGUE USINEE 11*18*35 19-04-2022 | E18: 0 | F18: 0 | G18: 0 | H18: 0 | I18: =IFERROR(VLOOKUP(D18,Pieces!A:C,3,0),"") -> 85 | J18: 1 | K18: 0 | L18: 0 | M18: 0 | N18: 0 | O18: 0 | P18: 0 | Q18: 7 | S18: 0 | U18: 0 | Z18: 0 | AA18: 0 | AE18: WARNING | AF18: 0 | AJ18: 0
A19: K | B19: TOUR WEILER | C19: =IFERROR(VLOOKUP(D19,Pieces!A:B,2,0)," ") -> 199400-MAJ | D19: Tirant acier D6 18-04-2022 PAR CHUTE | E19: 4020 | F19: 4422 | G19: 4422 | H19: 4422 | I19: =IFERROR(VLOOKUP(D19,Pieces!A:C,3,0),"") -> 100 | J19: 1 | K19: 402 | L19: 0 | M19: 0 | N19: 4.02 | O19: 0 | P19: 0 | Q19: 7 | S19: 0 | U19: 402 | Z19: 4.02 | AA19: 57.42857143 | AE19: WARNING | AF19: 0.0001595238095 | AG19: 3600 | AH19: 1 | AI19: 0.5742857143 | AJ19: 0.5742857143
A20: L | B20: NAKAMURA | C20: =IFERROR(VLOOKUP(D20,Pieces!A:B,2,0)," ") -> I007 | D20: ECROU SEMI ARBRE ISUZU | E20: 0 | F20: 0 | G20: 0 | H20: 0 | I20: =IFERROR(VLOOKUP(D20,Pieces!A:C,3,0),"") -> 30 | J20: 1 | K20: 0 | L20: 0 | M20: 0 | N20: 0 | O20: 0 | P20: 0 | Q20: 7 | S20: 0 | U20: 0 | Z20: 0 | AA20: 0 | AE20: WARNING | AF20: 0 | AJ20: 0
A21: M | B21: MORI SEIKI 3 axes | C21: =IFERROR(VLOOKUP(D21,Pieces!A:B,2,0)," ") -> i004 | D21: Ecrou suspension- surfacage | E21: 236 | F21: 268 | G21: 268 | H21: 276 | I21: =IFERROR(VLOOKUP(D21,Pieces!A:C,3,0),"") -> 54 | J21: 9 | K21: 288 | L21: 0 | M21: 72 | N21: 5.333333333 | O21: 0 | P21: 1.333333333 | Q21: 7 | S21: 0 | U21: 360 | Z21: 6.666666667 | AA21: 95.23809524 | AF21: 0.0002645502646 | AG21: 3600 | AH21: 1 | AI21: 0.9523809524 | AJ21: 0.9523809524
A22: N | B22: MORI SEIKI 5 axes | C22: =IFERROR(VLOOKUP(D22,Pieces!A:B,2,0)," ") -> - | D22: Arrêt | E22: 0 | F22: 0 | G22: 0 | H22: 0 | I22: =IFERROR(VLOOKUP(D22,Pieces!A:C,3,0),"") -> 1 | J22: 20 | K22: 0 | L22: 0 | M22: 0 | N22: 0 | O22: 0 | P22: 0 | Q22: 7 | S22: 0 | U22: 0 | Z22: 0 | AA22: 0 | AE22: WARNING | AF22: 0 | AJ22: 0
A23: O | B23: HARDING | C23: =IFERROR(VLOOKUP(D23,Pieces!A:B,2,0)," ") -> F029-CP3. | D23: TUBE L125.5 TUBE D4EAU PUNTO 2 | E23: 49 | F23: 76 | G23: 76 | H23: 76 | I23: =IFERROR(VLOOKUP(D23,Pieces!A:C,3,0),"") -> 27 | J23: 6 | K23: 162 | L23: 0 | M23: 0 | N23: 6 | O23: 0 | P23: 0 | Q23: 7 | S23: 0 | U23: 162 | Z23: 6 | AA23: 85.71428571 | AF23: 0.0002380952381 | AG23: 3600 | AH23: 1 | AI23: 0.8571428571 | AJ23: 0.8571428571
A24: O | B24: HARDING | C24: =IFERROR(VLOOKUP(D24,Pieces!A:B,2,0)," ") -> G027-HAR | D24: GOUJON M14*1.5L=52 PH2 HARDING | E24: 49 | F24: 76 | G24: 76 | H24: 76 | I24: =IFERROR(VLOOKUP(D24,Pieces!A:C,3,0),"") -> 32 | J24: 7 | K24: 189 | L24: 0 | M24: 0 | N24: 5.90625 | O24: 0 | P24: 0 | Q24: 9 | S24: 0 | U24: 189 | Z24: 5.90625 | AA24: 65.625 | AE24: WARNING | AF24: 0.0001822916667 | AG24: 3600 | AH24: 1 | AI24: 0.65625 | AJ24: 0.65625
A25: P | B25: KITAMURA | C25: =IFERROR(VLOOKUP(D25,Pieces!A:B,2,0)," ") -> 9531 | D25: USINAGE BORNE CPF SANS TROU Ø10-4 MONTAGE maj cadence 26-11-2021 | E25: 63 | F25: 83 | G25: 83 | H25: 89 | I25: =IFERROR(VLOOKUP(D25,Pieces!A:C,3,0),"") -> 240 | J25: 64 | K25: =(F25-E25)*J25 -> 1280 | L25: =(G25-F25)*J25 -> 0 | M25: =(H25-G25)*J25 -> 384 | N25: =IF(I25="","",K25/I25) -> 5.333333333 | O25: =IF(I25="","",L25/I25) -> 0 | P25: =IF(I25="","",M25/I25) -> 1.6 | Q25: 15 | S25: =U25+T25-K25-L25-M25 -> 0 | U25: =(K25+L25+M25)-T25-V25 -> 1664 | Z25: =IF(OR(I25="",I25=0),0,(U25+T25)/I25) -> 6.933333333 | AA25: =IF(OR(Q25=0,I25=0),"",Z25/Q25*100) -> 46.22222222 | AE25: =IF(AA25>85," ","WARNING") -> WARNING | AF25: 0.0001283950617 | AG25: 3600 | AH25: 1 | AI25: 0.4622222222 | AJ25: 0.4622222222
S27: Taux de NC journalière | U27: =#REF!/#REF! -> 
J31: Approbateur:
J32: Date:
J33: Visa:

Sheet 20-4-22
A1: 20-04-2022 | Z1: CODE: DAS-PRO-16
Z2: DATE:30/08/2019
Z3: VERSION:07
Z4: PAGE:1
A8: SYMBOLE | B8: MACHINE | C8: REF ARTICLE | D8: DESIGNATION | E8: COMPTEUR AUJOURD’HUI à 8h | F8: COMPTEUR HIER à 17H | G8: COMPTEUR HIER à 22H | H8: COMPTEUR AUJOURD’HUI à 8h | I8: CADENCE | J8: NOMBRE DE PIECES FINIS PAR CYCLE | K8: PIECES SUIVANT COMPTEU 8h-->17h | L8: PIECES SUIVANT COMPTEUR 17H-->22H | M8: PIECES SUIVANT COMPTEUR 6h-->8h | N8: NOMBRE D'HEURES DE TRAVAIL 8h-->17h | O8: NOMBRE D'HEURES DE TRAVAIL 17H-->22H | P8: NOMBRE D'HEURES DE TRAVAIL 6h-->8h | Q8: NOMBRE D'HEURES DE TRAVAIL | R8: OBSERVATIONS | S8: Pieces manquantes | T8: PIECES NC | U8: Pieces REELLES | V8: Nombre des pieces à retoucher | W8: Cause de la non-conformité | X8: Effet de la non-conformité | Y8: Valeur de l'effet | Z8: NOMBRES D'HEURES SUIVANT LES PIECES REELLES | AA8: RENDEMENT | AB8: Fiche de contrôle qualité début de serie | AC8: Affutage | AD8: Gamme d'usingae | AE8: ALERTES | AF8: A | AG8: P | AH8: Q | AI8: OEE | AJ8: OEE
A9: A | B9: SST16 | C9: =IFERROR(VLOOKUP(D9,Pieces!A:B,2,0)," ") -> 200101 | D9: AXE D'ARTICULATION | E9: 7300 | F9: 7752 | G9: 7940 | H9: 8251 | I9: =IFERROR(VLOOKUP(D9,Pieces!A:C,3,0),"") -> 120 | J9: 1 | K9: =(F9-E9)*J9 -> 452 | L9: =(G9-F9)*J9 -> 188 | M9: =(H9-G9)*J9 -> 311 | N9: =IF(I9="","",K9/I9) -> 3.766666667 | O9: =IF(I9="","",L9/I9) -> 1.566666667 | P9: =IF(I9="","",M9/I9) -> 2.591666667 | Q9: 12 | R9: 5 | S9: =U9+T9-K9-L9-M9 -> 0 | U9: =(K9+L9+M9)-T9-V9 -> 951 | Z9: =IF(OR(I9="",I9=0),0,(U9+T9)/I9) -> 7.925 | AA9: =IF(OR(Q9=0,I9=0),"",Z9/Q9*100) -> 66.04166667 | AE9: =IF(AA9>85," ","WARNING") -> WARNING | AF9: =(N9+O9+P9)/(Q9*3600) -> 0.0001834490741 | AG9: =((3600/I9)*U9)/(N9+O9+P9) -> 3600 | AH9: =(U9-T9)/U9 -> 1 | AI9: =AF9*AG9*AH9 -> 0.6604166667 | AJ9: =((U9-T9)*(3600/I9))/(Q9*3600) -> 0.6604166667
A10: B | B10: SB16 | C10: =IFERROR(VLOOKUP(D10,Pieces!A:B,2,0)," ") -> G022-CP1 | D10: AXE D15-M11*100 maj-c | E10: 0 | F10: 0 | G10: 0 | H10: 0 | I10: =IFERROR(VLOOKUP(D10,Pieces!A:C,3,0),"") -> 46 | J10: 1 | K10: =(F10-E10)*J10 -> 0 | L10: =(G10-F10)*J10 -> 0 | M10: =(H10-G10)*J10 -> 0 | N10: =IF(I10="","",K10/I10) -> 0 | O10: =IF(I10="","",L10/I10) -> 0 | P10: =IF(I10="","",M10/I10) -> 0 | Q10: 12 | S10: =U10+T10-K10-L10-M10 -> 0 | U10: =(K10+L10+M10)-T10-V10 -> 0 | Z10: =IF(OR(I10="",I10=0),0,(U10+T10)/I10) -> 0 | AA10: =IF(OR(Q10=0,I10=0),"",Z10/Q10*100) -> 0 | AE10: =IF(AA10>85," ","WARNING") -> WARNING | AF10: =(N10+O10+P10)/(Q10*3600) -> 0 | AG10: =((3600/I10)*U10)/(N10+O10+P10) ->  | AH10: =(U10-T10)/U10 ->  | AI10: =AF10*AG10*AH10 ->  | AJ10: =((U10-T10)*(3600/I10))/(Q10*3600) -> 0
A11: C | B11: BIGLIA 301 SM | C11: =IFERROR(VLOOKUP(D11,Pieces!A:B,2,0)," ") -> 510090 | D11: Inserto Esag M8 12x12 | E11: 533 | F11: 788 | G11: 860 | H11: 966 | I11: =IFERROR(VLOOKUP(D11,Pieces!A:C,3,0),"") -> 50 | J11: 1 | K11: 255 | L11: 72 | M11: 106 | N11: 5.1 | O11: 1.44 | P11: 2.12 | Q11: 12 | S11: =U11+T11-K11-L11-M11 -> 0 | U11: 433 | Z11: 8.66 | AA11: 72.16666667 | AE11: WARNING | AF11: 0.000200462963 | AG11: 3600 | AH11: 1 | AI11: 0.7216666667 | AJ11: 0.7216666667
A12: D | B12: BIGLIA 42 S2M bitourelle | C12: =IFERROR(VLOOKUP(D12,Pieces!A:B,2,0)," ") -> 19155-PT12 | D12: BAGUE DE RACCORDEMENT B42 | E12: 87 | F12: 183 | G12: 209 | H12: 237 | I12: =IFERROR(VLOOKUP(D12,Pieces!A:C,3,0),"") -> 26 | J12: 1 | K12: 96 | L12: 26 | M12: 28 | N12: 3.692307692 | O12: 1 | P12: 1.076923077 | Q12: 9 | S12: 0 | U12: 150 | Z12: 5.769230769 | AA12: 64.1025641 | AE12: WARNING | AF12: 0.0001780626781 | AG12: 3600 | AH12: 1 | AI12: 0.641025641 | AJ12: 0.641025641
A13: E | B13: L32 | C13: =IFERROR(VLOOKUP(D13,Pieces!A:B,2,0)," ") -> 200200-2022 | D13: Embout de tige-2022 | E13: 4771 | F13: 4771 | G13: 4771 | H13: 4771 | I13: =IFERROR(VLOOKUP(D13,Pieces!A:C,3,0),"") -> 40 | J13: 1 | K13: 0 | L13: 0 | M13: 0 | N13: 0 | O13: 0 | P13: 0 | Q13: 9 | S13: 0 | U13: 0 | Z13: 0 | AA13: 0 | AE13: WARNING | AF13: 0 | AJ13: 0
A14: F | B14: TSUGAMI | C14: =IFERROR(VLOOKUP(D14,Pieces!A:B,2,0)," ") -> I097 maj | D14: ECROU DE ROUE FORD RANGER- finition rayon 18-04-2022 MANUELLE | E14: 8811 | F14: 9172 | G14: 9172 | H14: 9172 | I14: =IFERROR(VLOOKUP(D14,Pieces!A:C,3,0),"") -> 75 | J14: 1 | K14: 361 | L14: 0 | M14: 0 | N14: 4.813333333 | O14: 0 | P14: 0 | Q14: 7 | S14: 0 | U14: 361 | Z14: 4.813333333 | AA14: 68.76190476 | AE14: WARNING | AF14: 0.000191005291 | AG14: 3600 | AH14: 1 | AI14: 0.6876190476 | AJ14: 0.6876190476
A15: G | B15: Tour STAR SV-32-J | C15: =IFERROR(VLOOKUP(D15,Pieces!A:B,2,0)," ") -> 68.0815 | D15: Buse droite à collerette Ø8 M445 FRD | E15: 16226 | F15: 16585 | G15: 16690 | H15: 16860 | I15: =IFERROR(VLOOKUP(D15,Pieces!A:C,3,0),"") -> 60 | J15: 1 | K15: 359 | L15: 105 | M15: 170 | N15: 5.983333333 | O15: 1.75 | P15: 2.833333333 | Q15: 12 | S15: 0 | U15: 634 | Z15: 10.56666667 | AA15: 88.05555556 | AF15: 0.0002445987654 | AG15: 3600 | AH15: 1 | AI15: 0.8805555556 | AJ15: 0.8805555556
A16: H | B16: Tour CNC STAR SB avec embarreur LNS Express 220 | C16: =IFERROR(VLOOKUP(D16,Pieces!A:B,2,0)," ") -> 200300 | D16: TIGE DE PISTON-maj ca | E16: 2778 | F16: 2962 | G16: 3007 | H16: 3083 | I16: =IFERROR(VLOOKUP(D16,Pieces!A:C,3,0),"") -> 29 | J16: 1 | K16: 184 | L16: 45 | M16: 76 | N16: 6.344827586 | O16: 1.551724138 | P16: 2.620689655 | Q16: 12 | S16: 0 | U16: 305 | Z16: 10.51724138 | AA16: 87.64367816 | AF16: 0.0002434546616 | AG16: 3600 | AH16: 1 | AI16: 0.8764367816 | AJ16: 0.8764367816
A17: I | B17: MULTIBROCHE | C17: =IFERROR(VLOOKUP(D17,Pieces!A:B,2,0)," ") -> MPS000300 | D17: raccord HEX 17 | E17: 0 | F17: 0 | G17: 0 | H17: 0 | I17: =IFERROR(VLOOKUP(D17,Pieces!A:C,3,0),"") -> 500 | J17: 1 | K17: 0 | L17: 0 | M17: 0 | N17: 0 | O17: 0 | P17: 0 | Q17: 12 | S17: 0 | U17: 0 | Z17: 0 | AA17: 0 | AE17: WARNING | AF17: 0 | AJ17: 0
A18: J | B18: Tour CNC WEILER UD 24 - 100 | C18: =IFERROR(VLOOKUP(D18,Pieces!A:B,2,0)," ") -> 181035 | D18: BAGUE USINEE 11*18*35 19-04-2022 | E18: 564 | F18: 1000 | G18: 1000 | H18: 1000 | I18: =IFERROR(VLOOKUP(D18,Pieces!A:C,3,0),"") -> 85 | J18: 1 | K18: 436 | L18: 0 | M18: 0 | N18: 5.129411765 | O18: 0 | P18: 0 | Q18: 7 | S18: 0 | U18: 436 | Z18: 5.129411765 | AA18: 73.27731092 | AE18: WARNING | AF18: 0.0002035480859 | AG18: 3600 | AH18: 1 | AI18: 0.7327731092 | AJ18: 0.7327731092
A19: K | B19: TOUR WEILER | C19: =IFERROR(VLOOKUP(D19,Pieces!A:B,2,0)," ") -> 199400-MAJ | D19: Tirant acier D6 18-04-2022 PAR CHUTE | E19: 3642 | F19: 4020 | G19: 4020 | H19: 4020 | I19: =IFERROR(VLOOKUP(D19,Pieces!A:C,3,0),"") -> 100 | J19: 1 | K19: 378 | L19: 0 | M19: 0 | N19: 3.78 | O19: 0 | P19: 0 | Q19: 7 | S19: 0 | U19: 378 | Z19: 3.78 | AA19: 54 | AE19: WARNING | AF19: 0.00015 | AG19: 3600 | AH19: 1 | AI19: 0.54 | AJ19: 0.54
A20: L | B20: NAKAMURA | C20: =IFERROR(VLOOKUP(D20,Pieces!A:B,2,0)," ") -> I007 | D20: ECROU SEMI ARBRE ISUZU | E20: 0 | F20: 0 | G20: 0 | H20: 0 | I20: =IFERROR(VLOOKUP(D20,Pieces!A:C,3,0),"") -> 30 | J20: 1 | K20: 0 | L20: 0 | M20: 0 | N20: 0 | O20: 0 | P20: 0 | Q20: 7 | S20: 0 | U20: 0 | Z20: 0 | AA20: 0 | AE20: WARNING | AF20: 0 | AJ20: 0
A21: M | B21: MORI SEIKI 3 axes | C21: =IFERROR(VLOOKUP(D21,Pieces!A:B,2,0)," ") -> i004 | D21: Ecrou suspension- surfacage | E21: 193 | F21: 228 | G21: 228 | H21: 236 | I21: =IFERROR(VLOOKUP(D21,Pieces!A:C,3,0),"") -> 54 | J21: 9 | K21: 315 | L21: 0 | M21: 72 | N21: 5.833333333 | O21: 0 | P21: 1.333333333 | Q21: 7 | S21: 0 | U21: 387 | Z21: 7.166666667 | AA21: 102.3809524 | AF21: 0.0002843915344 | AG21: 3600 | AH21: 1 | AI21: 1.023809524 | AJ21: 1.023809524
A22: N | B22: MORI SEIKI 5 axes | C22: =IFERROR(VLOOKUP(D22,Pieces!A:B,2,0)," ") -> - | D22: Arrêt | E22: 0 | F22: 0 | G22: 0 | H22: 0 | I22: =IFERROR(VLOOKUP(D22,Pieces!A:C,3,0),"") -> 1 | J22: 20 | K22: 0 | L22: 0 | M22: 0 | N22: 0 | O22: 0 | P22: 0 | Q22: 7 | S22: 0 | U22: 0 | Z22: 0 | AA22: 0 | AE22: WARNING | AF22: 0 | AJ22: 0
A23: O | B23: HARDING | C23: =IFERROR(VLOOKUP(D23,Pieces!A:B,2,0)," ") -> F029-CP3. | D23: TUBE L125.5 TUBE D4EAU PUNTO 2 | E23: 23 | F23: 49 | G23: 49 | H23: 49 | I23: =IFERROR(VLOOKUP(D23,Pieces!A:C,3,0),"") -> 27 | J23: 6 | K23: 156 | L23: 0 | M23: 0 | N23: 5.777777778 | O23: 0 | P23: 0 | Q23: 7 | S23: 0 | U23: 156 | Z23: 5.777777778 | AA23: 82.53968254 | AE23: WARNING | AF23: 0.0002292768959 | AG23: 3600 | AH23: 1 | AI23: 0.8253968254 | AJ23: 0.8253968254
A24: O | B24: HARDING | C24: =IFERROR(VLOOKUP(D24,Pieces!A:B,2,0)," ") -> G027-HAR | D24: GOUJON M14*1.5L=52 PH2 HARDING | E24: 23 | F24: 49 | G24: 49 | H24: 49 | I24: =IFERROR(VLOOKUP(D24,Pieces!A:C,3,0),"") -> 32 | J24: 7 | K24: 182 | L24: 0 | M24: 0 | N24: 5.6875 | O24: 0 | P24: 0 | Q24: 9 | S24: 0 | U24: 182 | Z24: 5.6875 | AA24: 63.19444444 | AE24: WARNING | AF24: 0.0001755401235 | AG24: 3600 | AH24: 1 | AI24: 0.6319444444 | AJ24: 0.6319444444
A25: P | B25: KITAMURA | C25: =IFERROR(VLOOKUP(D25,Pieces!A:B,2,0)," ") -> 9531 | D25: USINAGE BORNE CPF SANS TROU Ø10-4 MONTAGE maj cadence 26-11-2021 | E25: 39 | F25: 57 | G25: 57 | H25: 63 | I25: =IFERROR(VLOOKUP(D25,Pieces!A:C,3,0),"") -> 240 | J25: 64 | K25: =(F25-E25)*J25 -> 1152 | L25: =(G25-F25)*J25 -> 0 | M25: =(H25-G25)*J25 -> 384 | N25: =IF(I25="","",K25/I25) -> 4.8 | O25: =IF(I25="","",L25/I25) -> 0 | P25: =IF(I25="","",M25/I25) -> 1.6 | Q25: 15 | S25: =U25+T25-K25-L25-M25 -> 0 | U25: =(K25+L25+M25)-T25-V25 -> 1536 | Z25: =IF(OR(I25="",I25=0),0,(U25+T25)/I25) -> 6.4 | AA25: =IF(OR(Q25=0,I25=0),"",Z25/Q25*100) -> 42.66666667 | AE25: =IF(AA25>85," ","WARNING") -> WARNING | AF25: 0.0001185185185 | AG25: 3600 | AH25: 1 | AI25: 0.4266666667 | AJ25: 0.4266666667
S27: Taux de NC journalière | U27: =#REF!/#REF! -> 
J31: Approbateur:
J32: Date:
J33: Visa:

Sheet 19-4-22
A1: 19-04-2022 | Z1: CODE: DAS-PRO-16
Z2: DATE:30/08/2019
Z3: VERSION:07
Z4: PAGE:1
A8: SYMBOLE | B8: MACHINE | C8: REF ARTICLE | D8: DESIGNATION | E8: COMPTEUR AUJOURD’HUI à 8h | F8: COMPTEUR HIER à 17H | G8: COMPTEUR HIER à 22H | H8: COMPTEUR AUJOURD’HUI à 8h | I8: CADENCE | J8: NOMBRE DE PIECES FINIS PAR CYCLE | K8: PIECES SUIVANT COMPTEU 8h-->17h | L8: PIECES SUIVANT COMPTEUR 17H-->22H | M8: PIECES SUIVANT COMPTEUR 6h-->8h | N8: NOMBRE D'HEURES DE TRAVAIL 8h-->17h | O8: NOMBRE D'HEURES DE TRAVAIL 17H-->22H | P8: NOMBRE D'HEURES DE TRAVAIL 6h-->8h | Q8: NOMBRE D'HEURES DE TRAVAIL | R8: OBSERVATIONS | S8: Pieces manquantes | T8: PIECES NC | U8: Pieces REELLES | V8: Nombre des pieces à retoucher | W8: Cause de la non-conformité | X8: Effet de la non-conformité | Y8: Valeur de l'effet | Z8: NOMBRES D'HEURES SUIVANT LES PIECES REELLES | AA8: RENDEMENT | AB8: Fiche de contrôle qualité début de serie | AC8: Affutage | AD8: Gamme d'usingae | AE8: ALERTES | AF8: A | AG8: P | AH8: Q | AI8: OEE | AJ8: OEE
A9: A | B9: SST16 | C9: =IFERROR(VLOOKUP(D9,Pieces!A:B,2,0)," ") -> 200101 | D9: AXE D'ARTICULATION | E9: 6098 | F9: 7752 | G9: 6980 | H9: 7300 | I9: =IFERROR(VLOOKUP(D9,Pieces!A:C,3,0),"") -> 120 | J9: 1 | K9: =(F9-E9)*J9 -> 1654 | L9: =(G9-F9)*J9 -> -772 | M9: =(H9-G9)*J9 -> 320 | N9: =IF(I9="","",K9/I9) -> 13.78333333 | O9: =IF(I9="","",L9/I9) -> -6.433333333 | P9: =IF(I9="","",M9/I9) -> 2.666666667 | Q9: 12 | S9: =U9+T9-K9-L9-M9 -> 0 | U9: =(K9+L9+M9)-T9-V9 -> 1202 | Z9: =IF(OR(I9="",I9=0),0,(U9+T9)/I9) -> 10.01666667 | AA9: =IF(OR(Q9=0,I9=0),"",Z9/Q9*100) -> 83.47222222 | AE9: =IF(AA9>85," ","WARNING") -> WARNING | AF9: =(N9+O9+P9)/(Q9*3600) -> 0.000231867284 | AG9: =((3600/I9)*U9)/(N9+O9+P9) -> 3600 | AH9: =(U9-T9)/U9 -> 1 | AI9: =AF9*AG9*AH9 -> 0.8347222222 | AJ9: =((U9-T9)*(3600/I9))/(Q9*3600) -> 0.8347222222
A10: B | B10: SB16 | C10: =IFERROR(VLOOKUP(D10,Pieces!A:B,2,0)," ") -> G022-CP1 | D10: AXE D15-M11*100 maj-c | E10: 0 | F10: 0 | G10: 0 | H10: 0 | I10: =IFERROR(VLOOKUP(D10,Pieces!A:C,3,0),"") -> 46 | J10: 1 | K10: =(F10-E10)*J10 -> 0 | L10: =(G10-F10)*J10 -> 0 | M10: =(H10-G10)*J10 -> 0 | N10: =IF(I10="","",K10/I10) -> 0 | O10: =IF(I10="","",L10/I10) -> 0 | P10: =IF(I10="","",M10/I10) -> 0 | Q10: 12 | S10: =U10+T10-K10-L10-M10 -> 0 | U10: =(K10+L10+M10)-T10-V10 -> 0 | Z10: =IF(OR(I10="",I10=0),0,(U10+T10)/I10) -> 0 | AA10: =IF(OR(Q10=0,I10=0),"",Z10/Q10*100) -> 0 | AE10: =IF(AA10>85," ","WARNING") -> WARNING | AF10: =(N10+O10+P10)/(Q10*3600) -> 0 | AG10: =((3600/I10)*U10)/(N10+O10+P10) ->  | AH10: =(U10-T10)/U10 ->  | AI10: =AF10*AG10*AH10 ->  | AJ10: =((U10-T10)*(3600/I10))/(Q10*3600) -> 0
A11: C | B11: BIGLIA 301 SM | C11: =IFERROR(VLOOKUP(D11,Pieces!A:B,2,0)," ") -> 510090 | D11: Inserto Esag M8 12x12 | E11: 148 | F11: 367 | G11: 425 | H11: 533 | I11: =IFERROR(VLOOKUP(D11,Pieces!A:C,3,0),"") -> 50 | J11: 1 | K11: 219 | L11: 58 | M11: 108 | N11: 4.38 | O11: 1.16 | P11: 2.16 | Q11: 12 | S11: =U11+T11-K11-L11-M11 -> 0 | U11: 385 | Z11: 7.7 | AA11: 64.16666667 | AE11: WARNING | AF11: 0.0001782407407 | AG11: 3600 | AH11: 1 | AI11: 0.6416666667 | AJ11: 0.6416666667
A12: D | B12: BIGLIA 42 S2M bitourelle | C12: =IFERROR(VLOOKUP(D12,Pieces!A:B,2,0)," ") -> 19155-PT12 | D12: BAGUE DE RACCORDEMENT B42 | E12: 0 | F12: 20 | G12: 40 | H12: 87 | I12: =IFERROR(VLOOKUP(D12,Pieces!A:C,3,0),"") -> 26 | J12: 1 | K12: 20 | L12: 20 | M12: 47 | N12: 0.7692307692 | O12: 0.7692307692 | P12: 1.807692308 | Q12: 9 | S12: 0 | U12: 87 | Z12: 3.346153846 | AA12: 37.17948718 | AE12: WARNING | AF12: 0.0001032763533 | AG12: 3600 | AH12: 1 | AI12: 0.3717948718 | AJ12: 0.3717948718
A13: E | B13: L32 | C13: =IFERROR(VLOOKUP(D13,Pieces!A:B,2,0)," ") -> 200200-2022 | D13: Embout de tige-2022 | E13: 4771 | F13: 4771 | G13: 4771 | H13: 4771 | I13: =IFERROR(VLOOKUP(D13,Pieces!A:C,3,0),"") -> 40 | J13: 1 | K13: 0 | L13: 0 | M13: 0 | N13: 0 | O13: 0 | P13: 0 | Q13: 9 | S13: 0 | U13: 0 | Z13: 0 | AA13: 0 | AE13: WARNING | AF13: 0 | AJ13: 0
A14: F | B14: TSUGAMI | C14: =IFERROR(VLOOKUP(D14,Pieces!A:B,2,0)," ") -> I097 maj | D14: ECROU DE ROUE FORD RANGER- finition rayon 18-04-2022 MANUELLE | E14: 8422 | F14: 8811 | G14: 8811 | H14: 8811 | I14: =IFERROR(VLOOKUP(D14,Pieces!A:C,3,0),"") -> 75 | J14: 1 | K14: 389 | L14: 0 | M14: 0 | N14: 5.186666667 | O14: 0 | P14: 0 | Q14: 7 | S14: 0 | U14: 389 | Z14: 5.186666667 | AA14: 74.0952381 | AE14: WARNING | AF14: 0.0002058201058 | AG14: 3600 | AH14: 1 | AI14: 0.740952381 | AJ14: 0.740952381
A15: G | B15: Tour STAR SV-32-J | C15: =IFERROR(VLOOKUP(D15,Pieces!A:B,2,0)," ") -> 68.0815 | D15: Buse droite à collerette Ø8 M445 FRD | E15: 15583 | F15: 15980 | G15: 16070 | H15: 16226 | I15: =IFERROR(VLOOKUP(D15,Pieces!A:C,3,0),"") -> 60 | J15: 1 | K15: 397 | L15: 90 | M15: 156 | N15: 6.616666667 | O15: 1.5 | P15: 2.6 | Q15: 12 | S15: 0 | U15: 643 | Z15: 10.71666667 | AA15: 89.30555556 | AF15: 0.0002480709877 | AG15: 3600 | AH15: 1 | AI15: 0.8930555556 | AJ15: 0.8930555556
A16: H | B16: Tour CNC STAR SB avec embarreur LNS Express 220 | C16: =IFERROR(VLOOKUP(D16,Pieces!A:B,2,0)," ") -> 200300 | D16: TIGE DE PISTON-maj ca | E16: 2507 | F16: 2679 | G16: 2723 | H16: 2778 | I16: =IFERROR(VLOOKUP(D16,Pieces!A:C,3,0),"") -> 29 | J16: 1 | K16: 172 | L16: 44 | M16: 55 | N16: 5.931034483 | O16: 1.517241379 | P16: 1.896551724 | Q16: 12 | S16: 0 | U16: 271 | Z16: 9.344827586 | AA16: 77.87356322 | AE16: WARNING | AF16: 0.0002163154534 | AG16: 3600 | AH16: 1 | AI16: 0.7787356322 | AJ16: 0.7787356322
A17: I | B17: MULTIBROCHE | C17: =IFERROR(VLOOKUP(D17,Pieces!A:B,2,0)," ") -> MPS000300 | D17: raccord HEX 17 | E17: 0 | F17: 0 | G17: 0 | H17: 0 | I17: =IFERROR(VLOOKUP(D17,Pieces!A:C,3,0),"") -> 500 | J17: 1 | K17: 0 | L17: 0 | M17: 0 | N17: 0 | O17: 0 | P17: 0 | Q17: 12 | S17: 0 | U17: 0 | Z17: 0 | AA17: 0 | AE17: WARNING | AF17: 0 | AJ17: 0
A18: J | B18: Tour CNC WEILER UD 24 - 100 | C18: =IFERROR(VLOOKUP(D18,Pieces!A:B,2,0)," ") -> 181035 | D18: BAGUE USINEE 11*18*35 19-04-2022 | E18: 160 | F18: 564 | G18: 564 | H18: 564 | I18: =IFERROR(VLOOKUP(D18,Pieces!A:C,3,0),"") -> 85 | J18: 1 | K18: 404 | L18: 0 | M18: 0 | N18: 4.752941176 | O18: 0 | P18: 0 | Q18: 7 | S18: 0 | U18: 404 | Z18: 4.752941176 | AA18: 67.89915966 | AE18: WARNING | AF18: 0.0001886087768 | AG18: 3600 | AH18: 1 | AI18: 0.6789915966 | AJ18: 0.6789915966
A19: K | B19: TOUR WEILER | C19: =IFERROR(VLOOKUP(D19,Pieces!A:B,2,0)," ") -> 199400-MAJ | D19: Tirant acier D6 18-04-2022 PAR CHUTE | E19: 3202 | F19: 3642 | G19: 3642 | H19: 3642 | I19: =IFERROR(VLOOKUP(D19,Pieces!A:C,3,0),"") -> 100 | J19: 1 | K19: 440 | L19: 0 | M19: 0 | N19: 4.4 | O19: 0 | P19: 0 | Q19: 7 | S19: 0 | U19: 440 | Z19: 4.4 | AA19: 62.85714286 | AE19: WARNING | AF19: 0.0001746031746 | AG19: 3600 | AH19: 1 | AI19: 0.6285714286 | AJ19: 0.6285714286
A20: L | B20: NAKAMURA | C20: =IFERROR(VLOOKUP(D20,Pieces!A:B,2,0)," ") -> I007 | D20: ECROU SEMI ARBRE ISUZU | E20: 0 | F20: 0 | G20: 0 | H20: 0 | I20: =IFERROR(VLOOKUP(D20,Pieces!A:C,3,0),"") -> 30 | J20: 1 | K20: 0 | L20: 0 | M20: 0 | N20: 0 | O20: 0 | P20: 0 | Q20: 7 | S20: 0 | U20: 0 | Z20: 0 | AA20: 0 | AE20: WARNING | AF20: 0 | AJ20: 0
A21: M | B21: MORI SEIKI 3 axes | C21: =IFERROR(VLOOKUP(D21,Pieces!A:B,2,0)," ") -> i004 | D21: Ecrou suspension- surfacage | E21: 156 | F21: 190 | G21: 190 | H21: 193 | I21: =IFERROR(VLOOKUP(D21,Pieces!A:C,3,0),"") -> 54 | J21: 9 | K21: 306 | L21: 0 | M21: 27 | N21: 5.666666667 | O21: 0 | P21: 0.5 | Q21: 7 | S21: 0 | U21: 333 | Z21: 6.166666667 | AA21: 88.0952381 | AF21: 0.0002447089947 | AG21: 3600 | AH21: 1 | AI21: 0.880952381 | AJ21: 0.880952381
A22: N | B22: MORI SEIKI 5 axes | C22: =IFERROR(VLOOKUP(D22,Pieces!A:B,2,0)," ") -> - | D22: Arrêt | E22: 0 | F22: 0 | G22: 0 | H22: 0 | I22: =IFERROR(VLOOKUP(D22,Pieces!A:C,3,0),"") -> 1 | J22: 20 | K22: 0 | L22: 0 | M22: 0 | N22: 0 | O22: 0 | P22: 0 | Q22: 7 | S22: 0 | U22: 0 | Z22: 0 | AA22: 0 | AE22: WARNING | AF22: 0 | AJ22: 0
A23: O | B23: HARDING | C23: =IFERROR(VLOOKUP(D23,Pieces!A:B,2,0)," ") -> F029-CP3. | D23: TUBE L125.5 TUBE D4EAU PUNTO 2 | E23: 0 | F23: 23 | G23: 23 | H23: 23 | I23: =IFERROR(VLOOKUP(D23,Pieces!A:C,3,0),"") -> 27 | J23: 6 | K23: 138 | L23: 0 | M23: 0 | N23: 5.111111111 | O23: 0 | P23: 0 | Q23: 7 | S23: 0 | U23: 138 | Z23: 5.111111111 | AA23: 73.01587302 | AE23: WARNING | AF23: 0.0002028218695 | AG23: 3600 | AH23: 1 | AI23: 0.7301587302 | AJ23: 0.7301587302
A24: O | B24: HARDING | C24: =IFERROR(VLOOKUP(D24,Pieces!A:B,2,0)," ") -> G027-HAR | D24: GOUJON M14*1.5L=52 PH2 HARDING | E24: 0 | F24: 23 | G24: 23 | H24: 23 | I24: =IFERROR(VLOOKUP(D24,Pieces!A:C,3,0),"") -> 32 | J24: 7 | K24: 161 | L24: 0 | M24: 0 | N24: 5.03125 | O24: 0 | P24: 0 | Q24: 9 | S24: 0 | U24: 161 | Z24: 5.03125 | AA24: 55.90277778 | AE24: WARNING | AF24: 0.0001552854938 | AG24: 3600 | AH24: 1 | AI24: 0.5590277778 | AJ24: 0.5590277778
A25: P | B25: KITAMURA | C25: =IFERROR(VLOOKUP(D25,Pieces!A:B,2,0)," ") -> 9531 | D25: USINAGE BORNE CPF SANS TROU Ø10-4 MONTAGE maj cadence 26-11-2021 | E25: 9 | F25: 33 | G25: 33 | H25: 39 | I25: =IFERROR(VLOOKUP(D25,Pieces!A:C,3,0),"") -> 240 | J25: 64 | K25: =(F25-E25)*J25 -> 1536 | L25: =(G25-F25)*J25 -> 0 | M25: =(H25-G25)*J25 -> 384 | N25: =IF(I25="","",K25/I25) -> 6.4 | O25: =IF(I25="","",L25/I25) -> 0 | P25: =IF(I25="","",M25/I25) -> 1.6 | Q25: 15 | S25: =U25+T25-K25-L25-M25 -> 0 | U25: =(K25+L25+M25)-T25-V25 -> 1920 | Z25: =IF(OR(I25="",I25=0),0,(U25+T25)/I25) -> 8 | AA25: =IF(OR(Q25=0,I25=0),"",Z25/Q25*100) -> 53.33333333 | AE25: =IF(AA25>85," ","WARNING") -> WARNING | AF25: 0.0001481481481 | AG25: 3600 | AH25: 1 | AI25: 0.5333333333 | AJ25: 0.5333333333
S27: Taux de NC journalière | U27: =#REF!/#REF! -> 
J31: Approbateur:
J32: Date:
J33: Visa:

Sheet 18-4-22
A1: 18-04-2022 | Z1: CODE: DAS-PRO-16
Z2: DATE:30/08/2019
Z3: VERSION:07
Z4: PAGE:1
A8: SYMBOLE | B8: MACHINE | C8: REF ARTICLE | D8: DESIGNATION | E8: COMPTEUR AUJOURD’HUI à 8h | F8: COMPTEUR HIER à 17H | G8: COMPTEUR HIER à 22H | H8: COMPTEUR AUJOURD’HUI à 8h | I8: CADENCE | J8: NOMBRE DE PIECES FINIS PAR CYCLE | K8: PIECES SUIVANT COMPTEU 8h-->17h | L8: PIECES SUIVANT COMPTEUR 17H-->22H | M8: PIECES SUIVANT COMPTEUR 6h-->8h | N8: NOMBRE D'HEURES DE TRAVAIL 8h-->17h | O8: NOMBRE D'HEURES DE TRAVAIL 17H-->22H | P8: NOMBRE D'HEURES DE TRAVAIL 6h-->8h | Q8: NOMBRE D'HEURES DE TRAVAIL | R8: OBSERVATIONS | S8: Pieces manquantes | T8: PIECES NC | U8: Pieces REELLES | V8: Nombre des pieces à retoucher | W8: Cause de la non-conformité | X8: Effet de la non-conformité | Y8: Valeur de l'effet | Z8: NOMBRES D'HEURES SUIVANT LES PIECES REELLES | AA8: RENDEMENT | AB8: Fiche de contrôle qualité début de serie | AC8: Affutage | AD8: Gamme d'usingae | AE8: ALERTES | AF8: A | AG8: P | AH8: Q | AI8: OEE | AJ8: OEE
A9: A | B9: SST16 | C9: =IFERROR(VLOOKUP(D9,Pieces!A:B,2,0)," ") -> 200101 | D9: AXE D'ARTICULATION | E9: 5013 | F9: 5645 | G9: 5836 | H9: 6098 | I9: =IFERROR(VLOOKUP(D9,Pieces!A:C,3,0),"") -> 120 | J9: 1 | K9: =(F9-E9)*J9 -> 632 | L9: =(G9-F9)*J9 -> 191 | M9: =(H9-G9)*J9 -> 262 | N9: =IF(I9="","",K9/I9) -> 5.266666667 | O9: =IF(I9="","",L9/I9) -> 1.591666667 | P9: =IF(I9="","",M9/I9) -> 2.183333333 | Q9: 12 | S9: =U9+T9-K9-L9-M9 -> 0 | U9: =(K9+L9+M9)-T9-V9 -> 1085 | Z9: =IF(OR(I9="",I9=0),0,(U9+T9)/I9) -> 9.041666667 | AA9: =IF(OR(Q9=0,I9=0),"",Z9/Q9*100) -> 75.34722222 | AE9: =IF(AA9>85," ","WARNING") -> WARNING | AF9: =(N9+O9+P9)/(Q9*3600) -> 0.0002092978395 | AG9: =((3600/I9)*U9)/(N9+O9+P9) -> 3600 | AH9: =(U9-T9)/U9 -> 1 | AI9: =AF9*AG9*AH9 -> 0.7534722222 | AJ9: =((U9-T9)*(3600/I9))/(Q9*3600) -> 0.7534722222
A10: B | B10: SB16 | C10: =IFERROR(VLOOKUP(D10,Pieces!A:B,2,0)," ") -> G022-CP1 | D10: AXE D15-M11*100 maj-c | E10: 0 | F10: 0 | G10: 0 | H10: 0 | I10: =IFERROR(VLOOKUP(D10,Pieces!A:C,3,0),"") -> 46 | J10: 1 | K10: =(F10-E10)*J10 -> 0 | L10: =(G10-F10)*J10 -> 0 | M10: =(H10-G10)*J10 -> 0 | N10: =IF(I10="","",K10/I10) -> 0 | O10: =IF(I10="","",L10/I10) -> 0 | P10: =IF(I10="","",M10/I10) -> 0 | Q10: 12 | S10: =U10+T10-K10-L10-M10 -> 0 | U10: =(K10+L10+M10)-T10-V10 -> 0 | Z10: =IF(OR(I10="",I10=0),0,(U10+T10)/I10) -> 0 | AA10: =IF(OR(Q10=0,I10=0),"",Z10/Q10*100) -> 0 | AE10: =IF(AA10>85," ","WARNING") -> WARNING | AF10: =(N10+O10+P10)/(Q10*3600) -> 0 | AG10: =((3600/I10)*U10)/(N10+O10+P10) ->  | AH10: =(U10-T10)/U10 ->  | AI10: =AF10*AG10*AH10 ->  | AJ10: =((U10-T10)*(3600/I10))/(Q10*3600) -> 0
A11: C | B11: BIGLIA 301 SM | C11: =IFERROR(VLOOKUP(D11,Pieces!A:B,2,0)," ") -> 510090 | D11: Inserto Esag M8 12x12 | E11: 0 | F11: 0 | G11: 56 | H11: 148 | I11: =IFERROR(VLOOKUP(D11,Pieces!A:C,3,0),"") -> 50 | J11: 1 | K11: 0 | L11: 56 | M11: 92 | N11: 0 | O11: 1.12 | P11: 1.84 | Q11: 12 | S11: =U11+T11-K11-L11-M11 -> 0 | U11: 148 | Z11: 2.96 | AA11: 24.66666667 | AE11: WARNING | AF11: 6.851851852e-05 | AG11: 3600 | AH11: 1 | AI11: 0.2466666667 | AJ11: 0.2466666667
A12: D | B12: BIGLIA 42 S2M bitourelle | C12: =IFERROR(VLOOKUP(D12,Pieces!A:B,2,0)," ") -> G027-maj | D12: GOUJON M14*1.5L=52 18-04-2022 manuelle | E12: 1367 | F12: 1660 | G12: 1660 | H12: 1660 | I12: =IFERROR(VLOOKUP(D12,Pieces!A:C,3,0),"") -> 58 | J12: 1 | K12: 293 | L12: 0 | M12: 0 | N12: 5.051724138 | O12: 0 | P12: 0 | Q12: 9 | S12: 0 | U12: 293 | Z12: 5.051724138 | AA12: 56.1302682 | AE12: WARNING | AF12: 0.0001559174117 | AG12: 3600 | AH12: 1 | AI12: 0.561302682 | AJ12: 0.561302682
A13: E | B13: L32 | C13: =IFERROR(VLOOKUP(D13,Pieces!A:B,2,0)," ") -> 200200-2022 | D13: Embout de tige-2022 | E13: 4771 | F13: 4771 | G13: 4771 | H13: 4771 | I13: =IFERROR(VLOOKUP(D13,Pieces!A:C,3,0),"") -> 40 | J13: 1 | K13: 0 | L13: 0 | M13: 0 | N13: 0 | O13: 0 | P13: 0 | Q13: 9 | S13: 0 | U13: 0 | Z13: 0 | AA13: 0 | AE13: WARNING | AF13: 0 | AJ13: 0
A14: F | B14: TSUGAMI | C14: =IFERROR(VLOOKUP(D14,Pieces!A:B,2,0)," ") -> I097 maj | D14: ECROU DE ROUE FORD RANGER- finition rayon 18-04-2022 MANUELLE | E14: 7874 | F14: 8326 | G14: 8326 | H14: 8422 | I14: =IFERROR(VLOOKUP(D14,Pieces!A:C,3,0),"") -> 75 | J14: 1 | K14: 452 | L14: 0 | M14: 96 | N14: 6.026666667 | O14: 0 | P14: 1.28 | Q14: 7 | S14: 0 | U14: 548 | Z14: 7.306666667 | AA14: 104.3809524 | AF14: 0.0002899470899 | AG14: 3600 | AH14: 1 | AI14: 1.043809524 | AJ14: 1.043809524
A15: G | B15: Tour STAR SV-32-J | C15: =IFERROR(VLOOKUP(D15,Pieces!A:B,2,0)," ") -> 68.0815 | D15: Buse droite à collerette Ø8 M445 FRD | E15: 14960 | F15: 15320 | G15: 15431 | H15: 15583 | I15: =IFERROR(VLOOKUP(D15,Pieces!A:C,3,0),"") -> 60 | J15: 1 | K15: 360 | L15: 111 | M15: 152 | N15: 6 | O15: 1.85 | P15: 2.533333333 | Q15: 12 | S15: 0 | U15: 623 | Z15: 10.38333333 | AA15: 86.52777778 | AF15: 0.0002403549383 | AG15: 3600 | AH15: 1 | AI15: 0.8652777778 | AJ15: 0.8652777778
A16: H | B16: Tour CNC STAR SB avec embarreur LNS Express 220 | C16: =IFERROR(VLOOKUP(D16,Pieces!A:B,2,0)," ") -> 200300 | D16: TIGE DE PISTON-maj ca | E16: 2368 | F16: 2452 | G16: 2455 | H16: 2507 | I16: =IFERROR(VLOOKUP(D16,Pieces!A:C,3,0),"") -> 29 | J16: 1 | K16: 84 | L16: 3 | M16: 52 | N16: 2.896551724 | O16: 0.1034482759 | P16: 1.793103448 | Q16: 12 | S16: 0 | U16: 139 | Z16: 4.793103448 | AA16: 39.94252874 | AE16: WARNING | AF16: 0.0001109514687 | AG16: 3600 | AH16: 1 | AI16: 0.3994252874 | AJ16: 0.3994252874
A17: I | B17: MULTIBROCHE | C17: =IFERROR(VLOOKUP(D17,Pieces!A:B,2,0)," ") -> MPS000300 | D17: raccord HEX 17 | E17: 0 | F17: 0 | G17: 0 | H17: 0 | I17: =IFERROR(VLOOKUP(D17,Pieces!A:C,3,0),"") -> 500 | J17: 1 | K17: 0 | L17: 0 | M17: 0 | N17: 0 | O17: 0 | P17: 0 | Q17: 12 | S17: 0 | U17: 0 | Z17: 0 | AA17: 0 | AE17: WARNING | AF17: 0 | AJ17: 0
A18: J | B18: Tour CNC WEILER UD 24 - 100 | C18: =IFERROR(VLOOKUP(D18,Pieces!A:B,2,0)," ") -> 181035 | D18: BAGUE USINEE 11*18*35 19-04-2022 | E18: 0 | F18: 160 | G18: 160 | H18: 160 | I18: =IFERROR(VLOOKUP(D18,Pieces!A:C,3,0),"") -> 85 | J18: 1 | K18: 160 | L18: 0 | M18: 0 | N18: 1.882352941 | O18: 0 | P18: 0 | Q18: 7 | S18: 0 | U18: 160 | Z18: 1.882352941 | AA18: 26.8907563 | AE18: WARNING | AF18: 7.469654528e-05 | AG18: 3600 | AH18: 1 | AI18: 0.268907563 | AJ18: 0.268907563
A19: K | B19: TOUR WEILER | C19: =IFERROR(VLOOKUP(D19,Pieces!A:B,2,0)," ") -> 199400-MAJ | D19: Tirant acier D6 18-04-2022 PAR CHUTE | E19: 2824 | F19: 3202 | G19: 3202 | H19: 3202 | I19: =IFERROR(VLOOKUP(D19,Pieces!A:C,3,0),"") -> 100 | J19: 1 | K19: 378 | L19: 0 | M19: 0 | N19: 3.78 | O19: 0 | P19: 0 | Q19: 7 | S19: 0 | U19: 378 | Z19: 3.78 | AA19: 54 | AE19: WARNING | AF19: 0.00015 | AG19: 3600 | AH19: 1 | AI19: 0.54 | AJ19: 0.54
A20: L | B20: NAKAMURA | C20: =IFERROR(VLOOKUP(D20,Pieces!A:B,2,0)," ") -> I007 | D20: ECROU SEMI ARBRE ISUZU | E20: 0 | F20: 0 | G20: 0 | H20: 0 | I20: =IFERROR(VLOOKUP(D20,Pieces!A:C,3,0),"") -> 30 | J20: 1 | K20: 0 | L20: 0 | M20: 0 | N20: 0 | O20: 0 | P20: 0 | Q20: 7 | S20: 0 | U20: 0 | Z20: 0 | AA20: 0 | AE20: WARNING | AF20: 0 | AJ20: 0
A21: M | B21: MORI SEIKI 3 axes | C21: =IFERROR(VLOOKUP(D21,Pieces!A:B,2,0)," ") -> i004 | D21: Ecrou suspension- surfacage | E21: 118 | F21: 156 | G21: 156 | H21: 156 | I21: =IFERROR(VLOOKUP(D21,Pieces!A:C,3,0),"") -> 54 | J21: 9 | K21: 342 | L21: 0 | M21: 0 | N21: 6.333333333 | O21: 0 | P21: 0 | Q21: 7 | S21: 0 | U21: 342 | Z21: 6.333333333 | AA21: 90.47619048 | AF21: 0.0002513227513 | AG21: 3600 | AH21: 1 | AI21: 0.9047619048 | AJ21: 0.9047619048
A22: N | B22: MORI SEIKI 5 axes | C22: =IFERROR(VLOOKUP(D22,Pieces!A:B,2,0)," ") -> - | D22: Arrêt | E22: 0 | F22: 0 | G22: 0 | H22: 0 | I22: =IFERROR(VLOOKUP(D22,Pieces!A:C,3,0),"") -> 1 | J22: 20 | K22: 0 | L22: 0 | M22: 0 | N22: 0 | O22: 0 | P22: 0 | Q22: 7 | S22: 0 | U22: 0 | Z22: 0 | AA22: 0 | AE22: WARNING | AF22: 0 | AJ22: 0
A23: O | B23: HARDING | C23: =IFERROR(VLOOKUP(D23,Pieces!A:B,2,0)," ") -> 480387 | D23: Evacuation 2 et 3 | E23: 0 | F23: 0 | G23: 0 | H23: 0 | I23: =IFERROR(VLOOKUP(D23,Pieces!A:C,3,0),"") -> 25 | J23: 20 | K23: 0 | L23: 0 | M23: 0 | N23: 0 | O23: 0 | P23: 0 | Q23: 7 | S23: 0 | U23: 0 | Z23: 0 | AA23: 0 | AE23: WARNING | AF23: 0 | AJ23: 0
A24: P | B24: KITAMURA | C24: =IFERROR(VLOOKUP(D24,Pieces!A:B,2,0)," ") -> 9531 | D24: USINAGE BORNE CPF SANS TROU Ø10-4 MONTAGE maj cadence 26-11-2021 | E24: 0 | F24: 9 | G24: 9 | H24: 9 | I24: =IFERROR(VLOOKUP(D24,Pieces!A:C,3,0),"") -> 240 | J24: 12 | K24: =(F24-E24)*J24 -> 108 | L24: =(G24-F24)*J24 -> 0 | M24: =(H24-G24)*J24 -> 0 | N24: =IF(I24="","",K24/I24) -> 0.45 | O24: =IF(I24="","",L24/I24) -> 0 | P24: =IF(I24="","",M24/I24) -> 0 | Q24: 9 | S24: =U24+T24-K24-L24-M24 -> 0 | U24: =(K24+L24+M24)-T24-V24 -> 108 | Z24: =IF(OR(I24="",I24=0),0,(U24+T24)/I24) -> 0.45 | AA24: =IF(OR(Q24=0,I24=0),"",Z24/Q24*100) -> 5 | AE24: =IF(AA24>85," ","WARNING") -> WARNING | AF24: 1.388888889e-05 | AG24: 3600 | AH24: 1 | AI24: 0.05 | AJ24: 0.05
S26: Taux de NC journalière | U26: =#REF!/#REF! -> 
J30: Approbateur:
J31: Date:
J32: Visa:

Sheet 16-4-22
A1: 16-04-2022 | Z1: CODE: DAS-PRO-16
Z2: DATE:30/08/2019
Z3: VERSION:07
Z4: PAGE:1
A8: SYMBOLE | B8: MACHINE | C8: REF ARTICLE | D8: DESIGNATION | E8: COMPTEUR AUJOURD’HUI à 8h | F8: COMPTEUR HIER à 17H | G8: COMPTEUR HIER à 22H | H8: COMPTEUR AUJOURD’HUI à 8h | I8: CADENCE | J8: NOMBRE DE PIECES FINIS PAR CYCLE | K8: PIECES SUIVANT COMPTEU 8h-->17h | L8: PIECES SUIVANT COMPTEUR 17H-->22H | M8: PIECES SUIVANT COMPTEUR 6h-->8h | N8: NOMBRE D'HEURES DE TRAVAIL 8h-->17h | O8: NOMBRE D'HEURES DE TRAVAIL 17H-->22H | P8: NOMBRE D'HEURES DE TRAVAIL 6h-->8h | Q8: NOMBRE D'HEURES DE TRAVAIL | R8: OBSERVATIONS | S8: Pieces manquantes | T8: PIECES NC | U8: Pieces REELLES | V8: Nombre des pieces à retoucher | W8: Cause de la non-conformité | X8: Effet de la non-conformité | Y8: Valeur de l'effet | Z8: NOMBRES D'HEURES SUIVANT LES PIECES REELLES | AA8: RENDEMENT | AB8: Fiche de contrôle qualité début de serie | AC8: Affutage | AD8: Gamme d'usingae | AE8: ALERTES | AF8: A | AG8: P | AH8: Q | AI8: OEE | AJ8: OEE
A9: A | B9: SST16 | C9: =IFERROR(VLOOKUP(D9,Pieces!A:B,2,0)," ") -> 200101 | D9: AXE D'ARTICULATION | E9: 4107 | F9: 5645 | G9: 4682 | H9: 5013 | I9: =IFERROR(VLOOKUP(D9,Pieces!A:C,3,0),"") -> 120 | J9: 1 | K9: =(F9-E9)*J9 -> 1538 | L9: =(G9-F9)*J9 -> -963 | M9: =(H9-G9)*J9 -> 331 | N9: =IF(I9="","",K9/I9) -> 12.81666667 | O9: =IF(I9="","",L9/I9) -> -8.025 | P9: =IF(I9="","",M9/I9) -> 2.758333333 | Q9: 10 | S9: =U9+T9-K9-L9-M9 -> 0 | U9: =(K9+L9+M9)-T9-V9 -> 906 | Z9: =IF(OR(I9="",I9=0),0,(U9+T9)/I9) -> 7.55 | AA9: =IF(OR(Q9=0,I9=0),"",Z9/Q9*100) -> 75.5 | AE9: =IF(AA9>85," ","WARNING") -> WARNING | AF9: =(N9+O9+P9)/(Q9*3600) -> 0.0002097222222 | AG9: =((3600/I9)*U9)/(N9+O9+P9) -> 3600 | AH9: =(U9-T9)/U9 -> 1 | AI9: =AF9*AG9*AH9 -> 0.755 | AJ9: =((U9-T9)*(3600/I9))/(Q9*3600) -> 0.755
A10: B | B10: SB16 | C10: =IFERROR(VLOOKUP(D10,Pieces!A:B,2,0)," ") -> G022-CP1 | D10: AXE D15-M11*100 maj-c | E10: 9670 | F10: 9882 | G10: 9882 | H10: 9958 | I10: =IFERROR(VLOOKUP(D10,Pieces!A:C,3,0),"") -> 46 | J10: 1 | K10: =(F10-E10)*J10 -> 212 | L10: =(G10-F10)*J10 -> 0 | M10: =(H10-G10)*J10 -> 76 | N10: =IF(I10="","",K10/I10) -> 4.608695652 | O10: =IF(I10="","",L10/I10) -> 0 | P10: =IF(I10="","",M10/I10) -> 1.652173913 | Q10: 10 | S10: =U10+T10-K10-L10-M10 -> 0 | U10: =(K10+L10+M10)-T10-V10 -> 288 | Z10: =IF(OR(I10="",I10=0),0,(U10+T10)/I10) -> 6.260869565 | AA10: =IF(OR(Q10=0,I10=0),"",Z10/Q10*100) -> 62.60869565 | AE10: =IF(AA10>85," ","WARNING") -> WARNING | AF10: =(N10+O10+P10)/(Q10*3600) -> 0.0001739130435 | AG10: =((3600/I10)*U10)/(N10+O10+P10) -> 3600 | AH10: =(U10-T10)/U10 -> 1 | AI10: =AF10*AG10*AH10 -> 0.6260869565 | AJ10: =((U10-T10)*(3600/I10))/(Q10*3600) -> 0.6260869565
A11: C | B11: BIGLIA 301 SM | C11: =IFERROR(VLOOKUP(D11,Pieces!A:B,2,0)," ") -> 19155-PT11 | D11: AXE DE RACCORDEMENT | E11: 74 | F11: 114 | G11: 114 | H11: 114 | I11: =IFERROR(VLOOKUP(D11,Pieces!A:C,3,0),"") -> 20 | J11: 1 | K11: 40 | L11: 0 | M11: 0 | N11: 2 | O11: 0 | P11: 0 | Q11: 10 | S11: =U11+T11-K11-L11-M11 -> 0 | U11: 40 | Z11: 2 | AA11: 20 | AE11: WARNING | AF11: 5.555555556e-05 | AG11: 3600 | AH11: 1 | AI11: 0.2 | AJ11: 0.2
A12: D | B12: BIGLIA 42 S2M bitourelle | C12: =IFERROR(VLOOKUP(D12,Pieces!A:B,2,0)," ") -> G027 | D12: GOUJON M14*1.5L=52 | E12: 1081 | F12: 1306 | G12: 1306 | H12: 1367 | I12: =IFERROR(VLOOKUP(D12,Pieces!A:C,3,0),"") -> 55 | J12: 1 | K12: 225 | L12: 0 | M12: 61 | N12: 4.090909091 | O12: 0 | P12: 1.109090909 | Q12: 8 | S12: 0 | U12: 286 | Z12: 5.2 | AA12: 65 | AE12: WARNING | AF12: 0.0001805555556 | AG12: 3600 | AH12: 1 | AI12: 0.65 | AJ12: 0.65
A13: E | B13: L32 | C13: =IFERROR(VLOOKUP(D13,Pieces!A:B,2,0)," ") -> 200200-2022 | D13: Embout de tige-2022 | E13: 4771 | F13: 4771 | G13: 4771 | H13: 4771 | I13: =IFERROR(VLOOKUP(D13,Pieces!A:C,3,0),"") -> 40 | J13: 1 | K13: 0 | L13: 0 | M13: 0 | N13: 0 | O13: 0 | P13: 0 | Q13: 9 | S13: 0 | U13: 0 | Z13: 0 | AA13: 0 | AE13: WARNING | AF13: 0 | AJ13: 0
A14: F | B14: TSUGAMI | C14: =IFERROR(VLOOKUP(D14,Pieces!A:B,2,0)," ") -> i097-tsughami | D14: ECROU DE ROUE FORD RANGER- finition rayon | E14: 7456 | F14: 7874 | G14: 7874 | H14: 7874 | I14: =IFERROR(VLOOKUP(D14,Pieces!A:C,3,0),"") -> 100 | J14: 1 | K14: 418 | L14: 0 | M14: 0 | N14: 4.18 | O14: 0 | P14: 0 | Q14: 9 | S14: 0 | U14: 418 | Z14: 4.18 | AA14: 46.44444444 | AE14: WARNING | AF14: 0.0001290123457 | AG14: 3600 | AH14: 1 | AI14: 0.4644444444 | AJ14: 0.4644444444
A15: G | B15: Tour STAR SV-32-J | C15: =IFERROR(VLOOKUP(D15,Pieces!A:B,2,0)," ") -> 68.0815 | D15: Buse droite à collerette Ø8 M445 FRD | E15: 14493 | F15: 14758 | G15: 14758 | H15: 14960 | I15: =IFERROR(VLOOKUP(D15,Pieces!A:C,3,0),"") -> 60 | J15: 1 | K15: 265 | L15: 0 | M15: 202 | N15: 4.416666667 | O15: 0 | P15: 3.366666667 | Q15: 10 | S15: 0 | U15: 467 | Z15: 7.783333333 | AA15: 77.83333333 | AE15: WARNING | AF15: 0.0002162037037 | AG15: 3600 | AH15: 1 | AI15: 0.7783333333 | AJ15: 0.7783333333
A16: H | B16: Tour CNC STAR SB avec embarreur LNS Express 220 | C16: =IFERROR(VLOOKUP(D16,Pieces!A:B,2,0)," ") -> 200300 | D16: TIGE DE PISTON-maj ca | E16: 2223 | F16: 2355 | G16: 2355 | H16: 2368 | I16: =IFERROR(VLOOKUP(D16,Pieces!A:C,3,0),"") -> 29 | J16: 1 | K16: 132 | L16: 0 | M16: 13 | N16: 4.551724138 | O16: 0 | P16: 0.4482758621 | Q16: 10 | S16: 0 | U16: 145 | Z16: 5 | AA16: 50 | AE16: WARNING | AF16: 0.0001388888889 | AG16: 3600 | AH16: 1 | AI16: 0.5 | AJ16: 0.5
A17: I | B17: MULTIBROCHE | C17: =IFERROR(VLOOKUP(D17,Pieces!A:B,2,0)," ") -> MPS000300 | D17: raccord HEX 17 | E17: 0 | F17: 0 | G17: 0 | H17: 0 | I17: =IFERROR(VLOOKUP(D17,Pieces!A:C,3,0),"") -> 500 | J17: 1 | K17: 0 | L17: 0 | M17: 0 | N17: 0 | O17: 0 | P17: 0 | Q17: 10 | S17: 0 | U17: 0 | Z17: 0 | AA17: 0 | AE17: WARNING | AF17: 0 | AJ17: 0
A18: J | B18: Tour CNC WEILER UD 24 - 100 | C18: =IFERROR(VLOOKUP(D18,Pieces!A:B,2,0)," ") -> 4-7891 | D18: Bague galvanisée 32*42*20 par chute (fini) | E18: 1405 | F18: 1798 | G18: 1798 | H18: 1798 | I18: =IFERROR(VLOOKUP(D18,Pieces!A:C,3,0),"") -> 140 | J18: 1 | K18: 393 | L18: 0 | M18: 0 | N18: 2.807142857 | O18: 0 | P18: 0 | Q18: 6 | S18: 0 | U18: 393 | Z18: 2.807142857 | AA18: 46.78571429 | AE18: WARNING | AF18: 0.0001299603175 | AG18: 3600 | AH18: 1 | AI18: 0.4678571429 | AJ18: 0.4678571429
A19: K | B19: TOUR WEILER | C19: =IFERROR(VLOOKUP(D19,Pieces!A:B,2,0)," ") -> 199400-a | D19: Tirant acier D6 maj-c | E19: 2180 | F19: 2660 | G19: 2660 | H19: 2824 | I19: =IFERROR(VLOOKUP(D19,Pieces!A:C,3,0),"") -> 100 | J19: 1 | K19: 480 | L19: 0 | M19: 164 | N19: 4.8 | O19: 0 | P19: 1.64 | Q19: 6 | S19: 0 | U19: 644 | Z19: 6.44 | AA19: 107.3333333 | AF19: 0.0002981481481 | AG19: 3600 | AH19: 1 | AI19: 1.073333333 | AJ19: 1.073333333
A20: L | B20: NAKAMURA | C20: =IFERROR(VLOOKUP(D20,Pieces!A:B,2,0)," ") -> I007 | D20: ECROU SEMI ARBRE ISUZU | E20: 0 | F20: 0 | G20: 0 | H20: 0 | I20: =IFERROR(VLOOKUP(D20,Pieces!A:C,3,0),"") -> 30 | J20: 1 | K20: 0 | L20: 0 | M20: 0 | N20: 0 | O20: 0 | P20: 0 | Q20: 6 | S20: 0 | U20: 0 | Z20: 0 | AA20: 0 | AE20: WARNING | AF20: 0 | AJ20: 0
A21: M | B21: MORI SEIKI 3 axes | C21: =IFERROR(VLOOKUP(D21,Pieces!A:B,2,0)," ") -> i004 | D21: Ecrou suspension- surfacage | E21: 97 | F21: 118 | G21: 118 | H21: 118 | I21: =IFERROR(VLOOKUP(D21,Pieces!A:C,3,0),"") -> 54 | J21: 9 | K21: 189 | L21: 0 | M21: 0 | N21: 3.5 | O21: 0 | P21: 0 | Q21: 6 | S21: 0 | U21: 189 | Z21: 3.5 | AA21: 58.33333333 | AE21: WARNING | AF21: 0.000162037037 | AG21: 3600 | AH21: 1 | AI21: 0.5833333333 | AJ21: 0.5833333333
A22: N | B22: MORI SEIKI 5 axes | C22: =IFERROR(VLOOKUP(D22,Pieces!A:B,2,0)," ") -> - | D22: Arrêt | E22: 0 | F22: 0 | G22: 0 | H22: 0 | I22: =IFERROR(VLOOKUP(D22,Pieces!A:C,3,0),"") -> 1 | J22: 20 | K22: 0 | L22: 0 | M22: 0 | N22: 0 | O22: 0 | P22: 0 | Q22: 6 | S22: 0 | U22: 0 | Z22: 0 | AA22: 0 | AE22: WARNING | AF22: 0 | AJ22: 0
A23: O | B23: HARDING | C23: =IFERROR(VLOOKUP(D23,Pieces!A:B,2,0)," ") -> 480387 | D23: Evacuation 2 et 3 | E23: 142 | F23: 142 | G23: 142 | H23: 142 | I23: =IFERROR(VLOOKUP(D23,Pieces!A:C,3,0),"") -> 25 | J23: 20 | K23: 0 | L23: 0 | M23: 0 | N23: 0 | O23: 0 | P23: 0 | Q23: 9 | S23: 0 | U23: 0 | Z23: 0 | AA23: 0 | AE23: WARNING | AF23: 0 | AJ23: 0
A24: P | B24: KITAMURA | C24: =IFERROR(VLOOKUP(D24,Pieces!A:B,2,0)," ") -> 9518-maj | D24: USINAGE BORNE RBD-1 | E24: 0 | F24: 0 | G24: 0 | H24: 0 | I24: =IFERROR(VLOOKUP(D24,Pieces!A:C,3,0),"") -> 300 | J24: 12 | K24: =(F24-E24)*J24 -> 0 | L24: =(G24-F24)*J24 -> 0 | M24: =(H24-G24)*J24 -> 0 | N24: =IF(I24="","",K24/I24) -> 0 | O24: =IF(I24="","",L24/I24) -> 0 | P24: =IF(I24="","",M24/I24) -> 0 | Q24: 9 | S24: =U24+T24-K24-L24-M24 -> 0 | U24: =(K24+L24+M24)-T24-V24 -> 0 | Z24: =IF(OR(I24="",I24=0),0,(U24+T24)/I24) -> 0 | AA24: =IF(OR(Q24=0,I24=0),"",Z24/Q24*100) -> 0 | AE24: =IF(AA24>85," ","WARNING") -> WARNING | AF24: 0 | AJ24: 0
S26: Taux de NC journalière | U26: =#REF!/#REF! -> 
J30: Approbateur:
J31: Date:
J32: Visa:

Sheet 15-4-22
A1: 15-04-2022 | Z1: CODE: DAS-PRO-16
Z2: DATE:30/08/2019
Z3: VERSION:07
Z4: PAGE:1
A8: SYMBOLE | B8: MACHINE | C8: REF ARTICLE | D8: DESIGNATION | E8: COMPTEUR AUJOURD’HUI à 8h | F8: COMPTEUR HIER à 17H | G8: COMPTEUR HIER à 22H | H8: COMPTEUR AUJOURD’HUI à 8h | I8: CADENCE | J8: NOMBRE DE PIECES FINIS PAR CYCLE | K8: PIECES SUIVANT COMPTEU 8h-->17h | L8: PIECES SUIVANT COMPTEUR 17H-->22H | M8: PIECES SUIVANT COMPTEUR 6h-->8h | N8: NOMBRE D'HEURES DE TRAVAIL 8h-->17h | O8: NOMBRE D'HEURES DE TRAVAIL 17H-->22H | P8: NOMBRE D'HEURES DE TRAVAIL 6h-->8h | Q8: NOMBRE D'HEURES DE TRAVAIL | R8: OBSERVATIONS | S8: Pieces manquantes | T8: PIECES NC | U8: Pieces REELLES | V8: Nombre des pieces à retoucher | W8: Cause de la non-conformité | X8: Effet de la non-conformité | Y8: Valeur de l'effet | Z8: NOMBRES D'HEURES SUIVANT LES PIECES REELLES | AA8: RENDEMENT | AB8: Fiche de contrôle qualité début de serie | AC8: Affutage | AD8: Gamme d'usingae | AE8: ALERTES | AF8: A | AG8: P | AH8: Q | AI8: OEE | AJ8: OEE
A9: A | B9: SST16 | C9: =IFERROR(VLOOKUP(D9,Pieces!A:B,2,0)," ") -> 200101 | D9: AXE D'ARTICULATION | E9: 3430 | F9: 3723 | G9: 3860 | H9: 4107 | I9: =IFERROR(VLOOKUP(D9,Pieces!A:C,3,0),"") -> 120 | J9: 1 | K9: =(F9-E9)*J9 -> 293 | L9: =(G9-F9)*J9 -> 137 | M9: =(H9-G9)*J9 -> 247 | N9: =IF(I9="","",K9/I9) -> 2.441666667 | O9: =IF(I9="","",L9/I9) -> 1.141666667 | P9: =IF(I9="","",M9/I9) -> 2.058333333 | Q9: 12 | R9: changement des chiens | S9: =U9+T9-K9-L9-M9 -> 0 | U9: =(K9+L9+M9)-T9-V9 -> 677 | Z9: =IF(OR(I9="",I9=0),0,(U9+T9)/I9) -> 5.641666667 | AA9: =IF(OR(Q9=0,I9=0),"",Z9/Q9*100) -> 47.01388889 | AE9: =IF(AA9>85," ","WARNING") -> WARNING | AF9: =(N9+O9+P9)/(Q9*3600) -> 0.0001305941358 | AG9: =((3600/I9)*U9)/(N9+O9+P9) -> 3600 | AH9: =(U9-T9)/U9 -> 1 | AI9: =AF9*AG9*AH9 -> 0.4701388889 | AJ9: =((U9-T9)*(3600/I9))/(Q9*3600) -> 0.4701388889
A10: B | B10: SB16 | C10: =IFERROR(VLOOKUP(D10,Pieces!A:B,2,0)," ") -> G022-CP1 | D10: AXE D15-M11*100 maj-c | E10: 9270 | F10: 9512 | G10: 9577 | H10: 9670 | I10: =IFERROR(VLOOKUP(D10,Pieces!A:C,3,0),"") -> 46 | J10: 1 | K10: =(F10-E10)*J10 -> 242 | L10: =(G10-F10)*J10 -> 65 | M10: =(H10-G10)*J10 -> 93 | N10: =IF(I10="","",K10/I10) -> 5.260869565 | O10: =IF(I10="","",L10/I10) -> 1.413043478 | P10: =IF(I10="","",M10/I10) -> 2.02173913 | Q10: 12 | S10: =U10+T10-K10-L10-M10 -> 0 | U10: =(K10+L10+M10)-T10-V10 -> 400 | Z10: =IF(OR(I10="",I10=0),0,(U10+T10)/I10) -> 8.695652174 | AA10: =IF(OR(Q10=0,I10=0),"",Z10/Q10*100) -> 72.46376812 | AE10: =IF(AA10>85," ","WARNING") -> WARNING | AF10: =(N10+O10+P10)/(Q10*3600) -> 0.0002012882448 | AG10: =((3600/I10)*U10)/(N10+O10+P10) -> 3600 | AH10: =(U10-T10)/U10 -> 1 | AI10: =AF10*AG10*AH10 -> 0.7246376812 | AJ10: =((U10-T10)*(3600/I10))/(Q10*3600) -> 0.7246376812
A11: C | B11: BIGLIA 301 SM | C11: =IFERROR(VLOOKUP(D11,Pieces!A:B,2,0)," ") -> 19155-PT11 | D11: AXE DE RACCORDEMENT | E11: 0 | F11: 0 | G11: 23 | H11: 74 | I11: =IFERROR(VLOOKUP(D11,Pieces!A:C,3,0),"") -> 20 | J11: 1 | K11: 0 | L11: 23 | M11: 51 | N11: 0 | O11: 1.15 | P11: 2.55 | Q11: 12 | S11: =U11+T11-K11-L11-M11 -> 0 | U11: 74 | Z11: 3.7 | AA11: 30.83333333 | AE11: WARNING | AF11: 8.564814815e-05 | AG11: 3600 | AH11: 1 | AI11: 0.3083333333 | AJ11: 0.3083333333
A12: D | B12: BIGLIA 42 S2M bitourelle | C12: =IFERROR(VLOOKUP(D12,Pieces!A:B,2,0)," ") -> G027 | D12: GOUJON M14*1.5L=52 | E12: 783 | F12: 1002 | G12: 1002 | H12: 1081 | I12: 45 | J12: 1 | K12: 219 | L12: 0 | M12: 79 | N12: 4.866666667 | O12: 0 | P12: 1.755555556 | Q12: 9 | S12: 0 | U12: 298 | Z12: 6.622222222 | AA12: 73.58024691 | AE12: WARNING | AF12: 0.0002043895748 | AG12: 3600 | AH12: 1 | AI12: 0.7358024691 | AJ12: 0.7358024691
A13: E | B13: L32 | C13: =IFERROR(VLOOKUP(D13,Pieces!A:B,2,0)," ") -> 200200-2022 | D13: Embout de tige-2022 | E13: 4771 | F13: 4771 | G13: 4771 | H13: 4771 | I13: =IFERROR(VLOOKUP(D13,Pieces!A:C,3,0),"") -> 40 | J13: 1 | K13: 0 | L13: 0 | M13: 0 | N13: 0 | O13: 0 | P13: 0 | Q13: 7 | S13: 0 | U13: 0 | Z13: 0 | AA13: 0 | AE13: WARNING | AF13: 0 | AJ13: 0
A14: F | B14: TSUGAMI | C14: =IFERROR(VLOOKUP(D14,Pieces!A:B,2,0)," ") -> i097-tsughami | D14: ECROU DE ROUE FORD RANGER- finition rayon | E14: 7429 | F14: 7456 | G14: 7456 | H14: 7456 | I14: =IFERROR(VLOOKUP(D14,Pieces!A:C,3,0),"") -> 100 | J14: 1 | K14: 27 | L14: 0 | M14: 0 | N14: 0.27 | O14: 0 | P14: 0 | Q14: 7 | S14: 0 | U14: 27 | Z14: 0.27 | AA14: 3.857142857 | AE14: WARNING | AF14: 1.071428571e-05 | AG14: 3600 | AH14: 1 | AI14: 0.03857142857 | AJ14: 0.03857142857
A15: G | B15: Tour STAR SV-32-J | C15: =IFERROR(VLOOKUP(D15,Pieces!A:B,2,0)," ") -> 68.0815 | D15: Buse droite à collerette Ø8 M445 FRD | E15: 14157 | F15: 14286 | G15: 14345 | H15: 14493 | I15: =IFERROR(VLOOKUP(D15,Pieces!A:C,3,0),"") -> 60 | J15: 1 | K15: 129 | L15: 59 | M15: 148 | N15: 2.15 | O15: 0.9833333333 | P15: 2.466666667 | Q15: 12 | S15: 0 | U15: 336 | Z15: 5.6 | AA15: 46.66666667 | AE15: WARNING | AF15: 0.0001296296296 | AG15: 3600 | AH15: 1 | AI15: 0.4666666667 | AJ15: 0.4666666667
A16: H | B16: Tour CNC STAR SB avec embarreur LNS Express 220 | C16: =IFERROR(VLOOKUP(D16,Pieces!A:B,2,0)," ") -> 200300 | D16: TIGE DE PISTON-maj ca | E16: 1952 | F16: 2107 | G16: 2155 | H16: 2223 | I16: =IFERROR(VLOOKUP(D16,Pieces!A:C,3,0),"") -> 29 | J16: 1 | K16: 155 | L16: 48 | M16: 68 | N16: 5.344827586 | O16: 1.655172414 | P16: 2.344827586 | Q16: 12 | R16: changement de barre | S16: 0 | U16: 271 | Z16: 9.344827586 | AA16: 77.87356322 | AE16: WARNING | AF16: 0.0002163154534 | AG16: 3600 | AH16: 1 | AI16: 0.7787356322 | AJ16: 0.7787356322
A17: I | B17: MULTIBROCHE | C17: =IFERROR(VLOOKUP(D17,Pieces!A:B,2,0)," ") -> MPS000300 | D17: raccord HEX 17 | E17: 0 | F17: 0 | G17: 0 | H17: 0 | I17: =IFERROR(VLOOKUP(D17,Pieces!A:C,3,0),"") -> 500 | J17: 1 | K17: 0 | L17: 0 | M17: 0 | N17: 0 | O17: 0 | P17: 0 | Q17: 7 | S17: 0 | U17: 0 | Z17: 0 | AA17: 0 | AE17: WARNING | AF17: 0 | AJ17: 0
A18: J | B18: Tour CNC WEILER UD 24 - 100 | C18: =IFERROR(VLOOKUP(D18,Pieces!A:B,2,0)," ") -> 4-7891 | D18: Bague galvanisée 32*42*20 par chute (fini) | E18: 605 | F18: 1405 | G18: 1405 | H18: 1405 | I18: =IFERROR(VLOOKUP(D18,Pieces!A:C,3,0),"") -> 140 | J18: 1 | K18: 800 | L18: 0 | M18: 0 | N18: 5.714285714 | O18: 0 | P18: 0 | Q18: 7 | S18: 0 | U18: 800 | Z18: 5.714285714 | AA18: 81.63265306 | AE18: WARNING | AF18: 0.0002267573696 | AG18: 3600 | AH18: 1 | AI18: 0.8163265306 | AJ18: 0.8163265306
A19: K | B19: TOUR WEILER | C19: =IFERROR(VLOOKUP(D19,Pieces!A:B,2,0)," ") -> 199400-a | D19: Tirant acier D6 maj-c | E19: 1601 | F19: 2051 | G19: 2051 | H19: 2180 | I19: =IFERROR(VLOOKUP(D19,Pieces!A:C,3,0),"") -> 100 | J19: 1 | K19: 450 | L19: 0 | M19: 129 | N19: 4.5 | O19: 0 | P19: 1.29 | Q19: 7 | S19: 0 | U19: 579 | Z19: 5.79 | AA19: 82.71428571 | AE19: WARNING | AF19: 0.0002297619048 | AG19: 3600 | AH19: 1 | AI19: 0.8271428571 | AJ19: 0.8271428571
A20: L | B20: NAKAMURA | C20: =IFERROR(VLOOKUP(D20,Pieces!A:B,2,0)," ") -> I007 | D20: ECROU SEMI ARBRE ISUZU | E20: 0 | F20: 0 | G20: 0 | H20: 0 | I20: =IFERROR(VLOOKUP(D20,Pieces!A:C,3,0),"") -> 30 | J20: 1 | K20: 0 | L20: 0 | M20: 0 | N20: 0 | O20: 0 | P20: 0 | Q20: 7 | S20: 0 | U20: 0 | Z20: 0 | AA20: 0 | AE20: WARNING | AF20: 0 | AJ20: 0
A21: M | B21: MORI SEIKI 3 axes | C21: =IFERROR(VLOOKUP(D21,Pieces!A:B,2,0)," ") -> i004 | D21: Ecrou suspension- surfacage | E21: 62 | F21: 97 | G21: 97 | H21: 97 | I21: =IFERROR(VLOOKUP(D21,Pieces!A:C,3,0),"") -> 54 | J21: 9 | K21: 315 | L21: 0 | M21: 0 | N21: 5.833333333 | O21: 0 | P21: 0 | Q21: 7 | S21: 0 | U21: 315 | Z21: 5.833333333 | AA21: 83.33333333 | AE21: WARNING | AF21: 0.0002314814815 | AG21: 3600 | AH21: 1 | AI21: 0.8333333333 | AJ21: 0.8333333333
A22: N | B22: MORI SEIKI 5 axes | C22: =IFERROR(VLOOKUP(D22,Pieces!A:B,2,0)," ") -> - | D22: Arrêt | E22: 0 | F22: 0 | G22: 0 | H22: 0 | I22: =IFERROR(VLOOKUP(D22,Pieces!A:C,3,0),"") -> 1 | J22: 20 | K22: 0 | L22: 0 | M22: 0 | N22: 0 | O22: 0 | P22: 0 | Q22: 7 | S22: 0 | U22: 0 | Z22: 0 | AA22: 0 | AE22: WARNING | AF22: 0 | AJ22: 0
A23: O | B23: HARDING | C23: =IFERROR(VLOOKUP(D23,Pieces!A:B,2,0)," ") -> 480387 | D23: Evacuation 2 et 3 | E23: 142 | F23: 142 | G23: 142 | H23: 142 | I23: =IFERROR(VLOOKUP(D23,Pieces!A:C,3,0),"") -> 25 | J23: 20 | K23: 0 | L23: 0 | M23: 0 | N23: 0 | O23: 0 | P23: 0 | Q23: 7 | R23: Reglage | S23: 0 | U23: 0 | Z23: 0 | AA23: 0 | AE23: WARNING | AF23: 0 | AJ23: 0
A24: P | B24: KITAMURA | C24: =IFERROR(VLOOKUP(D24,Pieces!A:B,2,0)," ") -> 9518-maj | D24: USINAGE BORNE RBD-1 | E24: 0 | F24: 0 | G24: 0 | H24: 0 | I24: =IFERROR(VLOOKUP(D24,Pieces!A:C,3,0),"") -> 300 | J24: 12 | K24: =(F24-E24)*J24 -> 0 | L24: =(G24-F24)*J24 -> 0 | M24: =(H24-G24)*J24 -> 0 | N24: =IF(I24="","",K24/I24) -> 0 | O24: =IF(I24="","",L24/I24) -> 0 | P24: =IF(I24="","",M24/I24) -> 0 | Q24: 9 | R24: Réglage | S24: =U24+T24-K24-L24-M24 -> 0 | U24: =(K24+L24+M24)-T24-V24 -> 0 | Z24: =IF(OR(I24="",I24=0),0,(U24+T24)/I24) -> 0 | AA24: =IF(OR(Q24=0,I24=0),"",Z24/Q24*100) -> 0 | AE24: =IF(AA24>85," ","WARNING") -> WARNING | AF24: 0 | AJ24: 0
S26: Taux de NC journalière | U26: =#REF!/#REF! -> 
J30: Approbateur:
J31: Date:
J32: Visa:

Sheet 14-4-22
A1: 14-04-2022 | Z1: CODE: DAS-PRO-16
Z2: DATE:30/08/2019
Z3: VERSION:07
Z4: PAGE:1
A8: SYMBOLE | B8: MACHINE | C8: REF ARTICLE | D8: DESIGNATION | E8: COMPTEUR AUJOURD’HUI à 8h | F8: COMPTEUR HIER à 17H | G8: COMPTEUR HIER à 22H | H8: COMPTEUR AUJOURD’HUI à 8h | I8: CADENCE | J8: NOMBRE DE PIECES FINIS PAR CYCLE | K8: PIECES SUIVANT COMPTEU 8h-->17h | L8: PIECES SUIVANT COMPTEUR 17H-->22H | M8: PIECES SUIVANT COMPTEUR 6h-->8h | N8: NOMBRE D'HEURES DE TRAVAIL 8h-->17h | O8: NOMBRE D'HEURES DE TRAVAIL 17H-->22H | P8: NOMBRE D'HEURES DE TRAVAIL 6h-->8h | Q8: NOMBRE D'HEURES DE TRAVAIL | R8: OBSERVATIONS | S8: Pieces manquantes | T8: PIECES NC | U8: Pieces REELLES | V8: Nombre des pieces à retoucher | W8: Cause de la non-conformité | X8: Effet de la non-conformité | Y8: Valeur de l'effet | Z8: NOMBRES D'HEURES SUIVANT LES PIECES REELLES | AA8: RENDEMENT | AB8: Fiche de contrôle qualité début de serie | AC8: Affutage | AD8: Gamme d'usingae | AE8: ALERTES | AF8: A | AG8: P | AH8: Q | AI8: OEE | AJ8: OEE
A9: A | B9: SST16 | C9: =IFERROR(VLOOKUP(D9,Pieces!A:B,2,0)," ") -> 200101 | D9: AXE D'ARTICULATION | E9: 2385 | F9: 2990 | G9: 3184 | H9: 3430 | I9: =IFERROR(VLOOKUP(D9,Pieces!A:C,3,0),"") -> 120 | J9: 1 | K9: =(F9-E9)*J9 -> 605 | L9: =(G9-F9)*J9 -> 194 | M9: =(H9-G9)*J9 -> 246 | N9: =IF(I9="","",K9/I9) -> 5.041666667 | O9: =IF(I9="","",L9/I9) -> 1.616666667 | P9: =IF(I9="","",M9/I9) -> 2.05 | Q9: 12 | R9: k | S9: =U9+T9-K9-L9-M9 -> 0 | U9: =(K9+L9+M9)-T9-V9 -> 1045 | Z9: =IF(OR(I9="",I9=0),0,(U9+T9)/I9) -> 8.708333333 | AA9: =IF(OR(Q9=0,I9=0),"",Z9/Q9*100) -> 72.56944444 | AE9: =IF(AA9>85," ","WARNING") -> WARNING | AF9: =(N9+O9+P9)/(Q9*3600) -> 0.0002015817901 | AG9: =((3600/I9)*U9)/(N9+O9+P9) -> 3600 | AH9: =(U9-T9)/U9 -> 1 | AI9: =AF9*AG9*AH9 -> 0.7256944444 | AJ9: =((U9-T9)*(3600/I9))/(Q9*3600) -> 0.7256944444
A10: B | B10: SB16 | C10: =IFERROR(VLOOKUP(D10,Pieces!A:B,2,0)," ") -> G022-CP1 | D10: AXE D15-M11*100 maj-c | E10: 8845 | F10: 9090 | G10: 9162 | H10: 9270 | I10: =IFERROR(VLOOKUP(D10,Pieces!A:C,3,0),"") -> 46 | J10: 1 | K10: =(F10-E10)*J10 -> 245 | L10: =(G10-F10)*J10 -> 72 | M10: =(H10-G10)*J10 -> 108 | N10: =IF(I10="","",K10/I10) -> 5.326086957 | O10: =IF(I10="","",L10/I10) -> 1.565217391 | P10: =IF(I10="","",M10/I10) -> 2.347826087 | Q10: 12 | S10: =U10+T10-K10-L10-M10 -> 0 | U10: =(K10+L10+M10)-T10-V10 -> 425 | Z10: =IF(OR(I10="",I10=0),0,(U10+T10)/I10) -> 9.239130435 | AA10: =IF(OR(Q10=0,I10=0),"",Z10/Q10*100) -> 76.99275362 | AE10: =IF(AA10>85," ","WARNING") -> WARNING | AF10: =(N10+O10+P10)/(Q10*3600) -> 0.0002138687601 | AG10: =((3600/I10)*U10)/(N10+O10+P10) -> 3600 | AH10: =(U10-T10)/U10 -> 1 | AI10: =AF10*AG10*AH10 -> 0.7699275362 | AJ10: =((U10-T10)*(3600/I10))/(Q10*3600) -> 0.7699275362
A11: C | B11: BIGLIA 301 SM | C11: =IFERROR(VLOOKUP(D11,Pieces!A:B,2,0)," ") -> 512520 | D11: INSERTO MANOPOLA INOX M8- | E11: 547 | F11: 818 | G11: 889 | H11: 889 | I11: =IFERROR(VLOOKUP(D11,Pieces!A:C,3,0),"") -> 45 | J11: 1 | K11: 271 | L11: 71 | M11: 0 | N11: 6.022222222 | O11: 1.577777778 | P11: 0 | Q11: 12 | S11: =U11+T11-K11-L11-M11 -> 0 | U11: 342 | Z11: 7.6 | AA11: 63.33333333 | AE11: WARNING | AF11: 0.0001759259259 | AG11: 3600 | AH11: 1 | AI11: 0.6333333333 | AJ11: 0.6333333333
A12: D | B12: BIGLIA 42 S2M bitourelle | C12: =IFERROR(VLOOKUP(D12,Pieces!A:B,2,0)," ") -> G027 | D12: GOUJON M14*1.5L=52 | E12: 510 | F12: 715 | G12: 715 | H12: 783 | I12: =IFERROR(VLOOKUP(D12,Pieces!A:C,3,0),"") -> 55 | J12: 1 | K12: 205 | L12: 0 | M12: 68 | N12: 3.727272727 | O12: 0 | P12: 1.236363636 | Q12: 9 | S12: 0 | U12: 273 | Z12: 4.963636364 | AA12: 55.15151515 | AE12: WARNING | AF12: 0.0001531986532 | AG12: 3600 | AH12: 1 | AI12: 0.5515151515 | AJ12: 0.5515151515
A13: E | B13: L32 | C13: =IFERROR(VLOOKUP(D13,Pieces!A:B,2,0)," ") -> 200200-2022 | D13: Embout de tige-2022 | E13: 4771 | F13: 4771 | G13: 4771 | H13: 4771 | I13: =IFERROR(VLOOKUP(D13,Pieces!A:C,3,0),"") -> 40 | J13: 1 | K13: 0 | L13: 0 | M13: 0 | N13: 0 | O13: 0 | P13: 0 | Q13: 7 | S13: 0 | U13: 0 | Z13: 0 | AA13: 0 | AE13: WARNING | AF13: 0 | AJ13: 0
A14: F | B14: TSUGAMI | C14: =IFERROR(VLOOKUP(D14,Pieces!A:B,2,0)," ") -> i097-tsughami | D14: ECROU DE ROUE FORD RANGER- finition rayon | E14: 7063 | F14: 7429 | G14: 7429 | H14: 7429 | I14: =IFERROR(VLOOKUP(D14,Pieces!A:C,3,0),"") -> 100 | J14: 1 | K14: 366 | L14: 0 | M14: 0 | N14: 3.66 | O14: 0 | P14: 0 | Q14: 7 | R14: meme article précedant | S14: 0 | U14: 366 | Z14: 3.66 | AA14: 52.28571429 | AE14: WARNING | AF14: 0.0001452380952 | AG14: 3600 | AH14: 1 | AI14: 0.5228571429 | AJ14: 0.5228571429
A15: G | B15: Tour STAR SV-32-J | C15: =IFERROR(VLOOKUP(D15,Pieces!A:B,2,0)," ") -> 68.0815 | D15: Buse droite à collerette Ø8 M445 FRD | E15: 13592 | F15: 13907 | G15: 14006 | H15: 14157 | I15: =IFERROR(VLOOKUP(D15,Pieces!A:C,3,0),"") -> 60 | J15: 1 | K15: 315 | L15: 99 | M15: 151 | N15: 5.25 | O15: 1.65 | P15: 2.516666667 | Q15: 12 | S15: 0 | U15: 565 | Z15: 9.416666667 | AA15: 78.47222222 | AE15: WARNING | AF15: 0.0002179783951 | AG15: 3600 | AH15: 1 | AI15: 0.7847222222 | AJ15: 0.7847222222
A16: H | B16: Tour CNC STAR SB avec embarreur LNS Express 220 | C16: =IFERROR(VLOOKUP(D16,Pieces!A:B,2,0)," ") -> 200300 | D16: TIGE DE PISTON-maj ca | E16: 1689 | F16: 1845 | G16: 1891 | H16: 1952 | I16: =IFERROR(VLOOKUP(D16,Pieces!A:C,3,0),"") -> 29 | J16: 1 | K16: 156 | L16: 46 | M16: 61 | N16: 5.379310345 | O16: 1.586206897 | P16: 2.103448276 | Q16: 12 | S16: 0 | U16: 263 | Z16: 9.068965517 | AA16: 75.57471264 | AE16: WARNING | AF16: 0.0002099297573 | AG16: 3600 | AH16: 1 | AI16: 0.7557471264 | AJ16: 0.7557471264
A17: I | B17: MULTIBROCHE | C17: =IFERROR(VLOOKUP(D17,Pieces!A:B,2,0)," ") -> MPS000300 | D17: raccord HEX 17 | E17: 0 | F17: 0 | G17: 0 | H17: 0 | I17: =IFERROR(VLOOKUP(D17,Pieces!A:C,3,0),"") -> 500 | J17: 1 | K17: 0 | L17: 0 | M17: 0 | N17: 0 | O17: 0 | P17: 0 | Q17: 7 | S17: 0 | U17: 0 | Z17: 0 | AA17: 0 | AE17: WARNING | AF17: 0 | AJ17: 0
A18: J | B18: Tour CNC WEILER UD 24 - 100 | C18: =IFERROR(VLOOKUP(D18,Pieces!A:B,2,0)," ") -> 4-7891 | D18: Bague galvanisée 32*42*20 par chute (fini) | E18: 0 | F18: 605 | G18: 605 | H18: 605 | I18: =IFERROR(VLOOKUP(D18,Pieces!A:C,3,0),"") -> 140 | J18: 1 | K18: 605 | L18: 0 | M18: 0 | N18: 4.321428571 | O18: 0 | P18: 0 | Q18: 7 | S18: 0 | U18: 605 | Z18: 4.321428571 | AA18: 61.73469388 | AE18: WARNING | AF18: 0.0001714852608 | AG18: 3600 | AH18: 1 | AI18: 0.6173469388 | AJ18: 0.6173469388
A19: K | B19: TOUR WEILER | C19: =IFERROR(VLOOKUP(D19,Pieces!A:B,2,0)," ") -> 199400-a | D19: Tirant acier D6 maj-c | E19: 1249 | F19: 1601 | G19: 1601 | H19: 1601 | I19: =IFERROR(VLOOKUP(D19,Pieces!A:C,3,0),"") -> 100 | J19: 1 | K19: 352 | L19: 0 | M19: 0 | N19: 3.52 | O19: 0 | P19: 0 | Q19: 7 | S19: 0 | U19: 352 | Z19: 3.52 | AA19: 50.28571429 | AE19: WARNING | AF19: 0.0001396825397 | AG19: 3600 | AH19: 1 | AI19: 0.5028571429 | AJ19: 0.5028571429
A20: L | B20: NAKAMURA | C20: =IFERROR(VLOOKUP(D20,Pieces!A:B,2,0)," ") -> I007 | D20: ECROU SEMI ARBRE ISUZU | E20: 0 | F20: 0 | G20: 0 | H20: 0 | I20: =IFERROR(VLOOKUP(D20,Pieces!A:C,3,0),"") -> 30 | J20: 1 | K20: 0 | L20: 0 | M20: 0 | N20: 0 | O20: 0 | P20: 0 | Q20: 7 | S20: 0 | U20: 0 | Z20: 0 | AA20: 0 | AE20: WARNING | AF20: 0 | AJ20: 0
A21: M | B21: MORI SEIKI 3 axes | C21: =IFERROR(VLOOKUP(D21,Pieces!A:B,2,0)," ") -> i004 | D21: Ecrou suspension- surfacage | E21: 32 | F21: 62 | G21: 62 | H21: 62 | I21: =IFERROR(VLOOKUP(D21,Pieces!A:C,3,0),"") -> 54 | J21: 9 | K21: 270 | L21: 0 | M21: 0 | N21: 5 | O21: 0 | P21: 0 | Q21: 7 | S21: 0 | U21: 270 | Z21: 5 | AA21: 71.42857143 | AE21: WARNING | AF21: 0.0001984126984 | AG21: 3600 | AH21: 1 | AI21: 0.7142857143 | AJ21: 0.7142857143
A22: N | B22: MORI SEIKI 5 axes | C22: =IFERROR(VLOOKUP(D22,Pieces!A:B,2,0)," ") -> - | D22: Arrêt | E22: 0 | F22: 0 | G22: 0 | H22: 0 | I22: =IFERROR(VLOOKUP(D22,Pieces!A:C,3,0),"") -> 1 | J22: 20 | K22: 0 | L22: 0 | M22: 0 | N22: 0 | O22: 0 | P22: 0 | Q22: 7 | S22: 0 | U22: 0 | Z22: 0 | AA22: 0 | AE22: WARNING | AF22: 0 | AJ22: 0
A23: O | B23: HARDING | C23: =IFERROR(VLOOKUP(D23,Pieces!A:B,2,0)," ") -> 480387 | D23: Evacuation 2 et 3 | E23: 142 | F23: 142 | G23: 142 | H23: 142 | I23: =IFERROR(VLOOKUP(D23,Pieces!A:C,3,0),"") -> 25 | J23: 20 | K23: 0 | L23: 0 | M23: 0 | N23: 0 | O23: 0 | P23: 0 | Q23: 7 | S23: 0 | U23: 0 | Z23: 0 | AA23: 0 | AE23: WARNING | AF23: 0 | AJ23: 0
A24: P | B24: KITAMURA | C24: =IFERROR(VLOOKUP(D24,Pieces!A:B,2,0)," ") -> 9518-maj | D24: USINAGE BORNE RBD-1 | E24: 0 | F24: 0 | G24: 0 | H24: 0 | I24: =IFERROR(VLOOKUP(D24,Pieces!A:C,3,0),"") -> 300 | J24: 12 | K24: =(F24-E24)*J24 -> 0 | L24: =(G24-F24)*J24 -> 0 | M24: =(H24-G24)*J24 -> 0 | N24: =IF(I24="","",K24/I24) -> 0 | O24: =IF(I24="","",L24/I24) -> 0 | P24: =IF(I24="","",M24/I24) -> 0 | Q24: 9 | S24: =U24+T24-K24-L24-M24 -> 0 | U24: =(K24+L24+M24)-T24-V24 -> 0 | Z24: =IF(OR(I24="",I24=0),0,(U24+T24)/I24) -> 0 | AA24: =IF(OR(Q24=0,I24=0),"",Z24/Q24*100) -> 0 | AE24: =IF(AA24>85," ","WARNING") -> WARNING | AF24: 0 | AJ24: 0
S26: Taux de NC journalière | U26: =#REF!/#REF! -> 
J30: Approbateur:
J31: Date:
J32: Visa:

Sheet 13-4-22
A1: 13-04-2022 | Z1: CODE: DAS-PRO-16
Z2: DATE:30/08/2019
Z3: VERSION:07
Z4: PAGE:1
A8: SYMBOLE | B8: MACHINE | C8: REF ARTICLE | D8: DESIGNATION | E8: COMPTEUR AUJOURD’HUI à 8h | F8: COMPTEUR HIER à 17H | G8: COMPTEUR HIER à 22H | H8: COMPTEUR AUJOURD’HUI à 8h | I8: CADENCE | J8: NOMBRE DE PIECES FINIS PAR CYCLE | K8: PIECES SUIVANT COMPTEU 8h-->17h | L8: PIECES SUIVANT COMPTEUR 17H-->22H | M8: PIECES SUIVANT COMPTEUR 6h-->8h | N8: NOMBRE D'HEURES DE TRAVAIL 8h-->17h | O8: NOMBRE D'HEURES DE TRAVAIL 17H-->22H | P8: NOMBRE D'HEURES DE TRAVAIL 6h-->8h | Q8: NOMBRE D'HEURES DE TRAVAIL | R8: OBSERVATIONS | S8: Pieces manquantes | T8: PIECES NC | U8: Pieces REELLES | V8: Nombre des pieces à retoucher | W8: Cause de la non-conformité | X8: Effet de la non-conformité | Y8: Valeur de l'effet | Z8: NOMBRES D'HEURES SUIVANT LES PIECES REELLES | AA8: RENDEMENT | AB8: Fiche de contrôle qualité début de serie | AC8: Affutage | AD8: Gamme d'usingae | AE8: ALERTES | AF8: A | AG8: P | AH8: Q | AI8: OEE | AJ8: OEE
A9: A | B9: SST16 | C9: =IFERROR(VLOOKUP(D9,Pieces!A:B,2,0)," ") -> 200101 | D9: AXE D'ARTICULATION | E9: 1336 | F9: 1962 | G9: 2115 | H9: 2385 | I9: =IFERROR(VLOOKUP(D9,Pieces!A:C,3,0),"") -> 120 | J9: 1 | K9: =(F9-E9)*J9 -> 626 | L9: =(G9-F9)*J9 -> 153 | M9: =(H9-G9)*J9 -> 270 | N9: =IF(I9="","",K9/I9) -> 5.216666667 | O9: =IF(I9="","",L9/I9) -> 1.275 | P9: =IF(I9="","",M9/I9) -> 2.25 | Q9: 12 | R9: 5 | S9: =U9+T9-K9-L9-M9 -> 0 | U9: =(K9+L9+M9)-T9-V9 -> 1049 | Z9: =IF(OR(I9="",I9=0),0,(U9+T9)/I9) -> 8.741666667 | AA9: =IF(OR(Q9=0,I9=0),"",Z9/Q9*100) -> 72.84722222 | AE9: =IF(AA9>85," ","WARNING") -> WARNING | AF9: =(N9+O9+P9)/(Q9*3600) -> 0.0002023533951 | AG9: =((3600/I9)*U9)/(N9+O9+P9) -> 3600 | AH9: =(U9-T9)/U9 -> 1 | AI9: =AF9*AG9*AH9 -> 0.7284722222 | AJ9: =((U9-T9)*(3600/I9))/(Q9*3600) -> 0.7284722222
A10: B | B10: SB16 | C10: =IFERROR(VLOOKUP(D10,Pieces!A:B,2,0)," ") -> G022-CP1 | D10: AXE D15-M11*100 maj-c | E10: 8405 | F10: 8673 | G10: 8745 | H10: 8845 | I10: =IFERROR(VLOOKUP(D10,Pieces!A:C,3,0),"") -> 46 | J10: 1 | K10: =(F10-E10)*J10 -> 268 | L10: =(G10-F10)*J10 -> 72 | M10: =(H10-G10)*J10 -> 100 | N10: =IF(I10="","",K10/I10) -> 5.826086957 | O10: =IF(I10="","",L10/I10) -> 1.565217391 | P10: =IF(I10="","",M10/I10) -> 2.173913043 | Q10: 12 | S10: =U10+T10-K10-L10-M10 -> 0 | U10: =(K10+L10+M10)-T10-V10 -> 440 | Z10: =IF(OR(I10="",I10=0),0,(U10+T10)/I10) -> 9.565217391 | AA10: =IF(OR(Q10=0,I10=0),"",Z10/Q10*100) -> 79.71014493 | AE10: =IF(AA10>85," ","WARNING") -> WARNING | AF10: =(N10+O10+P10)/(Q10*3600) -> 0.0002214170692 | AG10: =((3600/I10)*U10)/(N10+O10+P10) -> 3600 | AH10: =(U10-T10)/U10 -> 1 | AI10: =AF10*AG10*AH10 -> 0.7971014493 | AJ10: =((U10-T10)*(3600/I10))/(Q10*3600) -> 0.7971014493
A11: C | B11: BIGLIA 301 SM | C11: =IFERROR(VLOOKUP(D11,Pieces!A:B,2,0)," ") -> 512520 | D11: INSERTO MANOPOLA INOX M8- | E11: 75 | F11: 365 | G11: 435 | H11: 547 | I11: =IFERROR(VLOOKUP(D11,Pieces!A:C,3,0),"") -> 45 | J11: 1 | K11: 290 | L11: 70 | M11: 112 | N11: 6.444444444 | O11: 1.555555556 | P11: 2.488888889 | Q11: 12 | S11: =U11+T11-K11-L11-M11 -> 0 | U11: 472 | Z11: 10.48888889 | AA11: 87.40740741 | AF11: 0.0002427983539 | AG11: 3600 | AH11: 1 | AI11: 0.8740740741 | AJ11: 0.8740740741
A12: D | B12: BIGLIA 42 S2M bitourelle | C12: =IFERROR(VLOOKUP(D12,Pieces!A:B,2,0)," ") -> G027 | D12: GOUJON M14*1.5L=52 | E12: 200 | F12: 440 | G12: 440 | H12: 510 | I12: =IFERROR(VLOOKUP(D12,Pieces!A:C,3,0),"") -> 55 | J12: 1 | K12: 240 | L12: 0 | M12: 70 | N12: 4.363636364 | O12: 0 | P12: 1.272727273 | Q12: 9 | S12: 0 | U12: 310 | Z12: 5.636363636 | AA12: 62.62626263 | AE12: WARNING | AF12: 0.0001739618406 | AG12: 3600 | AH12: 1 | AI12: 0.6262626263 | AJ12: 0.6262626263
A13: E | B13: L32 | C13: =IFERROR(VLOOKUP(D13,Pieces!A:B,2,0)," ") -> 200200-2022 | D13: Embout de tige-2022 | E13: 4771 | F13: 4771 | G13: 4771 | H13: 4771 | I13: =IFERROR(VLOOKUP(D13,Pieces!A:C,3,0),"") -> 40 | J13: 1 | K13: 0 | L13: 0 | M13: 0 | N13: 0 | O13: 0 | P13: 0 | Q13: 7 | S13: 0 | U13: 0 | Z13: 0 | AA13: 0 | AE13: WARNING | AF13: 0 | AJ13: 0
A14: F | B14: TSUGAMI | C14: =IFERROR(VLOOKUP(D14,Pieces!A:B,2,0)," ") -> i097-tsughami | D14: ECROU DE ROUE FORD RANGER- finition rayon | E14: 0 | F14: 0 | G14: 0 | H14: 0 | I14: =IFERROR(VLOOKUP(D14,Pieces!A:C,3,0),"") -> 100 | J14: 1 | K14: 0 | L14: 0 | M14: 0 | N14: 0 | O14: 0 | P14: 0 | Q14: 7 | S14: 0 | U14: 0 | Z14: 0 | AA14: 0 | AE14: WARNING | AF14: 0 | AJ14: 0
A15: G | B15: Tour STAR SV-32-J | C15: =IFERROR(VLOOKUP(D15,Pieces!A:B,2,0)," ") -> 68.0815 | D15: Buse droite à collerette Ø8 M445 FRD | E15: 13093 | F15: 13388 | G15: 13445 | H15: 13592 | I15: =IFERROR(VLOOKUP(D15,Pieces!A:C,3,0),"") -> 60 | J15: 1 | K15: 295 | L15: 57 | M15: 147 | N15: 4.916666667 | O15: 0.95 | P15: 2.45 | Q15: 12 | S15: 0 | U15: 499 | Z15: 8.316666667 | AA15: 69.30555556 | AE15: WARNING | AF15: 0.0001925154321 | AG15: 3600 | AH15: 1 | AI15: 0.6930555556 | AJ15: 0.6930555556
A16: H | B16: Tour CNC STAR SB avec embarreur LNS Express 220 | C16: =IFERROR(VLOOKUP(D16,Pieces!A:B,2,0)," ") -> 200300 | D16: TIGE DE PISTON-maj ca | E16: 1424 | F16: 1588 | G16: 1629 | H16: 1689 | I16: =IFERROR(VLOOKUP(D16,Pieces!A:C,3,0),"") -> 29 | J16: 1 | K16: 164 | L16: 41 | M16: 60 | N16: 5.655172414 | O16: 1.413793103 | P16: 2.068965517 | Q16: 12 | S16: 0 | U16: 265 | Z16: 9.137931034 | AA16: 76.14942529 | AE16: WARNING | AF16: 0.0002115261814 | AG16: 3600 | AH16: 1 | AI16: 0.7614942529 | AJ16: 0.7614942529
A17: I | B17: MULTIBROCHE | C17: =IFERROR(VLOOKUP(D17,Pieces!A:B,2,0)," ") -> MPS000300 | D17: raccord HEX 17 | E17: 0 | F17: 0 | G17: 0 | H17: 0 | I17: =IFERROR(VLOOKUP(D17,Pieces!A:C,3,0),"") -> 500 | J17: 1 | K17: 0 | L17: 0 | M17: 0 | N17: 0 | O17: 0 | P17: 0 | Q17: 7 | S17: 0 | U17: 0 | Z17: 0 | AA17: 0 | AE17: WARNING | AF17: 0 | AJ17: 0
A18: J | B18: Tour CNC WEILER UD 24 - 100 | C18: =IFERROR(VLOOKUP(D18,Pieces!A:B,2,0)," ") -> 4-7891 | D18: ANNEAU BRUTE 32*42*20 chuttes | E18: 1163 | F18: 1527 | G18: 1527 | H18: 1527 | I18: =IFERROR(VLOOKUP(D18,Pieces!A:C,3,0),"") -> 50 | J18: 1 | K18: 364 | L18: 0 | M18: 0 | N18: 7.28 | O18: 0 | P18: 0 | Q18: 7 | S18: 0 | U18: 364 | Z18: 7.28 | AA18: 104 | AF18: 0.0002888888889 | AG18: 3600 | AH18: 1 | AI18: 1.04 | AJ18: 1.04
A19: K | B19: TOUR WEILER | C19: =IFERROR(VLOOKUP(D19,Pieces!A:B,2,0)," ") -> 199400-a | D19: Tirant acier D6 maj-c | E19: 601 | F19: 1110 | G19: 1110 | H19: 1249 | I19: =IFERROR(VLOOKUP(D19,Pieces!A:C,3,0),"") -> 100 | J19: 1 | K19: 509 | L19: 0 | M19: 139 | N19: 5.09 | O19: 0 | P19: 1.39 | Q19: 7 | S19: 0 | U19: 648 | Z19: 6.48 | AA19: 92.57142857 | AF19: 0.0002571428571 | AG19: 3600 | AH19: 1 | AI19: 0.9257142857 | AJ19: 0.9257142857
A20: L | B20: NAKAMURA | C20: =IFERROR(VLOOKUP(D20,Pieces!A:B,2,0)," ") -> I007 | D20: ECROU SEMI ARBRE ISUZU | E20: 0 | F20: 0 | G20: 0 | H20: 0 | I20: =IFERROR(VLOOKUP(D20,Pieces!A:C,3,0),"") -> 30 | J20: 1 | K20: 0 | L20: 0 | M20: 0 | N20: 0 | O20: 0 | P20: 0 | Q20: 7 | S20: 0 | U20: 0 | Z20: 0 | AA20: 0 | AE20: WARNING | AF20: 0 | AJ20: 0
A21: M | B21: MORI SEIKI 3 axes | C21: =IFERROR(VLOOKUP(D21,Pieces!A:B,2,0)," ") -> i004 | D21: Ecrou suspension- surfacage | E21: 9 | F21: 32 | G21: 32 | H21: 32 | I21: =IFERROR(VLOOKUP(D21,Pieces!A:C,3,0),"") -> 54 | J21: 9 | K21: 207 | L21: 0 | M21: 0 | N21: 3.833333333 | O21: 0 | P21: 0 | Q21: 7 | S21: 0 | U21: 207 | Z21: 3.833333333 | AA21: 54.76190476 | AE21: WARNING | AF21: 0.0001521164021 | AG21: 3600 | AH21: 1 | AI21: 0.5476190476 | AJ21: 0.5476190476
A22: N | B22: MORI SEIKI 5 axes | C22: =IFERROR(VLOOKUP(D22,Pieces!A:B,2,0)," ") -> - | D22: Arrêt | E22: 0 | F22: 0 | G22: 0 | H22: 0 | I22: =IFERROR(VLOOKUP(D22,Pieces!A:C,3,0),"") -> 1 | J22: 20 | K22: 0 | L22: 0 | M22: 0 | N22: 0 | O22: 0 | P22: 0 | Q22: 7 | S22: 0 | U22: 0 | Z22: 0 | AA22: 0 | AE22: WARNING | AF22: 0 | AJ22: 0
A23: O | B23: HARDING | C23: =IFERROR(VLOOKUP(D23,Pieces!A:B,2,0)," ") -> 480387 | D23: Evacuation 2 et 3 | E23: 140 | F23: 142 | G23: 142 | H23: 142 | I23: =IFERROR(VLOOKUP(D23,Pieces!A:C,3,0),"") -> 25 | J23: 20 | K23: 40 | L23: 0 | M23: 0 | N23: 1.6 | O23: 0 | P23: 0 | Q23: 7 | S23: 0 | U23: 40 | Z23: 1.6 | AA23: 22.85714286 | AE23: WARNING | AF23: 6.349206349e-05 | AG23: 3600 | AH23: 1 | AI23: 0.2285714286 | AJ23: 0.2285714286
A24: P | B24: KITAMURA | C24: =IFERROR(VLOOKUP(D24,Pieces!A:B,2,0)," ") -> 9518-maj | D24: USINAGE BORNE RBD-1 | E24: 6972 | F24: 6972 | G24: 6972 | H24: 6972 | I24: =IFERROR(VLOOKUP(D24,Pieces!A:C,3,0),"") -> 300 | J24: 12 | K24: =(F24-E24)*J24 -> 0 | L24: =(G24-F24)*J24 -> 0 | M24: =(H24-G24)*J24 -> 0 | N24: =IF(I24="","",K24/I24) -> 0 | O24: =IF(I24="","",L24/I24) -> 0 | P24: =IF(I24="","",M24/I24) -> 0 | Q24: 9 | S24: =U24+T24-K24-L24-M24 -> 0 | U24: =(K24+L24+M24)-T24-V24 -> 0 | Z24: =IF(OR(I24="",I24=0),0,(U24+T24)/I24) -> 0 | AA24: =IF(OR(Q24=0,I24=0),"",Z24/Q24*100) -> 0 | AE24: =IF(AA24>85," ","WARNING") -> WARNING | AF24: 0 | AJ24: 0
S26: Taux de NC journalière | U26: =#REF!/#REF! -> 
J30: Approbateur:
J31: Date:
J32: Visa:

Sheet 12-4-22
A1: 12-04-2022 | Z1: CODE: DAS-PRO-16
Z2: DATE:30/08/2019
Z3: VERSION:07
Z4: PAGE:1
A8: SYMBOLE | B8: MACHINE | C8: REF ARTICLE | D8: DESIGNATION | E8: COMPTEUR AUJOURD’HUI à 8h | F8: COMPTEUR HIER à 17H | G8: COMPTEUR HIER à 22H | H8: COMPTEUR AUJOURD’HUI à 8h | I8: CADENCE | J8: NOMBRE DE PIECES FINIS PAR CYCLE | K8: PIECES SUIVANT COMPTEU 8h-->17h | L8: PIECES SUIVANT COMPTEUR 17H-->22H | M8: PIECES SUIVANT COMPTEUR 6h-->8h | N8: NOMBRE D'HEURES DE TRAVAIL 8h-->17h | O8: NOMBRE D'HEURES DE TRAVAIL 17H-->22H | P8: NOMBRE D'HEURES DE TRAVAIL 6h-->8h | Q8: NOMBRE D'HEURES DE TRAVAIL | R8: OBSERVATIONS | S8: Pieces manquantes | T8: PIECES NC | U8: Pieces REELLES | V8: Nombre des pieces à retoucher | W8: Cause de la non-conformité | X8: Effet de la non-conformité | Y8: Valeur de l'effet | Z8: NOMBRES D'HEURES SUIVANT LES PIECES REELLES | AA8: RENDEMENT | AB8: Fiche de contrôle qualité début de serie | AC8: Affutage | AD8: Gamme d'usingae | AE8: ALERTES | AF8: A | AG8: P | AH8: Q | AI8: OEE | AJ8: OEE
A9: A | B9: SST16 | C9: =IFERROR(VLOOKUP(D9,Pieces!A:B,2,0)," ") -> 200101 | D9: AXE D'ARTICULATION | E9: 0 | F9: 952 | G9: 1156 | H9: 1336 | I9: =IFERROR(VLOOKUP(D9,Pieces!A:C,3,0),"") -> 120 | J9: 1 | K9: =(F9-E9)*J9 -> 952 | L9: =(G9-F9)*J9 -> 204 | M9: =(H9-G9)*J9 -> 180 | N9: =IF(I9="","",K9/I9) -> 7.933333333 | O9: =IF(I9="","",L9/I9) -> 1.7 | P9: =IF(I9="","",M9/I9) -> 1.5 | Q9: 12 | R9: l | S9: =U9+T9-K9-L9-M9 -> 0 | U9: =(K9+L9+M9)-T9-V9 -> 1336 | Z9: =IF(OR(I9="",I9=0),0,(U9+T9)/I9) -> 11.13333333 | AA9: =IF(OR(Q9=0,I9=0),"",Z9/Q9*100) -> 92.77777778 | AE9: =IF(AA9>85," ","WARNING") ->  | AF9: =(N9+O9+P9)/(Q9*3600) -> 0.0002577160494 | AG9: =((3600/I9)*U9)/(N9+O9+P9) -> 3600 | AH9: =(U9-T9)/U9 -> 1 | AI9: =AF9*AG9*AH9 -> 0.9277777778 | AJ9: =((U9-T9)*(3600/I9))/(Q9*3600) -> 0.9277777778
A10: B | B10: SB16 | C10: =IFERROR(VLOOKUP(D10,Pieces!A:B,2,0)," ") -> G022-CP1 | D10: AXE D15-M11*100 maj-c | E10: 8046 | F10: 8237 | G10: 8304 | H10: 8405 | I10: =IFERROR(VLOOKUP(D10,Pieces!A:C,3,0),"") -> 46 | J10: 1 | K10: =(F10-E10)*J10 -> 191 | L10: =(G10-F10)*J10 -> 67 | M10: =(H10-G10)*J10 -> 101 | N10: =IF(I10="","",K10/I10) -> 4.152173913 | O10: =IF(I10="","",L10/I10) -> 1.456521739 | P10: =IF(I10="","",M10/I10) -> 2.195652174 | Q10: 12 | S10: =U10+T10-K10-L10-M10 -> 0 | U10: =(K10+L10+M10)-T10-V10 -> 359 | Z10: =IF(OR(I10="",I10=0),0,(U10+T10)/I10) -> 7.804347826 | AA10: =IF(OR(Q10=0,I10=0),"",Z10/Q10*100) -> 65.03623188 | AE10: =IF(AA10>85," ","WARNING") -> WARNING | AF10: =(N10+O10+P10)/(Q10*3600) -> 0.0001806561997 | AG10: =((3600/I10)*U10)/(N10+O10+P10) -> 3600 | AH10: =(U10-T10)/U10 -> 1 | AI10: =AF10*AG10*AH10 -> 0.6503623188 | AJ10: =((U10-T10)*(3600/I10))/(Q10*3600) -> 0.6503623188
A11: C | B11: BIGLIA 301 SM | C11: =IFERROR(VLOOKUP(D11,Pieces!A:B,2,0)," ") -> 512520 | D11: INSERTO MANOPOLA INOX M8- | E11: 0 | F11: 0 | G11: 0 | H11: 75 | I11: =IFERROR(VLOOKUP(D11,Pieces!A:C,3,0),"") -> 45 | J11: 1 | K11: 0 | L11: 0 | M11: 75 | N11: 0 | O11: 0 | P11: 1.666666667 | Q11: 12 | S11: =U11+T11-K11-L11-M11 -> 0 | U11: 75 | Z11: 1.666666667 | AA11: 13.88888889 | AE11: WARNING | AF11: 3.858024691e-05 | AG11: 3600 | AH11: 1 | AI11: 0.1388888889 | AJ11: 0.1388888889
A12: D | B12: BIGLIA 42 S2M bitourelle | C12: =IFERROR(VLOOKUP(D12,Pieces!A:B,2,0)," ") -> G027 | D12: GOUJON M14*1.5L=52 | E12: 0 | F12: 127 | G12: 127 | H12: 200 | I12: =IFERROR(VLOOKUP(D12,Pieces!A:C,3,0),"") -> 55 | J12: 1 | K12: 127 | L12: 0 | M12: 73 | N12: 2.309090909 | O12: 0 | P12: 1.327272727 | Q12: 9 | S12: 0 | U12: 200 | Z12: 3.636363636 | AA12: 40.4040404 | AE12: WARNING | AF12: 0.0001122334456 | AG12: 3600 | AH12: 1 | AI12: 0.404040404 | AJ12: 0.404040404
A13: E | B13: L32 | C13: =IFERROR(VLOOKUP(D13,Pieces!A:B,2,0)," ") -> 200200-2022 | D13: Embout de tige-2022 | E13: 4771 | F13: 4771 | G13: 4771 | H13: 4771 | I13: =IFERROR(VLOOKUP(D13,Pieces!A:C,3,0),"") -> 40 | J13: 1 | K13: 0 | L13: 0 | M13: 0 | N13: 0 | O13: 0 | P13: 0 | Q13: 7 | S13: 0 | U13: 0 | Z13: 0 | AA13: 0 | AE13: WARNING | AF13: 0 | AJ13: 0
A14: F | B14: TSUGAMI | C14: =IFERROR(VLOOKUP(D14,Pieces!A:B,2,0)," ") -> i097-tsughami | D14: ECROU DE ROUE FORD RANGER- finition rayon | E14: 0 | F14: 0 | G14: 0 | H14: 0 | I14: =IFERROR(VLOOKUP(D14,Pieces!A:C,3,0),"") -> 100 | J14: 1 | K14: 0 | L14: 0 | M14: 0 | N14: 0 | O14: 0 | P14: 0 | Q14: 7 | S14: 0 | U14: 0 | Z14: 0 | AA14: 0 | AE14: WARNING | AF14: 0 | AJ14: 0
A15: G | B15: Tour STAR SV-32-J | C15: =IFERROR(VLOOKUP(D15,Pieces!A:B,2,0)," ") -> 68.0815 | D15: Buse droite à collerette Ø8 M445 FRD | E15: 12573 | F15: 12922 | G15: 12943 | H15: 13093 | I15: =IFERROR(VLOOKUP(D15,Pieces!A:C,3,0),"") -> 60 | J15: 1 | K15: 349 | L15: 21 | M15: 150 | N15: 5.816666667 | O15: 0.35 | P15: 2.5 | Q15: 12 | S15: 0 | U15: 520 | Z15: 8.666666667 | AA15: 72.22222222 | AE15: WARNING | AF15: 0.000200617284 | AG15: 3600 | AH15: 1 | AI15: 0.7222222222 | AJ15: 0.7222222222
A16: H | B16: Tour CNC STAR SB avec embarreur LNS Express 220 | C16: =IFERROR(VLOOKUP(D16,Pieces!A:B,2,0)," ") -> 200300 | D16: TIGE DE PISTON-maj ca | E16: 1139 | F16: 1307 | G16: 1357 | H16: 1424 | I16: =IFERROR(VLOOKUP(D16,Pieces!A:C,3,0),"") -> 29 | J16: 1 | K16: 168 | L16: 50 | M16: 67 | N16: 5.793103448 | O16: 1.724137931 | P16: 2.310344828 | Q16: 12 | S16: 0 | U16: 285 | Z16: 9.827586207 | AA16: 81.89655172 | AE16: WARNING | AF16: 0.0002274904215 | AG16: 3600 | AH16: 1 | AI16: 0.8189655172 | AJ16: 0.8189655172
A17: I | B17: MULTIBROCHE | C17: =IFERROR(VLOOKUP(D17,Pieces!A:B,2,0)," ") -> MPS000300 | D17: raccord HEX 17 | E17: 0 | F17: 0 | G17: 0 | H17: 0 | I17: =IFERROR(VLOOKUP(D17,Pieces!A:C,3,0),"") -> 500 | J17: 1 | K17: 0 | L17: 0 | M17: 0 | N17: 0 | O17: 0 | P17: 0 | Q17: 7 | S17: 0 | U17: 0 | Z17: 0 | AA17: 0 | AE17: WARNING | AF17: 0 | AJ17: 0
A18: J | B18: Tour CNC WEILER UD 24 - 100 | C18: =IFERROR(VLOOKUP(D18,Pieces!A:B,2,0)," ") -> 4-7891 | D18: ANNEAU BRUTE 32*42*20 chuttes | E18: 907 | F18: 1163 | G18: 1163 | H18: 1163 | I18: =IFERROR(VLOOKUP(D18,Pieces!A:C,3,0),"") -> 50 | J18: 1 | K18: 256 | L18: 0 | M18: 0 | N18: 5.12 | O18: 0 | P18: 0 | Q18: 7 | S18: 0 | U18: 256 | Z18: 5.12 | AA18: 73.14285714 | AE18: WARNING | AF18: 0.0002031746032 | AG18: 3600 | AH18: 1 | AI18: 0.7314285714 | AJ18: 0.7314285714
A19: K | B19: TOUR WEILER | C19: =IFERROR(VLOOKUP(D19,Pieces!A:B,2,0)," ") -> 199400-a | D19: Tirant acier D6 maj-c | E19: 80 | F19: 476 | G19: 476 | H19: 601 | I19: =IFERROR(VLOOKUP(D19,Pieces!A:C,3,0),"") -> 100 | J19: 1 | K19: 396 | L19: 0 | M19: 125 | N19: 3.96 | O19: 0 | P19: 1.25 | Q19: 7 | S19: 0 | U19: 521 | Z19: 5.21 | AA19: 74.42857143 | AE19: WARNING | AF19: 0.0002067460317 | AG19: 3600 | AH19: 1 | AI19: 0.7442857143 | AJ19: 0.7442857143
A20: L | B20: NAKAMURA | C20: =IFERROR(VLOOKUP(D20,Pieces!A:B,2,0)," ") -> I007 | D20: ECROU SEMI ARBRE ISUZU | E20: 0 | F20: 0 | G20: 0 | H20: 0 | I20: =IFERROR(VLOOKUP(D20,Pieces!A:C,3,0),"") -> 30 | J20: 1 | K20: 0 | L20: 0 | M20: 0 | N20: 0 | O20: 0 | P20: 0 | Q20: 7 | S20: 0 | U20: 0 | Z20: 0 | AA20: 0 | AE20: WARNING | AF20: 0 | AJ20: 0
A21: M | B21: MORI SEIKI 3 axes | C21: =IFERROR(VLOOKUP(D21,Pieces!A:B,2,0)," ") -> i004 | D21: Ecrou suspension- surfacage | E21: 0 | F21: 9 | G21: 9 | H21: 9 | I21: =IFERROR(VLOOKUP(D21,Pieces!A:C,3,0),"") -> 54 | J21: 9 | K21: 81 | L21: 0 | M21: 0 | N21: 1.5 | O21: 0 | P21: 0 | Q21: 7 | S21: 0 | U21: 81 | Z21: 1.5 | AA21: 21.42857143 | AE21: WARNING | AF21: 5.952380952e-05 | AG21: 3600 | AH21: 1 | AI21: 0.2142857143 | AJ21: 0.2142857143
A22: N | B22: MORI SEIKI 5 axes | C22: =IFERROR(VLOOKUP(D22,Pieces!A:B,2,0)," ") -> - | D22: Arrêt | E22: 0 | F22: 0 | G22: 0 | H22: 0 | I22: =IFERROR(VLOOKUP(D22,Pieces!A:C,3,0),"") -> 1 | J22: 20 | K22: 0 | L22: 0 | M22: 0 | N22: 0 | O22: 0 | P22: 0 | Q22: 7 | S22: 0 | U22: 0 | Z22: 0 | AA22: 0 | AE22: WARNING | AF22: 0 | AJ22: 0
A23: O | B23: HARDING | C23: =IFERROR(VLOOKUP(D23,Pieces!A:B,2,0)," ") -> 480387 | D23: Evacuation 2 et 3 | E23: 132 | F23: 140 | G23: 140 | H23: 140 | I23: =IFERROR(VLOOKUP(D23,Pieces!A:C,3,0),"") -> 25 | J23: 20 | K23: 160 | L23: 0 | M23: 0 | N23: 6.4 | O23: 0 | P23: 0 | Q23: 7 | S23: 0 | U23: 160 | Z23: 6.4 | AA23: 91.42857143 | AF23: 0.000253968254 | AG23: 3600 | AH23: 1 | AI23: 0.9142857143 | AJ23: 0.9142857143
A24: P | B24: KITAMURA | C24: =IFERROR(VLOOKUP(D24,Pieces!A:B,2,0)," ") -> 9518-maj | D24: USINAGE BORNE RBD-1 | E24: 6822 | F24: 6972 | G24: 6972 | H24: 6972 | I24: =IFERROR(VLOOKUP(D24,Pieces!A:C,3,0),"") -> 300 | J24: 12 | K24: =(F24-E24)*J24 -> 1800 | L24: =(G24-F24)*J24 -> 0 | M24: =(H24-G24)*J24 -> 0 | N24: =IF(I24="","",K24/I24) -> 6 | O24: =IF(I24="","",L24/I24) -> 0 | P24: =IF(I24="","",M24/I24) -> 0 | Q24: 9 | S24: =U24+T24-K24-L24-M24 -> 0 | U24: =(K24+L24+M24)-T24-V24 -> 1800 | Z24: =IF(OR(I24="",I24=0),0,(U24+T24)/I24) -> 6 | AA24: =IF(OR(Q24=0,I24=0),"",Z24/Q24*100) -> 66.66666667 | AE24: =IF(AA24>85," ","WARNING") -> WARNING | AF24: 0.0001851851852 | AG24: 3600 | AH24: 1 | AI24: 0.6666666667 | AJ24: 0.6666666667
S26: Taux de NC journalière | U26: =#REF!/#REF! -> 
J30: Approbateur:
J31: Date:
J32: Visa:

Sheet 11-4-22
A1: 11-04-2022 | Z1: CODE: DAS-PRO-16
Z2: DATE:30/08/2019
Z3: VERSION:07
Z4: PAGE:1
A8: SYMBOLE | B8: MACHINE | C8: REF ARTICLE | D8: DESIGNATION | E8: COMPTEUR AUJOURD’HUI à 8h | F8: COMPTEUR HIER à 17H | G8: COMPTEUR HIER à 22H | H8: COMPTEUR AUJOURD’HUI à 8h | I8: CADENCE | J8: NOMBRE DE PIECES FINIS PAR CYCLE | K8: PIECES SUIVANT COMPTEU 8h-->17h | L8: PIECES SUIVANT COMPTEUR 17H-->22H | M8: PIECES SUIVANT COMPTEUR 6h-->8h | N8: NOMBRE D'HEURES DE TRAVAIL 8h-->17h | O8: NOMBRE D'HEURES DE TRAVAIL 17H-->22H | P8: NOMBRE D'HEURES DE TRAVAIL 6h-->8h | Q8: NOMBRE D'HEURES DE TRAVAIL | R8: OBSERVATIONS | S8: Pieces manquantes | T8: PIECES NC | U8: Pieces REELLES | V8: Nombre des pieces à retoucher | W8: Cause de la non-conformité | X8: Effet de la non-conformité | Y8: Valeur de l'effet | Z8: NOMBRES D'HEURES SUIVANT LES PIECES REELLES | AA8: RENDEMENT | AB8: Fiche de contrôle qualité début de serie | AC8: Affutage | AD8: Gamme d'usingae | AE8: ALERTES | AF8: A | AG8: P | AH8: Q | AI8: OEE | AJ8: OEE
A9: A | B9: SST16 | C9: =IFERROR(VLOOKUP(D9,Pieces!A:B,2,0)," ") -> - | D9: Arrêt | E9: 0 | F9: 0 | G9: 0 | H9: 0 | I9: =IFERROR(VLOOKUP(D9,Pieces!A:C,3,0),"") -> 1 | J9: 1 | K9: =(F9-E9)*J9 -> 0 | L9: =(G9-F9)*J9 -> 0 | M9: =(H9-G9)*J9 -> 0 | N9: =IF(I9="","",K9/I9) -> 0 | O9: =IF(I9="","",L9/I9) -> 0 | P9: =IF(I9="","",M9/I9) -> 0 | Q9: 12 | S9: =U9+T9-K9-L9-M9 -> 0 | U9: =(K9+L9+M9)-T9-V9 -> 0 | Z9: =IF(OR(I9="",I9=0),0,(U9+T9)/I9) -> 0 | AA9: =IF(OR(Q9=0,I9=0),"",Z9/Q9*100) -> 0 | AE9: =IF(AA9>85," ","WARNING") -> WARNING | AF9: =(N9+O9+P9)/(Q9*3600) -> 0 | AG9: =((3600/I9)*U9)/(N9+O9+P9) ->  | AH9: =(U9-T9)/U9 ->  | AI9: =AF9*AG9*AH9 ->  | AJ9: =((U9-T9)*(3600/I9))/(Q9*3600) -> 0
A10: B | B10: SB16 | C10: =IFERROR(VLOOKUP(D10,Pieces!A:B,2,0)," ") -> G022-CP1 | D10: AXE D15-M11*100 maj-c | E10: 7641 | F10: 7883 | G10: 7940 | H10: 8046 | I10: =IFERROR(VLOOKUP(D10,Pieces!A:C,3,0),"") -> 46 | J10: 1 | K10: =(F10-E10)*J10 -> 242 | L10: =(G10-F10)*J10 -> 57 | M10: =(H10-G10)*J10 -> 106 | N10: =IF(I10="","",K10/I10) -> 5.260869565 | O10: =IF(I10="","",L10/I10) -> 1.239130435 | P10: =IF(I10="","",M10/I10) -> 2.304347826 | Q10: 12 | S10: =U10+T10-K10-L10-M10 -> 0 | U10: =(K10+L10+M10)-T10-V10 -> 405 | Z10: =IF(OR(I10="",I10=0),0,(U10+T10)/I10) -> 8.804347826 | AA10: =IF(OR(Q10=0,I10=0),"",Z10/Q10*100) -> 73.36956522 | AE10: =IF(AA10>85," ","WARNING") -> WARNING | AF10: =(N10+O10+P10)/(Q10*3600) -> 0.0002038043478 | AG10: =((3600/I10)*U10)/(N10+O10+P10) -> 3600 | AH10: =(U10-T10)/U10 -> 1 | AI10: =AF10*AG10*AH10 -> 0.7336956522 | AJ10: =((U10-T10)*(3600/I10))/(Q10*3600) -> 0.7336956522
A11: C | B11: BIGLIA 301 SM | C11: =IFERROR(VLOOKUP(D11,Pieces!A:B,2,0)," ") -> 4-8344 | D11: Bague Galvanisée 12*27*39.5 | E11: 0 | F11: 158 | G11: 215 | H11: 266 | I11: =IFERROR(VLOOKUP(D11,Pieces!A:C,3,0),"") -> 23 | J11: 1 | K11: 158 | L11: 57 | M11: 51 | N11: 6.869565217 | O11: 2.47826087 | P11: 2.217391304 | Q11: 12 | S11: =U11+T11-K11-L11-M11 -> 0 | U11: 266 | Z11: 11.56521739 | AA11: 96.37681159 | AF11: 0.0002677133655 | AG11: 3600 | AH11: 1 | AI11: 0.9637681159 | AJ11: 0.9637681159
A12: D | B12: BIGLIA 42 S2M bitourelle | C12: =IFERROR(VLOOKUP(D12,Pieces!A:B,2,0)," ") -> MI018-B42 | D12: GOUJON DE ROUE MITSIBITCHI GM-SUR-B42 | E12: 10732 | F12: 10940 | G12: 10940 | H12: 11884 | I12: =IFERROR(VLOOKUP(D12,Pieces!A:C,3,0),"") -> 55 | J12: 1 | K12: 208 | L12: 0 | M12: 944 | N12: 3.781818182 | O12: 0 | P12: 17.16363636 | Q12: 9 | S12: 0 | U12: 1152 | Z12: 20.94545455 | AA12: 232.7272727 | AF12: 0.0006464646465 | AG12: 3600 | AH12: 1 | AI12: 2.327272727 | AJ12: 2.327272727
A13: E | B13: L32 | C13: =IFERROR(VLOOKUP(D13,Pieces!A:B,2,0)," ") -> 200200-2022 | D13: Embout de tige-2022 | E13: 4771 | F13: 4771 | G13: 4771 | H13: 4771 | I13: =IFERROR(VLOOKUP(D13,Pieces!A:C,3,0),"") -> 40 | J13: 1 | K13: 0 | L13: 0 | M13: 0 | N13: 0 | O13: 0 | P13: 0 | Q13: 7 | S13: 0 | U13: 0 | Z13: 0 | AA13: 0 | AE13: WARNING | AF13: 0 | AJ13: 0
A14: F | B14: TSUGAMI | C14: =IFERROR(VLOOKUP(D14,Pieces!A:B,2,0)," ") -> i097-tsughami | D14: ECROU DE ROUE FORD RANGER- finition rayon | E14: 0 | F14: 0 | G14: 0 | H14: 0 | I14: =IFERROR(VLOOKUP(D14,Pieces!A:C,3,0),"") -> 100 | J14: 1 | K14: 0 | L14: 0 | M14: 0 | N14: 0 | O14: 0 | P14: 0 | Q14: 7 | S14: 0 | U14: 0 | Z14: 0 | AA14: 0 | AE14: WARNING | AF14: 0 | AJ14: 0
A15: G | B15: Tour STAR SV-32-J | C15: =IFERROR(VLOOKUP(D15,Pieces!A:B,2,0)," ") -> 68.0815 | D15: Buse droite à collerette Ø8 M445 FRD | E15: 11968 | F15: 12366 | G15: 12460 | H15: 12573 | I15: =IFERROR(VLOOKUP(D15,Pieces!A:C,3,0),"") -> 60 | J15: 1 | K15: 398 | L15: 94 | M15: 113 | N15: 6.633333333 | O15: 1.566666667 | P15: 1.883333333 | Q15: 12 | S15: 0 | U15: 605 | Z15: 10.08333333 | AA15: 84.02777778 | AE15: WARNING | AF15: 0.0002334104938 | AG15: 3600 | AH15: 1 | AI15: 0.8402777778 | AJ15: 0.8402777778
A16: H | B16: Tour CNC STAR SB avec embarreur LNS Express 220 | C16: =IFERROR(VLOOKUP(D16,Pieces!A:B,2,0)," ") -> 200300 | D16: TIGE DE PISTON-maj ca | E16: 864 | F16: 1022 | G16: 1076 | H16: 1139 | I16: =IFERROR(VLOOKUP(D16,Pieces!A:C,3,0),"") -> 29 | J16: 1 | K16: 158 | L16: 54 | M16: 63 | N16: 5.448275862 | O16: 1.862068966 | P16: 2.172413793 | Q16: 12 | S16: 0 | U16: 275 | Z16: 9.482758621 | AA16: 79.02298851 | AE16: WARNING | AF16: 0.0002195083014 | AG16: 3600 | AH16: 1 | AI16: 0.7902298851 | AJ16: 0.7902298851
A17: I | B17: MULTIBROCHE | C17: =IFERROR(VLOOKUP(D17,Pieces!A:B,2,0)," ") -> MPS000300 | D17: raccord HEX 17 | E17: 0 | F17: 0 | G17: 0 | H17: 0 | I17: =IFERROR(VLOOKUP(D17,Pieces!A:C,3,0),"") -> 500 | J17: 1 | K17: 0 | L17: 0 | M17: 0 | N17: 0 | O17: 0 | P17: 0 | Q17: 7 | S17: 0 | U17: 0 | Z17: 0 | AA17: 0 | AE17: WARNING | AF17: 0 | AJ17: 0
A18: J | B18: Tour CNC WEILER UD 24 - 100 | C18: =IFERROR(VLOOKUP(D18,Pieces!A:B,2,0)," ") -> 4-7891 | D18: ANNEAU BRUTE 32*42*20 chuttes | E18: 602 | F18: 907 | G18: 907 | H18: 907 | I18: =IFERROR(VLOOKUP(D18,Pieces!A:C,3,0),"") -> 50 | J18: 1 | K18: 305 | L18: 0 | M18: 0 | N18: 6.1 | O18: 0 | P18: 0 | Q18: 7 | S18: 0 | U18: 305 | Z18: 6.1 | AA18: 87.14285714 | AF18: 0.0002420634921 | AG18: 3600 | AH18: 1 | AI18: 0.8714285714 | AJ18: 0.8714285714
A19: K | B19: TOUR WEILER | C19: =IFERROR(VLOOKUP(D19,Pieces!A:B,2,0)," ") -> 199400-a | D19: Tirant acier D6 maj-c | E19: 0 | F19: 80 | G19: 80 | H19: 80 | I19: =IFERROR(VLOOKUP(D19,Pieces!A:C,3,0),"") -> 100 | J19: 1 | K19: 80 | L19: 0 | M19: 0 | N19: 0.8 | O19: 0 | P19: 0 | Q19: 7 | S19: 0 | U19: 80 | Z19: 0.8 | AA19: 11.42857143 | AE19: WARNING | AF19: 3.174603175e-05 | AG19: 3600 | AH19: 1 | AI19: 0.1142857143 | AJ19: 0.1142857143
A20: L | B20: NAKAMURA | C20: =IFERROR(VLOOKUP(D20,Pieces!A:B,2,0)," ") -> I007 | D20: ECROU SEMI ARBRE ISUZU | E20: 2017 | F20: 2183 | G20: 2183 | H20: 2183 | I20: =IFERROR(VLOOKUP(D20,Pieces!A:C,3,0),"") -> 30 | J20: 1 | K20: 166 | L20: 0 | M20: 0 | N20: 5.533333333 | O20: 0 | P20: 0 | Q20: 7 | S20: 0 | U20: 166 | Z20: 5.533333333 | AA20: 79.04761905 | AE20: WARNING | AF20: 0.0002195767196 | AG20: 3600 | AH20: 1 | AI20: 0.7904761905 | AJ20: 0.7904761905
A21: M | B21: MORI SEIKI 3 axes | C21: =IFERROR(VLOOKUP(D21,Pieces!A:B,2,0)," ") -> I110-01-004 | D21: INSERT LEVIER SURMOULEE 345833-01 - fraisage | E21: 1225 | F21: 1248 | G21: 1248 | H21: 1253 | I21: =IFERROR(VLOOKUP(D21,Pieces!A:C,3,0),"") -> 32 | J21: 9 | K21: 207 | L21: 0 | M21: 45 | N21: 6.46875 | O21: 0 | P21: 1.40625 | Q21: 7 | S21: 0 | U21: 252 | Z21: 7.875 | AA21: 112.5 | AF21: 0.0003125 | AG21: 3600 | AH21: 1 | AI21: 1.125 | AJ21: 1.125
A22: N | B22: MORI SEIKI 5 axes | C22: =IFERROR(VLOOKUP(D22,Pieces!A:B,2,0)," ") -> - | D22: Arrêt | E22: 0 | F22: 0 | G22: 0 | H22: 0 | I22: =IFERROR(VLOOKUP(D22,Pieces!A:C,3,0),"") -> 1 | J22: 20 | K22: 0 | L22: 0 | M22: 0 | N22: 0 | O22: 0 | P22: 0 | Q22: 7 | S22: 0 | U22: 0 | Z22: 0 | AA22: 0 | AE22: WARNING | AF22: 0 | AJ22: 0
A23: O | B23: HARDING | C23: =IFERROR(VLOOKUP(D23,Pieces!A:B,2,0)," ") -> 480387 | D23: Evacuation 2 et 3 | E23: 117 | F23: 132 | G23: 132 | H23: 132 | I23: =IFERROR(VLOOKUP(D23,Pieces!A:C,3,0),"") -> 25 | J23: 20 | K23: 300 | L23: 0 | M23: 0 | N23: 12 | O23: 0 | P23: 0 | Q23: 7 | S23: 0 | U23: 300 | Z23: 12 | AA23: 171.4285714 | AF23: 0.0004761904762 | AG23: 3600 | AH23: 1 | AI23: 1.714285714 | AJ23: 1.714285714
A24: P | B24: KITAMURA | C24: =IFERROR(VLOOKUP(D24,Pieces!A:B,2,0)," ") -> 9518-maj | D24: USINAGE BORNE RBD-1 | E24: 6635 | F24: 6785 | G24: 6785 | H24: 6822 | I24: =IFERROR(VLOOKUP(D24,Pieces!A:C,3,0),"") -> 300 | J24: 12 | K24: =(F24-E24)*J24 -> 1800 | L24: =(G24-F24)*J24 -> 0 | M24: =(H24-G24)*J24 -> 444 | N24: =IF(I24="","",K24/I24) -> 6 | O24: =IF(I24="","",L24/I24) -> 0 | P24: =IF(I24="","",M24/I24) -> 1.48 | Q24: 9 | S24: =U24+T24-K24-L24-M24 -> 0 | U24: =(K24+L24+M24)-T24-V24 -> 2244 | Z24: =IF(OR(I24="",I24=0),0,(U24+T24)/I24) -> 7.48 | AA24: =IF(OR(Q24=0,I24=0),"",Z24/Q24*100) -> 83.11111111 | AE24: =IF(AA24>85," ","WARNING") -> WARNING | AF24: 0.0002308641975 | AG24: 3600 | AH24: 1 | AI24: 0.8311111111 | AJ24: 0.8311111111
S26: Taux de NC journalière | U26: =#REF!/#REF! -> 
J30: Approbateur:
J31: Date:
J32: Visa:

Sheet 09-4-22
A1: 09-04-2022 | Z1: CODE: DAS-PRO-16
Z2: DATE:30/08/2019
Z3: VERSION:07
Z4: PAGE:1
A8: SYMBOLE | B8: MACHINE | C8: REF ARTICLE | D8: DESIGNATION | E8: COMPTEUR AUJOURD’HUI à 8h | F8: COMPTEUR HIER à 17H | G8: COMPTEUR HIER à 22H | H8: COMPTEUR AUJOURD’HUI à 8h | I8: CADENCE | J8: NOMBRE DE PIECES FINIS PAR CYCLE | K8: PIECES SUIVANT COMPTEU 8h-->17h | L8: PIECES SUIVANT COMPTEUR 17H-->22H | M8: PIECES SUIVANT COMPTEUR 6h-->8h | N8: NOMBRE D'HEURES DE TRAVAIL 8h-->17h | O8: NOMBRE D'HEURES DE TRAVAIL 17H-->22H | P8: NOMBRE D'HEURES DE TRAVAIL 6h-->8h | Q8: NOMBRE D'HEURES DE TRAVAIL | R8: OBSERVATIONS | S8: Pieces manquantes | T8: PIECES NC | U8: Pieces REELLES | V8: Nombre des pieces à retoucher | W8: Cause de la non-conformité | X8: Effet de la non-conformité | Y8: Valeur de l'effet | Z8: NOMBRES D'HEURES SUIVANT LES PIECES REELLES | AA8: RENDEMENT | AB8: Fiche de contrôle qualité début de serie | AC8: Affutage | AD8: Gamme d'usingae | AE8: ALERTES | AF8: A | AG8: P | AH8: Q | AI8: OEE | AJ8: OEE
A9: A | B9: SST16 | C9: =IFERROR(VLOOKUP(D9,Pieces!A:B,2,0)," ") -> - | D9: Arrêt | E9: 0 | F9: 0 | G9: 0 | H9: 0 | I9: =IFERROR(VLOOKUP(D9,Pieces!A:C,3,0),"") -> 1 | J9: 1 | K9: =(F9-E9)*J9 -> 0 | L9: =(G9-F9)*J9 -> 0 | M9: =(H9-G9)*J9 -> 0 | N9: =IF(I9="","",K9/I9) -> 0 | O9: =IF(I9="","",L9/I9) -> 0 | P9: =IF(I9="","",M9/I9) -> 0 | Q9: 10 | S9: =U9+T9-K9-L9-M9 -> 0 | U9: =(K9+L9+M9)-T9-V9 -> 0 | Z9: =IF(OR(I9="",I9=0),0,(U9+T9)/I9) -> 0 | AA9: =IF(OR(Q9=0,I9=0),"",Z9/Q9*100) -> 0 | AE9: =IF(AA9>85," ","WARNING") -> WARNING | AF9: =(N9+O9+P9)/(Q9*3600) -> 0 | AG9: =((3600/I9)*U9)/(N9+O9+P9) ->  | AH9: =(U9-T9)/U9 ->  | AI9: =AF9*AG9*AH9 ->  | AJ9: =((U9-T9)*(3600/I9))/(Q9*3600) -> 0
A10: B | B10: SB16 | C10: =IFERROR(VLOOKUP(D10,Pieces!A:B,2,0)," ") -> G022-CP1 | D10: AXE D15-M11*100 maj-c | E10: 7262 | F10: 7494 | G10: 7530 | H10: 7641 | I10: =IFERROR(VLOOKUP(D10,Pieces!A:C,3,0),"") -> 46 | J10: 1 | K10: =(F10-E10)*J10 -> 232 | L10: =(G10-F10)*J10 -> 36 | M10: =(H10-G10)*J10 -> 111 | N10: =IF(I10="","",K10/I10) -> 5.043478261 | O10: =IF(I10="","",L10/I10) -> 0.7826086957 | P10: =IF(I10="","",M10/I10) -> 2.413043478 | Q10: 10 | S10: =U10+T10-K10-L10-M10 -> 0 | U10: =(K10+L10+M10)-T10-V10 -> 379 | Z10: =IF(OR(I10="",I10=0),0,(U10+T10)/I10) -> 8.239130435 | AA10: =IF(OR(Q10=0,I10=0),"",Z10/Q10*100) -> 82.39130435 | AE10: =IF(AA10>85," ","WARNING") -> WARNING | AF10: =(N10+O10+P10)/(Q10*3600) -> 0.0002288647343 | AG10: =((3600/I10)*U10)/(N10+O10+P10) -> 3600 | AH10: =(U10-T10)/U10 -> 1 | AI10: =AF10*AG10*AH10 -> 0.8239130435 | AJ10: =((U10-T10)*(3600/I10))/(Q10*3600) -> 0.8239130435
A11: C | B11: BIGLIA 301 SM | C11: =IFERROR(VLOOKUP(D11,Pieces!A:B,2,0)," ") -> 4-8025 | D11: BAGUE GALVANISEE 12*24*40 | E11: 0 | F11: 140 | G11: 195 | H11: 330 | I11: =IFERROR(VLOOKUP(D11,Pieces!A:C,3,0),"") -> 62 | J11: 1 | K11: 140 | L11: 55 | M11: 135 | N11: 2.258064516 | O11: 0.8870967742 | P11: 2.177419355 | Q11: 10 | S11: =U11+T11-K11-L11-M11 -> 0 | U11: 330 | Z11: 5.322580645 | AA11: 53.22580645 | AE11: WARNING | AF11: 0.0001478494624 | AG11: 3600 | AH11: 1 | AI11: 0.5322580645 | AJ11: 0.5322580645
A12: D | B12: BIGLIA 42 S2M bitourelle | C12: =IFERROR(VLOOKUP(D12,Pieces!A:B,2,0)," ") -> MI018-B42 | D12: GOUJON DE ROUE MITSIBITCHI GM-SUR-B42 | E12: 10418 | F12: 10648 | G12: 10648 | H12: 10732 | I12: =IFERROR(VLOOKUP(D12,Pieces!A:C,3,0),"") -> 55 | J12: 1 | K12: 230 | L12: 0 | M12: 84 | N12: 4.181818182 | O12: 0 | P12: 1.527272727 | Q12: 6 | S12: 0 | U12: 314 | Z12: 5.709090909 | AA12: 95.15151515 | AF12: 0.0002643097643 | AG12: 3600 | AH12: 1 | AI12: 0.9515151515 | AJ12: 0.9515151515
A13: E | B13: L32 | C13: =IFERROR(VLOOKUP(D13,Pieces!A:B,2,0)," ") -> 200200-2022 | D13: Embout de tige-2022 | E13: 4771 | F13: 4771 | G13: 4771 | H13: 4771 | I13: =IFERROR(VLOOKUP(D13,Pieces!A:C,3,0),"") -> 40 | J13: 1 | K13: 0 | L13: 0 | M13: 0 | N13: 0 | O13: 0 | P13: 0 | Q13: 6 | S13: 0 | U13: 0 | Z13: 0 | AA13: 0 | AE13: WARNING | AF13: 0 | AJ13: 0
A14: F | B14: TSUGAMI | C14: =IFERROR(VLOOKUP(D14,Pieces!A:B,2,0)," ") -> i097-tsughami | D14: ECROU DE ROUE FORD RANGER- finition rayon | E14: 0 | F14: 0 | G14: 0 | H14: 0 | I14: =IFERROR(VLOOKUP(D14,Pieces!A:C,3,0),"") -> 100 | J14: 1 | K14: 0 | L14: 0 | M14: 0 | N14: 0 | O14: 0 | P14: 0 | Q14: 6 | S14: 0 | U14: 0 | Z14: 0 | AA14: 0 | AE14: WARNING | AF14: 0 | AJ14: 0
A15: G | B15: Tour STAR SV-32-J | C15: =IFERROR(VLOOKUP(D15,Pieces!A:B,2,0)," ") -> 68.0815 | D15: Buse droite à collerette Ø8 M445 FRD | E15: 11430 | F15: 11752 | G15: 11805 | H15: 11968 | I15: =IFERROR(VLOOKUP(D15,Pieces!A:C,3,0),"") -> 60 | J15: 1 | K15: 322 | L15: 53 | M15: 163 | N15: 5.366666667 | O15: 0.8833333333 | P15: 2.716666667 | Q15: 10 | S15: 0 | U15: 538 | Z15: 8.966666667 | AA15: 89.66666667 | AF15: 0.0002490740741 | AG15: 3600 | AH15: 1 | AI15: 0.8966666667 | AJ15: 0.8966666667
A16: H | B16: Tour CNC STAR SB avec embarreur LNS Express 220 | C16: =IFERROR(VLOOKUP(D16,Pieces!A:B,2,0)," ") -> 200300 | D16: TIGE DE PISTON-maj ca | E16: 621 | F16: 770 | G16: 790 | H16: 864 | I16: =IFERROR(VLOOKUP(D16,Pieces!A:C,3,0),"") -> 29 | J16: 1 | K16: 149 | L16: 20 | M16: 74 | N16: 5.137931034 | O16: 0.6896551724 | P16: 2.551724138 | Q16: 10 | S16: 0 | U16: 243 | Z16: 8.379310345 | AA16: 83.79310345 | AE16: WARNING | AF16: 0.0002327586207 | AG16: 3600 | AH16: 1 | AI16: 0.8379310345 | AJ16: 0.8379310345
A17: I | B17: MULTIBROCHE | C17: =IFERROR(VLOOKUP(D17,Pieces!A:B,2,0)," ") -> MPS000300 | D17: raccord HEX 17 | E17: 0 | F17: 0 | G17: 0 | H17: 0 | I17: =IFERROR(VLOOKUP(D17,Pieces!A:C,3,0),"") -> 500 | J17: 1 | K17: 0 | L17: 0 | M17: 0 | N17: 0 | O17: 0 | P17: 0 | Q17: 6 | S17: 0 | U17: 0 | Z17: 0 | AA17: 0 | AE17: WARNING | AF17: 0 | AJ17: 0
A18: J | B18: Tour CNC WEILER UD 24 - 100 | C18: =IFERROR(VLOOKUP(D18,Pieces!A:B,2,0)," ") -> 4-7891 | D18: ANNEAU BRUTE 32*42*20 chuttes | E18: 345 | F18: 602 | G18: 602 | H18: 602 | I18: =IFERROR(VLOOKUP(D18,Pieces!A:C,3,0),"") -> 50 | J18: 1 | K18: 257 | L18: 0 | M18: 0 | N18: 5.14 | O18: 0 | P18: 0 | Q18: 6 | S18: 0 | U18: 257 | Z18: 5.14 | AA18: 85.66666667 | AF18: 0.000237962963 | AG18: 3600 | AH18: 1 | AI18: 0.8566666667 | AJ18: 0.8566666667
A19: K | B19: TOUR WEILER | C19: =IFERROR(VLOOKUP(D19,Pieces!A:B,2,0)," ") -> 0-5280-1 | D19: Bague Galvanisée 12*20*40 -chutes | E19: 300 | F19: 920 | G19: 920 | H19: 920 | I19: =IFERROR(VLOOKUP(D19,Pieces!A:C,3,0),"") -> 60 | J19: 1 | K19: 620 | L19: 0 | M19: 0 | N19: 10.33333333 | O19: 0 | P19: 0 | Q19: 6 | S19: 0 | U19: 620 | Z19: 10.33333333 | AA19: 172.2222222 | AF19: 0.0004783950617 | AG19: 3600 | AH19: 1 | AI19: 1.722222222 | AJ19: 1.722222222
A20: L | B20: NAKAMURA | C20: =IFERROR(VLOOKUP(D20,Pieces!A:B,2,0)," ") -> I007 | D20: ECROU SEMI ARBRE ISUZU | E20: 1912 | F20: 2017 | G20: 2017 | H20: 2017 | I20: =IFERROR(VLOOKUP(D20,Pieces!A:C,3,0),"") -> 30 | J20: 1 | K20: 105 | L20: 0 | M20: 0 | N20: 3.5 | O20: 0 | P20: 0 | Q20: 6 | S20: 0 | U20: 105 | Z20: 3.5 | AA20: 58.33333333 | AE20: WARNING | AF20: 0.000162037037 | AG20: 3600 | AH20: 1 | AI20: 0.5833333333 | AJ20: 0.5833333333
A21: M | B21: MORI SEIKI 3 axes | C21: =IFERROR(VLOOKUP(D21,Pieces!A:B,2,0)," ") -> I110-01-004 | D21: INSERT LEVIER SURMOULEE 345833-01 - fraisage | E21: 1204 | F21: 1225 | G21: 1225 | H21: 1225 | I21: =IFERROR(VLOOKUP(D21,Pieces!A:C,3,0),"") -> 32 | J21: 9 | K21: 189 | L21: 0 | M21: 0 | N21: 5.90625 | O21: 0 | P21: 0 | Q21: 6 | S21: 0 | U21: 189 | Z21: 5.90625 | AA21: 98.4375 | AF21: 0.0002734375 | AG21: 3600 | AH21: 1 | AI21: 0.984375 | AJ21: 0.984375
A22: N | B22: MORI SEIKI 5 axes | C22: =IFERROR(VLOOKUP(D22,Pieces!A:B,2,0)," ") -> - | D22: Arrêt | E22: 0 | F22: 0 | G22: 0 | H22: 0 | I22: =IFERROR(VLOOKUP(D22,Pieces!A:C,3,0),"") -> 1 | J22: 20 | K22: 0 | L22: 0 | M22: 0 | N22: 0 | O22: 0 | P22: 0 | Q22: 6 | S22: 0 | U22: 0 | Z22: 0 | AA22: 0 | AE22: WARNING | AF22: 0 | AJ22: 0
A23: O | B23: HARDING | C23: =IFERROR(VLOOKUP(D23,Pieces!A:B,2,0)," ") -> 480387 | D23: Evacuation 2 et 3 | E23: 102 | F23: 117 | G23: 117 | H23: 117 | I23: =IFERROR(VLOOKUP(D23,Pieces!A:C,3,0),"") -> 25 | J23: 20 | K23: 300 | L23: 0 | M23: 0 | N23: 12 | O23: 0 | P23: 0 | Q23: 10 | S23: 0 | U23: 300 | Z23: 12 | AA23: 120 | AF23: 0.0003333333333 | AG23: 3600 | AH23: 1 | AI23: 1.2 | AJ23: 1.2
A24: P | B24: KITAMURA | C24: =IFERROR(VLOOKUP(D24,Pieces!A:B,2,0)," ") -> 9518-maj | D24: USINAGE BORNE RBD-1 | E24: 6420 | F24: 6594 | G24: 6594 | H24: 6635 | I24: =IFERROR(VLOOKUP(D24,Pieces!A:C,3,0),"") -> 300 | J24: 12 | K24: =(F24-E24)*J24 -> 2088 | L24: =(G24-F24)*J24 -> 0 | M24: =(H24-G24)*J24 -> 492 | N24: =IF(I24="","",K24/I24) -> 6.96 | O24: =IF(I24="","",L24/I24) -> 0 | P24: =IF(I24="","",M24/I24) -> 1.64 | Q24: 8 | S24: =U24+T24-K24-L24-M24 -> 0 | U24: =(K24+L24+M24)-T24-V24 -> 2580 | Z24: =IF(OR(I24="",I24=0),0,(U24+T24)/I24) -> 8.6 | AA24: =IF(OR(Q24=0,I24=0),"",Z24/Q24*100) -> 107.5 | AE24: =IF(AA24>85," ","WARNING") ->  | AF24: 0.0002986111111 | AG24: 3600 | AH24: 1 | AI24: 1.075 | AJ24: 1.075
S26: Taux de NC journalière | U26: =#REF!/#REF! -> 
J30: Approbateur:
J31: Date:
J32: Visa:

Sheet 08-4-22
A1: 08-04-2022 | Z1: CODE: DAS-PRO-16
Z2: DATE:30/08/2019
Z3: VERSION:07
Z4: PAGE:1
A8: SYMBOLE | B8: MACHINE | C8: REF ARTICLE | D8: DESIGNATION | E8: COMPTEUR AUJOURD’HUI à 8h | F8: COMPTEUR HIER à 17H | G8: COMPTEUR HIER à 22H | H8: COMPTEUR AUJOURD’HUI à 8h | I8: CADENCE | J8: NOMBRE DE PIECES FINIS PAR CYCLE | K8: PIECES SUIVANT COMPTEU 8h-->17h | L8: PIECES SUIVANT COMPTEUR 17H-->22H | M8: PIECES SUIVANT COMPTEUR 6h-->8h | N8: NOMBRE D'HEURES DE TRAVAIL 8h-->17h | O8: NOMBRE D'HEURES DE TRAVAIL 17H-->22H | P8: NOMBRE D'HEURES DE TRAVAIL 6h-->8h | Q8: NOMBRE D'HEURES DE TRAVAIL | R8: OBSERVATIONS | S8: Pieces manquantes | T8: PIECES NC | U8: Pieces REELLES | V8: Nombre des pieces à retoucher | W8: Cause de la non-conformité | X8: Effet de la non-conformité | Y8: Valeur de l'effet | Z8: NOMBRES D'HEURES SUIVANT LES PIECES REELLES | AA8: RENDEMENT | AB8: Fiche de contrôle qualité début de serie | AC8: Affutage | AD8: Gamme d'usingae | AE8: ALERTES | AF8: A | AG8: P | AH8: Q | AI8: OEE | AJ8: OEE
A9: A | B9: SST16 | C9: =IFERROR(VLOOKUP(D9,Pieces!A:B,2,0)," ") -> - | D9: Arrêt | E9: 0 | F9: 0 | G9: 0 | H9: 0 | I9: =IFERROR(VLOOKUP(D9,Pieces!A:C,3,0),"") -> 1 | J9: 1 | K9: =(F9-E9)*J9 -> 0 | L9: =(G9-F9)*J9 -> 0 | M9: =(H9-G9)*J9 -> 0 | N9: =IF(I9="","",K9/I9) -> 0 | O9: =IF(I9="","",L9/I9) -> 0 | P9: =IF(I9="","",M9/I9) -> 0 | Q9: 12 | S9: =U9+T9-K9-L9-M9 -> 0 | U9: =(K9+L9+M9)-T9-V9 -> 0 | Z9: =IF(OR(I9="",I9=0),0,(U9+T9)/I9) -> 0 | AA9: =IF(OR(Q9=0,I9=0),"",Z9/Q9*100) -> 0 | AE9: =IF(AA9>85," ","WARNING") -> WARNING | AF9: =(N9+O9+P9)/(Q9*3600) -> 0 | AG9: =((3600/I9)*U9)/(N9+O9+P9) ->  | AH9: =(U9-T9)/U9 ->  | AI9: =AF9*AG9*AH9 ->  | AJ9: =((U9-T9)*(3600/I9))/(Q9*3600) -> 0
A10: B | B10: SB16 | C10: =IFERROR(VLOOKUP(D10,Pieces!A:B,2,0)," ") -> G022-CP1 | D10: AXE D15-M11*100 maj-c | E10: 6862 | F10: 7494 | G10: 7150 | H10: 7262 | I10: =IFERROR(VLOOKUP(D10,Pieces!A:C,3,0),"") -> 46 | J10: 1 | K10: =(F10-E10)*J10 -> 632 | L10: =(G10-F10)*J10 -> -344 | M10: =(H10-G10)*J10 -> 112 | N10: =IF(I10="","",K10/I10) -> 13.73913043 | O10: =IF(I10="","",L10/I10) -> -7.47826087 | P10: =IF(I10="","",M10/I10) -> 2.434782609 | Q10: 12 | S10: =U10+T10-K10-L10-M10 -> 0 | U10: =(K10+L10+M10)-T10-V10 -> 400 | Z10: =IF(OR(I10="",I10=0),0,(U10+T10)/I10) -> 8.695652174 | AA10: =IF(OR(Q10=0,I10=0),"",Z10/Q10*100) -> 72.46376812 | AE10: =IF(AA10>85," ","WARNING") -> WARNING | AF10: =(N10+O10+P10)/(Q10*3600) -> 0.0002012882448 | AG10: =((3600/I10)*U10)/(N10+O10+P10) -> 3600 | AH10: =(U10-T10)/U10 -> 1 | AI10: =AF10*AG10*AH10 -> 0.7246376812 | AJ10: =((U10-T10)*(3600/I10))/(Q10*3600) -> 0.7246376812
A11: C | B11: BIGLIA 301 SM | C11: =IFERROR(VLOOKUP(D11,Pieces!A:B,2,0)," ") -> 0-5928A-1 | D11: Bague Galvanisée 14*22,9*54,2 | E11: 240 | F11: 428 | G11: 450 | H11: 450 | I11: =IFERROR(VLOOKUP(D11,Pieces!A:C,3,0),"") -> 30 | J11: 1 | K11: 188 | L11: 22 | M11: 0 | N11: 6.266666667 | O11: 0.7333333333 | P11: 0 | Q11: 12 | S11: =U11+T11-K11-L11-M11 -> 0 | U11: 210 | Z11: 7 | AA11: 58.33333333 | AE11: WARNING | AF11: 0.000162037037 | AG11: 3600 | AH11: 1 | AI11: 0.5833333333 | AJ11: 0.5833333333
A12: D | B12: BIGLIA 42 S2M bitourelle | C12: =IFERROR(VLOOKUP(D12,Pieces!A:B,2,0)," ") -> MI018-B42 | D12: GOUJON DE ROUE MITSIBITCHI GM-SUR-B42 | E12: 10124 | F12: 10343 | G12: 10343 | H12: 10418 | I12: =IFERROR(VLOOKUP(D12,Pieces!A:C,3,0),"") -> 55 | J12: 1 | K12: 219 | L12: 0 | M12: 75 | N12: 3.981818182 | O12: 0 | P12: 1.363636364 | Q12: 9 | S12: 0 | U12: 294 | Z12: 5.345454545 | AA12: 59.39393939 | AE12: WARNING | AF12: 0.000164983165 | AG12: 3600 | AH12: 1 | AI12: 0.5939393939 | AJ12: 0.5939393939
A13: E | B13: L32 | C13: =IFERROR(VLOOKUP(D13,Pieces!A:B,2,0)," ") -> 200200-2022 | D13: Embout de tige-2022 | E13: 4771 | F13: 4771 | G13: 4771 | H13: 4771 | I13: =IFERROR(VLOOKUP(D13,Pieces!A:C,3,0),"") -> 40 | J13: 1 | K13: 0 | L13: 0 | M13: 0 | N13: 0 | O13: 0 | P13: 0 | Q13: 12 | S13: 0 | U13: 0 | Z13: 0 | AA13: 0 | AE13: WARNING | AF13: 0 | AJ13: 0
A14: F | B14: TSUGAMI | C14: =IFERROR(VLOOKUP(D14,Pieces!A:B,2,0)," ") -> i097-tsughami | D14: ECROU DE ROUE FORD RANGER- finition rayon | E14: 0 | F14: 0 | G14: 0 | H14: 0 | I14: =IFERROR(VLOOKUP(D14,Pieces!A:C,3,0),"") -> 100 | J14: 1 | K14: 0 | L14: 0 | M14: 0 | N14: 0 | O14: 0 | P14: 0 | Q14: 7 | S14: 0 | U14: 0 | Z14: 0 | AA14: 0 | AE14: WARNING | AF14: 0 | AJ14: 0
A15: G | B15: Tour STAR SV-32-J | C15: =IFERROR(VLOOKUP(D15,Pieces!A:B,2,0)," ") -> 68.0815 | D15: Buse droite à collerette Ø8 M445 FRD | E15: 10761 | F15: 11155 | G15: 11270 | H15: 11430 | I15: =IFERROR(VLOOKUP(D15,Pieces!A:C,3,0),"") -> 60 | J15: 1 | K15: 394 | L15: 115 | M15: 160 | N15: 6.566666667 | O15: 1.916666667 | P15: 2.666666667 | Q15: 12 | S15: 0 | U15: 669 | Z15: 11.15 | AA15: 92.91666667 | AF15: 0.0002581018519 | AG15: 3600 | AH15: 1 | AI15: 0.9291666667 | AJ15: 0.9291666667
A16: H | B16: Tour CNC STAR SB avec embarreur LNS Express 220 | C16: =IFERROR(VLOOKUP(D16,Pieces!A:B,2,0)," ") -> 200300 | D16: TIGE DE PISTON | E16: 398 | F16: 504 | G16: 553 | H16: 621 | I16: =IFERROR(VLOOKUP(D16,Pieces!A:C,3,0),"") -> 36 | J16: 1 | K16: 106 | L16: 49 | M16: 68 | N16: 2.944444444 | O16: 1.361111111 | P16: 1.888888889 | Q16: 7 | S16: 0 | U16: 223 | Z16: 6.194444444 | AA16: 88.49206349 | AF16: 0.0002458112875 | AG16: 3600 | AH16: 1 | AI16: 0.8849206349 | AJ16: 0.8849206349
A17: I | B17: MULTIBROCHE | C17: =IFERROR(VLOOKUP(D17,Pieces!A:B,2,0)," ") -> MPS000300 | D17: raccord HEX 17 | E17: 0 | F17: 0 | G17: 0 | H17: 0 | I17: =IFERROR(VLOOKUP(D17,Pieces!A:C,3,0),"") -> 500 | J17: 1 | K17: 0 | L17: 0 | M17: 0 | N17: 0 | O17: 0 | P17: 0 | Q17: 7 | S17: 0 | U17: 0 | Z17: 0 | AA17: 0 | AE17: WARNING | AF17: 0 | AJ17: 0
A18: J | B18: Tour CNC WEILER UD 24 - 100 | C18: =IFERROR(VLOOKUP(D18,Pieces!A:B,2,0)," ") -> 4-7891 | D18: ANNEAU BRUTE 32*42*20 chuttes | E18: 0 | F18: 345 | G18: 345 | H18: 345 | I18: =IFERROR(VLOOKUP(D18,Pieces!A:C,3,0),"") -> 50 | J18: 1 | K18: 345 | L18: 0 | M18: 0 | N18: 6.9 | O18: 0 | P18: 0 | Q18: 7 | S18: 0 | U18: 345 | Z18: 6.9 | AA18: 98.57142857 | AF18: 0.0002738095238 | AG18: 3600 | AH18: 1 | AI18: 0.9857142857 | AJ18: 0.9857142857
A19: K | B19: TOUR WEILER | C19: =IFERROR(VLOOKUP(D19,Pieces!A:B,2,0)," ") -> 0-5280-1 | D19: Bague Galvanisée 12*20*40 -chutes | E19: 0 | F19: 300 | G19: 300 | H19: 300 | I19: =IFERROR(VLOOKUP(D19,Pieces!A:C,3,0),"") -> 60 | J19: 1 | K19: 300 | L19: 0 | M19: 0 | N19: 5 | O19: 0 | P19: 0 | Q19: 7 | S19: 0 | U19: 300 | Z19: 5 | AA19: 71.42857143 | AE19: WARNING | AF19: 0.0001984126984 | AG19: 3600 | AH19: 1 | AI19: 0.7142857143 | AJ19: 0.7142857143
A20: L | B20: NAKAMURA | C20: =IFERROR(VLOOKUP(D20,Pieces!A:B,2,0)," ") -> I007 | D20: ECROU SEMI ARBRE ISUZU | E20: 1776 | F20: 1912 | G20: 1912 | H20: 1912 | I20: =IFERROR(VLOOKUP(D20,Pieces!A:C,3,0),"") -> 30 | J20: 1 | K20: 136 | L20: 0 | M20: 0 | N20: 4.533333333 | O20: 0 | P20: 0 | Q20: 7 | S20: 0 | U20: 136 | Z20: 4.533333333 | AA20: 64.76190476 | AE20: WARNING | AF20: 0.0001798941799 | AG20: 3600 | AH20: 1 | AI20: 0.6476190476 | AJ20: 0.6476190476
A21: M | B21: MORI SEIKI 3 axes | C21: =IFERROR(VLOOKUP(D21,Pieces!A:B,2,0)," ") -> I110-01-004 | D21: INSERT LEVIER SURMOULEE 345833-01 - fraisage | E21: 1171 | F21: 1192 | G21: 1192 | H21: 1204 | I21: =IFERROR(VLOOKUP(D21,Pieces!A:C,3,0),"") -> 32 | J21: 9 | K21: 189 | L21: 0 | M21: 108 | N21: 5.90625 | O21: 0 | P21: 3.375 | Q21: 7 | S21: 0 | U21: 297 | Z21: 9.28125 | AA21: 132.5892857 | AF21: 0.0003683035714 | AG21: 3600 | AH21: 1 | AI21: 1.325892857 | AJ21: 1.325892857
A22: N | B22: MORI SEIKI 5 axes | C22: =IFERROR(VLOOKUP(D22,Pieces!A:B,2,0)," ") -> - | D22: Arrêt | E22: 0 | F22: 0 | G22: 0 | H22: 0 | I22: =IFERROR(VLOOKUP(D22,Pieces!A:C,3,0),"") -> 1 | J22: 20 | K22: 0 | L22: 0 | M22: 0 | N22: 0 | O22: 0 | P22: 0 | Q22: 7 | S22: 0 | U22: 0 | Z22: 0 | AA22: 0 | AE22: WARNING | AF22: 0 | AJ22: 0
A23: O | B23: HARDING | C23: =IFERROR(VLOOKUP(D23,Pieces!A:B,2,0)," ") -> 480387 | D23: Evacuation 2 et 3 | E23: 92 | F23: 102 | G23: 102 | H23: 102 | I23: =IFERROR(VLOOKUP(D23,Pieces!A:C,3,0),"") -> 25 | J23: 20 | K23: 200 | L23: 0 | M23: 0 | N23: 8 | O23: 0 | P23: 0 | Q23: 7 | S23: 0 | U23: 200 | Z23: 8 | AA23: 114.2857143 | AF23: 0.0003174603175 | AG23: 3600 | AH23: 1 | AI23: 1.142857143 | AJ23: 1.142857143
A24: P | B24: KITAMURA | C24: =IFERROR(VLOOKUP(D24,Pieces!A:B,2,0)," ") -> 9518-maj | D24: USINAGE BORNE RBD-1 | E24: 6220 | F24: 6420 | G24: 6420 | H24: 6420 | I24: =IFERROR(VLOOKUP(D24,Pieces!A:C,3,0),"") -> 300 | J24: 12 | K24: =(F24-E24)*J24 -> 2400 | L24: =(G24-F24)*J24 -> 0 | M24: =(H24-G24)*J24 -> 0 | N24: =IF(I24="","",K24/I24) -> 8 | O24: =IF(I24="","",L24/I24) -> 0 | P24: =IF(I24="","",M24/I24) -> 0 | Q24: 7 | S24: =U24+T24-K24-L24-M24 -> 0 | U24: =(K24+L24+M24)-T24-V24 -> 2400 | Z24: =IF(OR(I24="",I24=0),0,(U24+T24)/I24) -> 8 | AA24: =IF(OR(Q24=0,I24=0),"",Z24/Q24*100) -> 114.2857143 | AE24: =IF(AA24>85," ","WARNING") ->  | AF24: 0.0003174603175 | AG24: 3600 | AH24: 1 | AI24: 1.142857143 | AJ24: 1.142857143
S26: Taux de NC journalière | U26: =#REF!/#REF! -> 
J30: Approbateur:
J31: Date:
J32: Visa:

Sheet 07-4-22
A1: 07/04/2022 | Z1: CODE: DAS-PRO-16
Z2: DATE:30/08/2019
Z3: VERSION:07
Z4: PAGE:1
A8: SYMBOLE | B8: MACHINE | C8: REF ARTICLE | D8: DESIGNATION | E8: COMPTEUR AUJOURD’HUI à 8h | F8: COMPTEUR HIER à 17H | G8: COMPTEUR HIER à 22H | H8: COMPTEUR AUJOURD’HUI à 8h | I8: CADENCE | J8: NOMBRE DE PIECES FINIS PAR CYCLE | K8: PIECES SUIVANT COMPTEU 8h-->17h | L8: PIECES SUIVANT COMPTEUR 17H-->22H | M8: PIECES SUIVANT COMPTEUR 6h-->8h | N8: NOMBRE D'HEURES DE TRAVAIL 8h-->17h | O8: NOMBRE D'HEURES DE TRAVAIL 17H-->22H | P8: NOMBRE D'HEURES DE TRAVAIL 6h-->8h | Q8: NOMBRE D'HEURES DE TRAVAIL | R8: OBSERVATIONS | S8: Pieces manquantes | T8: PIECES NC | U8: Pieces REELLES | V8: Nombre des pieces à retoucher | W8: Cause de la non-conformité | X8: Effet de la non-conformité | Y8: Valeur de l'effet | Z8: NOMBRES D'HEURES SUIVANT LES PIECES REELLES | AA8: RENDEMENT | AB8: Fiche de contrôle qualité début de serie | AC8: Affutage | AD8: Gamme d'usingae | AE8: ALERTES | AF8: A | AG8: P | AH8: Q | AI8: OEE | AJ8: OEE
A9: A | B9: SST16 | C9: =IFERROR(VLOOKUP(D9,Pieces!A:B,2,0)," ") -> - | D9: Arrêt | E9: 0 | F9: 0 | G9: 0 | H9: 0 | I9: =IFERROR(VLOOKUP(D9,Pieces!A:C,3,0),"") -> 1 | J9: 1 | K9: =(F9-E9)*J9 -> 0 | L9: =(G9-F9)*J9 -> 0 | M9: =(H9-G9)*J9 -> 0 | N9: =IF(I9="","",K9/I9) -> 0 | O9: =IF(I9="","",L9/I9) -> 0 | P9: =IF(I9="","",M9/I9) -> 0 | Q9: 12 | S9: =U9+T9-K9-L9-M9 -> 0 | U9: =(K9+L9+M9)-T9-V9 -> 0 | Z9: =IF(OR(I9="",I9=0),0,(U9+T9)/I9) -> 0 | AA9: =IF(OR(Q9=0,I9=0),"",Z9/Q9*100) -> 0 | AE9: =IF(AA9>85," ","WARNING") -> WARNING | AF9: =(N9+O9+P9)/(Q9*3600) -> 0 | AG9: =((3600/I9)*U9)/(N9+O9+P9) ->  | AH9: =(U9-T9)/U9 ->  | AI9: =AF9*AG9*AH9 ->  | AJ9: =((U9-T9)*(3600/I9))/(Q9*3600) -> 0
A10: B | B10: SB16 | C10: =IFERROR(VLOOKUP(D10,Pieces!A:B,2,0)," ") -> G022-CP1 | D10: AXE D15-M11*100 maj-c | E10: 6470 | F10: 6687 | G10: 6750 | H10: 6862 | I10: =IFERROR(VLOOKUP(D10,Pieces!A:C,3,0),"") -> 46 | J10: 1 | K10: =(F10-E10)*J10 -> 217 | L10: =(G10-F10)*J10 -> 63 | M10: =(H10-G10)*J10 -> 112 | N10: =IF(I10="","",K10/I10) -> 4.717391304 | O10: =IF(I10="","",L10/I10) -> 1.369565217 | P10: =IF(I10="","",M10/I10) -> 2.434782609 | Q10: 12 | S10: =U10+T10-K10-L10-M10 -> 0 | U10: =(K10+L10+M10)-T10-V10 -> 392 | Z10: =IF(OR(I10="",I10=0),0,(U10+T10)/I10) -> 8.52173913 | AA10: =IF(OR(Q10=0,I10=0),"",Z10/Q10*100) -> 71.01449275 | AE10: =IF(AA10>85," ","WARNING") -> WARNING | AF10: =(N10+O10+P10)/(Q10*3600) -> 0.0001972624799 | AG10: =((3600/I10)*U10)/(N10+O10+P10) -> 3600 | AH10: =(U10-T10)/U10 -> 1 | AI10: =AF10*AG10*AH10 -> 0.7101449275 | AJ10: =((U10-T10)*(3600/I10))/(Q10*3600) -> 0.7101449275
A11: C | B11: BIGLIA 301 SM | C11: =IFERROR(VLOOKUP(D11,Pieces!A:B,2,0)," ") -> 0-5928A-1 | D11: Bague Galvanisée 14*22,9*54,2 | E11: 0 | F11: 103 | G11: 160 | H11: 240 | I11: =IFERROR(VLOOKUP(D11,Pieces!A:C,3,0),"") -> 30 | J11: 1 | K11: 103 | L11: 57 | M11: 80 | N11: 3.433333333 | O11: 1.9 | P11: 2.666666667 | Q11: 12 | S11: =U11+T11-K11-L11-M11 -> 0 | U11: 240 | Z11: 8 | AA11: 66.66666667 | AE11: WARNING | AF11: 0.0001851851852 | AG11: 3600 | AH11: 1 | AI11: 0.6666666667 | AJ11: 0.6666666667
A12: D | B12: BIGLIA 42 S2M bitourelle | C12: =IFERROR(VLOOKUP(D12,Pieces!A:B,2,0)," ") -> MI018-B42 | D12: GOUJON DE ROUE MITSIBITCHI GM-SUR-B42 | E12: 9810 | F12: 10040 | G12: 10040 | H12: 10124 | I12: =IFERROR(VLOOKUP(D12,Pieces!A:C,3,0),"") -> 55 | J12: 1 | K12: 230 | L12: 0 | M12: 84 | N12: 4.181818182 | O12: 0 | P12: 1.527272727 | Q12: 9 | S12: 0 | U12: 314 | Z12: 5.709090909 | AA12: 63.43434343 | AE12: WARNING | AF12: 0.0001762065095 | AG12: 3600 | AH12: 1 | AI12: 0.6343434343 | AJ12: 0.6343434343
A13: E | B13: L32 | C13: =IFERROR(VLOOKUP(D13,Pieces!A:B,2,0)," ") -> 200200-2022 | D13: Embout de tige-2022 | E13: 4771 | F13: 4771 | G13: 4771 | H13: 4771 | I13: =IFERROR(VLOOKUP(D13,Pieces!A:C,3,0),"") -> 40 | J13: 1 | K13: 0 | L13: 0 | M13: 0 | N13: 0 | O13: 0 | P13: 0 | Q13: 12 | S13: 0 | U13: 0 | Z13: 0 | AA13: 0 | AE13: WARNING | AF13: 0 | AJ13: 0
A14: F | B14: TSUGAMI | C14: =IFERROR(VLOOKUP(D14,Pieces!A:B,2,0)," ") -> i097-tsughami | D14: ECROU DE ROUE FORD RANGER- finition rayon | E14: 6576 | F14: 7063 | G14: 7063 | H14: 7063 | I14: =IFERROR(VLOOKUP(D14,Pieces!A:C,3,0),"") -> 100 | J14: 1 | K14: 487 | L14: 0 | M14: 0 | N14: 4.87 | O14: 0 | P14: 0 | Q14: 7 | S14: 0 | U14: 487 | Z14: 4.87 | AA14: 69.57142857 | AE14: WARNING | AF14: 0.0001932539683 | AG14: 3600 | AH14: 1 | AI14: 0.6957142857 | AJ14: 0.6957142857
A15: G | B15: Tour STAR SV-32-J | C15: =IFERROR(VLOOKUP(D15,Pieces!A:B,2,0)," ") -> 68.0815 | D15: Buse droite à collerette Ø8 M445 FRD | E15: 10138 | F15: 10500 | G15: 10597 | H15: 10761 | I15: =IFERROR(VLOOKUP(D15,Pieces!A:C,3,0),"") -> 60 | J15: 1 | K15: 362 | L15: 97 | M15: 164 | N15: 6.033333333 | O15: 1.616666667 | P15: 2.733333333 | Q15: 12 | S15: 0 | U15: 623 | Z15: 10.38333333 | AA15: 86.52777778 | AF15: 0.0002403549383 | AG15: 3600 | AH15: 1 | AI15: 0.8652777778 | AJ15: 0.8652777778
A16: H | B16: Tour CNC STAR SB avec embarreur LNS Express 220 | C16: =IFERROR(VLOOKUP(D16,Pieces!A:B,2,0)," ") -> 200300 | D16: TIGE DE PISTON | E16: 165 | F16: 310 | G16: 340 | H16: 398 | I16: =IFERROR(VLOOKUP(D16,Pieces!A:C,3,0),"") -> 36 | J16: 1 | K16: 145 | L16: 30 | M16: 58 | N16: 4.027777778 | O16: 0.8333333333 | P16: 1.611111111 | Q16: 7 | S16: 0 | U16: 233 | Z16: 6.472222222 | AA16: 92.46031746 | AF16: 0.0002568342152 | AG16: 3600 | AH16: 1 | AI16: 0.9246031746 | AJ16: 0.9246031746
A17: I | B17: MULTIBROCHE | C17: =IFERROR(VLOOKUP(D17,Pieces!A:B,2,0)," ") -> MPS000300 | D17: raccord HEX 17 | E17: 0 | F17: 0 | G17: 0 | H17: 0 | I17: =IFERROR(VLOOKUP(D17,Pieces!A:C,3,0),"") -> 500 | J17: 1 | K17: 0 | L17: 0 | M17: 0 | N17: 0 | O17: 0 | P17: 0 | Q17: 7 | S17: 0 | U17: 0 | Z17: 0 | AA17: 0 | AE17: WARNING | AF17: 0 | AJ17: 0
A18: J | B18: Tour CNC WEILER UD 24 - 100 | C18: =IFERROR(VLOOKUP(D18,Pieces!A:B,2,0)," ") -> 4-8748-1 | D18: Bague Galvaniée 38*40,4*28-chutes | E18: 36 | F18: 193 | G18: 193 | H18: 193 | I18: =IFERROR(VLOOKUP(D18,Pieces!A:C,3,0),"") -> 50 | J18: 1 | K18: 157 | L18: 0 | M18: 0 | N18: 3.14 | O18: 0 | P18: 0 | Q18: 7 | R18: AVEC 158 Piéces non finis | S18: 0 | U18: 157 | Z18: 3.14 | AA18: 44.85714286 | AE18: WARNING | AF18: 0.0001246031746 | AG18: 3600 | AH18: 1 | AI18: 0.4485714286 | AJ18: 0.4485714286
A19: K | B19: TOUR WEILER | C19: =IFERROR(VLOOKUP(D19,Pieces!A:B,2,0)," ") -> POMEL-P1 | D19: POMELLE-PIECE male | E19: 855 | F19: 1053 | G19: 1053 | H19: 1053 | I19: =IFERROR(VLOOKUP(D19,Pieces!A:C,3,0),"") -> 55 | J19: 1 | K19: 198 | L19: 0 | M19: 0 | N19: 3.6 | O19: 0 | P19: 0 | Q19: 7 | S19: 0 | U19: 198 | Z19: 3.6 | AA19: 51.42857143 | AE19: WARNING | AF19: 0.0001428571429 | AG19: 3600 | AH19: 1 | AI19: 0.5142857143 | AJ19: 0.5142857143
A20: L | B20: NAKAMURA | C20: =IFERROR(VLOOKUP(D20,Pieces!A:B,2,0)," ") -> I007 | D20: ECROU SEMI ARBRE ISUZU | E20: 1648 | F20: 1776 | G20: 1776 | H20: 1776 | I20: =IFERROR(VLOOKUP(D20,Pieces!A:C,3,0),"") -> 30 | J20: 1 | K20: 128 | L20: 0 | M20: 0 | N20: 4.266666667 | O20: 0 | P20: 0 | Q20: 7 | S20: 0 | U20: 128 | Z20: 4.266666667 | AA20: 60.95238095 | AE20: WARNING | AF20: 0.0001693121693 | AG20: 3600 | AH20: 1 | AI20: 0.6095238095 | AJ20: 0.6095238095
A21: M | B21: MORI SEIKI 3 axes | C21: =IFERROR(VLOOKUP(D21,Pieces!A:B,2,0)," ") -> I110-01-004 | D21: INSERT LEVIER SURMOULEE 345833-01 - fraisage | E21: 1148 | F21: 1171 | G21: 1171 | H21: 1171 | I21: =IFERROR(VLOOKUP(D21,Pieces!A:C,3,0),"") -> 32 | J21: 9 | K21: 207 | L21: 0 | M21: 0 | N21: 6.46875 | O21: 0 | P21: 0 | Q21: 7 | S21: 0 | U21: 207 | Z21: 6.46875 | AA21: 92.41071429 | AF21: 0.0002566964286 | AG21: 3600 | AH21: 1 | AI21: 0.9241071429 | AJ21: 0.9241071429
A22: N | B22: MORI SEIKI 5 axes | C22: =IFERROR(VLOOKUP(D22,Pieces!A:B,2,0)," ") -> - | D22: Arrêt | E22: 0 | F22: 0 | G22: 0 | H22: 0 | I22: =IFERROR(VLOOKUP(D22,Pieces!A:C,3,0),"") -> 1 | J22: 20 | K22: 0 | L22: 0 | M22: 0 | N22: 0 | O22: 0 | P22: 0 | Q22: 7 | S22: 0 | U22: 0 | Z22: 0 | AA22: 0 | AE22: WARNING | AF22: 0 | AJ22: 0
A23: O | B23: HARDING | C23: =IFERROR(VLOOKUP(D23,Pieces!A:B,2,0)," ") -> 480387 | D23: Evacuation 2 et 3 | E23: 84 | F23: 89 | G23: 90 | H23: 92 | I23: =IFERROR(VLOOKUP(D23,Pieces!A:C,3,0),"") -> 25 | J23: 20 | K23: 100 | L23: 20 | M23: 40 | N23: 4 | O23: 0.8 | P23: 1.6 | Q23: 7 | S23: 0 | U23: 160 | Z23: 6.4 | AA23: 91.42857143 | AF23: 0.000253968254 | AG23: 3600 | AH23: 1 | AI23: 0.9142857143 | AJ23: 0.9142857143
A24: P | B24: KITAMURA | C24: =IFERROR(VLOOKUP(D24,Pieces!A:B,2,0)," ") -> 9518-maj | D24: USINAGE BORNE RBD-1 | E24: 6065 | F24: 6220 | G24: 6220 | H24: 6220 | I24: =IFERROR(VLOOKUP(D24,Pieces!A:C,3,0),"") -> 300 | J24: 12 | K24: =(F24-E24)*J24 -> 1860 | L24: =(G24-F24)*J24 -> 0 | M24: =(H24-G24)*J24 -> 0 | N24: =IF(I24="","",K24/I24) -> 6.2 | O24: =IF(I24="","",L24/I24) -> 0 | P24: =IF(I24="","",M24/I24) -> 0 | Q24: 7 | S24: =U24+T24-K24-L24-M24 -> 0 | U24: =(K24+L24+M24)-T24-V24 -> 1860 | Z24: =IF(OR(I24="",I24=0),0,(U24+T24)/I24) -> 6.2 | AA24: =IF(OR(Q24=0,I24=0),"",Z24/Q24*100) -> 88.57142857 | AE24: =IF(AA24>85," ","WARNING") ->  | AF24: 0.000246031746 | AG24: 3600 | AH24: 1 | AI24: 0.8857142857 | AJ24: 0.8857142857
S26: Taux de NC journalière | U26: =#REF!/#REF! -> 
J30: Approbateur:
J31: Date:
J32: Visa:

Sheet 06-4-22
A1: 06-04-2022 | Z1: CODE: DAS-PRO-16
Z2: DATE:30/08/2019
Z3: VERSION:07
Z4: PAGE:1
A8: SYMBOLE | B8: MACHINE | C8: REF ARTICLE | D8: DESIGNATION | E8: COMPTEUR AUJOURD’HUI à 8h | F8: COMPTEUR HIER à 17H | G8: COMPTEUR HIER à 22H | H8: COMPTEUR AUJOURD’HUI à 8h | I8: CADENCE | J8: NOMBRE DE PIECES FINIS PAR CYCLE | K8: PIECES SUIVANT COMPTEU 8h-->17h | L8: PIECES SUIVANT COMPTEUR 17H-->22H | M8: PIECES SUIVANT COMPTEUR 6h-->8h | N8: NOMBRE D'HEURES DE TRAVAIL 8h-->17h | O8: NOMBRE D'HEURES DE TRAVAIL 17H-->22H | P8: NOMBRE D'HEURES DE TRAVAIL 6h-->8h | Q8: NOMBRE D'HEURES DE TRAVAIL | R8: OBSERVATIONS | S8: Pieces manquantes | T8: PIECES NC | U8: Pieces REELLES | V8: Nombre des pieces à retoucher | W8: Cause de la non-conformité | X8: Effet de la non-conformité | Y8: Valeur de l'effet | Z8: NOMBRES D'HEURES SUIVANT LES PIECES REELLES | AA8: RENDEMENT | AB8: Fiche de contrôle qualité début de serie | AC8: Affutage | AD8: Gamme d'usingae | AE8: ALERTES | AF8: A | AG8: P | AH8: Q | AI8: OEE | AJ8: OEE
A9: A | B9: SST16 | C9: =IFERROR(VLOOKUP(D9,Pieces!A:B,2,0)," ") -> - | D9: Arrêt | E9: 0 | F9: 0 | G9: 0 | H9: 0 | I9: =IFERROR(VLOOKUP(D9,Pieces!A:C,3,0),"") -> 1 | J9: 1 | K9: =(F9-E9)*J9 -> 0 | L9: =(G9-F9)*J9 -> 0 | M9: =(H9-G9)*J9 -> 0 | N9: =IF(I9="","",K9/I9) -> 0 | O9: =IF(I9="","",L9/I9) -> 0 | P9: =IF(I9="","",M9/I9) -> 0 | Q9: 12 | R9: jj | S9: =U9+T9-K9-L9-M9 -> 0 | U9: =(K9+L9+M9)-T9-V9 -> 0 | Z9: =IF(OR(I9="",I9=0),0,(U9+T9)/I9) -> 0 | AA9: =IF(OR(Q9=0,I9=0),"",Z9/Q9*100) -> 0 | AE9: =IF(AA9>85," ","WARNING") -> WARNING | AF9: =(N9+O9+P9)/(Q9*3600) -> 0 | AG9: =((3600/I9)*U9)/(N9+O9+P9) ->  | AH9: =(U9-T9)/U9 ->  | AI9: =AF9*AG9*AH9 ->  | AJ9: =((U9-T9)*(3600/I9))/(Q9*3600) -> 0
A10: B | B10: SB16 | C10: =IFERROR(VLOOKUP(D10,Pieces!A:B,2,0)," ") -> G022-CP1 | D10: AXE D15-M11*100 maj-c | E10: 6050 | F10: 6290 | G10: 6363 | H10: 6470 | I10: =IFERROR(VLOOKUP(D10,Pieces!A:C,3,0),"") -> 46 | J10: 1 | K10: =(F10-E10)*J10 -> 240 | L10: =(G10-F10)*J10 -> 73 | M10: =(H10-G10)*J10 -> 107 | N10: =IF(I10="","",K10/I10) -> 5.217391304 | O10: =IF(I10="","",L10/I10) -> 1.586956522 | P10: =IF(I10="","",M10/I10) -> 2.326086957 | Q10: 12 | S10: =U10+T10-K10-L10-M10 -> 0 | U10: =(K10+L10+M10)-T10-V10 -> 420 | Z10: =IF(OR(I10="",I10=0),0,(U10+T10)/I10) -> 9.130434783 | AA10: =IF(OR(Q10=0,I10=0),"",Z10/Q10*100) -> 76.08695652 | AE10: =IF(AA10>85," ","WARNING") -> WARNING | AF10: =(N10+O10+P10)/(Q10*3600) -> 0.000211352657 | AG10: =((3600/I10)*U10)/(N10+O10+P10) -> 3600 | AH10: =(U10-T10)/U10 -> 1 | AI10: =AF10*AG10*AH10 -> 0.7608695652 | AJ10: =((U10-T10)*(3600/I10))/(Q10*3600) -> 0.7608695652
A11: C | B11: BIGLIA 301 SM | C11: =IFERROR(VLOOKUP(D11,Pieces!A:B,2,0)," ") -> 230500 | D11: BRAS DE MANOEUVRE G MAN | E11: 2930 | F11: 3066 | G11: 3066 | H11: 3070 | I11: =IFERROR(VLOOKUP(D11,Pieces!A:C,3,0),"") -> 20 | J11: 1 | K11: 136 | L11: 0 | M11: 4 | N11: 6.8 | O11: 0 | P11: 0.2 | Q11: 12 | S11: =U11+T11-K11-L11-M11 -> 0 | U11: 140 | Z11: 7 | AA11: 58.33333333 | AE11: WARNING | AF11: 0.000162037037 | AG11: 3600 | AH11: 1 | AI11: 0.5833333333 | AJ11: 0.5833333333
A12: D | B12: BIGLIA 42 S2M bitourelle | C12: =IFERROR(VLOOKUP(D12,Pieces!A:B,2,0)," ") -> MI018-B42 | D12: GOUJON DE ROUE MITSIBITCHI GM-SUR-B42 | E12: 9525 | F12: 9731 | G12: 9731 | H12: 9810 | I12: =IFERROR(VLOOKUP(D12,Pieces!A:C,3,0),"") -> 55 | J12: 1 | K12: 206 | L12: 0 | M12: 79 | N12: 3.745454545 | O12: 0 | P12: 1.436363636 | Q12: 9 | S12: 0 | U12: 285 | Z12: 5.181818182 | AA12: 57.57575758 | AE12: WARNING | AF12: 0.0001599326599 | AG12: 3600 | AH12: 1 | AI12: 0.5757575758 | AJ12: 0.5757575758
A13: E | B13: L32 | C13: =IFERROR(VLOOKUP(D13,Pieces!A:B,2,0)," ") -> 200200-2022 | D13: Embout de tige-2022 | E13: 4771 | F13: 4771 | G13: 4771 | H13: 4771 | I13: =IFERROR(VLOOKUP(D13,Pieces!A:C,3,0),"") -> 40 | J13: 1 | K13: 0 | L13: 0 | M13: 0 | N13: 0 | O13: 0 | P13: 0 | Q13: 12 | S13: 0 | U13: 0 | Z13: 0 | AA13: 0 | AE13: WARNING | AF13: 0 | AJ13: 0
A14: F | B14: TSUGAMI | C14: =IFERROR(VLOOKUP(D14,Pieces!A:B,2,0)," ") -> i097-tsughami | D14: ECROU DE ROUE FORD RANGER- finition rayon | E14: 6153 | F14: 6576 | G14: 6576 | H14: 6576 | I14: =IFERROR(VLOOKUP(D14,Pieces!A:C,3,0),"") -> 100 | J14: 1 | K14: 423 | L14: 0 | M14: 0 | N14: 4.23 | O14: 0 | P14: 0 | Q14: 7 | S14: 0 | U14: 423 | Z14: 4.23 | AA14: 60.42857143 | AE14: WARNING | AF14: 0.0001678571429 | AG14: 3600 | AH14: 1 | AI14: 0.6042857143 | AJ14: 0.6042857143
A15: G | B15: Tour STAR SV-32-J | C15: =IFERROR(VLOOKUP(D15,Pieces!A:B,2,0)," ") -> 68.0815 | D15: Buse droite à collerette Ø8 M445 FRD | E15: 9610 | F15: 9930 | G15: 10010 | H15: 10138 | I15: =IFERROR(VLOOKUP(D15,Pieces!A:C,3,0),"") -> 60 | J15: 1 | K15: 320 | L15: 80 | M15: 128 | N15: 5.333333333 | O15: 1.333333333 | P15: 2.133333333 | Q15: 12 | S15: 0 | U15: 528 | Z15: 8.8 | AA15: 73.33333333 | AE15: WARNING | AF15: 0.0002037037037 | AG15: 3600 | AH15: 1 | AI15: 0.7333333333 | AJ15: 0.7333333333
A16: H | B16: Tour CNC STAR SB avec embarreur LNS Express 220 | C16: =IFERROR(VLOOKUP(D16,Pieces!A:B,2,0)," ") -> 200300 | D16: TIGE DE PISTON | E16: 0 | F16: 69 | G16: 114 | H16: 165 | I16: =IFERROR(VLOOKUP(D16,Pieces!A:C,3,0),"") -> 36 | J16: 1 | K16: 69 | L16: 45 | M16: 51 | N16: 1.916666667 | O16: 1.25 | P16: 1.416666667 | Q16: 7 | S16: 0 | U16: 165 | Z16: 4.583333333 | AA16: 65.47619048 | AE16: WARNING | AF16: 0.0001818783069 | AG16: 3600 | AH16: 1 | AI16: 0.6547619048 | AJ16: 0.6547619048
A17: I | B17: MULTIBROCHE | C17: =IFERROR(VLOOKUP(D17,Pieces!A:B,2,0)," ") -> MPS000300 | D17: raccord HEX 17 | E17: 0 | F17: 0 | G17: 0 | H17: 0 | I17: =IFERROR(VLOOKUP(D17,Pieces!A:C,3,0),"") -> 500 | J17: 1 | K17: 0 | L17: 0 | M17: 0 | N17: 0 | O17: 0 | P17: 0 | Q17: 7 | S17: 0 | U17: 0 | Z17: 0 | AA17: 0 | AE17: WARNING | AF17: 0 | AJ17: 0
A18: J | B18: Tour CNC WEILER UD 24 - 100 | C18: =IFERROR(VLOOKUP(D18,Pieces!A:B,2,0)," ") -> 4-8748-1 | D18: Bague Galvaniée 38*40,4*28-chutes | E18: 0 | F18: 36 | G18: 36 | H18: 36 | I18: =IFERROR(VLOOKUP(D18,Pieces!A:C,3,0),"") -> 50 | J18: 1 | K18: 36 | L18: 0 | M18: 0 | N18: 0.72 | O18: 0 | P18: 0 | Q18: 7 | S18: 0 | U18: 36 | Z18: 0.72 | AA18: 10.28571429 | AE18: WARNING | AF18: 2.857142857e-05 | AG18: 3600 | AH18: 1 | AI18: 0.1028571429 | AJ18: 0.1028571429
A19: K | B19: TOUR WEILER | C19: =IFERROR(VLOOKUP(D19,Pieces!A:B,2,0)," ") -> POMEL-P1 | D19: POMELLE-PIECE male | E19: 668 | F19: 855 | G19: 855 | H19: 855 | I19: =IFERROR(VLOOKUP(D19,Pieces!A:C,3,0),"") -> 55 | J19: 1 | K19: 187 | L19: 0 | M19: 0 | N19: 3.4 | O19: 0 | P19: 0 | Q19: 7 | S19: 0 | U19: 187 | Z19: 3.4 | AA19: 48.57142857 | AE19: WARNING | AF19: 0.0001349206349 | AG19: 3600 | AH19: 1 | AI19: 0.4857142857 | AJ19: 0.4857142857
A20: L | B20: NAKAMURA | C20: =IFERROR(VLOOKUP(D20,Pieces!A:B,2,0)," ") -> I007 | D20: ECROU SEMI ARBRE ISUZU | E20: 1537 | F20: 1648 | G20: 1648 | H20: 1648 | I20: =IFERROR(VLOOKUP(D20,Pieces!A:C,3,0),"") -> 30 | J20: 1 | K20: 111 | L20: 0 | M20: 0 | N20: 3.7 | O20: 0 | P20: 0 | Q20: 7 | S20: 0 | U20: 111 | Z20: 3.7 | AA20: 52.85714286 | AE20: WARNING | AF20: 0.0001468253968 | AG20: 3600 | AH20: 1 | AI20: 0.5285714286 | AJ20: 0.5285714286
A21: M | B21: MORI SEIKI 3 axes | C21: =IFERROR(VLOOKUP(D21,Pieces!A:B,2,0)," ") -> I110-01-004 | D21: INSERT LEVIER SURMOULEE 345833-01 - fraisage | E21: 1135 | F21: 1148 | G21: 1148 | H21: 1148 | I21: =IFERROR(VLOOKUP(D21,Pieces!A:C,3,0),"") -> 32 | J21: 9 | K21: 117 | L21: 0 | M21: 0 | N21: 3.65625 | O21: 0 | P21: 0 | Q21: 7 | S21: 0 | U21: 117 | Z21: 3.65625 | AA21: 52.23214286 | AE21: WARNING | AF21: 0.0001450892857 | AG21: 3600 | AH21: 1 | AI21: 0.5223214286 | AJ21: 0.5223214286
A22: N | B22: MORI SEIKI 5 axes | C22: =IFERROR(VLOOKUP(D22,Pieces!A:B,2,0)," ") -> - | D22: Arrêt | E22: 0 | F22: 0 | G22: 0 | H22: 0 | I22: =IFERROR(VLOOKUP(D22,Pieces!A:C,3,0),"") -> 1 | J22: 20 | K22: 0 | L22: 0 | M22: 0 | N22: 0 | O22: 0 | P22: 0 | Q22: 7 | S22: 0 | U22: 0 | Z22: 0 | AA22: 0 | AE22: WARNING | AF22: 0 | AJ22: 0
A23: O | B23: HARDING | C23: =IFERROR(VLOOKUP(D23,Pieces!A:B,2,0)," ") -> 480387 | D23: Evacuation 2 et 3 | E23: 76 | F23: 81 | G23: 82 | H23: 84 | I23: =IFERROR(VLOOKUP(D23,Pieces!A:C,3,0),"") -> 25 | J23: 20 | K23: 100 | L23: 20 | M23: 40 | N23: 4 | O23: 0.8 | P23: 1.6 | Q23: 7 | S23: 0 | U23: 160 | Z23: 6.4 | AA23: 91.42857143 | AF23: 0.000253968254 | AG23: 3600 | AH23: 1 | AI23: 0.9142857143 | AJ23: 0.9142857143
A24: P | B24: KITAMURA | C24: =IFERROR(VLOOKUP(D24,Pieces!A:B,2,0)," ") -> 9518-maj | D24: USINAGE BORNE RBD-1 | E24: 5863 | F24: 6028 | G24: 6028 | H24: 6065 | I24: =IFERROR(VLOOKUP(D24,Pieces!A:C,3,0),"") -> 300 | J24: 12 | K24: =(F24-E24)*J24 -> 1980 | L24: =(G24-F24)*J24 -> 0 | M24: =(H24-G24)*J24 -> 444 | N24: =IF(I24="","",K24/I24) -> 6.6 | O24: =IF(I24="","",L24/I24) -> 0 | P24: =IF(I24="","",M24/I24) -> 1.48 | Q24: 7 | S24: =U24+T24-K24-L24-M24 -> 0 | U24: =(K24+L24+M24)-T24-V24 -> 2424 | Z24: =IF(OR(I24="",I24=0),0,(U24+T24)/I24) -> 8.08 | AA24: =IF(OR(Q24=0,I24=0),"",Z24/Q24*100) -> 115.4285714 | AE24: =IF(AA24>85," ","WARNING") ->  | AF24: 0.0003206349206 | AG24: 3600 | AH24: 1 | AI24: 1.154285714 | AJ24: 1.154285714
J30: Approbateur:
J31: Date:
J32: Visa:

Sheet 05-4-22
A1: 05-04-2022 | Z1: CODE: DAS-PRO-16
Z2: DATE:30/08/2019
Z3: VERSION:07
Z4: PAGE:1
A8: SYMBOLE | B8: MACHINE | C8: REF ARTICLE | D8: DESIGNATION | E8: COMPTEUR AUJOURD’HUI à 8h | F8: COMPTEUR HIER à 17H | G8: COMPTEUR HIER à 22H | H8: COMPTEUR AUJOURD’HUI à 8h | I8: CADENCE | J8: NOMBRE DE PIECES FINIS PAR CYCLE | K8: PIECES SUIVANT COMPTEU 8h-->17h | L8: PIECES SUIVANT COMPTEUR 17H-->22H | M8: PIECES SUIVANT COMPTEUR 6h-->8h | N8: NOMBRE D'HEURES DE TRAVAIL 8h-->17h | O8: NOMBRE D'HEURES DE TRAVAIL 17H-->22H | P8: NOMBRE D'HEURES DE TRAVAIL 6h-->8h | Q8: NOMBRE D'HEURES DE TRAVAIL | R8: OBSERVATIONS | S8: Pieces manquantes | T8: PIECES NC | U8: Pieces REELLES | V8: Nombre des pieces à retoucher | W8: Cause de la non-conformité | X8: Effet de la non-conformité | Y8: Valeur de l'effet | Z8: NOMBRES D'HEURES SUIVANT LES PIECES REELLES | AA8: RENDEMENT | AB8: Fiche de contrôle qualité début de serie | AC8: Affutage | AD8: Gamme d'usingae | AE8: ALERTES | AF8: A | AG8: P | AH8: Q | AI8: OEE | AJ8: OEE
A9: A | B9: SST16 | C9: =IFERROR(VLOOKUP(D9,Pieces!A:B,2,0)," ") -> - | D9: Arrêt | E9: 0 | F9: 0 | G9: 0 | H9: 0 | I9: =IFERROR(VLOOKUP(D9,Pieces!A:C,3,0),"") -> 1 | J9: 1 | K9: =(F9-E9)*J9 -> 0 | L9: =(G9-F9)*J9 -> 0 | M9: =(H9-G9)*J9 -> 0 | N9: =IF(I9="","",K9/I9) -> 0 | O9: =IF(I9="","",L9/I9) -> 0 | P9: =IF(I9="","",M9/I9) -> 0 | Q9: 12 | S9: =U9+T9-K9-L9-M9 -> 0 | U9: =(K9+L9+M9)-T9-V9 -> 0 | Z9: =IF(OR(I9="",I9=0),0,(U9+T9)/I9) -> 0 | AA9: =IF(OR(Q9=0,I9=0),"",Z9/Q9*100) -> 0 | AE9: =IF(AA9>85," ","WARNING") -> WARNING | AF9: =(N9+O9+P9)/(Q9*3600) -> 0 | AG9: =((3600/I9)*U9)/(N9+O9+P9) ->  | AH9: =(U9-T9)/U9 ->  | AI9: =AF9*AG9*AH9 ->  | AJ9: =((U9-T9)*(3600/I9))/(Q9*3600) -> 0
A10: B | B10: SB16 | C10: =IFERROR(VLOOKUP(D10,Pieces!A:B,2,0)," ") -> G022-CP1 | D10: AXE D15-M11*100 maj-c | E10: 5634 | F10: 5877 | G10: 5950 | H10: 6050 | I10: =IFERROR(VLOOKUP(D10,Pieces!A:C,3,0),"") -> 46 | J10: 1 | K10: =(F10-E10)*J10 -> 243 | L10: =(G10-F10)*J10 -> 73 | M10: =(H10-G10)*J10 -> 100 | N10: =IF(I10="","",K10/I10) -> 5.282608696 | O10: =IF(I10="","",L10/I10) -> 1.586956522 | P10: =IF(I10="","",M10/I10) -> 2.173913043 | Q10: 12 | S10: =U10+T10-K10-L10-M10 -> 0 | U10: =(K10+L10+M10)-T10-V10 -> 416 | Z10: =IF(OR(I10="",I10=0),0,(U10+T10)/I10) -> 9.043478261 | AA10: =IF(OR(Q10=0,I10=0),"",Z10/Q10*100) -> 75.36231884 | AE10: =IF(AA10>85," ","WARNING") -> WARNING | AF10: =(N10+O10+P10)/(Q10*3600) -> 0.0002093397746 | AG10: =((3600/I10)*U10)/(N10+O10+P10) -> 3600 | AH10: =(U10-T10)/U10 -> 1 | AI10: =AF10*AG10*AH10 -> 0.7536231884 | AJ10: =((U10-T10)*(3600/I10))/(Q10*3600) -> 0.7536231884
A11: C | B11: BIGLIA 301 SM | C11: =IFERROR(VLOOKUP(D11,Pieces!A:B,2,0)," ") -> 230500 | D11: BRAS DE MANOEUVRE G MAN | E11: 2691 | F11: 2840 | G11: 2876 | H11: 2930 | I11: =IFERROR(VLOOKUP(D11,Pieces!A:C,3,0),"") -> 20 | J11: 1 | K11: 149 | L11: 36 | M11: 54 | N11: 7.45 | O11: 1.8 | P11: 2.7 | Q11: 12 | S11: =U11+T11-K11-L11-M11 -> 0 | U11: 239 | Z11: 11.95 | AA11: 99.58333333 | AF11: 0.0002766203704 | AG11: 3600 | AH11: 1 | AI11: 0.9958333333 | AJ11: 0.9958333333
A12: D | B12: BIGLIA 42 S2M bitourelle | C12: =IFERROR(VLOOKUP(D12,Pieces!A:B,2,0)," ") -> MI018-B42 | D12: GOUJON DE ROUE MITSIBITCHI GM-SUR-B42 | E12: 9214 | F12: 9454 | G12: 9454 | H12: 9525 | I12: =IFERROR(VLOOKUP(D12,Pieces!A:C,3,0),"") -> 55 | J12: 1 | K12: 240 | L12: 0 | M12: 71 | N12: 4.363636364 | O12: 0 | P12: 1.290909091 | Q12: 9 | S12: 0 | U12: 311 | Z12: 5.654545455 | AA12: 62.82828283 | AE12: WARNING | AF12: 0.0001745230079 | AG12: 3600 | AH12: 1 | AI12: 0.6282828283 | AJ12: 0.6282828283
A13: E | B13: L32 | C13: =IFERROR(VLOOKUP(D13,Pieces!A:B,2,0)," ") -> 200200-2022 | D13: Embout de tige-2022 | E13: 4771 | F13: 4771 | G13: 4771 | H13: 4771 | I13: =IFERROR(VLOOKUP(D13,Pieces!A:C,3,0),"") -> 40 | J13: 1 | K13: 0 | L13: 0 | M13: 0 | N13: 0 | O13: 0 | P13: 0 | Q13: 12 | S13: 0 | U13: 0 | Z13: 0 | AA13: 0 | AE13: WARNING | AF13: 0 | AJ13: 0
A14: F | B14: TSUGAMI | C14: =IFERROR(VLOOKUP(D14,Pieces!A:B,2,0)," ") -> i097-tsughami | D14: ECROU DE ROUE FORD RANGER- finition rayon | E14: 5727 | F14: 6153 | G14: 6153 | H14: 6153 | I14: =IFERROR(VLOOKUP(D14,Pieces!A:C,3,0),"") -> 100 | J14: 1 | K14: 426 | L14: 0 | M14: 0 | N14: 4.26 | O14: 0 | P14: 0 | Q14: 7 | S14: 0 | U14: 426 | Z14: 4.26 | AA14: 60.85714286 | AE14: WARNING | AF14: 0.000169047619 | AG14: 3600 | AH14: 1 | AI14: 0.6085714286 | AJ14: 0.6085714286
A15: G | B15: Tour STAR SV-32-J | C15: =IFERROR(VLOOKUP(D15,Pieces!A:B,2,0)," ") -> 68.0815 | D15: Buse droite à collerette Ø8 M445 FRD | E15: 9070 | F15: 9360 | G15: 9465 | H15: 9610 | I15: =IFERROR(VLOOKUP(D15,Pieces!A:C,3,0),"") -> 60 | J15: 1 | K15: 290 | L15: 105 | M15: 145 | N15: 4.833333333 | O15: 1.75 | P15: 2.416666667 | Q15: 12 | S15: 0 | U15: 540 | Z15: 9 | AA15: 75 | AE15: WARNING | AF15: 0.0002083333333 | AG15: 3600 | AH15: 1 | AI15: 0.75 | AJ15: 0.75
A16: H | B16: Tour CNC STAR SB avec embarreur LNS Express 220 | C16: =IFERROR(VLOOKUP(D16,Pieces!A:B,2,0)," ") -> outi-plot | D16: plot nez de marche | E16: 0 | F16: 0 | G16: 0 | H16: 0 | I16: =IFERROR(VLOOKUP(D16,Pieces!A:C,3,0),"") -> 75 | J16: 1 | K16: 0 | L16: 0 | M16: 0 | N16: 0 | O16: 0 | P16: 0 | Q16: 7 | S16: 0 | U16: 0 | Z16: 0 | AA16: 0 | AE16: WARNING | AF16: 0 | AJ16: 0
A17: I | B17: MULTIBROCHE | C17: =IFERROR(VLOOKUP(D17,Pieces!A:B,2,0)," ") -> MPS000300 | D17: raccord HEX 17 | E17: 0 | F17: 0 | G17: 0 | H17: 0 | I17: =IFERROR(VLOOKUP(D17,Pieces!A:C,3,0),"") -> 500 | J17: 1 | K17: 0 | L17: 0 | M17: 0 | N17: 0 | O17: 0 | P17: 0 | Q17: 7 | S17: 0 | U17: 0 | Z17: 0 | AA17: 0 | AE17: WARNING | AF17: 0 | AJ17: 0
A18: J | B18: Tour CNC WEILER UD 24 - 100 | C18: =IFERROR(VLOOKUP(D18,Pieces!A:B,2,0)," ") -> 0-5280-1 | D18: Bague Galvanisée 12*20*40 -chutes | E18: 468 | F18: 951 | G18: 951 | H18: 951 | I18: =IFERROR(VLOOKUP(D18,Pieces!A:C,3,0),"") -> 60 | J18: 1 | K18: 483 | L18: 0 | M18: 0 | N18: 8.05 | O18: 0 | P18: 0 | Q18: 7 | S18: 0 | U18: 483 | Z18: 8.05 | AA18: 115 | AF18: 0.0003194444444 | AG18: 3600 | AH18: 1 | AI18: 1.15 | AJ18: 1.15
A19: K | B19: TOUR WEILER | C19: =IFERROR(VLOOKUP(D19,Pieces!A:B,2,0)," ") -> POMEL-P1 | D19: POMELLE-PIECE male | E19: 513 | F19: 668 | G19: 668 | H19: 668 | I19: =IFERROR(VLOOKUP(D19,Pieces!A:C,3,0),"") -> 55 | J19: 1 | K19: 155 | L19: 0 | M19: 0 | N19: 2.818181818 | O19: 0 | P19: 0 | Q19: 7 | S19: 0 | U19: 155 | Z19: 2.818181818 | AA19: 40.25974026 | AE19: WARNING | AF19: 0.0001118326118 | AG19: 3600 | AH19: 1 | AI19: 0.4025974026 | AJ19: 0.4025974026
A20: L | B20: NAKAMURA | C20: =IFERROR(VLOOKUP(D20,Pieces!A:B,2,0)," ") -> I007 | D20: ECROU SEMI ARBRE ISUZU | E20: 1408 | F20: 1537 | G20: 1537 | H20: 1537 | I20: =IFERROR(VLOOKUP(D20,Pieces!A:C,3,0),"") -> 30 | J20: 1 | K20: 129 | L20: 0 | M20: 0 | N20: 4.3 | O20: 0 | P20: 0 | Q20: 7 | S20: 0 | U20: 129 | Z20: 4.3 | AA20: 61.42857143 | AE20: WARNING | AF20: 0.0001706349206 | AG20: 3600 | AH20: 1 | AI20: 0.6142857143 | AJ20: 0.6142857143
A21: M | B21: MORI SEIKI 3 axes | C21: =IFERROR(VLOOKUP(D21,Pieces!A:B,2,0)," ") -> I110-01-004 | D21: INSERT LEVIER SURMOULEE 345833-01 - fraisage | E21: 1116 | F21: 1135 | G21: 1135 | H21: 1135 | I21: =IFERROR(VLOOKUP(D21,Pieces!A:C,3,0),"") -> 32 | J21: 9 | K21: 171 | L21: 0 | M21: 0 | N21: 5.34375 | O21: 0 | P21: 0 | Q21: 7 | S21: 0 | U21: 171 | Z21: 5.34375 | AA21: 76.33928571 | AE21: WARNING | AF21: 0.0002120535714 | AG21: 3600 | AH21: 1 | AI21: 0.7633928571 | AJ21: 0.7633928571
A22: N | B22: MORI SEIKI 5 axes | C22: =IFERROR(VLOOKUP(D22,Pieces!A:B,2,0)," ") -> - | D22: Arrêt | E22: 0 | F22: 0 | G22: 0 | H22: 0 | I22: =IFERROR(VLOOKUP(D22,Pieces!A:C,3,0),"") -> 1 | J22: 20 | K22: 0 | L22: 0 | M22: 0 | N22: 0 | O22: 0 | P22: 0 | Q22: 7 | S22: 0 | U22: 0 | Z22: 0 | AA22: 0 | AE22: WARNING | AF22: 0 | AJ22: 0
A23: O | B23: HARDING | C23: =IFERROR(VLOOKUP(D23,Pieces!A:B,2,0)," ") -> 480387 | D23: Evacuation 2 et 3 | E23: 69 | F23: 72 | G23: 73 | H23: 76 | I23: =IFERROR(VLOOKUP(D23,Pieces!A:C,3,0),"") -> 25 | J23: 20 | K23: 60 | L23: 20 | M23: 60 | N23: 2.4 | O23: 0.8 | P23: 2.4 | Q23: 7 | S23: 0 | U23: 140 | Z23: 5.6 | AA23: 80 | AE23: WARNING | AF23: 0.0002222222222 | AG23: 3600 | AH23: 1 | AI23: 0.8 | AJ23: 0.8
A24: P | B24: KITAMURA | C24: =IFERROR(VLOOKUP(D24,Pieces!A:B,2,0)," ") -> 9518-maj | D24: USINAGE BORNE RBD-1 | E24: 5638 | F24: 5816 | G24: 5816 | H24: 5863 | I24: =IFERROR(VLOOKUP(D24,Pieces!A:C,3,0),"") -> 300 | J24: 12 | K24: =(F24-E24)*J24 -> 2136 | L24: =(G24-F24)*J24 -> 0 | M24: =(H24-G24)*J24 -> 564 | N24: =IF(I24="","",K24/I24) -> 7.12 | O24: =IF(I24="","",L24/I24) -> 0 | P24: =IF(I24="","",M24/I24) -> 1.88 | Q24: 7 | S24: =U24+T24-K24-L24-M24 -> 0 | U24: =(K24+L24+M24)-T24-V24 -> 2700 | Z24: =IF(OR(I24="",I24=0),0,(U24+T24)/I24) -> 9 | AA24: =IF(OR(Q24=0,I24=0),"",Z24/Q24*100) -> 128.5714286 | AE24: =IF(AA24>85," ","WARNING") ->  | AF24: 0.0003571428571 | AG24: 3600 | AH24: 1 | AI24: 1.285714286 | AJ24: 1.285714286
J30: Approbateur:
J31: Date:
J32: Visa:

Sheet 04-4-22
A1: 04-04-2022 | Z1: CODE: DAS-PRO-16
Z2: DATE:30/08/2019
Z3: VERSION:07
Z4: PAGE:1
A8: SYMBOLE | B8: MACHINE | C8: REF ARTICLE | D8: DESIGNATION | E8: COMPTEUR AUJOURD’HUI à 8h | F8: COMPTEUR HIER à 17H | G8: COMPTEUR HIER à 22H | H8: COMPTEUR AUJOURD’HUI à 8h | I8: CADENCE | J8: NOMBRE DE PIECES FINIS PAR CYCLE | K8: PIECES SUIVANT COMPTEUR 8h-->17h | L8: PIECES SUIVANT COMPTEUR 17H-->22H | M8: PIECES SUIVANT COMPTEUR 6h-->8h | N8: NOMBRE D'HEURES DE TRAVAIL 8h-->17h | O8: NOMBRE D'HEURES DE TRAVAIL 17H-->22H | P8: NOMBRE D'HEURES DE TRAVAIL 6h-->8h | Q8: NOMBRE D'HEURES DE TRAVAIL | R8: OBSERVATIONS | S8: Pieces manquantes | T8: PIECES NC | U8: Pieces REELLES | V8: Nombre des pieces à retoucher | W8: Cause de la non-conformité | X8: Effet de la non-conformité | Y8: Valeur de l'effet | Z8: NOMBRES D'HEURES SUIVANT LES PIECES REELLES | AA8: RENDEMENT | AB8: Fiche de contrôle qualité début de serie | AC8: Affutage | AD8: Gamme d'usingae | AE8: ALERTES | AF8: A | AG8: P | AH8: Q | AI8: OEE | AJ8: OEE
A9: A | B9: SST16 | C9: =IFERROR(VLOOKUP(D9,Pieces!A:B,2,0)," ") -> - | D9: Arrêt | E9: 0 | F9: 0 | G9: 0 | H9: 0 | I9: =IFERROR(VLOOKUP(D9,Pieces!A:C,3,0),"") -> 1 | J9: 1 | K9: =(F9-E9)*J9 -> 0 | L9: =(G9-F9)*J9 -> 0 | M9: =(H9-G9)*J9 -> 0 | N9: =IF(I9="","",K9/I9) -> 0 | O9: =IF(I9="","",L9/I9) -> 0 | P9: =IF(I9="","",M9/I9) -> 0 | Q9: 12 | S9: =U9+T9-K9-L9-M9 -> 0 | U9: =(K9+L9+M9)-T9-V9 -> 0 | Z9: =IF(OR(I9="",I9=0),0,(U9+T9)/I9) -> 0 | AA9: =IF(OR(Q9=0,I9=0),"",Z9/Q9*100) -> 0 | AE9: =IF(AA9>85," ","WARNING") -> WARNING | AF9: =(N9+O9+P9)/(Q9*3600) -> 0 | AG9: =((3600/I9)*U9)/(N9+O9+P9) ->  | AH9: =(U9-T9)/U9 ->  | AI9: =AF9*AG9*AH9 ->  | AJ9: =((U9-T9)*(3600/I9))/(Q9*3600) -> 0
A10: B | B10: SB16 | C10: =IFERROR(VLOOKUP(D10,Pieces!A:B,2,0)," ") -> G022-CP1 | D10: AXE D15-M11*100 maj-c | E10: 5180 | F10: 5452 | G10: 5520 | H10: 5634 | I10: =IFERROR(VLOOKUP(D10,Pieces!A:C,3,0),"") -> 46 | J10: 1 | K10: =(F10-E10)*J10 -> 272 | L10: =(G10-F10)*J10 -> 68 | M10: =(H10-G10)*J10 -> 114 | N10: =IF(I10="","",K10/I10) -> 5.913043478 | O10: =IF(I10="","",L10/I10) -> 1.47826087 | P10: =IF(I10="","",M10/I10) -> 2.47826087 | Q10: 12 | S10: =U10+T10-K10-L10-M10 -> 0 | U10: =(K10+L10+M10)-T10-V10 -> 454 | Z10: =IF(OR(I10="",I10=0),0,(U10+T10)/I10) -> 9.869565217 | AA10: =IF(OR(Q10=0,I10=0),"",Z10/Q10*100) -> 82.24637681 | AE10: =IF(AA10>85," ","WARNING") -> WARNING | AF10: =(N10+O10+P10)/(Q10*3600) -> 0.0002284621578 | AG10: =((3600/I10)*U10)/(N10+O10+P10) -> 3600 | AH10: =(U10-T10)/U10 -> 1 | AI10: =AF10*AG10*AH10 -> 0.8224637681 | AJ10: =((U10-T10)*(3600/I10))/(Q10*3600) -> 0.8224637681
A11: C | B11: BIGLIA 301 SM | C11: =IFERROR(VLOOKUP(D11,Pieces!A:B,2,0)," ") -> 230500 | D11: BRAS DE MANOEUVRE G MAN | E11: 2452 | F11: 2596 | G11: 2635 | H11: 2691 | I11: =IFERROR(VLOOKUP(D11,Pieces!A:C,3,0),"") -> 20 | J11: 1 | K11: 144 | L11: 39 | M11: 56 | N11: 7.2 | O11: 1.95 | P11: 2.8 | Q11: 12 | S11: =U11+T11-K11-L11-M11 -> 0 | U11: 239 | Z11: 11.95 | AA11: 99.58333333 | AF11: 0.0002766203704 | AG11: 3600 | AH11: 1 | AI11: 0.9958333333 | AJ11: 0.9958333333
A12: D | B12: BIGLIA 42 S2M bitourelle | C12: =IFERROR(VLOOKUP(D12,Pieces!A:B,2,0)," ") -> MI018-B42 | D12: GOUJON DE ROUE MITSIBITCHI GM-SUR-B42 | E12: 8937 | F12: 9143 | G12: 9143 | H12: 9214 | I12: =IFERROR(VLOOKUP(D12,Pieces!A:C,3,0),"") -> 55 | J12: 1 | K12: 206 | L12: 0 | M12: 71 | N12: 3.745454545 | O12: 0 | P12: 1.290909091 | Q12: 9 | S12: 0 | U12: 277 | Z12: 5.036363636 | AA12: 55.95959596 | AE12: WARNING | AF12: 0.0001554433221 | AG12: 3600 | AH12: 1 | AI12: 0.5595959596 | AJ12: 0.5595959596
A13: E | B13: L32 | C13: =IFERROR(VLOOKUP(D13,Pieces!A:B,2,0)," ") -> 200200-2022 | D13: Embout de tige-2022 | E13: 4771 | F13: 4771 | G13: 4771 | H13: 4771 | I13: =IFERROR(VLOOKUP(D13,Pieces!A:C,3,0),"") -> 40 | J13: 1 | K13: 0 | L13: 0 | M13: 0 | N13: 0 | O13: 0 | P13: 0 | Q13: 12 | S13: 0 | U13: 0 | Z13: 0 | AA13: 0 | AE13: WARNING | AF13: 0 | AJ13: 0
A14: F | B14: TSUGAMI | C14: =IFERROR(VLOOKUP(D14,Pieces!A:B,2,0)," ") -> i097-tsughami | D14: ECROU DE ROUE FORD RANGER- finition rayon | E14: 5517 | F14: 5727 | G14: 5727 | H14: 5727 | I14: =IFERROR(VLOOKUP(D14,Pieces!A:C,3,0),"") -> 100 | J14: 1 | K14: 210 | L14: 0 | M14: 0 | N14: 2.1 | O14: 0 | P14: 0 | Q14: 7 | S14: 0 | U14: 210 | Z14: 2.1 | AA14: 30 | AE14: WARNING | AF14: 8.333333333e-05 | AG14: 3600 | AH14: 1 | AI14: 0.3 | AJ14: 0.3
A15: G | B15: Tour STAR SV-32-J | C15: =IFERROR(VLOOKUP(D15,Pieces!A:B,2,0)," ") -> 68.0815 | D15: Buse droite à collerette Ø8 M445 FRD | E15: 8433 | F15: 8795 | G15: 8905 | H15: 9070 | I15: =IFERROR(VLOOKUP(D15,Pieces!A:C,3,0),"") -> 60 | J15: 1 | K15: 362 | L15: 110 | M15: 165 | N15: 6.033333333 | O15: 1.833333333 | P15: 2.75 | Q15: 12 | S15: 0 | U15: 637 | Z15: 10.61666667 | AA15: 88.47222222 | AF15: 0.0002457561728 | AG15: 3600 | AH15: 1 | AI15: 0.8847222222 | AJ15: 0.8847222222
A16: H | B16: Tour CNC STAR SB avec embarreur LNS Express 220 | C16: =IFERROR(VLOOKUP(D16,Pieces!A:B,2,0)," ") -> outi-plot | D16: plot nez de marche | E16: 0 | F16: 0 | G16: 0 | H16: 0 | I16: =IFERROR(VLOOKUP(D16,Pieces!A:C,3,0),"") -> 75 | J16: 1 | K16: 0 | L16: 0 | M16: 0 | N16: 0 | O16: 0 | P16: 0 | Q16: 7 | S16: 0 | U16: 0 | Z16: 0 | AA16: 0 | AE16: WARNING | AF16: 0 | AJ16: 0
A17: I | B17: MULTIBROCHE | C17: =IFERROR(VLOOKUP(D17,Pieces!A:B,2,0)," ") -> MPS000300 | D17: raccord HEX 17 | E17: 0 | F17: 0 | G17: 0 | H17: 0 | I17: =IFERROR(VLOOKUP(D17,Pieces!A:C,3,0),"") -> 500 | J17: 1 | K17: 0 | L17: 0 | M17: 0 | N17: 0 | O17: 0 | P17: 0 | Q17: 7 | S17: 0 | U17: 0 | Z17: 0 | AA17: 0 | AE17: WARNING | AF17: 0 | AJ17: 0
A18: J | B18: Tour CNC WEILER UD 24 - 100 | C18: =IFERROR(VLOOKUP(D18,Pieces!A:B,2,0)," ") -> 0-5280-1 | D18: Bague Galvanisée 12*20*40 -chutes | E18: 0 | F18: 468 | G18: 468 | H18: 468 | I18: =IFERROR(VLOOKUP(D18,Pieces!A:C,3,0),"") -> 60 | J18: 1 | K18: 468 | L18: 0 | M18: 0 | N18: 7.8 | O18: 0 | P18: 0 | Q18: 7 | S18: 0 | U18: 468 | Z18: 7.8 | AA18: 111.4285714 | AF18: 0.0003095238095 | AG18: 3600 | AH18: 1 | AI18: 1.114285714 | AJ18: 1.114285714
A19: K | B19: TOUR WEILER | C19: =IFERROR(VLOOKUP(D19,Pieces!A:B,2,0)," ") -> POMEL-P2 | D19: POMELLE-PIECE FEMELLE | E19: 380 | F19: 509 | G19: 509 | H19: 513 | I19: =IFERROR(VLOOKUP(D19,Pieces!A:C,3,0),"") -> 45 | J19: 1 | K19: 129 | L19: 0 | M19: 4 | N19: 2.866666667 | O19: 0 | P19: 0.08888888889 | Q19: 7 | S19: 0 | U19: 133 | Z19: 2.955555556 | AA19: 42.22222222 | AE19: WARNING | AF19: 0.0001172839506 | AG19: 3600 | AH19: 1 | AI19: 0.4222222222 | AJ19: 0.4222222222
A20: L | B20: NAKAMURA | C20: =IFERROR(VLOOKUP(D20,Pieces!A:B,2,0)," ") -> I007 | D20: ECROU SEMI ARBRE ISUZU | E20: 1185 | F20: 1408 | G20: 1408 | H20: 1408 | I20: =IFERROR(VLOOKUP(D20,Pieces!A:C,3,0),"") -> 30 | J20: 1 | K20: 223 | L20: 0 | M20: 0 | N20: 7.433333333 | O20: 0 | P20: 0 | Q20: 7 | S20: 0 | U20: 223 | Z20: 7.433333333 | AA20: 106.1904762 | AF20: 0.000294973545 | AG20: 3600 | AH20: 1 | AI20: 1.061904762 | AJ20: 1.061904762
A21: M | B21: MORI SEIKI 3 axes | C21: =IFERROR(VLOOKUP(D21,Pieces!A:B,2,0)," ") -> I110-01-004 | D21: INSERT LEVIER SURMOULEE 345833-01 - fraisage | E21: 1099 | F21: 1116 | G21: 1116 | H21: 1116 | I21: =IFERROR(VLOOKUP(D21,Pieces!A:C,3,0),"") -> 32 | J21: 9 | K21: 153 | L21: 0 | M21: 0 | N21: 4.78125 | O21: 0 | P21: 0 | Q21: 7 | S21: 0 | U21: 153 | Z21: 4.78125 | AA21: 68.30357143 | AE21: WARNING | AF21: 0.0001897321429 | AG21: 3600 | AH21: 1 | AI21: 0.6830357143 | AJ21: 0.6830357143
A22: N | B22: MORI SEIKI 5 axes | C22: =IFERROR(VLOOKUP(D22,Pieces!A:B,2,0)," ") -> - | D22: Arrêt | E22: 0 | F22: 0 | G22: 0 | H22: 0 | I22: =IFERROR(VLOOKUP(D22,Pieces!A:C,3,0),"") -> 1 | J22: 20 | K22: 0 | L22: 0 | M22: 0 | N22: 0 | O22: 0 | P22: 0 | Q22: 7 | S22: 0 | U22: 0 | Z22: 0 | AA22: 0 | AE22: WARNING | AF22: 0 | AJ22: 0
A23: O | B23: HARDING | C23: =IFERROR(VLOOKUP(D23,Pieces!A:B,2,0)," ") -> 480387 | D23: Evacuation 2 et 3 | E23: 58 | F23: 65 | G23: 66 | H23: 69 | I23: =IFERROR(VLOOKUP(D23,Pieces!A:C,3,0),"") -> 25 | J23: 20 | K23: 140 | L23: 20 | M23: 60 | N23: 5.6 | O23: 0.8 | P23: 2.4 | Q23: 7 | S23: 0 | U23: 220 | Z23: 8.8 | AA23: 125.7142857 | AF23: 0.0003492063492 | AG23: 3600 | AH23: 1 | AI23: 1.257142857 | AJ23: 1.257142857
A24: P | B24: KITAMURA | C24: =IFERROR(VLOOKUP(D24,Pieces!A:B,2,0)," ") -> 9518-maj | D24: USINAGE BORNE RBD-1 | E24: 5444 | F24: 5587 | G24: 5587 | H24: 5638 | I24: =IFERROR(VLOOKUP(D24,Pieces!A:C,3,0),"") -> 300 | J24: 12 | K24: =(F24-E24)*J24 -> 1716 | L24: =(G24-F24)*J24 -> 0 | M24: =(H24-G24)*J24 -> 612 | N24: =IF(I24="","",K24/I24) -> 5.72 | O24: =IF(I24="","",L24/I24) -> 0 | P24: =IF(I24="","",M24/I24) -> 2.04 | Q24: 7 | S24: =U24+T24-K24-L24-M24 -> 0 | U24: =(K24+L24+M24)-T24-V24 -> 2328 | Z24: =IF(OR(I24="",I24=0),0,(U24+T24)/I24) -> 7.76 | AA24: =IF(OR(Q24=0,I24=0),"",Z24/Q24*100) -> 110.8571429 | AE24: =IF(AA24>85," ","WARNING") ->  | AF24: 0.0003079365079 | AG24: 3600 | AH24: 1 | AI24: 1.108571429 | AJ24: 1.108571429
J30: Approbateur:
J31: Date:
J32: Visa:

Sheet 02-4-22
A1: 02-04-2022 | Z1: CODE: DAS-PRO-16
Z2: DATE:30/08/2019
Z3: VERSION:07
Z4: PAGE:1
A8: SYMBOLE | B8: MACHINE | C8: REF ARTICLE | D8: DESIGNATION | E8: COMPTEUR AUJOURD’HUI à 8h | F8: COMPTEUR HIER à 17H | G8: COMPTEUR HIER à 22H | H8: COMPTEUR AUJOURD’HUI à 8h | I8: CADENCE | J8: NOMBRE DE PIECES FINIS PAR CYCLE | K8: PIECES SUIVANT COMPTEU 8h-->17h | L8: PIECES SUIVANT COMPTEUR 17H-->22H | M8: PIECES SUIVANT COMPTEUR 6h-->8h | N8: NOMBRE D'HEURES DE TRAVAIL 8h-->17h | O8: NOMBRE D'HEURES DE TRAVAIL 17H-->22H | P8: NOMBRE D'HEURES DE TRAVAIL 6h-->8h | Q8: NOMBRE D'HEURES DE TRAVAIL | R8: OBSERVATIONS | S8: Pieces manquantes | T8: PIECES NC | U8: Pieces REELLES | V8: Nombre des pieces à retoucher | W8: Cause de la non-conformité | X8: Effet de la non-conformité | Y8: Valeur de l'effet | Z8: NOMBRES D'HEURES SUIVANT LES PIECES REELLES | AA8: RENDEMENT | AB8: Fiche de contrôle qualité début de serie | AC8: Affutage | AD8: Gamme d'usingae | AE8: ALERTES | AF8: A | AG8: P | AH8: Q | AI8: OEE | AJ8: OEE
A9: A | B9: SST16 | C9: =IFERROR(VLOOKUP(D9,Pieces!A:B,2,0)," ") -> BROCH L 230 | D9: BROCHE ACIER D13 ZINGUE L230 | E9: 0 | F9: 0 | G9: 0 | H9: 0 | I9: =IFERROR(VLOOKUP(D9,Pieces!A:C,3,0),"") -> 120 | J9: 1 | K9: =(F9-E9)*J9 -> 0 | L9: =(G9-F9)*J9 -> 0 | M9: =(H9-G9)*J9 -> 0 | N9: =IF(I9="","",K9/I9) -> 0 | O9: =IF(I9="","",L9/I9) -> 0 | P9: =IF(I9="","",M9/I9) -> 0 | Q9: 7 | S9: =U9+T9-K9-L9-M9 -> 0 | U9: =(K9+L9+M9)-T9-V9 -> 0 | Z9: =IF(OR(I9="",I9=0),0,(U9+T9)/I9) -> 0 | AA9: =IF(OR(Q9=0,I9=0),"",Z9/Q9*100) -> 0 | AE9: =IF(AA9>85," ","WARNING") -> WARNING | AF9: =(N9+O9+P9)/(Q9*3600) -> 0 | AG9: =((3600/I9)*U9)/(N9+O9+P9) ->  | AH9: =(U9-T9)/U9 ->  | AI9: =AF9*AG9*AH9 ->  | AJ9: =((U9-T9)*(3600/I9))/(Q9*3600) -> 0
A10: B | B10: SB16 | C10: =IFERROR(VLOOKUP(D10,Pieces!A:B,2,0)," ") -> G022-CP1 | D10: AXE D15-M11*100 maj-c | E10: 4945 | F10: 5060 | G10: 5060 | H10: 5180 | I10: =IFERROR(VLOOKUP(D10,Pieces!A:C,3,0),"") -> 46 | J10: 1 | K10: =(F10-E10)*J10 -> 115 | L10: =(G10-F10)*J10 -> 0 | M10: =(H10-G10)*J10 -> 120 | N10: =IF(I10="","",K10/I10) -> 2.5 | O10: =IF(I10="","",L10/I10) -> 0 | P10: =IF(I10="","",M10/I10) -> 2.608695652 | Q10: 7 | S10: =U10+T10-K10-L10-M10 -> 0 | U10: =(K10+L10+M10)-T10-V10 -> 235 | Z10: =IF(OR(I10="",I10=0),0,(U10+T10)/I10) -> 5.108695652 | AA10: =IF(OR(Q10=0,I10=0),"",Z10/Q10*100) -> 72.98136646 | AE10: =IF(AA10>85," ","WARNING") -> WARNING | AF10: =(N10+O10+P10)/(Q10*3600) -> 0.0002027260179 | AG10: =((3600/I10)*U10)/(N10+O10+P10) -> 3600 | AH10: =(U10-T10)/U10 -> 1 | AI10: =AF10*AG10*AH10 -> 0.7298136646 | AJ10: =((U10-T10)*(3600/I10))/(Q10*3600) -> 0.7298136646
A11: C | B11: BIGLIA 301 SM | C11: =IFERROR(VLOOKUP(D11,Pieces!A:B,2,0)," ") -> 230500 | D11: BRAS DE MANOEUVRE G MAN | E11: 2297 | F11: 2398 | G11: 2398 | H11: 2452 | I11: =IFERROR(VLOOKUP(D11,Pieces!A:C,3,0),"") -> 20 | J11: 1 | K11: 101 | L11: 0 | M11: 54 | N11: 5.05 | O11: 0 | P11: 2.7 | Q11: 7 | S11: =U11+T11-K11-L11-M11 -> 0 | U11: 155 | Z11: 7.75 | AA11: 110.7142857 | AF11: 0.0003075396825 | AG11: 3600 | AH11: 1 | AI11: 1.107142857 | AJ11: 1.107142857
A12: D | B12: BIGLIA 42 S2M bitourelle | C12: =IFERROR(VLOOKUP(D12,Pieces!A:B,2,0)," ") -> MI018-B42 | D12: GOUJON DE ROUE MITSIBITCHI GM-SUR-B42 | E12: 8680 | F12: 8860 | G12: 8860 | H12: 8937 | I12: =IFERROR(VLOOKUP(D12,Pieces!A:C,3,0),"") -> 55 | J12: 1 | K12: 180 | L12: 0 | M12: 77 | N12: 3.272727273 | O12: 0 | P12: 1.4 | Q12: 7 | S12: 0 | U12: 257 | Z12: 4.672727273 | AA12: 66.75324675 | AE12: WARNING | AF12: 0.0001854256854 | AG12: 3600 | AH12: 1 | AI12: 0.6675324675 | AJ12: 0.6675324675
A13: E | B13: L32 | C13: =IFERROR(VLOOKUP(D13,Pieces!A:B,2,0)," ") -> 200200-2022 | D13: Embout de tige-2022 | E13: 4771 | F13: 4771 | G13: 4771 | H13: 4771 | I13: =IFERROR(VLOOKUP(D13,Pieces!A:C,3,0),"") -> 40 | J13: 1 | K13: 0 | L13: 0 | M13: 0 | N13: 0 | O13: 0 | P13: 0 | Q13: 7 | S13: 0 | U13: 0 | Z13: 0 | AA13: 0 | AE13: WARNING | AF13: 0 | AJ13: 0
A14: F | B14: TSUGAMI | C14: =IFERROR(VLOOKUP(D14,Pieces!A:B,2,0)," ") -> i097-tsughami | D14: ECROU DE ROUE FORD RANGER- finition rayon | E14: 5101 | F14: 5517 | G14: 5517 | H14: 5517 | I14: =IFERROR(VLOOKUP(D14,Pieces!A:C,3,0),"") -> 100 | J14: 1 | K14: 416 | L14: 0 | M14: 0 | N14: 4.16 | O14: 0 | P14: 0 | Q14: 5 | S14: 0 | U14: 416 | Z14: 4.16 | AA14: 83.2 | AE14: WARNING | AF14: 0.0002311111111 | AG14: 3600 | AH14: 1 | AI14: 0.832 | AJ14: 0.832
A15: G | B15: Tour STAR SV-32-J | C15: =IFERROR(VLOOKUP(D15,Pieces!A:B,2,0)," ") -> 68.0815 | D15: Buse droite à collerette Ø8 M445 FRD | E15: 7993 | F15: 8275 | G15: 8275 | H15: 8433 | I15: =IFERROR(VLOOKUP(D15,Pieces!A:C,3,0),"") -> 60 | J15: 1 | K15: 282 | L15: 0 | M15: 158 | N15: 4.7 | O15: 0 | P15: 2.633333333 | Q15: 7 | S15: 0 | U15: 440 | Z15: 7.333333333 | AA15: 104.7619048 | AF15: 0.000291005291 | AG15: 3600 | AH15: 1 | AI15: 1.047619048 | AJ15: 1.047619048
A16: H | B16: Tour CNC STAR SB avec embarreur LNS Express 220 | C16: =IFERROR(VLOOKUP(D16,Pieces!A:B,2,0)," ") -> outi-plot | D16: plot nez de marche | E16: 0 | F16: 0 | G16: 0 | H16: 0 | I16: =IFERROR(VLOOKUP(D16,Pieces!A:C,3,0),"") -> 75 | J16: 1 | K16: 0 | L16: 0 | M16: 0 | N16: 0 | O16: 0 | P16: 0 | Q16: 7 | S16: 0 | U16: 0 | Z16: 0 | AA16: 0 | AE16: WARNING | AF16: 0 | AJ16: 0
A17: I | B17: MULTIBROCHE | C17: =IFERROR(VLOOKUP(D17,Pieces!A:B,2,0)," ") -> MPS000300 | D17: raccord HEX 17 | E17: 0 | F17: 0 | G17: 0 | H17: 0 | I17: =IFERROR(VLOOKUP(D17,Pieces!A:C,3,0),"") -> 500 | J17: 1 | K17: 0 | L17: 0 | M17: 0 | N17: 0 | O17: 0 | P17: 0 | Q17: 7 | S17: 0 | U17: 0 | Z17: 0 | AA17: 0 | AE17: WARNING | AF17: 0 | AJ17: 0
A18: J | B18: Tour CNC WEILER UD 24 - 100 | C18: =IFERROR(VLOOKUP(D18,Pieces!A:B,2,0)," ") -> 0-5280-1 | D18: Bague Galvanisée 12*20*40 -chutes | E18: 0 | F18: 190 | G18: 190 | H18: 190 | I18: =IFERROR(VLOOKUP(D18,Pieces!A:C,3,0),"") -> 60 | J18: 1 | K18: 190 | L18: 0 | M18: 0 | N18: 3.166666667 | O18: 0 | P18: 0 | Q18: 5 | S18: 0 | U18: 190 | Z18: 3.166666667 | AA18: 63.33333333 | AE18: WARNING | AF18: 0.0001759259259 | AG18: 3600 | AH18: 1 | AI18: 0.6333333333 | AJ18: 0.6333333333
A19: K | B19: TOUR WEILER | C19: =IFERROR(VLOOKUP(D19,Pieces!A:B,2,0)," ") -> POMEL-P2 | D19: POMELLE-PIECE FEMELLE | E19: 202 | F19: 380 | G19: 380 | H19: 380 | I19: =IFERROR(VLOOKUP(D19,Pieces!A:C,3,0),"") -> 45 | J19: 1 | K19: 178 | L19: 0 | M19: 0 | N19: 3.955555556 | O19: 0 | P19: 0 | Q19: 5 | S19: 0 | U19: 178 | Z19: 3.955555556 | AA19: 79.11111111 | AE19: WARNING | AF19: 0.0002197530864 | AG19: 3600 | AH19: 1 | AI19: 0.7911111111 | AJ19: 0.7911111111
A20: L | B20: NAKAMURA | C20: =IFERROR(VLOOKUP(D20,Pieces!A:B,2,0)," ") -> I007 | D20: ECROU SEMI ARBRE ISUZU | E20: 1185 | F20: 1185 | G20: 1185 | H20: 1185 | I20: =IFERROR(VLOOKUP(D20,Pieces!A:C,3,0),"") -> 30 | J20: 1 | K20: 0 | L20: 0 | M20: 0 | N20: 0 | O20: 0 | P20: 0 | Q20: 5 | S20: 0 | U20: 0 | Z20: 0 | AA20: 0 | AE20: WARNING | AF20: 0 | AJ20: 0
A21: M | B21: MORI SEIKI 3 axes | C21: =IFERROR(VLOOKUP(D21,Pieces!A:B,2,0)," ") -> I110-01-004 | D21: INSERT LEVIER SURMOULEE 345833-01 - fraisage | E21: 1090 | F21: 1099 | G21: 1099 | H21: 1099 | I21: =IFERROR(VLOOKUP(D21,Pieces!A:C,3,0),"") -> 32 | J21: 9 | K21: 81 | L21: 0 | M21: 0 | N21: 2.53125 | O21: 0 | P21: 0 | Q21: 5 | S21: 0 | U21: 81 | Z21: 2.53125 | AA21: 50.625 | AE21: WARNING | AF21: 0.000140625 | AG21: 3600 | AH21: 1 | AI21: 0.50625 | AJ21: 0.50625
A22: N | B22: MORI SEIKI 5 axes | C22: =IFERROR(VLOOKUP(D22,Pieces!A:B,2,0)," ") -> PIG-11D | D22: PIGNON 11 DENTS FRAISAGE | E22: 0 | F22: 0 | G22: 0 | H22: 0 | I22: =IFERROR(VLOOKUP(D22,Pieces!A:C,3,0),"") -> 120 | J22: 20 | K22: 0 | L22: 0 | M22: 0 | N22: 0 | O22: 0 | P22: 0 | Q22: 5 | S22: 0 | U22: 0 | Z22: 0 | AA22: 0 | AE22: WARNING | AF22: 0 | AJ22: 0
A23: O | B23: HARDING | C23: =IFERROR(VLOOKUP(D23,Pieces!A:B,2,0)," ") -> 480387 | D23: Evacuation 2 et 3 | E23: 53 | F23: 57 | G23: 57 | H23: 58 | I23: =IFERROR(VLOOKUP(D23,Pieces!A:C,3,0),"") -> 25 | J23: 20 | K23: 80 | L23: 0 | M23: 20 | N23: 3.2 | O23: 0 | P23: 0.8 | Q23: 7 | R23: plus 30mn | S23: 0 | U23: 100 | Z23: 4 | AA23: 57.14285714 | AE23: WARNING | AF23: 0.0001587301587 | AG23: 3600 | AH23: 1 | AI23: 0.5714285714 | AJ23: 0.5714285714
A24: P | B24: KITAMURA | C24: =IFERROR(VLOOKUP(D24,Pieces!A:B,2,0)," ") -> 9518-maj | D24: USINAGE BORNE RBD-1 | E24: 5314 | F24: 5411 | G24: 5411 | H24: 5444 | I24: =IFERROR(VLOOKUP(D24,Pieces!A:C,3,0),"") -> 300 | J24: 12 | K24: =(F24-E24)*J24 -> 1164 | L24: =(G24-F24)*J24 -> 0 | M24: =(H24-G24)*J24 -> 396 | N24: =IF(I24="","",K24/I24) -> 3.88 | O24: =IF(I24="","",L24/I24) -> 0 | P24: =IF(I24="","",M24/I24) -> 1.32 | Q24: 7 | S24: =U24+T24-K24-L24-M24 -> 0 | U24: =(K24+L24+M24)-T24-V24 -> 1560 | Z24: =IF(OR(I24="",I24=0),0,(U24+T24)/I24) -> 5.2 | AA24: =IF(OR(Q24=0,I24=0),"",Z24/Q24*100) -> 74.28571429 | AE24: =IF(AA24>85," ","WARNING") -> WARNING | AF24: 0.0002063492063 | AG24: 3600 | AH24: 1 | AI24: 0.7428571429 | AJ24: 0.7428571429
J30: Approbateur:
J31: Date:
J32: Visa:

Sheet 01-4-22
A1: 01-04-2022 | Z1: CODE: DAS-PRO-16
Z2: DATE:30/08/2019
Z3: VERSION:07
Z4: PAGE:1
A8: SYMBOLE | B8: MACHINE | C8: REF ARTICLE | D8: DESIGNATION | E8: COMPTEUR AUJOURD’HUI à 8h | F8: COMPTEUR HIER à 17H | G8: COMPTEUR HIER à 22H | H8: COMPTEUR AUJOURD’HUI à 8h | I8: CADENCE | J8: NOMBRE DE PIECES FINIS PAR CYCLE | K8: PIECES SUIVANT COMPTEU 8h-->17h | L8: PIECES SUIVANT COMPTEUR 17H-->22H | M8: PIECES SUIVANT COMPTEUR 6h-->8h | N8: NOMBRE D'HEURES DE TRAVAIL 8h-->17h | O8: NOMBRE D'HEURES DE TRAVAIL 17H-->22H | P8: NOMBRE D'HEURES DE TRAVAIL 6h-->8h | Q8: NOMBRE D'HEURES DE TRAVAIL | R8: OBSERVATIONS | S8: Pieces manquantes | T8: PIECES NC | U8: Pieces REELLES | V8: Nombre des pieces à retoucher | W8: Cause de la non-conformité | X8: Effet de la non-conformité | Y8: Valeur de l'effet | Z8: NOMBRES D'HEURES SUIVANT LES PIECES REELLES | AA8: RENDEMENT | AB8: Fiche de contrôle qualité début de serie | AC8: Affutage | AD8: Gamme d'usingae | AE8: ALERTES | AF8: A | AG8: P | AH8: Q | AI8: OEE | AJ8: OEE
A9: A | B9: SST16 | C9: =IFERROR(VLOOKUP(D9,Pieces!A:B,2,0)," ") -> BROCH L 230 | D9: BROCHE ACIER D13 ZINGUE L230 | E9: 0 | F9: 0 | G9: 0 | H9: 0 | I9: =IFERROR(VLOOKUP(D9,Pieces!A:C,3,0),"") -> 120 | J9: 1 | K9: =(F9-E9)*J9 -> 0 | L9: =(G9-F9)*J9 -> 0 | M9: =(H9-G9)*J9 -> 0 | N9: =IF(I9="","",K9/I9) -> 0 | O9: =IF(I9="","",L9/I9) -> 0 | P9: =IF(I9="","",M9/I9) -> 0 | Q9: 15 | R9: g | S9: =U9+T9-K9-L9-M9 -> 0 | U9: =(K9+L9+M9)-T9-V9 -> 0 | Z9: =IF(OR(I9="",I9=0),0,(U9+T9)/I9) -> 0 | AA9: =IF(OR(Q9=0,I9=0),"",Z9/Q9*100) -> 0 | AE9: =IF(AA9>85," ","WARNING") -> WARNING | AF9: =(N9+O9+P9)/(Q9*3600) -> 0 | AG9: =((3600/I9)*U9)/(N9+O9+P9) ->  | AH9: =(U9-T9)/U9 ->  | AI9: =AF9*AG9*AH9 ->  | AJ9: =((U9-T9)*(3600/I9))/(Q9*3600) -> 0
A10: B | B10: SB16 | C10: =IFERROR(VLOOKUP(D10,Pieces!A:B,2,0)," ") -> G022-CP1 | D10: AXE D15-M11*100 maj-c | E10: 4405 | F10: 4756 | G10: 4840 | H10: 4945 | I10: =IFERROR(VLOOKUP(D10,Pieces!A:C,3,0),"") -> 46 | J10: 1 | K10: =(F10-E10)*J10 -> 351 | L10: =(G10-F10)*J10 -> 84 | M10: =(H10-G10)*J10 -> 105 | N10: =IF(I10="","",K10/I10) -> 7.630434783 | O10: =IF(I10="","",L10/I10) -> 1.826086957 | P10: =IF(I10="","",M10/I10) -> 2.282608696 | Q10: 15 | S10: =U10+T10-K10-L10-M10 -> 0 | U10: =(K10+L10+M10)-T10-V10 -> 540 | Z10: =IF(OR(I10="",I10=0),0,(U10+T10)/I10) -> 11.73913043 | AA10: =IF(OR(Q10=0,I10=0),"",Z10/Q10*100) -> 78.26086957 | AE10: =IF(AA10>85," ","WARNING") -> WARNING | AF10: =(N10+O10+P10)/(Q10*3600) -> 0.0002173913043 | AG10: =((3600/I10)*U10)/(N10+O10+P10) -> 3600 | AH10: =(U10-T10)/U10 -> 1 | AI10: =AF10*AG10*AH10 -> 0.7826086957 | AJ10: =((U10-T10)*(3600/I10))/(Q10*3600) -> 0.7826086957
A11: C | B11: BIGLIA 301 SM | C11: =IFERROR(VLOOKUP(D11,Pieces!A:B,2,0)," ") -> 230500 | D11: BRAS DE MANOEUVRE G MAN | E11: 2021 | F11: 2213 | G11: 2255 | H11: 2297 | I11: =IFERROR(VLOOKUP(D11,Pieces!A:C,3,0),"") -> 20 | J11: 1 | K11: 192 | L11: 42 | M11: 42 | N11: 9.6 | O11: 2.1 | P11: 2.1 | Q11: 15 | S11: =U11+T11-K11-L11-M11 -> 0 | U11: 276 | Z11: 13.8 | AA11: 92 | AF11: 0.0002555555556 | AG11: 3600 | AH11: 1 | AI11: 0.92 | AJ11: 0.92
A12: D | B12: BIGLIA 42 S2M bitourelle | C12: =IFERROR(VLOOKUP(D12,Pieces!A:B,2,0)," ") -> MI018-B42 | D12: GOUJON DE ROUE MITSIBITCHI GM-SUR-B42 | E12: 8438 | F12: 8680 | G12: 8680 | H12: 8680 | I12: =IFERROR(VLOOKUP(D12,Pieces!A:C,3,0),"") -> 55 | J12: 1 | K12: 242 | L12: 0 | M12: 0 | N12: 4.4 | O12: 0 | P12: 0 | Q12: 9 | S12: 0 | U12: 242 | Z12: 4.4 | AA12: 48.88888889 | AE12: WARNING | AF12: 0.0001358024691 | AG12: 3600 | AH12: 1 | AI12: 0.4888888889 | AJ12: 0.4888888889
A13: E | B13: L32 | C13: =IFERROR(VLOOKUP(D13,Pieces!A:B,2,0)," ") -> 200200-2022 | D13: Embout de tige-2022 | E13: 4771 | F13: 4771 | G13: 4771 | H13: 4771 | I13: =IFERROR(VLOOKUP(D13,Pieces!A:C,3,0),"") -> 40 | J13: 1 | K13: 0 | L13: 0 | M13: 0 | N13: 0 | O13: 0 | P13: 0 | Q13: 7 | S13: 0 | U13: 0 | Z13: 0 | AA13: 0 | AE13: WARNING | AF13: 0 | AJ13: 0
A14: F | B14: TSUGAMI | C14: =IFERROR(VLOOKUP(D14,Pieces!A:B,2,0)," ") -> i097-tsughami | D14: ECROU DE ROUE FORD RANGER- finition rayon | E14: 4744 | F14: 5101 | G14: 5101 | H14: 5101 | I14: =IFERROR(VLOOKUP(D14,Pieces!A:C,3,0),"") -> 100 | J14: 1 | K14: 357 | L14: 0 | M14: 0 | N14: 3.57 | O14: 0 | P14: 0 | Q14: 9 | S14: 0 | U14: 357 | Z14: 3.57 | AA14: 39.66666667 | AE14: WARNING | AF14: 0.0001101851852 | AG14: 3600 | AH14: 1 | AI14: 0.3966666667 | AJ14: 0.3966666667
A15: G | B15: Tour STAR SV-32-J | C15: =IFERROR(VLOOKUP(D15,Pieces!A:B,2,0)," ") -> 68.0815 | D15: Buse droite à collerette Ø8 M445 FRD | E15: 7352 | F15: 7758 | G15: 7870 | H15: 7993 | I15: =IFERROR(VLOOKUP(D15,Pieces!A:C,3,0),"") -> 60 | J15: 1 | K15: 406 | L15: 112 | M15: 123 | N15: 6.766666667 | O15: 1.866666667 | P15: 2.05 | Q15: 15 | S15: 0 | U15: 641 | Z15: 10.68333333 | AA15: 71.22222222 | AE15: WARNING | AF15: 0.0001978395062 | AG15: 3600 | AH15: 1 | AI15: 0.7122222222 | AJ15: 0.7122222222
A16: H | B16: Tour CNC STAR SB avec embarreur LNS Express 220 | C16: =IFERROR(VLOOKUP(D16,Pieces!A:B,2,0)," ") -> outi-plot | D16: plot nez de marche | E16: 0 | F16: 0 | G16: 0 | H16: 0 | I16: =IFERROR(VLOOKUP(D16,Pieces!A:C,3,0),"") -> 75 | J16: 1 | K16: 0 | L16: 0 | M16: 0 | N16: 0 | O16: 0 | P16: 0 | Q16: 15 | S16: 0 | U16: 0 | Z16: 0 | AA16: 0 | AE16: WARNING | AF16: 0 | AJ16: 0
A17: I | B17: MULTIBROCHE | C17: =IFERROR(VLOOKUP(D17,Pieces!A:B,2,0)," ") -> MPS000300 | D17: raccord HEX 17 | E17: 0 | F17: 0 | G17: 0 | H17: 0 | I17: =IFERROR(VLOOKUP(D17,Pieces!A:C,3,0),"") -> 500 | J17: 1 | K17: 0 | L17: 0 | M17: 0 | N17: 0 | O17: 0 | P17: 0 | Q17: 15 | S17: 0 | U17: 0 | Z17: 0 | AA17: 0 | AE17: WARNING | AF17: 0 | AJ17: 0
A18: J | B18: Tour CNC WEILER UD 24 - 100 | C18: =IFERROR(VLOOKUP(D18,Pieces!A:B,2,0)," ") -> PT8666 | D18: Rehausse-NAKAMURHA | E18: 1216 | F18: 1686 | G18: 1686 | H18: 1686 | I18: =IFERROR(VLOOKUP(D18,Pieces!A:C,3,0),"") -> 150 | J18: 1 | K18: 470 | L18: 0 | M18: 0 | N18: 3.133333333 | O18: 0 | P18: 0 | Q18: 9 | R18: plus 156 pcs non fini | S18: 0 | U18: 470 | Z18: 3.133333333 | AA18: 34.81481481 | AE18: WARNING | AF18: 9.670781893e-05 | AG18: 3600 | AH18: 1 | AI18: 0.3481481481 | AJ18: 0.3481481481
A19: K | B19: TOUR WEILER | C19: =IFERROR(VLOOKUP(D19,Pieces!A:B,2,0)," ") -> POMEL-P2 | D19: POMELLE-PIECE FEMELLE | E19: 0 | F19: 202 | G19: 202 | H19: 202 | I19: =IFERROR(VLOOKUP(D19,Pieces!A:C,3,0),"") -> 45 | J19: 1 | K19: 202 | L19: 0 | M19: 0 | N19: 4.488888889 | O19: 0 | P19: 0 | Q19: 9 | S19: 0 | U19: 202 | Z19: 4.488888889 | AA19: 49.87654321 | AE19: WARNING | AF19: 0.0001385459534 | AG19: 3600 | AH19: 1 | AI19: 0.4987654321 | AJ19: 0.4987654321
A20: L | B20: NAKAMURA | C20: =IFERROR(VLOOKUP(D20,Pieces!A:B,2,0)," ") -> I007 | D20: ECROU SEMI ARBRE ISUZU | E20: 1012 | F20: 1147 | G20: 1185 | H20: 1185 | I20: =IFERROR(VLOOKUP(D20,Pieces!A:C,3,0),"") -> 30 | J20: 1 | K20: 135 | L20: 38 | M20: 0 | N20: 4.5 | O20: 1.266666667 | P20: 0 | Q20: 9 | S20: 0 | U20: 173 | Z20: 5.766666667 | AA20: 64.07407407 | AE20: WARNING | AF20: 0.0001779835391 | AG20: 3600 | AH20: 1 | AI20: 0.6407407407 | AJ20: 0.6407407407
A21: M | B21: MORI SEIKI 3 axes | C21: =IFERROR(VLOOKUP(D21,Pieces!A:B,2,0)," ") -> I110-01-004 | D21: INSERT LEVIER SURMOULEE 345833-01 - fraisage | E21: 1074 | F21: 1090 | G21: 1090 | H21: 1090 | I21: =IFERROR(VLOOKUP(D21,Pieces!A:C,3,0),"") -> 32 | J21: 9 | K21: 144 | L21: 0 | M21: 0 | N21: 4.5 | O21: 0 | P21: 0 | Q21: 9 | S21: 0 | U21: 144 | Z21: 4.5 | AA21: 50 | AE21: WARNING | AF21: 0.0001388888889 | AG21: 3600 | AH21: 1 | AI21: 0.5 | AJ21: 0.5
A22: N | B22: MORI SEIKI 5 axes | C22: =IFERROR(VLOOKUP(D22,Pieces!A:B,2,0)," ") -> PIG-11D | D22: PIGNON 11 DENTS FRAISAGE | E22: 0 | F22: 0 | G22: 0 | H22: 0 | I22: =IFERROR(VLOOKUP(D22,Pieces!A:C,3,0),"") -> 120 | J22: 20 | K22: 0 | L22: 0 | M22: 0 | N22: 0 | O22: 0 | P22: 0 | Q22: 9 | S22: 0 | U22: 0 | Z22: 0 | AA22: 0 | AE22: WARNING | AF22: 0 | AJ22: 0
A23: O | B23: HARDING | C23: =IFERROR(VLOOKUP(D23,Pieces!A:B,2,0)," ") -> 480387 | D23: Evacuation 2 et 3 | E23: 44 | F23: 51 | G23: 51 | H23: 53 | I23: =IFERROR(VLOOKUP(D23,Pieces!A:C,3,0),"") -> 25 | J23: 20 | K23: 140 | L23: 0 | M23: 40 | N23: 5.6 | O23: 0 | P23: 1.6 | Q23: 11 | S23: 0 | U23: 180 | Z23: 7.2 | AA23: 65.45454545 | AE23: WARNING | AF23: 0.0001818181818 | AG23: 3600 | AH23: 1 | AI23: 0.6545454545 | AJ23: 0.6545454545
A24: P | B24: KITAMURA | C24: =IFERROR(VLOOKUP(D24,Pieces!A:B,2,0)," ") -> 9518-maj | D24: USINAGE BORNE RBD-1 | E24: 5104 | F24: 5286 | G24: 5286 | H24: 5314 | I24: =IFERROR(VLOOKUP(D24,Pieces!A:C,3,0),"") -> 300 | J24: 12 | K24: =(F24-E24)*J24 -> 2184 | L24: =(G24-F24)*J24 -> 0 | M24: =(H24-G24)*J24 -> 336 | N24: =IF(I24="","",K24/I24) -> 7.28 | O24: =IF(I24="","",L24/I24) -> 0 | P24: =IF(I24="","",M24/I24) -> 1.12 | Q24: 11 | S24: =U24+T24-K24-L24-M24 -> 0 | U24: =(K24+L24+M24)-T24-V24 -> 2520 | Z24: =IF(OR(I24="",I24=0),0,(U24+T24)/I24) -> 8.4 | AA24: =IF(OR(Q24=0,I24=0),"",Z24/Q24*100) -> 76.36363636 | AE24: =IF(AA24>85," ","WARNING") -> WARNING | AF24: 0.0002121212121 | AG24: 3600 | AH24: 1 | AI24: 0.7636363636 | AJ24: 0.7636363636
J30: Approbateur:
J31: Date:
J32: Visa:

Sheet 31-3-22
A1: 31-03-2022 | Z1: CODE: DAS-PRO-16
Z2: DATE:30/08/2019
Z3: VERSION:07
Z4: PAGE:1
A8: SYMBOLE | B8: MACHINE | C8: REF ARTICLE | D8: DESIGNATION | E8: COMPTEUR AUJOURD’HUI à 8h | F8: COMPTEUR HIER à 17H | G8: COMPTEUR HIER à 22H | H8: COMPTEUR AUJOURD’HUI à 8h | I8: CADENCE | J8: NOMBRE DE PIECES FINIS PAR CYCLE | K8: PIECES SUIVANT COMPTEU 8h-->17h | L8: PIECES SUIVANT COMPTEUR 17H-->22H | M8: PIECES SUIVANT COMPTEUR 6h-->8h | N8: NOMBRE D'HEURES DE TRAVAIL 8h-->17h | O8: NOMBRE D'HEURES DE TRAVAIL 17H-->22H | P8: NOMBRE D'HEURES DE TRAVAIL 6h-->8h | Q8: NOMBRE D'HEURES DE TRAVAIL | R8: OBSERVATIONS | S8: Pieces manquantes | T8: PIECES NC | U8: Pieces REELLES | V8: Nombre des pieces à retoucher | W8: Cause de la non-conformité | X8: Effet de la non-conformité | Y8: Valeur de l'effet | Z8: NOMBRES D'HEURES SUIVANT LES PIECES REELLES | AA8: RENDEMENT | AB8: Fiche de contrôle qualité début de serie | AC8: Affutage | AD8: Gamme d'usingae | AE8: ALERTES | AF8: A | AG8: P | AH8: Q | AI8: OEE | AJ8: OEE
A9: A | B9: SST16 | C9: =IFERROR(VLOOKUP(D9,Pieces!A:B,2,0)," ") -> BROCH L 230 | D9: BROCHE ACIER D13 ZINGUE L230 | E9: 0 | F9: 0 | G9: 0 | H9: 0 | I9: =IFERROR(VLOOKUP(D9,Pieces!A:C,3,0),"") -> 120 | J9: 1 | K9: =(F9-E9)*J9 -> 0 | L9: =(G9-F9)*J9 -> 0 | M9: =(H9-G9)*J9 -> 0 | N9: =IF(I9="","",K9/I9) -> 0 | O9: =IF(I9="","",L9/I9) -> 0 | P9: =IF(I9="","",M9/I9) -> 0 | Q9: 15 | S9: =U9+T9-K9-L9-M9 -> 0 | U9: =(K9+L9+M9)-T9-V9 -> 0 | Z9: =IF(OR(I9="",I9=0),0,(U9+T9)/I9) -> 0 | AA9: =IF(OR(Q9=0,I9=0),"",Z9/Q9*100) -> 0 | AE9: =IF(AA9>85," ","WARNING") -> WARNING | AF9: =(N9+O9+P9)/(Q9*3600) -> 0 | AG9: =((3600/I9)*U9)/(N9+O9+P9) ->  | AH9: =(U9-T9)/U9 ->  | AI9: =AF9*AG9*AH9 ->  | AJ9: =((U9-T9)*(3600/I9))/(Q9*3600) -> 0
A10: B | B10: SB16 | C10: =IFERROR(VLOOKUP(D10,Pieces!A:B,2,0)," ") -> G022-CP1 | D10: AXE D15-M11*100 maj-c | E10: 3913 | F10: 4756 | G10: 4328 | H10: 4405 | I10: =IFERROR(VLOOKUP(D10,Pieces!A:C,3,0),"") -> 46 | J10: 1 | K10: =(F10-E10)*J10 -> 843 | L10: =(G10-F10)*J10 -> -428 | M10: =(H10-G10)*J10 -> 77 | N10: =IF(I10="","",K10/I10) -> 18.32608696 | O10: =IF(I10="","",L10/I10) -> -9.304347826 | P10: =IF(I10="","",M10/I10) -> 1.673913043 | Q10: 15 | S10: =U10+T10-K10-L10-M10 -> 0 | U10: =(K10+L10+M10)-T10-V10 -> 492 | Z10: =IF(OR(I10="",I10=0),0,(U10+T10)/I10) -> 10.69565217 | AA10: =IF(OR(Q10=0,I10=0),"",Z10/Q10*100) -> 71.30434783 | AE10: =IF(AA10>85," ","WARNING") -> WARNING | AF10: =(N10+O10+P10)/(Q10*3600) -> 0.0001980676329 | AG10: =((3600/I10)*U10)/(N10+O10+P10) -> 3600 | AH10: =(U10-T10)/U10 -> 1 | AI10: =AF10*AG10*AH10 -> 0.7130434783 | AJ10: =((U10-T10)*(3600/I10))/(Q10*3600) -> 0.7130434783
A11: C | B11: BIGLIA 301 SM | C11: =IFERROR(VLOOKUP(D11,Pieces!A:B,2,0)," ") -> 230500 | D11: BRAS DE MANOEUVRE G MAN | E11: 1755 | F11: 1984 | G11: 1985 | H11: 2021 | I11: =IFERROR(VLOOKUP(D11,Pieces!A:C,3,0),"") -> 20 | J11: 1 | K11: 229 | L11: 1 | M11: 36 | N11: 11.45 | O11: 0.05 | P11: 1.8 | Q11: 15 | S11: =U11+T11-K11-L11-M11 -> 0 | U11: 266 | Z11: 13.3 | AA11: 88.66666667 | AF11: 0.0002462962963 | AG11: 3600 | AH11: 1 | AI11: 0.8866666667 | AJ11: 0.8866666667
A12: D | B12: BIGLIA 42 S2M bitourelle | C12: =IFERROR(VLOOKUP(D12,Pieces!A:B,2,0)," ") -> MI018-B42 | D12: GOUJON DE ROUE MITSIBITCHI GM-SUR-B42 | E12: 8183 | F12: 8438 | G12: 8438 | H12: 8438 | I12: =IFERROR(VLOOKUP(D12,Pieces!A:C,3,0),"") -> 55 | J12: 1 | K12: 255 | L12: 0 | M12: 0 | N12: 4.636363636 | O12: 0 | P12: 0 | Q12: 9 | S12: 0 | U12: 255 | Z12: 4.636363636 | AA12: 51.51515152 | AE12: WARNING | AF12: 0.0001430976431 | AG12: 3600 | AH12: 1 | AI12: 0.5151515152 | AJ12: 0.5151515152
A13: E | B13: L32 | C13: =IFERROR(VLOOKUP(D13,Pieces!A:B,2,0)," ") -> 200200-2022 | D13: Embout de tige-2022 | E13: 4771 | F13: 4771 | G13: 4771 | H13: 4771 | I13: =IFERROR(VLOOKUP(D13,Pieces!A:C,3,0),"") -> 40 | J13: 1 | K13: 0 | L13: 0 | M13: 0 | N13: 0 | O13: 0 | P13: 0 | Q13: 7 | S13: 0 | U13: 0 | Z13: 0 | AA13: 0 | AE13: WARNING | AF13: 0 | AJ13: 0
A14: F | B14: TSUGAMI | C14: =IFERROR(VLOOKUP(D14,Pieces!A:B,2,0)," ") -> i097-tsughami | D14: ECROU DE ROUE FORD RANGER- finition rayon | E14: 4314 | F14: 4714 | G14: 4714 | H14: 4744 | I14: =IFERROR(VLOOKUP(D14,Pieces!A:C,3,0),"") -> 100 | J14: 1 | K14: 400 | L14: 0 | M14: 30 | N14: 4 | O14: 0 | P14: 0.3 | Q14: 9 | S14: 0 | U14: 430 | Z14: 4.3 | AA14: 47.77777778 | AE14: WARNING | AF14: 0.0001327160494 | AG14: 3600 | AH14: 1 | AI14: 0.4777777778 | AJ14: 0.4777777778
A15: G | B15: Tour STAR SV-32-J | C15: =IFERROR(VLOOKUP(D15,Pieces!A:B,2,0)," ") -> 68.0815 | D15: Buse droite à collerette Ø8 M445 FRD | E15: 6664 | F15: 7148 | G15: 7250 | H15: 7352 | I15: =IFERROR(VLOOKUP(D15,Pieces!A:C,3,0),"") -> 60 | J15: 1 | K15: 484 | L15: 102 | M15: 102 | N15: 8.066666667 | O15: 1.7 | P15: 1.7 | Q15: 15 | S15: 0 | U15: 688 | Z15: 11.46666667 | AA15: 76.44444444 | AE15: WARNING | AF15: 0.000212345679 | AG15: 3600 | AH15: 1 | AI15: 0.7644444444 | AJ15: 0.7644444444
A16: H | B16: Tour CNC STAR SB avec embarreur LNS Express 220 | C16: =IFERROR(VLOOKUP(D16,Pieces!A:B,2,0)," ") -> outi-plot | D16: plot nez de marche | E16: 0 | F16: 0 | G16: 0 | H16: 0 | I16: =IFERROR(VLOOKUP(D16,Pieces!A:C,3,0),"") -> 75 | J16: 1 | K16: 0 | L16: 0 | M16: 0 | N16: 0 | O16: 0 | P16: 0 | Q16: 15 | S16: 0 | U16: 0 | Z16: 0 | AA16: 0 | AE16: WARNING | AF16: 0 | AJ16: 0
A17: I | B17: MULTIBROCHE | C17: =IFERROR(VLOOKUP(D17,Pieces!A:B,2,0)," ") -> MPS000300 | D17: raccord HEX 17 | E17: 0 | F17: 0 | G17: 0 | H17: 0 | I17: =IFERROR(VLOOKUP(D17,Pieces!A:C,3,0),"") -> 500 | J17: 1 | K17: 0 | L17: 0 | M17: 0 | N17: 0 | O17: 0 | P17: 0 | Q17: 15 | S17: 0 | U17: 0 | Z17: 0 | AA17: 0 | AE17: WARNING | AF17: 0 | AJ17: 0
A18: J | B18: Tour CNC WEILER UD 24 - 100 | C18: =IFERROR(VLOOKUP(D18,Pieces!A:B,2,0)," ") -> PT8666 | D18: Rehausse-NAKAMURHA | E18: 0 | F18: 1216 | G18: 1216 | H18: 1216 | I18: =IFERROR(VLOOKUP(D18,Pieces!A:C,3,0),"") -> 150 | J18: 1 | K18: 1216 | L18: 0 | M18: 0 | N18: 8.106666667 | O18: 0 | P18: 0 | Q18: 9 | S18: 0 | U18: 1216 | Z18: 8.106666667 | AA18: 90.07407407 | AF18: 0.0002502057613 | AG18: 3600 | AH18: 1 | AI18: 0.9007407407 | AJ18: 0.9007407407
A19: K | B19: TOUR WEILER | C19: =IFERROR(VLOOKUP(D19,Pieces!A:B,2,0)," ") -> I143-CP1 | D19: ECROU DE ROUE ISUZU-CP1 | E19: 3538 | F19: 3817 | G19: 3817 | H19: 3817 | I19: =IFERROR(VLOOKUP(D19,Pieces!A:C,3,0),"") -> 60 | J19: 1 | K19: 279 | L19: 0 | M19: 0 | N19: 4.65 | O19: 0 | P19: 0 | Q19: 9 | S19: 0 | U19: 279 | Z19: 4.65 | AA19: 51.66666667 | AE19: WARNING | AF19: 0.0001435185185 | AG19: 3600 | AH19: 1 | AI19: 0.5166666667 | AJ19: 0.5166666667
A20: L | B20: NAKAMURA | C20: =IFERROR(VLOOKUP(D20,Pieces!A:B,2,0)," ") -> I007 | D20: ECROU SEMI ARBRE ISUZU | E20: 831 | F20: 1012 | G20: 1012 | H20: 1012 | I20: =IFERROR(VLOOKUP(D20,Pieces!A:C,3,0),"") -> 30 | J20: 1 | K20: 181 | L20: 0 | M20: 0 | N20: 6.033333333 | O20: 0 | P20: 0 | Q20: 9 | S20: 0 | U20: 181 | Z20: 6.033333333 | AA20: 67.03703704 | AE20: WARNING | AF20: 0.0001862139918 | AG20: 3600 | AH20: 1 | AI20: 0.6703703704 | AJ20: 0.6703703704
A21: M | B21: MORI SEIKI 3 axes | C21: =IFERROR(VLOOKUP(D21,Pieces!A:B,2,0)," ") -> I110-01-004 | D21: INSERT LEVIER SURMOULEE 345833-01 - fraisage | E21: 1074 | F21: 1074 | G21: 1074 | H21: 1074 | I21: =IFERROR(VLOOKUP(D21,Pieces!A:C,3,0),"") -> 32 | J21: 9 | K21: 0 | L21: 0 | M21: 0 | N21: 0 | O21: 0 | P21: 0 | Q21: 9 | S21: 0 | U21: 0 | Z21: 0 | AA21: 0 | AE21: WARNING | AF21: 0 | AJ21: 0
A22: N | B22: MORI SEIKI 5 axes | C22: =IFERROR(VLOOKUP(D22,Pieces!A:B,2,0)," ") -> PIG-11D | D22: PIGNON 11 DENTS FRAISAGE | E22: 0 | F22: 0 | G22: 0 | H22: 0 | I22: =IFERROR(VLOOKUP(D22,Pieces!A:C,3,0),"") -> 120 | J22: 20 | K22: 0 | L22: 0 | M22: 0 | N22: 0 | O22: 0 | P22: 0 | Q22: 9 | S22: 0 | U22: 0 | Z22: 0 | AA22: 0 | AE22: WARNING | AF22: 0 | AJ22: 0
A23: O | B23: HARDING | C23: =IFERROR(VLOOKUP(D23,Pieces!A:B,2,0)," ") -> 480387 | D23: Evacuation 2 et 3 | E23: 35 | F23: 42 | G23: 42 | H23: 44 | I23: =IFERROR(VLOOKUP(D23,Pieces!A:C,3,0),"") -> 25 | J23: 20 | K23: 140 | L23: 0 | M23: 40 | N23: 5.6 | O23: 0 | P23: 1.6 | Q23: 11 | S23: 0 | U23: 180 | Z23: 7.2 | AA23: 65.45454545 | AE23: WARNING | AF23: 0.0001818181818 | AG23: 3600 | AH23: 1 | AI23: 0.6545454545 | AJ23: 0.6545454545
A24: P | B24: KITAMURA | C24: =IFERROR(VLOOKUP(D24,Pieces!A:B,2,0)," ") -> 9518-maj | D24: USINAGE BORNE RBD-1 | E24: 4934 | F24: 5081 | G24: 5081 | H24: 5104 | I24: =IFERROR(VLOOKUP(D24,Pieces!A:C,3,0),"") -> 300 | J24: 12 | K24: =(F24-E24)*J24 -> 1764 | L24: =(G24-F24)*J24 -> 0 | M24: =(H24-G24)*J24 -> 276 | N24: =IF(I24="","",K24/I24) -> 5.88 | O24: =IF(I24="","",L24/I24) -> 0 | P24: =IF(I24="","",M24/I24) -> 0.92 | Q24: 9 | R24: manque huile au matin | S24: =U24+T24-K24-L24-M24 -> 0 | U24: =(K24+L24+M24)-T24-V24 -> 2040 | Z24: =IF(OR(I24="",I24=0),0,(U24+T24)/I24) -> 6.8 | AA24: =IF(OR(Q24=0,I24=0),"",Z24/Q24*100) -> 75.55555556 | AE24: =IF(AA24>85," ","WARNING") -> WARNING | AF24: 0.0002098765432 | AG24: 3600 | AH24: 1 | AI24: 0.7555555556 | AJ24: 0.7555555556
J30: Approbateur:
J31: Date:
J32: Visa:

Sheet 30-3-22
A1: 30-03-2022 | Z1: CODE: DAS-PRO-16
Z2: DATE:30/08/2019
Z3: VERSION:07
Z4: PAGE:1
A8: SYMBOLE | B8: MACHINE | C8: REF ARTICLE | D8: DESIGNATION | E8: COMPTEUR AUJOURD’HUI à 8h | F8: COMPTEUR HIER à 17H | G8: COMPTEUR HIER à 22H | H8: COMPTEUR AUJOURD’HUI à 8h | I8: CADENCE | J8: NOMBRE DE PIECES FINIS PAR CYCLE | K8: PIECES SUIVANT COMPTEU 8h-->17h | L8: PIECES SUIVANT COMPTEUR 17H-->22H | M8: PIECES SUIVANT COMPTEUR 6h-->8h | N8: NOMBRE D'HEURES DE TRAVAIL 8h-->17h | O8: NOMBRE D'HEURES DE TRAVAIL 17H-->22H | P8: NOMBRE D'HEURES DE TRAVAIL 6h-->8h | Q8: NOMBRE D'HEURES DE TRAVAIL | R8: OBSERVATIONS | S8: Pieces manquantes | T8: PIECES NC | U8: Pieces REELLES | V8: Nombre des pieces à retoucher | W8: Cause de la non-conformité | X8: Effet de la non-conformité | Y8: Valeur de l'effet | Z8: NOMBRES D'HEURES SUIVANT LES PIECES REELLES | AA8: RENDEMENT | AB8: Fiche de contrôle qualité début de serie | AC8: Affutage | AD8: Gamme d'usingae | AE8: ALERTES | AF8: A | AG8: P | AH8: Q | AI8: OEE | AJ8: OEE
A9: A | B9: SST16 | C9: =IFERROR(VLOOKUP(D9,Pieces!A:B,2,0)," ") -> BROCH L 230 | D9: BROCHE ACIER D13 ZINGUE L230 | E9: 0 | F9: 0 | G9: 0 | H9: 0 | I9: =IFERROR(VLOOKUP(D9,Pieces!A:C,3,0),"") -> 120 | J9: 1 | K9: =(F9-E9)*J9 -> 0 | L9: =(G9-F9)*J9 -> 0 | M9: =(H9-G9)*J9 -> 0 | N9: =IF(I9="","",K9/I9) -> 0 | O9: =IF(I9="","",L9/I9) -> 0 | P9: =IF(I9="","",M9/I9) -> 0 | Q9: 15 | S9: =U9+T9-K9-L9-M9 -> 0 | U9: =(K9+L9+M9)-T9-V9 -> 0 | Z9: =IF(OR(I9="",I9=0),0,(U9+T9)/I9) -> 0 | AA9: =IF(OR(Q9=0,I9=0),"",Z9/Q9*100) -> 0 | AE9: =IF(AA9>85," ","WARNING") -> WARNING | AF9: =(N9+O9+P9)/(Q9*3600) -> 0 | AG9: =((3600/I9)*U9)/(N9+O9+P9) ->  | AH9: =(U9-T9)/U9 ->  | AI9: =AF9*AG9*AH9 ->  | AJ9: =((U9-T9)*(3600/I9))/(Q9*3600) -> 0
A10: B | B10: SB16 | C10: =IFERROR(VLOOKUP(D10,Pieces!A:B,2,0)," ") -> G022-CP1 | D10: AXE D15-M11*100 maj-c | E10: 3508 | F10: 3765 | G10: 3838 | H10: 3913 | I10: =IFERROR(VLOOKUP(D10,Pieces!A:C,3,0),"") -> 46 | J10: 1 | K10: =(F10-E10)*J10 -> 257 | L10: =(G10-F10)*J10 -> 73 | M10: =(H10-G10)*J10 -> 75 | N10: =IF(I10="","",K10/I10) -> 5.586956522 | O10: =IF(I10="","",L10/I10) -> 1.586956522 | P10: =IF(I10="","",M10/I10) -> 1.630434783 | Q10: 15 | R10: mauvaise aspect | S10: =U10+T10-K10-L10-M10 -> 0 | T10: 5 | U10: =(K10+L10+M10)-T10-V10 -> 400 | Z10: =IF(OR(I10="",I10=0),0,(U10+T10)/I10) -> 8.804347826 | AA10: =IF(OR(Q10=0,I10=0),"",Z10/Q10*100) -> 58.69565217 | AE10: =IF(AA10>85," ","WARNING") -> WARNING | AF10: =(N10+O10+P10)/(Q10*3600) -> 0.0001630434783 | AG10: =((3600/I10)*U10)/(N10+O10+P10) -> 3555.555556 | AH10: =(U10-T10)/U10 -> 0.9875 | AI10: =AF10*AG10*AH10 -> 0.5724637681 | AJ10: =((U10-T10)*(3600/I10))/(Q10*3600) -> 0.5724637681
A11: C | B11: BIGLIA 301 SM | C11: =IFERROR(VLOOKUP(D11,Pieces!A:B,2,0)," ") -> 230500 | D11: BRAS DE MANOEUVRE G MAN | E11: 1491 | F11: 1677 | G11: 1717 | H11: 1755 | I11: =IFERROR(VLOOKUP(D11,Pieces!A:C,3,0),"") -> 20 | J11: 1 | K11: 186 | L11: 40 | M11: 38 | N11: 9.3 | O11: 2 | P11: 1.9 | Q11: 15 | S11: =U11+T11-K11-L11-M11 -> 0 | U11: 264 | Z11: 13.2 | AA11: 88 | AF11: 0.0002444444444 | AG11: 3600 | AH11: 1 | AI11: 0.88 | AJ11: 0.88
A12: D | B12: BIGLIA 42 S2M bitourelle | C12: =IFERROR(VLOOKUP(D12,Pieces!A:B,2,0)," ") -> MI018-B42 | D12: GOUJON DE ROUE MITSIBITCHI GM-SUR-B42 | E12: 7938 | F12: 8183 | G12: 8183 | H12: 8183 | I12: =IFERROR(VLOOKUP(D12,Pieces!A:C,3,0),"") -> 55 | J12: 1 | K12: 245 | L12: 0 | M12: 0 | N12: 4.454545455 | O12: 0 | P12: 0 | Q12: 9 | S12: 0 | U12: 245 | Z12: 4.454545455 | AA12: 49.49494949 | AE12: WARNING | AF12: 0.0001374859708 | AG12: 3600 | AH12: 1 | AI12: 0.4949494949 | AJ12: 0.4949494949
A13: E | B13: L32 | C13: =IFERROR(VLOOKUP(D13,Pieces!A:B,2,0)," ") -> 200200-2022 | D13: Embout de tige-2022 | E13: 4771 | F13: 4771 | G13: 4771 | H13: 4771 | I13: =IFERROR(VLOOKUP(D13,Pieces!A:C,3,0),"") -> 40 | J13: 1 | K13: 0 | L13: 0 | M13: 0 | N13: 0 | O13: 0 | P13: 0 | Q13: 7 | S13: 0 | U13: 0 | Z13: 0 | AA13: 0 | AE13: WARNING | AF13: 0 | AJ13: 0
A14: F | B14: TSUGAMI | C14: =IFERROR(VLOOKUP(D14,Pieces!A:B,2,0)," ") -> i097-tsughami | D14: ECROU DE ROUE FORD RANGER- finition rayon | E14: 3847 | F14: 4314 | G14: 4314 | H14: 4314 | I14: =IFERROR(VLOOKUP(D14,Pieces!A:C,3,0),"") -> 100 | J14: 1 | K14: 467 | L14: 0 | M14: 0 | N14: 4.67 | O14: 0 | P14: 0 | Q14: 9 | S14: 0 | U14: 467 | Z14: 4.67 | AA14: 51.88888889 | AE14: WARNING | AF14: 0.0001441358025 | AG14: 3600 | AH14: 1 | AI14: 0.5188888889 | AJ14: 0.5188888889
A15: G | B15: Tour STAR SV-32-J | C15: =IFERROR(VLOOKUP(D15,Pieces!A:B,2,0)," ") -> 68.0815 | D15: Buse droite à collerette Ø8 M445 FRD | E15: 6027 | F15: 6494 | G15: 6585 | H15: 6664 | I15: =IFERROR(VLOOKUP(D15,Pieces!A:C,3,0),"") -> 60 | J15: 1 | K15: 467 | L15: 91 | M15: 79 | N15: 7.783333333 | O15: 1.516666667 | P15: 1.316666667 | Q15: 15 | S15: 0 | U15: 637 | Z15: 10.61666667 | AA15: 70.77777778 | AE15: WARNING | AF15: 0.0001966049383 | AG15: 3600 | AH15: 1 | AI15: 0.7077777778 | AJ15: 0.7077777778
A16: H | B16: Tour CNC STAR SB avec embarreur LNS Express 220 | C16: =IFERROR(VLOOKUP(D16,Pieces!A:B,2,0)," ") -> outi-plot | D16: plot nez de marche | E16: 0 | F16: 0 | G16: 0 | H16: 0 | I16: =IFERROR(VLOOKUP(D16,Pieces!A:C,3,0),"") -> 75 | J16: 1 | K16: 0 | L16: 0 | M16: 0 | N16: 0 | O16: 0 | P16: 0 | Q16: 15 | S16: 0 | U16: 0 | Z16: 0 | AA16: 0 | AE16: WARNING | AF16: 0 | AJ16: 0
A17: I | B17: MULTIBROCHE | C17: =IFERROR(VLOOKUP(D17,Pieces!A:B,2,0)," ") -> MPS000300 | D17: raccord HEX 17 | E17: 0 | F17: 0 | G17: 0 | H17: 0 | I17: =IFERROR(VLOOKUP(D17,Pieces!A:C,3,0),"") -> 500 | J17: 1 | K17: 0 | L17: 0 | M17: 0 | N17: 0 | O17: 0 | P17: 0 | Q17: 15 | S17: 0 | U17: 0 | Z17: 0 | AA17: 0 | AE17: WARNING | AF17: 0 | AJ17: 0
A18: J | B18: Tour CNC WEILER UD 24 - 100 | C18: =IFERROR(VLOOKUP(D18,Pieces!A:B,2,0)," ") -> PT8666 | D18: Rehausse-NAKAMURHA | E18: 1304 | F18: 2242 | G18: 2242 | H18: 2242 | I18: =IFERROR(VLOOKUP(D18,Pieces!A:C,3,0),"") -> 150 | J18: 1 | K18: 938 | L18: 0 | M18: 0 | N18: 6.253333333 | O18: 0 | P18: 0 | Q18: 9 | S18: 0 | U18: 938 | Z18: 6.253333333 | AA18: 69.48148148 | AE18: WARNING | AF18: 0.0001930041152 | AG18: 3600 | AH18: 1 | AI18: 0.6948148148 | AJ18: 0.6948148148
A19: K | B19: TOUR WEILER | C19: =IFERROR(VLOOKUP(D19,Pieces!A:B,2,0)," ") -> I143-CP1 | D19: ECROU DE ROUE ISUZU-CP1 | E19: 3130 | F19: 3538 | G19: 3538 | H19: 3538 | I19: =IFERROR(VLOOKUP(D19,Pieces!A:C,3,0),"") -> 60 | J19: 1 | K19: 408 | L19: 0 | M19: 0 | N19: 6.8 | O19: 0 | P19: 0 | Q19: 9 | S19: 0 | U19: 408 | Z19: 6.8 | AA19: 75.55555556 | AE19: WARNING | AF19: 0.0002098765432 | AG19: 3600 | AH19: 1 | AI19: 0.7555555556 | AJ19: 0.7555555556
A20: L | B20: NAKAMURA | C20: =IFERROR(VLOOKUP(D20,Pieces!A:B,2,0)," ") -> I007 | D20: ECROU SEMI ARBRE ISUZU | E20: 570 | F20: 753 | G20: 753 | H20: 831 | I20: =IFERROR(VLOOKUP(D20,Pieces!A:C,3,0),"") -> 30 | J20: 1 | K20: 183 | L20: 0 | M20: 78 | N20: 6.1 | O20: 0 | P20: 2.6 | Q20: 9 | S20: 0 | U20: 261 | Z20: 8.7 | AA20: 96.66666667 | AF20: 0.0002685185185 | AG20: 3600 | AH20: 1 | AI20: 0.9666666667 | AJ20: 0.9666666667
A21: M | B21: MORI SEIKI 3 axes | C21: =IFERROR(VLOOKUP(D21,Pieces!A:B,2,0)," ") -> I110-01-004 | D21: INSERT LEVIER SURMOULEE 345833-01 - fraisage | E21: 1074 | F21: 1074 | G21: 1074 | H21: 1074 | I21: =IFERROR(VLOOKUP(D21,Pieces!A:C,3,0),"") -> 32 | J21: 9 | K21: 0 | L21: 0 | M21: 0 | N21: 0 | O21: 0 | P21: 0 | Q21: 9 | S21: 0 | U21: 0 | Z21: 0 | AA21: 0 | AE21: WARNING | AF21: 0 | AJ21: 0
A22: N | B22: MORI SEIKI 5 axes | C22: =IFERROR(VLOOKUP(D22,Pieces!A:B,2,0)," ") -> PIG-11D | D22: PIGNON 11 DENTS FRAISAGE | E22: 0 | F22: 0 | G22: 0 | H22: 0 | I22: =IFERROR(VLOOKUP(D22,Pieces!A:C,3,0),"") -> 120 | J22: 20 | K22: 0 | L22: 0 | M22: 0 | N22: 0 | O22: 0 | P22: 0 | Q22: 9 | S22: 0 | U22: 0 | Z22: 0 | AA22: 0 | AE22: WARNING | AF22: 0 | AJ22: 0
A23: O | B23: HARDING | C23: =IFERROR(VLOOKUP(D23,Pieces!A:B,2,0)," ") -> 480387 | D23: Evacuation 2 et 3 | E23: 24 | F23: 32 | G23: 33 | H23: 35 | I23: =IFERROR(VLOOKUP(D23,Pieces!A:C,3,0),"") -> 25 | J23: 20 | K23: 160 | L23: 20 | M23: 40 | N23: 6.4 | O23: 0.8 | P23: 1.6 | Q23: 11 | S23: 0 | U23: 220 | Z23: 8.8 | AA23: 80 | AE23: WARNING | AF23: 0.0002222222222 | AG23: 3600 | AH23: 1 | AI23: 0.8 | AJ23: 0.8
A24: P | B24: KITAMURA | C24: =IFERROR(VLOOKUP(D24,Pieces!A:B,2,0)," ") -> 9518-maj | D24: USINAGE BORNE RBD-1 | E24: 4732 | F24: 4905 | G24: 4905 | H24: 4934 | I24: =IFERROR(VLOOKUP(D24,Pieces!A:C,3,0),"") -> 300 | J24: 12 | K24: =(F24-E24)*J24 -> 2076 | L24: =(G24-F24)*J24 -> 0 | M24: =(H24-G24)*J24 -> 348 | N24: =IF(I24="","",K24/I24) -> 6.92 | O24: =IF(I24="","",L24/I24) -> 0 | P24: =IF(I24="","",M24/I24) -> 1.16 | Q24: 9 | S24: =U24+T24-K24-L24-M24 -> 0 | U24: =(K24+L24+M24)-T24-V24 -> 2424 | Z24: =IF(OR(I24="",I24=0),0,(U24+T24)/I24) -> 8.08 | AA24: =IF(OR(Q24=0,I24=0),"",Z24/Q24*100) -> 89.77777778 | AE24: =IF(AA24>85," ","WARNING") ->  | AF24: 0.000249382716 | AG24: 3600 | AH24: 1 | AI24: 0.8977777778 | AJ24: 0.8977777778
J30: Approbateur:
J31: Date:
J32: Visa:

Sheet 29-3-22
A1: 29-03-2022 | Z1: CODE: DAS-PRO-16
Z2: DATE:30/08/2019
Z3: VERSION:07
Z4: PAGE:1
A8: SYMBOLE | B8: MACHINE | C8: REF ARTICLE | D8: DESIGNATION | E8: COMPTEUR AUJOURD’HUI à 8h | F8: COMPTEUR HIER à 17H | G8: COMPTEUR HIER à 22H | H8: COMPTEUR AUJOURD’HUI à 8h | I8: CADENCE | J8: NOMBRE DE PIECES FINIS PAR CYCLE | K8: PIECES SUIVANT COMPTEU 8h-->17h | L8: PIECES SUIVANT COMPTEUR 17H-->22H | M8: PIECES SUIVANT COMPTEUR 6h-->8h | N8: NOMBRE D'HEURES DE TRAVAIL 8h-->17h | O8: NOMBRE D'HEURES DE TRAVAIL 17H-->22H | P8: NOMBRE D'HEURES DE TRAVAIL 6h-->8h | Q8: NOMBRE D'HEURES DE TRAVAIL | R8: OBSERVATIONS | S8: Pieces manquantes | T8: PIECES NC | U8: Pieces REELLES | V8: Nombre des pieces à retoucher | W8: Cause de la non-conformité | X8: Effet de la non-conformité | Y8: Valeur de l'effet | Z8: NOMBRES D'HEURES SUIVANT LES PIECES REELLES | AA8: RENDEMENT | AB8: Fiche de contrôle qualité début de serie | AC8: Affutage | AD8: Gamme d'usingae | AE8: ALERTES | AF8: A | AG8: P | AH8: Q | AI8: OEE | AJ8: OEE
A9: A | B9: SST16 | C9: =IFERROR(VLOOKUP(D9,Pieces!A:B,2,0)," ") -> BROCH L 230 | D9: BROCHE ACIER D13 ZINGUE L230 | E9: 0 | F9: 0 | G9: 0 | H9: 0 | I9: =IFERROR(VLOOKUP(D9,Pieces!A:C,3,0),"") -> 120 | J9: 1 | K9: =(F9-E9)*J9 -> 0 | L9: =(G9-F9)*J9 -> 0 | M9: =(H9-G9)*J9 -> 0 | N9: =IF(I9="","",K9/I9) -> 0 | O9: =IF(I9="","",L9/I9) -> 0 | P9: =IF(I9="","",M9/I9) -> 0 | Q9: 15 | S9: =U9+T9-K9-L9-M9 -> 0 | U9: =(K9+L9+M9)-T9-V9 -> 0 | Z9: =IF(OR(I9="",I9=0),0,(U9+T9)/I9) -> 0 | AA9: =IF(OR(Q9=0,I9=0),"",Z9/Q9*100) -> 0 | AE9: =IF(AA9>85," ","WARNING") -> WARNING | AF9: =(N9+O9+P9)/(Q9*3600) -> 0 | AG9: =((3600/I9)*U9)/(N9+O9+P9) ->  | AH9: =(U9-T9)/U9 ->  | AI9: =AF9*AG9*AH9 ->  | AJ9: =((U9-T9)*(3600/I9))/(Q9*3600) -> 0
A10: B | B10: SB16 | C10: =IFERROR(VLOOKUP(D10,Pieces!A:B,2,0)," ") -> G022-CP1 | D10: AXE D15-M11*100 maj-c | E10: 3033 | F10: 3343 | G10: 3427 | H10: 3508 | I10: =IFERROR(VLOOKUP(D10,Pieces!A:C,3,0),"") -> 46 | J10: 1 | K10: =(F10-E10)*J10 -> 310 | L10: =(G10-F10)*J10 -> 84 | M10: =(H10-G10)*J10 -> 81 | N10: =IF(I10="","",K10/I10) -> 6.739130435 | O10: =IF(I10="","",L10/I10) -> 1.826086957 | P10: =IF(I10="","",M10/I10) -> 1.760869565 | Q10: 15 | R10: mettre a jour cadence TC=1mn17s cause de NC: roulement entre librement | S10: =U10+T10-K10-L10-M10 -> 0 | T10: 18 | U10: =(K10+L10+M10)-T10-V10 -> 457 | Z10: =IF(OR(I10="",I10=0),0,(U10+T10)/I10) -> 10.32608696 | AA10: =IF(OR(Q10=0,I10=0),"",Z10/Q10*100) -> 68.84057971 | AE10: =IF(AA10>85," ","WARNING") -> WARNING | AF10: =(N10+O10+P10)/(Q10*3600) -> 0.0001912238325 | AG10: =((3600/I10)*U10)/(N10+O10+P10) -> 3463.578947 | AH10: =(U10-T10)/U10 -> 0.9606126915 | AI10: =AF10*AG10*AH10 -> 0.6362318841 | AJ10: =((U10-T10)*(3600/I10))/(Q10*3600) -> 0.6362318841
A11: C | B11: BIGLIA 301 SM | C11: =IFERROR(VLOOKUP(D11,Pieces!A:B,2,0)," ") -> 230500 | D11: BRAS DE MANOEUVRE G MAN | E11: 1223 | F11: 1415 | G11: 1454 | H11: 1491 | I11: =IFERROR(VLOOKUP(D11,Pieces!A:C,3,0),"") -> 20 | J11: 1 | K11: 192 | L11: 39 | M11: 37 | N11: 9.6 | O11: 1.95 | P11: 1.85 | Q11: 15 | R11: TC=2mn40s | S11: =U11+T11-K11-L11-M11 -> 0 | U11: 268 | Z11: 13.4 | AA11: 89.33333333 | AF11: 0.0002481481481 | AG11: 3600 | AH11: 1 | AI11: 0.8933333333 | AJ11: 0.8933333333
A12: D | B12: BIGLIA 42 S2M bitourelle | C12: =IFERROR(VLOOKUP(D12,Pieces!A:B,2,0)," ") -> MI018-B42 | D12: GOUJON DE ROUE MITSIBITCHI GM-SUR-B42 | E12: 7634 | F12: 7938 | G12: 7938 | H12: 7938 | I12: =IFERROR(VLOOKUP(D12,Pieces!A:C,3,0),"") -> 55 | J12: 1 | K12: 304 | L12: 0 | M12: 0 | N12: 5.527272727 | O12: 0 | P12: 0 | Q12: 9 | S12: 0 | U12: 304 | Z12: 5.527272727 | AA12: 61.41414141 | AE12: WARNING | AF12: 0.0001705948373 | AG12: 3600 | AH12: 1 | AI12: 0.6141414141 | AJ12: 0.6141414141
A13: E | B13: L32 | C13: =IFERROR(VLOOKUP(D13,Pieces!A:B,2,0)," ") -> 200200-2022 | D13: Embout de tige-2022 | E13: 4771 | F13: 4771 | G13: 4771 | H13: 4771 | I13: =IFERROR(VLOOKUP(D13,Pieces!A:C,3,0),"") -> 40 | J13: 1 | K13: 0 | L13: 0 | M13: 0 | N13: 0 | O13: 0 | P13: 0 | Q13: 7 | S13: 0 | U13: 0 | Z13: 0 | AA13: 0 | AE13: WARNING | AF13: 0 | AJ13: 0
A14: F | B14: TSUGAMI | C14: =IFERROR(VLOOKUP(D14,Pieces!A:B,2,0)," ") -> i097-tsughami | D14: ECROU DE ROUE FORD RANGER- finition rayon | E14: 3419 | F14: 3847 | G14: 3847 | H14: 3847 | I14: =IFERROR(VLOOKUP(D14,Pieces!A:C,3,0),"") -> 100 | J14: 1 | K14: 428 | L14: 0 | M14: 0 | N14: 4.28 | O14: 0 | P14: 0 | Q14: 9 | S14: 0 | U14: 428 | Z14: 4.28 | AA14: 47.55555556 | AE14: WARNING | AF14: 0.0001320987654 | AG14: 3600 | AH14: 1 | AI14: 0.4755555556 | AJ14: 0.4755555556
A15: G | B15: Tour STAR SV-32-J | C15: =IFERROR(VLOOKUP(D15,Pieces!A:B,2,0)," ") -> 68.0815 | D15: Buse droite à collerette Ø8 M445 FRD | E15: 5360 | F15: 5832 | G15: 5930 | H15: 6027 | I15: =IFERROR(VLOOKUP(D15,Pieces!A:C,3,0),"") -> 60 | J15: 1 | K15: 472 | L15: 98 | M15: 97 | N15: 7.866666667 | O15: 1.633333333 | P15: 1.616666667 | Q15: 15 | R15: deux pieces de réglage | S15: 0 | T15: 2 | U15: 665 | Z15: 11.11666667 | AA15: 74.11111111 | AE15: WARNING | AF15: 0.0002058641975 | AG15: 3589.205397 | AH15: 0.9969924812 | AI15: 0.7366666667 | AJ15: 0.7366666667
A16: H | B16: Tour CNC STAR SB avec embarreur LNS Express 220 | C16: =IFERROR(VLOOKUP(D16,Pieces!A:B,2,0)," ") -> outi-plot | D16: plot nez de marche | E16: 0 | F16: 0 | G16: 0 | H16: 0 | I16: =IFERROR(VLOOKUP(D16,Pieces!A:C,3,0),"") -> 75 | J16: 1 | K16: 0 | L16: 0 | M16: 0 | N16: 0 | O16: 0 | P16: 0 | Q16: 15 | S16: 0 | U16: 0 | Z16: 0 | AA16: 0 | AE16: WARNING | AF16: 0 | AJ16: 0
A17: I | B17: MULTIBROCHE | C17: =IFERROR(VLOOKUP(D17,Pieces!A:B,2,0)," ") -> MPS000300 | D17: raccord HEX 17 | E17: 0 | F17: 0 | G17: 0 | H17: 0 | I17: =IFERROR(VLOOKUP(D17,Pieces!A:C,3,0),"") -> 500 | J17: 1 | K17: 0 | L17: 0 | M17: 0 | N17: 0 | O17: 0 | P17: 0 | Q17: 15 | S17: 0 | U17: 0 | Z17: 0 | AA17: 0 | AE17: WARNING | AF17: 0 | AJ17: 0
A18: J | B18: Tour CNC WEILER UD 24 - 100 | C18: =IFERROR(VLOOKUP(D18,Pieces!A:B,2,0)," ") -> PT8666 | D18: Rehausse-NAKAMURHA | E18: 787 | F18: 1304 | G18: 1304 | H18: 1304 | I18: =IFERROR(VLOOKUP(D18,Pieces!A:C,3,0),"") -> 150 | J18: 1 | K18: 517 | L18: 0 | M18: 0 | N18: 3.446666667 | O18: 0 | P18: 0 | Q18: 9 | R18: AVEC 335 pcs FINIS | S18: 0 | U18: 517 | Z18: 3.446666667 | AA18: 38.2962963 | AE18: WARNING | AF18: 0.0001063786008 | AG18: 3600 | AH18: 1 | AI18: 0.382962963 | AJ18: 0.382962963
A19: K | B19: TOUR WEILER | C19: =IFERROR(VLOOKUP(D19,Pieces!A:B,2,0)," ") -> I143-CP1 | D19: ECROU DE ROUE ISUZU-CP1 | E19: 2954 | F19: 3130 | G19: 3130 | H19: 3130 | I19: =IFERROR(VLOOKUP(D19,Pieces!A:C,3,0),"") -> 60 | J19: 1 | K19: 176 | L19: 0 | M19: 0 | N19: 2.933333333 | O19: 0 | P19: 0 | Q19: 9 | S19: 0 | U19: 176 | Z19: 2.933333333 | AA19: 32.59259259 | AE19: WARNING | AF19: 9.053497942e-05 | AG19: 3600 | AH19: 1 | AI19: 0.3259259259 | AJ19: 0.3259259259
A20: L | B20: NAKAMURA | C20: =IFERROR(VLOOKUP(D20,Pieces!A:B,2,0)," ") -> I007 | D20: ECROU SEMI ARBRE ISUZU | E20: 354 | F20: 500 | G20: 529 | H20: 570 | I20: =IFERROR(VLOOKUP(D20,Pieces!A:C,3,0),"") -> 30 | J20: 1 | K20: 146 | L20: 29 | M20: 41 | N20: 4.866666667 | O20: 0.9666666667 | P20: 1.366666667 | Q20: 9 | S20: 0 | U20: 216 | Z20: 7.2 | AA20: 80 | AE20: WARNING | AF20: 0.0002222222222 | AG20: 3600 | AH20: 1 | AI20: 0.8 | AJ20: 0.8
A21: M | B21: MORI SEIKI 3 axes | C21: =IFERROR(VLOOKUP(D21,Pieces!A:B,2,0)," ") -> I110-01-004 | D21: INSERT LEVIER SURMOULEE 345833-01 - fraisage | E21: 1061 | F21: 1074 | G21: 1074 | H21: 1074 | I21: =IFERROR(VLOOKUP(D21,Pieces!A:C,3,0),"") -> 32 | J21: 9 | K21: 117 | L21: 0 | M21: 0 | N21: 3.65625 | O21: 0 | P21: 0 | Q21: 9 | S21: 0 | U21: 117 | Z21: 3.65625 | AA21: 40.625 | AE21: WARNING | AF21: 0.0001128472222 | AG21: 3600 | AH21: 1 | AI21: 0.40625 | AJ21: 0.40625
A22: N | B22: MORI SEIKI 5 axes | C22: =IFERROR(VLOOKUP(D22,Pieces!A:B,2,0)," ") -> PIG-11D | D22: PIGNON 11 DENTS FRAISAGE | E22: 0 | F22: 0 | G22: 0 | H22: 0 | I22: =IFERROR(VLOOKUP(D22,Pieces!A:C,3,0),"") -> 120 | J22: 20 | K22: 0 | L22: 0 | M22: 0 | N22: 0 | O22: 0 | P22: 0 | Q22: 9 | S22: 0 | U22: 0 | Z22: 0 | AA22: 0 | AE22: WARNING | AF22: 0 | AJ22: 0
A23: O | B23: HARDING | C23: =IFERROR(VLOOKUP(D23,Pieces!A:B,2,0)," ") -> 480387 | D23: Evacuation 2 et 3 | E23: 14 | F23: 21 | G23: 23 | H23: 24 | I23: =IFERROR(VLOOKUP(D23,Pieces!A:C,3,0),"") -> 25 | J23: 20 | K23: 140 | L23: 40 | M23: 20 | N23: 5.6 | O23: 1.6 | P23: 0.8 | Q23: 11 | S23: 0 | U23: 200 | Z23: 8 | AA23: 72.72727273 | AE23: WARNING | AF23: 0.000202020202 | AG23: 3600 | AH23: 1 | AI23: 0.7272727273 | AJ23: 0.7272727273
A24: P | B24: KITAMURA | C24: =IFERROR(VLOOKUP(D24,Pieces!A:B,2,0)," ") -> 9518-maj | D24: USINAGE BORNE RBD-1 | E24: 4582 | F24: 4710 | G24: 4710 | H24: 4732 | I24: =IFERROR(VLOOKUP(D24,Pieces!A:C,3,0),"") -> 300 | J24: 12 | K24: =(F24-E24)*J24 -> 1536 | L24: =(G24-F24)*J24 -> 0 | M24: =(H24-G24)*J24 -> 264 | N24: =IF(I24="","",K24/I24) -> 5.12 | O24: =IF(I24="","",L24/I24) -> 0 | P24: =IF(I24="","",M24/I24) -> 0.88 | Q24: 9 | S24: =U24+T24-K24-L24-M24 -> 0 | U24: =(K24+L24+M24)-T24-V24 -> 1800 | Z24: =IF(OR(I24="",I24=0),0,(U24+T24)/I24) -> 6 | AA24: =IF(OR(Q24=0,I24=0),"",Z24/Q24*100) -> 66.66666667 | AE24: =IF(AA24>85," ","WARNING") -> WARNING | AF24: 0.0001851851852 | AG24: 3600 | AH24: 1 | AI24: 0.6666666667 | AJ24: 0.6666666667
J30: Approbateur:
J31: Date:
J32: Visa:

Sheet 28-3-22
A1: 28-03-2022 | Z1: CODE: DAS-PRO-16
Z2: DATE:30/08/2019
Z3: VERSION:07
Z4: PAGE:1
A8: SYMBOLE | B8: MACHINE | C8: REF ARTICLE | D8: DESIGNATION | E8: COMPTEUR AUJOURD’HUI à 8h | F8: COMPTEUR HIER à 17H | G8: COMPTEUR HIER à 22H | H8: COMPTEUR AUJOURD’HUI à 8h | I8: CADENCE | J8: NOMBRE DE PIECES FINIS PAR CYCLE | K8: PIECES SUIVANT COMPTEU 8h-->17h | L8: PIECES SUIVANT COMPTEUR 17H-->22H | M8: PIECES SUIVANT COMPTEUR 6h-->8h | N8: NOMBRE D'HEURES DE TRAVAIL 8h-->17h | O8: NOMBRE D'HEURES DE TRAVAIL 17H-->22H | P8: NOMBRE D'HEURES DE TRAVAIL 6h-->8h | Q8: NOMBRE D'HEURES DE TRAVAIL | R8: OBSERVATIONS | S8: Pieces manquantes | T8: PIECES NC | U8: Pieces REELLES | V8: Nombre des pieces à retoucher | W8: Cause de la non-conformité | X8: Effet de la non-conformité | Y8: Valeur de l'effet | Z8: NOMBRES D'HEURES SUIVANT LES PIECES REELLES | AA8: RENDEMENT | AB8: Fiche de contrôle qualité début de serie | AC8: Affutage | AD8: Gamme d'usingae | AE8: ALERTES | AF8: A | AG8: P | AH8: Q | AI8: OEE | AJ8: OEE
A9: A | B9: SST16 | C9: =IFERROR(VLOOKUP(D9,Pieces!A:B,2,0)," ") -> BROCH L 230 | D9: BROCHE ACIER D13 ZINGUE L230 | E9: 0 | F9: 0 | G9: 131 | H9: 239 | I9: =IFERROR(VLOOKUP(D9,Pieces!A:C,3,0),"") -> 120 | J9: 1 | K9: =(F9-E9)*J9 -> 0 | L9: =(G9-F9)*J9 -> 131 | M9: =(H9-G9)*J9 -> 108 | N9: =IF(I9="","",K9/I9) -> 0 | O9: =IF(I9="","",L9/I9) -> 1.091666667 | P9: =IF(I9="","",M9/I9) -> 0.9 | Q9: 15 | R9: pour la longeur L180 compteur fini est 417 a 16:45 | S9: =U9+T9-K9-L9-M9 -> 0 | U9: =(K9+L9+M9)-T9-V9 -> 239 | Z9: =IF(OR(I9="",I9=0),0,(U9+T9)/I9) -> 1.991666667 | AA9: =IF(OR(Q9=0,I9=0),"",Z9/Q9*100) -> 13.27777778 | AE9: =IF(AA9>85," ","WARNING") -> WARNING | AF9: =(N9+O9+P9)/(Q9*3600) -> 3.688271605e-05 | AG9: =((3600/I9)*U9)/(N9+O9+P9) -> 3600 | AH9: =(U9-T9)/U9 -> 1 | AI9: =AF9*AG9*AH9 -> 0.1327777778 | AJ9: =((U9-T9)*(3600/I9))/(Q9*3600) -> 0.1327777778
A10: B | B10: SB16 | C10: =IFERROR(VLOOKUP(D10,Pieces!A:B,2,0)," ") -> G022-CP1 | D10: AXE D15-M11x100 | E10: 2744 | F10: 2978 | G10: 2991 | H10: 3033 | I10: =IFERROR(VLOOKUP(D10,Pieces!A:C,3,0),"") -> 30 | J10: 1 | K10: =(F10-E10)*J10 -> 234 | L10: =(G10-F10)*J10 -> 13 | M10: =(H10-G10)*J10 -> 42 | N10: =IF(I10="","",K10/I10) -> 7.8 | O10: =IF(I10="","",L10/I10) -> 0.4333333333 | P10: =IF(I10="","",M10/I10) -> 1.4 | Q10: 15 | S10: =U10+T10-K10-L10-M10 -> 0 | U10: =(K10+L10+M10)-T10-V10 -> 289 | Z10: =IF(OR(I10="",I10=0),0,(U10+T10)/I10) -> 9.633333333 | AA10: =IF(OR(Q10=0,I10=0),"",Z10/Q10*100) -> 64.22222222 | AE10: =IF(AA10>85," ","WARNING") -> WARNING | AF10: =(N10+O10+P10)/(Q10*3600) -> 0.0001783950617 | AG10: =((3600/I10)*U10)/(N10+O10+P10) -> 3600 | AH10: =(U10-T10)/U10 -> 1 | AI10: =AF10*AG10*AH10 -> 0.6422222222 | AJ10: =((U10-T10)*(3600/I10))/(Q10*3600) -> 0.6422222222
A11: C | B11: BIGLIA 301 SM | C11: =IFERROR(VLOOKUP(D11,Pieces!A:B,2,0)," ") -> 230500 | D11: BRAS DE MANOEUVRE G MAN | E11: 1083 | F11: 1150 | G11: 1190 | H11: 1223 | I11: =IFERROR(VLOOKUP(D11,Pieces!A:C,3,0),"") -> 20 | J11: 1 | K11: 67 | L11: 40 | M11: 33 | N11: 3.35 | O11: 2 | P11: 1.65 | Q11: 15 | S11: =U11+T11-K11-L11-M11 -> 0 | U11: 140 | Z11: 7 | AA11: 46.66666667 | AE11: WARNING | AF11: 0.0001296296296 | AG11: 3600 | AH11: 1 | AI11: 0.4666666667 | AJ11: 0.4666666667
A12: D | B12: BIGLIA 42 S2M bitourelle | C12: =IFERROR(VLOOKUP(D12,Pieces!A:B,2,0)," ") -> MI018-B42 | D12: GOUJON DE ROUE MITSIBITCHI GM-SUR-B42 | E12: 7360 | F12: 7634 | G12: 7634 | H12: 7634 | I12: =IFERROR(VLOOKUP(D12,Pieces!A:C,3,0),"") -> 55 | J12: 1 | K12: 274 | L12: 0 | M12: 0 | N12: 4.981818182 | O12: 0 | P12: 0 | Q12: 9 | S12: 0 | U12: 274 | Z12: 4.981818182 | AA12: 55.35353535 | AE12: WARNING | AF12: 0.0001537598204 | AG12: 3600 | AH12: 1 | AI12: 0.5535353535 | AJ12: 0.5535353535
A13: E | B13: L32 | C13: =IFERROR(VLOOKUP(D13,Pieces!A:B,2,0)," ") -> 200200-2022 | D13: Embout de tige-2022 | E13: 4771 | F13: 4771 | G13: 4771 | H13: 4771 | I13: =IFERROR(VLOOKUP(D13,Pieces!A:C,3,0),"") -> 40 | J13: 1 | K13: 0 | L13: 0 | M13: 0 | N13: 0 | O13: 0 | P13: 0 | Q13: 7 | S13: 0 | U13: 0 | Z13: 0 | AA13: 0 | AE13: WARNING | AF13: 0 | AJ13: 0
A14: F | B14: TSUGAMI | C14: =IFERROR(VLOOKUP(D14,Pieces!A:B,2,0)," ") -> i097-tsughami | D14: ECROU DE ROUE FORD RANGER- finition rayon | E14: 2918 | F14: 3419 | G14: 3419 | H14: 3419 | I14: =IFERROR(VLOOKUP(D14,Pieces!A:C,3,0),"") -> 100 | J14: 1 | K14: 501 | L14: 0 | M14: 0 | N14: 5.01 | O14: 0 | P14: 0 | Q14: 9 | S14: 0 | U14: 501 | Z14: 5.01 | AA14: 55.66666667 | AE14: WARNING | AF14: 0.0001546296296 | AG14: 3600 | AH14: 1 | AI14: 0.5566666667 | AJ14: 0.5566666667
A15: G | B15: Tour STAR SV-32-J | C15: =IFERROR(VLOOKUP(D15,Pieces!A:B,2,0)," ") -> 68.0815 | D15: Buse droite à collerette Ø8 M445 FRD | E15: 4648 | F15: 5150 | G15: 5260 | H15: 5360 | I15: =IFERROR(VLOOKUP(D15,Pieces!A:C,3,0),"") -> 60 | J15: 1 | K15: 502 | L15: 110 | M15: 100 | N15: 8.366666667 | O15: 1.833333333 | P15: 1.666666667 | Q15: 15 | S15: 0 | U15: 712 | Z15: 11.86666667 | AA15: 79.11111111 | AE15: WARNING | AF15: 0.0002197530864 | AG15: 3600 | AH15: 1 | AI15: 0.7911111111 | AJ15: 0.7911111111
A16: H | B16: Tour CNC STAR SB avec embarreur LNS Express 220 | C16: =IFERROR(VLOOKUP(D16,Pieces!A:B,2,0)," ") -> outi-plot | D16: plot nez de marche | E16: 816 | F16: 816 | G16: 816 | H16: 816 | I16: =IFERROR(VLOOKUP(D16,Pieces!A:C,3,0),"") -> 75 | J16: 1 | K16: 0 | L16: 0 | M16: 0 | N16: 0 | O16: 0 | P16: 0 | Q16: 15 | S16: 0 | U16: 0 | Z16: 0 | AA16: 0 | AE16: WARNING | AF16: 0 | AJ16: 0
A17: I | B17: MULTIBROCHE | C17: =IFERROR(VLOOKUP(D17,Pieces!A:B,2,0)," ") -> MPS000300 | D17: raccord HEX 17 | E17: 0 | F17: 0 | G17: 0 | H17: 0 | I17: =IFERROR(VLOOKUP(D17,Pieces!A:C,3,0),"") -> 500 | J17: 1 | K17: 0 | L17: 0 | M17: 0 | N17: 0 | O17: 0 | P17: 0 | Q17: 15 | S17: 0 | U17: 0 | Z17: 0 | AA17: 0 | AE17: WARNING | AF17: 0 | AJ17: 0
A18: J | B18: Tour CNC WEILER UD 24 - 100 | C18: =IFERROR(VLOOKUP(D18,Pieces!A:B,2,0)," ") -> PT8666 | D18: Rehausse-NAKAMURHA | E18: 0 | F18: 787 | G18: 787 | H18: 787 | I18: =IFERROR(VLOOKUP(D18,Pieces!A:C,3,0),"") -> 150 | J18: 1 | K18: 787 | L18: 0 | M18: 0 | N18: 5.246666667 | O18: 0 | P18: 0 | Q18: 9 | R18: des pieces finis | S18: 0 | U18: 787 | Z18: 5.246666667 | AA18: 58.2962963 | AE18: WARNING | AF18: 0.0001619341564 | AG18: 3600 | AH18: 1 | AI18: 0.582962963 | AJ18: 0.582962963
A19: K | B19: TOUR WEILER | C19: =IFERROR(VLOOKUP(D19,Pieces!A:B,2,0)," ") -> I143-CP1 | D19: ECROU DE ROUE ISUZU-CP1 | E19: 2610 | F19: 2924 | G19: 2924 | H19: 2954 | I19: =IFERROR(VLOOKUP(D19,Pieces!A:C,3,0),"") -> 60 | J19: 1 | K19: 314 | L19: 0 | M19: 30 | N19: 5.233333333 | O19: 0 | P19: 0.5 | Q19: 9 | S19: 0 | U19: 344 | Z19: 5.733333333 | AA19: 63.7037037 | AE19: WARNING | AF19: 0.0001769547325 | AG19: 3600 | AH19: 1 | AI19: 0.637037037 | AJ19: 0.637037037
A20: L | B20: NAKAMURA | C20: =IFERROR(VLOOKUP(D20,Pieces!A:B,2,0)," ") -> I007 | D20: ECROU SEMI ARBRE ISUZU | E20: 114 | F20: 313 | G20: 313 | H20: 354 | I20: =IFERROR(VLOOKUP(D20,Pieces!A:C,3,0),"") -> 30 | J20: 1 | K20: 199 | L20: 0 | M20: 41 | N20: 6.633333333 | O20: 0 | P20: 1.366666667 | Q20: 9 | S20: 0 | U20: 240 | Z20: 8 | AA20: 88.88888889 | AF20: 0.0002469135802 | AG20: 3600 | AH20: 1 | AI20: 0.8888888889 | AJ20: 0.8888888889
A21: M | B21: MORI SEIKI 3 axes | C21: =IFERROR(VLOOKUP(D21,Pieces!A:B,2,0)," ") -> I110-01-004 | D21: INSERT LEVIER SURMOULEE 345833-01 - fraisage | E21: 1025 | F21: 1054 | G21: 1054 | H21: 1061 | I21: =IFERROR(VLOOKUP(D21,Pieces!A:C,3,0),"") -> 32 | J21: 9 | K21: 261 | L21: 0 | M21: 63 | N21: 8.15625 | O21: 0 | P21: 1.96875 | Q21: 9 | S21: 0 | U21: 324 | Z21: 10.125 | AA21: 112.5 | AF21: 0.0003125 | AG21: 3600 | AH21: 1 | AI21: 1.125 | AJ21: 1.125
A22: N | B22: MORI SEIKI 5 axes | C22: =IFERROR(VLOOKUP(D22,Pieces!A:B,2,0)," ") -> PIG-11D | D22: PIGNON 11 DENTS FRAISAGE | E22: 0 | F22: 0 | G22: 0 | H22: 0 | I22: =IFERROR(VLOOKUP(D22,Pieces!A:C,3,0),"") -> 120 | J22: 20 | K22: 0 | L22: 0 | M22: 0 | N22: 0 | O22: 0 | P22: 0 | Q22: 9 | S22: 0 | U22: 0 | Z22: 0 | AA22: 0 | AE22: WARNING | AF22: 0 | AJ22: 0
A23: O | B23: HARDING | C23: =IFERROR(VLOOKUP(D23,Pieces!A:B,2,0)," ") -> 480387 | D23: Evacuation 2 et 3 | E23: 4 | F23: 11 | G23: 13 | H23: 14 | I23: 25 | J23: 20 | K23: 140 | L23: 40 | M23: 20 | N23: 5.6 | O23: 1.6 | P23: 0.8 | Q23: 11 | S23: 0 | U23: 200 | Z23: 8 | AA23: 72.72727273 | AE23: WARNING | AF23: 0.000202020202 | AG23: 3600 | AH23: 1 | AI23: 0.7272727273 | AJ23: 0.7272727273
A24: P | B24: KITAMURA | C24: =IFERROR(VLOOKUP(D24,Pieces!A:B,2,0)," ") -> 9518-maj | D24: USINAGE BORNE RBD-1 | E24: 4405 | F24: 4582 | G24: 4582 | H24: 4582 | I24: =IFERROR(VLOOKUP(D24,Pieces!A:C,3,0),"") -> 300 | J24: 12 | K24: =(F24-E24)*J24 -> 2124 | L24: =(G24-F24)*J24 -> 0 | M24: =(H24-G24)*J24 -> 0 | N24: =IF(I24="","",K24/I24) -> 7.08 | O24: =IF(I24="","",L24/I24) -> 0 | P24: =IF(I24="","",M24/I24) -> 0 | Q24: 9 | S24: =U24+T24-K24-L24-M24 -> 0 | U24: =(K24+L24+M24)-T24-V24 -> 2124 | Z24: =IF(OR(I24="",I24=0),0,(U24+T24)/I24) -> 7.08 | AA24: =IF(OR(Q24=0,I24=0),"",Z24/Q24*100) -> 78.66666667 | AE24: =IF(AA24>85," ","WARNING") -> WARNING | AF24: 0.0002185185185 | AG24: 3600 | AH24: 1 | AI24: 0.7866666667 | AJ24: 0.7866666667
J30: Approbateur:
J31: Date:
J32: Visa:

Sheet 26-3-22
A1: 26-03-2022 | Z1: CODE: DAS-PRO-16
Z2: DATE:30/08/2019
Z3: VERSION:07
Z4: PAGE:1
A8: SYMBOLE | B8: MACHINE | C8: REF ARTICLE | D8: DESIGNATION | E8: COMPTEUR AUJOURD’HUI à 8h | F8: COMPTEUR HIER à 17H | G8: COMPTEUR HIER à 22H | H8: COMPTEUR AUJOURD’HUI à 8h | I8: CADENCE | J8: NOMBRE DE PIECES FINIS PAR CYCLE | K8: PIECES SUIVANT COMPTEU 8h-->17h | L8: PIECES SUIVANT COMPTEUR 17H-->22H | M8: PIECES SUIVANT COMPTEUR 6h-->8h | N8: NOMBRE D'HEURES DE TRAVAIL 8h-->17h | O8: NOMBRE D'HEURES DE TRAVAIL 17H-->22H | P8: NOMBRE D'HEURES DE TRAVAIL 6h-->8h | Q8: NOMBRE D'HEURES DE TRAVAIL | R8: OBSERVATIONS | S8: Pieces manquantes | T8: PIECES NC | U8: Pieces REELLES | V8: Nombre des pieces à retoucher | W8: Cause de la non-conformité | X8: Effet de la non-conformité | Y8: Valeur de l'effet | Z8: NOMBRES D'HEURES SUIVANT LES PIECES REELLES | AA8: RENDEMENT | AB8: Fiche de contrôle qualité début de serie | AC8: Affutage | AD8: Gamme d'usingae | AE8: ALERTES | AF8: A | AG8: P | AH8: Q | AI8: OEE | AJ8: OEE
A9: A | B9: SST16 | C9: =IFERROR(VLOOKUP(D9,Pieces!A:B,2,0)," ") -> 200101 | D9: AXE D'ARTICULATION | E9: 6195 | F9: 6195 | G9: 6195 | H9: 6195 | I9: =IFERROR(VLOOKUP(D9,Pieces!A:C,3,0),"") -> 120 | J9: 1 | K9: =(F9-E9)*J9 -> 0 | L9: =(G9-F9)*J9 -> 0 | M9: =(H9-G9)*J9 -> 0 | N9: =IF(I9="","",K9/I9) -> 0 | O9: =IF(I9="","",L9/I9) -> 0 | P9: =IF(I9="","",M9/I9) -> 0 | Q9: 7 | S9: =U9+T9-K9-L9-M9 -> 0 | U9: =(K9+L9+M9)-T9-V9 -> 0 | Z9: =IF(OR(I9="",I9=0),0,(U9+T9)/I9) -> 0 | AA9: =IF(OR(Q9=0,I9=0),"",Z9/Q9*100) -> 0 | AE9: =IF(AA9>85," ","WARNING") -> WARNING | AF9: =(N9+O9+P9)/(Q9*3600) -> 0 | AG9: =((3600/I9)*U9)/(N9+O9+P9) ->  | AH9: =(U9-T9)/U9 ->  | AI9: =AF9*AG9*AH9 ->  | AJ9: =((U9-T9)*(3600/I9))/(Q9*3600) -> 0
A10: B | B10: SB16 | C10: =IFERROR(VLOOKUP(D10,Pieces!A:B,2,0)," ") -> G022-CP1 | D10: AXE D15-M11x100 | E10: 2482 | F10: 2668 | G10: 2668 | H10: 2744 | I10: =IFERROR(VLOOKUP(D10,Pieces!A:C,3,0),"") -> 30 | J10: 1 | K10: =(F10-E10)*J10 -> 186 | L10: =(G10-F10)*J10 -> 0 | M10: =(H10-G10)*J10 -> 76 | N10: =IF(I10="","",K10/I10) -> 6.2 | O10: =IF(I10="","",L10/I10) -> 0 | P10: =IF(I10="","",M10/I10) -> 2.533333333 | Q10: 7 | S10: =U10+T10-K10-L10-M10 -> 0 | U10: =(K10+L10+M10)-T10-V10 -> 262 | Z10: =IF(OR(I10="",I10=0),0,(U10+T10)/I10) -> 8.733333333 | AA10: =IF(OR(Q10=0,I10=0),"",Z10/Q10*100) -> 124.7619048 | AE10: =IF(AA10>85," ","WARNING") ->  | AF10: =(N10+O10+P10)/(Q10*3600) -> 0.0003465608466 | AG10: =((3600/I10)*U10)/(N10+O10+P10) -> 3600 | AH10: =(U10-T10)/U10 -> 1 | AI10: =AF10*AG10*AH10 -> 1.247619048 | AJ10: =((U10-T10)*(3600/I10))/(Q10*3600) -> 1.247619048
A11: C | B11: BIGLIA 301 SM | C11: =IFERROR(VLOOKUP(D11,Pieces!A:B,2,0)," ") -> 230500 | D11: BRAS DE MANOEUVRE G MAN | E11: 1064 | F11: 1083 | G11: 1083 | H11: 1083 | I11: =IFERROR(VLOOKUP(D11,Pieces!A:C,3,0),"") -> 20 | J11: 1 | K11: 19 | L11: 0 | M11: 0 | N11: 0.95 | O11: 0 | P11: 0 | Q11: 7 | S11: =U11+T11-K11-L11-M11 -> 0 | U11: 19 | Z11: 0.95 | AA11: 13.57142857 | AE11: WARNING | AF11: 3.76984127e-05 | AG11: 3600 | AH11: 1 | AI11: 0.1357142857 | AJ11: 0.1357142857
A12: D | B12: BIGLIA 42 S2M bitourelle | C12: =IFERROR(VLOOKUP(D12,Pieces!A:B,2,0)," ") -> MI018-B42 | D12: GOUJON DE ROUE MITSIBITCHI GM-SUR-B42 | E12: 7144 | F12: 7341 | G12: 7341 | H12: 7360 | I12: =IFERROR(VLOOKUP(D12,Pieces!A:C,3,0),"") -> 55 | J12: 1 | K12: 197 | L12: 0 | M12: 19 | N12: 3.581818182 | O12: 0 | P12: 0.3454545455 | Q12: 5 | S12: 0 | U12: 216 | Z12: 3.927272727 | AA12: 78.54545455 | AE12: WARNING | AF12: 0.0002181818182 | AG12: 3600 | AH12: 1 | AI12: 0.7854545455 | AJ12: 0.7854545455
A13: E | B13: L32 | C13: =IFERROR(VLOOKUP(D13,Pieces!A:B,2,0)," ") -> 200200-2022 | D13: Embout de tige-2022 | E13: 4771 | F13: 4771 | G13: 4771 | H13: 4771 | I13: =IFERROR(VLOOKUP(D13,Pieces!A:C,3,0),"") -> 40 | J13: 1 | K13: 0 | L13: 0 | M13: 0 | N13: 0 | O13: 0 | P13: 0 | Q13: 7 | S13: 0 | U13: 0 | Z13: 0 | AA13: 0 | AE13: WARNING | AF13: 0 | AJ13: 0
A14: F | B14: TSUGAMI | C14: =IFERROR(VLOOKUP(D14,Pieces!A:B,2,0)," ") -> i097-tsughami | D14: ECROU DE ROUE FORD RANGER- finition rayon | E14: 2660 | F14: 2918 | G14: 2918 | H14: 2918 | I14: =IFERROR(VLOOKUP(D14,Pieces!A:C,3,0),"") -> 100 | J14: 1 | K14: 258 | L14: 0 | M14: 0 | N14: 2.58 | O14: 0 | P14: 0 | Q14: 5 | S14: 0 | U14: 258 | Z14: 2.58 | AA14: 51.6 | AE14: WARNING | AF14: 0.0001433333333 | AG14: 3600 | AH14: 1 | AI14: 0.516 | AJ14: 0.516
A15: G | B15: Tour STAR SV-32-J | C15: =IFERROR(VLOOKUP(D15,Pieces!A:B,2,0)," ") -> 68.0815 | D15: Buse droite à collerette Ø8 M445 FRD | E15: 4262 | F15: 4536 | G15: 4536 | H15: 4648 | I15: =IFERROR(VLOOKUP(D15,Pieces!A:C,3,0),"") -> 60 | J15: 1 | K15: 274 | L15: 0 | M15: 112 | N15: 4.566666667 | O15: 0 | P15: 1.866666667 | Q15: 7 | S15: 0 | U15: 386 | Z15: 6.433333333 | AA15: 91.9047619 | AF15: 0.0002552910053 | AG15: 3600 | AH15: 1 | AI15: 0.919047619 | AJ15: 0.919047619
A16: H | B16: Tour CNC STAR SB avec embarreur LNS Express 220 | C16: =IFERROR(VLOOKUP(D16,Pieces!A:B,2,0)," ") -> outi-plot | D16: plot nez de marche | E16: 816 | F16: 816 | G16: 816 | H16: 816 | I16: =IFERROR(VLOOKUP(D16,Pieces!A:C,3,0),"") -> 75 | J16: 1 | K16: 0 | L16: 0 | M16: 0 | N16: 0 | O16: 0 | P16: 0 | Q16: 7 | S16: 0 | U16: 0 | Z16: 0 | AA16: 0 | AE16: WARNING | AF16: 0 | AJ16: 0
A17: I | B17: MULTIBROCHE | C17: =IFERROR(VLOOKUP(D17,Pieces!A:B,2,0)," ") -> MPS000300 | D17: raccord HEX 17 | E17: 0 | F17: 0 | G17: 0 | H17: 0 | I17: =IFERROR(VLOOKUP(D17,Pieces!A:C,3,0),"") -> 500 | J17: 1 | K17: 0 | L17: 0 | M17: 0 | N17: 0 | O17: 0 | P17: 0 | Q17: 7 | S17: 0 | U17: 0 | Z17: 0 | AA17: 0 | AE17: WARNING | AF17: 0 | AJ17: 0
A18: J | B18: Tour CNC WEILER UD 24 - 100 | C18: =IFERROR(VLOOKUP(D18,Pieces!A:B,2,0)," ") -> PT8666 | D18: Rehausse-NAKAMURHA | E18: 1577 | F18: 2200 | G18: 2200 | H18: 2200 | I18: =IFERROR(VLOOKUP(D18,Pieces!A:C,3,0),"") -> 150 | J18: 1 | K18: 623 | L18: 0 | M18: 0 | N18: 4.153333333 | O18: 0 | P18: 0 | Q18: 5 | R18: ^pas fini | S18: 0 | U18: 623 | Z18: 4.153333333 | AA18: 83.06666667 | AE18: WARNING | AF18: 0.0002307407407 | AG18: 3600 | AH18: 1 | AI18: 0.8306666667 | AJ18: 0.8306666667
A19: K | B19: TOUR WEILER | C19: =IFERROR(VLOOKUP(D19,Pieces!A:B,2,0)," ") -> I143-CP1 | D19: ECROU DE ROUE ISUZU-CP1 | E19: 2362 | F19: 2610 | G19: 2610 | H19: 2610 | I19: =IFERROR(VLOOKUP(D19,Pieces!A:C,3,0),"") -> 60 | J19: 1 | K19: 248 | L19: 0 | M19: 0 | N19: 4.133333333 | O19: 0 | P19: 0 | Q19: 5 | S19: 0 | U19: 248 | Z19: 4.133333333 | AA19: 82.66666667 | AE19: WARNING | AF19: 0.0002296296296 | AG19: 3600 | AH19: 1 | AI19: 0.8266666667 | AJ19: 0.8266666667
A20: L | B20: NAKAMURA | C20: =IFERROR(VLOOKUP(D20,Pieces!A:B,2,0)," ") -> I007 | D20: ECROU SEMI ARBRE ISUZU | E20: 0 | F20: 47 | G20: 74 | H20: 114 | I20: =IFERROR(VLOOKUP(D20,Pieces!A:C,3,0),"") -> 30 | J20: 1 | K20: 47 | L20: 27 | M20: 40 | N20: 1.566666667 | O20: 0.9 | P20: 1.333333333 | Q20: 5 | S20: 0 | U20: 114 | Z20: 3.8 | AA20: 76 | AE20: WARNING | AF20: 0.0002111111111 | AG20: 3600 | AH20: 1 | AI20: 0.76 | AJ20: 0.76
A21: M | B21: MORI SEIKI 3 axes | C21: =IFERROR(VLOOKUP(D21,Pieces!A:B,2,0)," ") -> I110-01-004 | D21: INSERT LEVIER SURMOULEE 345833-01 - fraisage | E21: 1001 | F21: 1017 | G21: 1017 | H21: 1025 | I21: =IFERROR(VLOOKUP(D21,Pieces!A:C,3,0),"") -> 32 | J21: 9 | K21: 144 | L21: 0 | M21: 72 | N21: 4.5 | O21: 0 | P21: 2.25 | Q21: 5 | S21: 0 | U21: 216 | Z21: 6.75 | AA21: 135 | AF21: 0.000375 | AG21: 3600 | AH21: 1 | AI21: 1.35 | AJ21: 1.35
A22: N | B22: MORI SEIKI 5 axes | C22: =IFERROR(VLOOKUP(D22,Pieces!A:B,2,0)," ") -> PIG-11D | D22: PIGNON 11 DENTS FRAISAGE | E22: 0 | F22: 0 | G22: 0 | H22: 0 | I22: =IFERROR(VLOOKUP(D22,Pieces!A:C,3,0),"") -> 120 | J22: 20 | K22: 0 | L22: 0 | M22: 0 | N22: 0 | O22: 0 | P22: 0 | Q22: 5 | S22: 0 | U22: 0 | Z22: 0 | AA22: 0 | AE22: WARNING | AF22: 0 | AJ22: 0
A23: O | B23: HARDING | C23: =IFERROR(VLOOKUP(D23,Pieces!A:B,2,0)," ") -> 480387-SF-pf | D23: EVACUATION 2/3G X-ONE-harding-CARRE+M4 | E23: 0 | F23: 4 | G23: 4 | H23: 4 | I23: =IFERROR(VLOOKUP(D23,Pieces!A:C,3,0),"") -> 13 | J23: 30 | K23: 120 | L23: 0 | M23: 0 | N23: 9.230769231 | O23: 0 | P23: 0 | Q23: 5 | R23: +50mn | S23: 0 | U23: 120 | Z23: 9.230769231 | AA23: 184.6153846 | AF23: 0.0005128205128 | AG23: 3600 | AH23: 1 | AI23: 1.846153846 | AJ23: 1.846153846
A24: P | B24: KITAMURA | C24: =IFERROR(VLOOKUP(D24,Pieces!A:B,2,0)," ") -> 9518-maj | D24: USINAGE BORNE RBD-1 | E24: 4296 | F24: 4397 | G24: 4397 | H24: 4405 | I24: =IFERROR(VLOOKUP(D24,Pieces!A:C,3,0),"") -> 300 | J24: 12 | K24: =(F24-E24)*J24 -> 1212 | L24: =(G24-F24)*J24 -> 0 | M24: =(H24-G24)*J24 -> 96 | N24: =IF(I24="","",K24/I24) -> 4.04 | O24: =IF(I24="","",L24/I24) -> 0 | P24: =IF(I24="","",M24/I24) -> 0.32 | Q24: 7 | S24: =U24+T24-K24-L24-M24 -> 0 | U24: =(K24+L24+M24)-T24-V24 -> 1308 | Z24: =IF(OR(I24="",I24=0),0,(U24+T24)/I24) -> 4.36 | AA24: =IF(OR(Q24=0,I24=0),"",Z24/Q24*100) -> 62.28571429 | AE24: =IF(AA24>85," ","WARNING") -> WARNING | AF24: 0.000173015873 | AG24: 3600 | AH24: 1 | AI24: 0.6228571429 | AJ24: 0.6228571429
J30: Approbateur:
J31: Date:
J32: Visa:

Sheet 25-3-22
A1: 25-03-2022 | Z1: CODE: DAS-PRO-16
Z2: DATE:30/08/2019
Z3: VERSION:07
Z4: PAGE:1
A8: SYMBOLE | B8: MACHINE | C8: REF ARTICLE | D8: DESIGNATION | E8: COMPTEUR AUJOURD’HUI à 8h | F8: COMPTEUR HIER à 17H | G8: COMPTEUR HIER à 22H | H8: COMPTEUR AUJOURD’HUI à 8h | I8: CADENCE | J8: NOMBRE DE PIECES FINIS PAR CYCLE | K8: PIECES SUIVANT COMPTEU 8h-->17h | L8: PIECES SUIVANT COMPTEUR 17H-->22H | M8: PIECES SUIVANT COMPTEUR 6h-->8h | N8: NOMBRE D'HEURES DE TRAVAIL 8h-->17h | O8: NOMBRE D'HEURES DE TRAVAIL 17H-->22H | P8: NOMBRE D'HEURES DE TRAVAIL 6h-->8h | Q8: NOMBRE D'HEURES DE TRAVAIL | R8: OBSERVATIONS | S8: Pieces manquantes | T8: PIECES NC | U8: Pieces REELLES | V8: Nombre des pieces à retoucher | W8: Cause de la non-conformité | X8: Effet de la non-conformité | Y8: Valeur de l'effet | Z8: NOMBRES D'HEURES SUIVANT LES PIECES REELLES | AA8: RENDEMENT | AB8: Fiche de contrôle qualité début de serie | AC8: Affutage | AD8: Gamme d'usingae | AE8: ALERTES | AF8: A | AG8: P | AH8: Q | AI8: OEE | AJ8: OEE
A9: A | B9: SST16 | C9: =IFERROR(VLOOKUP(D9,Pieces!A:B,2,0)," ") -> 200101 | D9: AXE D'ARTICULATION | E9: 5181 | F9: 6015 | G9: 6015 | H9: 6195 | I9: =IFERROR(VLOOKUP(D9,Pieces!A:C,3,0),"") -> 120 | J9: 1 | K9: =(F9-E9)*J9 -> 834 | L9: =(G9-F9)*J9 -> 0 | M9: =(H9-G9)*J9 -> 180 | N9: =IF(I9="","",K9/I9) -> 6.95 | O9: =IF(I9="","",L9/I9) -> 0 | P9: =IF(I9="","",M9/I9) -> 1.5 | Q9: 13 | S9: =U9+T9-K9-L9-M9 -> 0 | U9: =(K9+L9+M9)-T9-V9 -> 1014 | Z9: =IF(OR(I9="",I9=0),0,(U9+T9)/I9) -> 8.45 | AA9: =IF(OR(Q9=0,I9=0),"",Z9/Q9*100) -> 65 | AE9: =IF(AA9>85," ","WARNING") -> WARNING | AF9: =(N9+O9+P9)/(Q9*3600) -> 0.0001805555556 | AG9: =((3600/I9)*U9)/(N9+O9+P9) -> 3600 | AH9: =(U9-T9)/U9 -> 1 | AI9: =AF9*AG9*AH9 -> 0.65 | AJ9: =((U9-T9)*(3600/I9))/(Q9*3600) -> 0.65
A10: B | B10: SB16 | C10: =IFERROR(VLOOKUP(D10,Pieces!A:B,2,0)," ") -> G022-CP1 | D10: AXE D15-M11x100 | E10: 2057 | F10: 2668 | G10: 2417 | H10: 2482 | I10: =IFERROR(VLOOKUP(D10,Pieces!A:C,3,0),"") -> 30 | J10: 1 | K10: =(F10-E10)*J10 -> 611 | L10: =(G10-F10)*J10 -> -251 | M10: =(H10-G10)*J10 -> 65 | N10: =IF(I10="","",K10/I10) -> 20.36666667 | O10: =IF(I10="","",L10/I10) -> -8.366666667 | P10: =IF(I10="","",M10/I10) -> 2.166666667 | Q10: 13 | S10: =U10+T10-K10-L10-M10 -> 0 | U10: =(K10+L10+M10)-T10-V10 -> 425 | Z10: =IF(OR(I10="",I10=0),0,(U10+T10)/I10) -> 14.16666667 | AA10: =IF(OR(Q10=0,I10=0),"",Z10/Q10*100) -> 108.974359 | AE10: =IF(AA10>85," ","WARNING") ->  | AF10: =(N10+O10+P10)/(Q10*3600) -> 0.0003027065527 | AG10: =((3600/I10)*U10)/(N10+O10+P10) -> 3600 | AH10: =(U10-T10)/U10 -> 1 | AI10: =AF10*AG10*AH10 -> 1.08974359 | AJ10: =((U10-T10)*(3600/I10))/(Q10*3600) -> 1.08974359
A11: C | B11: BIGLIA 301 SM | C11: =IFERROR(VLOOKUP(D11,Pieces!A:B,2,0)," ") -> 230500 | D11: BRAS DE MANOEUVRE G MAN | E11: 867 | F11: 993 | G11: 1032 | H11: 1064 | I11: =IFERROR(VLOOKUP(D11,Pieces!A:C,3,0),"") -> 20 | J11: 1 | K11: 126 | L11: 39 | M11: 32 | N11: 6.3 | O11: 1.95 | P11: 1.6 | Q11: 13 | S11: =U11+T11-K11-L11-M11 -> 0 | U11: 197 | Z11: 9.85 | AA11: 75.76923077 | AE11: WARNING | AF11: 0.0002104700855 | AG11: 3600 | AH11: 1 | AI11: 0.7576923077 | AJ11: 0.7576923077
A12: D | B12: BIGLIA 42 S2M bitourelle | C12: =IFERROR(VLOOKUP(D12,Pieces!A:B,2,0)," ") -> MI018-B42 | D12: GOUJON DE ROUE MITSIBITCHI GM-SUR-B42 | E12: 6776 | F12: 7144 | G12: 7144 | H12: 7144 | I12: =IFERROR(VLOOKUP(D12,Pieces!A:C,3,0),"") -> 55 | J12: 1 | K12: 368 | L12: 0 | M12: 0 | N12: 6.690909091 | O12: 0 | P12: 0 | Q12: 9 | S12: 0 | U12: 368 | Z12: 6.690909091 | AA12: 74.34343434 | AE12: WARNING | AF12: 0.0002065095398 | AG12: 3600 | AH12: 1 | AI12: 0.7434343434 | AJ12: 0.7434343434
A13: E | B13: L32 | C13: =IFERROR(VLOOKUP(D13,Pieces!A:B,2,0)," ") -> 200200-2022 | D13: Embout de tige-2022 | E13: 4771 | F13: 4771 | G13: 4771 | H13: 4771 | I13: =IFERROR(VLOOKUP(D13,Pieces!A:C,3,0),"") -> 40 | J13: 1 | K13: 0 | L13: 0 | M13: 0 | N13: 0 | O13: 0 | P13: 0 | Q13: 13 | S13: 0 | U13: 0 | Z13: 0 | AA13: 0 | AE13: WARNING | AF13: 0 | AJ13: 0
A14: F | B14: TSUGAMI | C14: =IFERROR(VLOOKUP(D14,Pieces!A:B,2,0)," ") -> i097-tsughami | D14: ECROU DE ROUE FORD RANGER- finition rayon | E14: 1968 | F14: 2400 | G14: 2570 | H14: 2660 | I14: =IFERROR(VLOOKUP(D14,Pieces!A:C,3,0),"") -> 100 | J14: 1 | K14: 432 | L14: 170 | M14: 90 | N14: 4.32 | O14: 1.7 | P14: 0.9 | Q14: 11 | S14: 0 | U14: 692 | Z14: 6.92 | AA14: 62.90909091 | AE14: WARNING | AF14: 0.0001747474747 | AG14: 3600 | AH14: 1 | AI14: 0.6290909091 | AJ14: 0.6290909091
A15: G | B15: Tour STAR SV-32-J | C15: =IFERROR(VLOOKUP(D15,Pieces!A:B,2,0)," ") -> 68.0815 | D15: Buse droite à collerette Ø8 M445 FRD | E15: 3731 | F15: 4050 | G15: 4160 | H15: 4262 | I15: =IFERROR(VLOOKUP(D15,Pieces!A:C,3,0),"") -> 60 | J15: 1 | K15: 319 | L15: 110 | M15: 102 | N15: 5.316666667 | O15: 1.833333333 | P15: 1.7 | Q15: 13 | S15: 0 | U15: 531 | Z15: 8.85 | AA15: 68.07692308 | AE15: WARNING | AF15: 0.0001891025641 | AG15: 3600 | AH15: 1 | AI15: 0.6807692308 | AJ15: 0.6807692308
A16: H | B16: Tour CNC STAR SB avec embarreur LNS Express 220 | C16: =IFERROR(VLOOKUP(D16,Pieces!A:B,2,0)," ") -> outi-plot | D16: plot nez de marche | E16: 313 | F16: 685 | G16: 685 | H16: 816 | I16: =IFERROR(VLOOKUP(D16,Pieces!A:C,3,0),"") -> 75 | J16: 1 | K16: 372 | L16: 0 | M16: 131 | N16: 4.96 | O16: 0 | P16: 1.746666667 | Q16: 13 | S16: 0 | U16: 503 | Z16: 6.706666667 | AA16: 51.58974359 | AE16: WARNING | AF16: 0.0001433048433 | AG16: 3600 | AH16: 1 | AI16: 0.5158974359 | AJ16: 0.5158974359
A17: I | B17: MULTIBROCHE | C17: =IFERROR(VLOOKUP(D17,Pieces!A:B,2,0)," ") -> MPS000300 | D17: raccord HEX 17 | E17: 0 | F17: 0 | G17: 0 | H17: 0 | I17: =IFERROR(VLOOKUP(D17,Pieces!A:C,3,0),"") -> 500 | J17: 1 | K17: 0 | L17: 0 | M17: 0 | N17: 0 | O17: 0 | P17: 0 | Q17: 13 | S17: 0 | U17: 0 | Z17: 0 | AA17: 0 | AE17: WARNING | AF17: 0 | AJ17: 0
A18: J | B18: Tour CNC WEILER UD 24 - 100 | C18: =IFERROR(VLOOKUP(D18,Pieces!A:B,2,0)," ") -> PT8666 | D18: Rehausse-NAKAMURHA | E18: 977 | F18: 1577 | G18: 1577 | H18: 1577 | I18: =IFERROR(VLOOKUP(D18,Pieces!A:C,3,0),"") -> 150 | J18: 1 | K18: 600 | L18: 0 | M18: 0 | N18: 4 | O18: 0 | P18: 0 | Q18: 9 | R18: avec 378 fini | S18: 0 | U18: 600 | Z18: 4 | AA18: 44.44444444 | AE18: WARNING | AF18: 0.0001234567901 | AG18: 3600 | AH18: 1 | AI18: 0.4444444444 | AJ18: 0.4444444444
A19: K | B19: TOUR WEILER | C19: =IFERROR(VLOOKUP(D19,Pieces!A:B,2,0)," ") -> I143-CP1 | D19: ECROU DE ROUE ISUZU-CP1 | E19: 1922 | F19: 2319 | G19: 2319 | H19: 2362 | I19: =IFERROR(VLOOKUP(D19,Pieces!A:C,3,0),"") -> 60 | J19: 1 | K19: 397 | L19: 0 | M19: 43 | N19: 6.616666667 | O19: 0 | P19: 0.7166666667 | Q19: 9 | S19: 0 | U19: 440 | Z19: 7.333333333 | AA19: 81.48148148 | AE19: WARNING | AF19: 0.0002263374486 | AG19: 3600 | AH19: 1 | AI19: 0.8148148148 | AJ19: 0.8148148148
A20: L | B20: NAKAMURA | C20: =IFERROR(VLOOKUP(D20,Pieces!A:B,2,0)," ") -> F046-CP2 | D20: BADUE DECOLLETTE TUBE D'EAU PALIO-CP2 | E20: 720 | F20: 768 | G20: 768 | H20: 768 | I20: =IFERROR(VLOOKUP(D20,Pieces!A:C,3,0),"") -> 17 | J20: 1 | K20: 48 | L20: 0 | M20: 0 | N20: 2.823529412 | O20: 0 | P20: 0 | Q20: 9 | S20: 0 | U20: 48 | Z20: 2.823529412 | AA20: 31.37254902 | AE20: WARNING | AF20: 8.71459695e-05 | AG20: 3600 | AH20: 1 | AI20: 0.3137254902 | AJ20: 0.3137254902
A21: M | B21: MORI SEIKI 3 axes | C21: =IFERROR(VLOOKUP(D21,Pieces!A:B,2,0)," ") -> I110-01-004 | D21: INSERT LEVIER SURMOULEE 345833-01 - fraisage | E21: 969 | F21: 1001 | G21: 1001 | H21: 1001 | I21: =IFERROR(VLOOKUP(D21,Pieces!A:C,3,0),"") -> 32 | J21: 9 | K21: 288 | L21: 0 | M21: 0 | N21: 9 | O21: 0 | P21: 0 | Q21: 9 | S21: 0 | U21: 288 | Z21: 9 | AA21: 100 | AF21: 0.0002777777778 | AG21: 3600 | AH21: 1 | AI21: 1 | AJ21: 1
A22: N | B22: MORI SEIKI 5 axes | C22: =IFERROR(VLOOKUP(D22,Pieces!A:B,2,0)," ") -> PIG-11D | D22: PIGNON 11 DENTS FRAISAGE | E22: 0 | F22: 0 | G22: 0 | H22: 0 | I22: =IFERROR(VLOOKUP(D22,Pieces!A:C,3,0),"") -> 120 | J22: 20 | K22: 0 | L22: 0 | M22: 0 | N22: 0 | O22: 0 | P22: 0 | Q22: 9 | S22: 0 | U22: 0 | Z22: 0 | AA22: 0 | AE22: WARNING | AF22: 0 | AJ22: 0
A23: O | B23: HARDING | C23: =IFERROR(VLOOKUP(D23,Pieces!A:B,2,0)," ") -> I006 | D23: CAL SUSPENSION PM ISUZU-HARDING | E23: 0 | F23: 0 | G23: 0 | H23: 0 | I23: =IFERROR(VLOOKUP(D23,Pieces!A:C,3,0),"") -> 48 | J23: 24 | K23: 0 | L23: 0 | M23: 0 | N23: 0 | O23: 0 | P23: 0 | Q23: 9 | S23: 0 | U23: 0 | Z23: 0 | AA23: 0 | AE23: WARNING | AF23: 0 | AJ23: 0
A24: P | B24: KITAMURA | C24: =IFERROR(VLOOKUP(D24,Pieces!A:B,2,0)," ") -> 9518-maj | D24: USINAGE BORNE RBD-1 | E24: 4167 | F24: 4296 | G24: 4296 | H24: 4296 | I24: =IFERROR(VLOOKUP(D24,Pieces!A:C,3,0),"") -> 300 | J24: 12 | K24: =(F24-E24)*J24 -> 1548 | L24: =(G24-F24)*J24 -> 0 | M24: =(H24-G24)*J24 -> 0 | N24: =IF(I24="","",K24/I24) -> 5.16 | O24: =IF(I24="","",L24/I24) -> 0 | P24: =IF(I24="","",M24/I24) -> 0 | Q24: 9 | S24: =U24+T24-K24-L24-M24 -> 0 | U24: =(K24+L24+M24)-T24-V24 -> 1548 | Z24: =IF(OR(I24="",I24=0),0,(U24+T24)/I24) -> 5.16 | AA24: =IF(OR(Q24=0,I24=0),"",Z24/Q24*100) -> 57.33333333 | AE24: =IF(AA24>85," ","WARNING") -> WARNING | AF24: 0.0001592592593 | AG24: 3600 | AH24: 1 | AI24: 0.5733333333 | AJ24: 0.5733333333
J30: Approbateur:
J31: Date:
J32: Visa:

Sheet 24-3-22
A1: 24-03-2022 | Z1: CODE: DAS-PRO-16
Z2: DATE:30/08/2019
Z3: VERSION:07
Z4: PAGE:1
A8: SYMBOLE | B8: MACHINE | C8: REF ARTICLE | D8: DESIGNATION | E8: COMPTEUR AUJOURD’HUI à 8h | F8: COMPTEUR HIER à 17H | G8: COMPTEUR HIER à 22H | H8: COMPTEUR AUJOURD’HUI à 8h | I8: CADENCE | J8: NOMBRE DE PIECES FINIS PAR CYCLE | K8: PIECES SUIVANT COMPTEU 8h-->17h | L8: PIECES SUIVANT COMPTEUR 17H-->22H | M8: PIECES SUIVANT COMPTEUR 6h-->8h | N8: NOMBRE D'HEURES DE TRAVAIL 8h-->17h | O8: NOMBRE D'HEURES DE TRAVAIL 17H-->22H | P8: NOMBRE D'HEURES DE TRAVAIL 6h-->8h | Q8: NOMBRE D'HEURES DE TRAVAIL | R8: OBSERVATIONS | S8: Pieces manquantes | T8: PIECES NC | U8: Pieces REELLES | V8: Nombre des pieces à retoucher | W8: Cause de la non-conformité | X8: Effet de la non-conformité | Y8: Valeur de l'effet | Z8: NOMBRES D'HEURES SUIVANT LES PIECES REELLES | AA8: RENDEMENT | AB8: Fiche de contrôle qualité début de serie | AC8: Affutage | AD8: Gamme d'usingae | AE8: ALERTES | AF8: A | AG8: P | AH8: Q | AI8: OEE | AJ8: OEE
A9: A | B9: SST16 | C9: =IFERROR(VLOOKUP(D9,Pieces!A:B,2,0)," ") -> 200101 | D9: AXE D'ARTICULATION | E9: 3885 | F9: 6015 | G9: 4995 | H9: 5181 | I9: =IFERROR(VLOOKUP(D9,Pieces!A:C,3,0),"") -> 120 | J9: 1 | K9: =(F9-E9)*J9 -> 2130 | L9: =(G9-F9)*J9 -> -1020 | M9: =(H9-G9)*J9 -> 186 | N9: =IF(I9="","",K9/I9) -> 17.75 | O9: =IF(I9="","",L9/I9) -> -8.5 | P9: =IF(I9="","",M9/I9) -> 1.55 | Q9: 13 | S9: =U9+T9-K9-L9-M9 -> 0 | U9: =(K9+L9+M9)-T9-V9 -> 1296 | Z9: =IF(OR(I9="",I9=0),0,(U9+T9)/I9) -> 10.8 | AA9: =IF(OR(Q9=0,I9=0),"",Z9/Q9*100) -> 83.07692308 | AE9: =IF(AA9>85," ","WARNING") -> WARNING | AF9: =(N9+O9+P9)/(Q9*3600) -> 0.0002307692308 | AG9: =((3600/I9)*U9)/(N9+O9+P9) -> 3600 | AH9: =(U9-T9)/U9 -> 1 | AI9: =AF9*AG9*AH9 -> 0.8307692308 | AJ9: =((U9-T9)*(3600/I9))/(Q9*3600) -> 0.8307692308
A10: B | B10: SB16 | C10: =IFERROR(VLOOKUP(D10,Pieces!A:B,2,0)," ") -> G022-CP1 | D10: AXE D15-M11x100 | E10: 1725 | F10: 1977 | G10: 2057 | H10: 2057 | I10: =IFERROR(VLOOKUP(D10,Pieces!A:C,3,0),"") -> 30 | J10: 1 | K10: =(F10-E10)*J10 -> 252 | L10: =(G10-F10)*J10 -> 80 | M10: =(H10-G10)*J10 -> 0 | N10: =IF(I10="","",K10/I10) -> 8.4 | O10: =IF(I10="","",L10/I10) -> 2.666666667 | P10: =IF(I10="","",M10/I10) -> 0 | Q10: 13 | S10: =U10+T10-K10-L10-M10 -> 0 | U10: =(K10+L10+M10)-T10-V10 -> 332 | Z10: =IF(OR(I10="",I10=0),0,(U10+T10)/I10) -> 11.06666667 | AA10: =IF(OR(Q10=0,I10=0),"",Z10/Q10*100) -> 85.12820513 | AE10: =IF(AA10>85," ","WARNING") ->  | AF10: =(N10+O10+P10)/(Q10*3600) -> 0.0002364672365 | AG10: =((3600/I10)*U10)/(N10+O10+P10) -> 3600 | AH10: =(U10-T10)/U10 -> 1 | AI10: =AF10*AG10*AH10 -> 0.8512820513 | AJ10: =((U10-T10)*(3600/I10))/(Q10*3600) -> 0.8512820513
A11: C | B11: BIGLIA 301 SM | C11: =IFERROR(VLOOKUP(D11,Pieces!A:B,2,0)," ") -> 230500 | D11: BRAS DE MANOEUVRE G MAN | E11: 616 | F11: 792 | G11: 832 | H11: 867 | I11: =IFERROR(VLOOKUP(D11,Pieces!A:C,3,0),"") -> 20 | J11: 1 | K11: 176 | L11: 40 | M11: 35 | N11: 8.8 | O11: 2 | P11: 1.75 | Q11: 13 | S11: =U11+T11-K11-L11-M11 -> 0 | U11: 251 | Z11: 12.55 | AA11: 96.53846154 | AF11: 0.0002681623932 | AG11: 3600 | AH11: 1 | AI11: 0.9653846154 | AJ11: 0.9653846154
A12: D | B12: BIGLIA 42 S2M bitourelle | C12: =IFERROR(VLOOKUP(D12,Pieces!A:B,2,0)," ") -> MI018-B42 | D12: GOUJON DE ROUE MITSIBITCHI GM-SUR-B42 | E12: 6480 | F12: 6776 | G12: 6776 | H12: 6776 | I12: =IFERROR(VLOOKUP(D12,Pieces!A:C,3,0),"") -> 55 | J12: 1 | K12: 296 | L12: 0 | M12: 0 | N12: 5.381818182 | O12: 0 | P12: 0 | Q12: 9 | S12: 0 | U12: 296 | Z12: 5.381818182 | AA12: 59.7979798 | AE12: WARNING | AF12: 0.0001661054994 | AG12: 3600 | AH12: 1 | AI12: 0.597979798 | AJ12: 0.597979798
A13: E | B13: L32 | C13: =IFERROR(VLOOKUP(D13,Pieces!A:B,2,0)," ") -> 200200-2022 | D13: Embout de tige-2022 | E13: 4771 | F13: 4771 | G13: 4771 | H13: 4771 | I13: =IFERROR(VLOOKUP(D13,Pieces!A:C,3,0),"") -> 40 | J13: 1 | K13: 0 | L13: 0 | M13: 0 | N13: 0 | O13: 0 | P13: 0 | Q13: 13 | S13: 0 | U13: 0 | Z13: 0 | AA13: 0 | AE13: WARNING | AF13: 0 | AJ13: 0
A14: F | B14: TSUGAMI | C14: =IFERROR(VLOOKUP(D14,Pieces!A:B,2,0)," ") -> i097-tsughami | D14: ECROU DE ROUE FORD RANGER- finition rayon | E14: 1386 | F14: 1826 | G14: 1910 | H14: 1968 | I14: =IFERROR(VLOOKUP(D14,Pieces!A:C,3,0),"") -> 100 | J14: 1 | K14: 440 | L14: 84 | M14: 58 | N14: 4.4 | O14: 0.84 | P14: 0.58 | Q14: 11 | S14: 0 | U14: 582 | Z14: 5.82 | AA14: 52.90909091 | AE14: WARNING | AF14: 0.000146969697 | AG14: 3600 | AH14: 1 | AI14: 0.5290909091 | AJ14: 0.5290909091
A15: G | B15: Tour STAR SV-32-J | C15: =IFERROR(VLOOKUP(D15,Pieces!A:B,2,0)," ") -> 68.0815 | D15: Buse droite à collerette Ø8 M445 FRD | E15: 3120 | F15: 3536 | G15: 3640 | H15: 3731 | I15: =IFERROR(VLOOKUP(D15,Pieces!A:C,3,0),"") -> 60 | J15: 1 | K15: 416 | L15: 104 | M15: 91 | N15: 6.933333333 | O15: 1.733333333 | P15: 1.516666667 | Q15: 13 | S15: 0 | U15: 611 | Z15: 10.18333333 | AA15: 78.33333333 | AE15: WARNING | AF15: 0.0002175925926 | AG15: 3600 | AH15: 1 | AI15: 0.7833333333 | AJ15: 0.7833333333
A16: H | B16: Tour CNC STAR SB avec embarreur LNS Express 220 | C16: =IFERROR(VLOOKUP(D16,Pieces!A:B,2,0)," ") -> outi-plot | D16: plot nez de marche | E16: 0 | F16: 0 | G16: 160 | H16: 313 | I16: =IFERROR(VLOOKUP(D16,Pieces!A:C,3,0),"") -> 75 | J16: 1 | K16: 0 | L16: 160 | M16: 153 | N16: 0 | O16: 2.133333333 | P16: 2.04 | Q16: 13 | S16: 0 | U16: 313 | Z16: 4.173333333 | AA16: 32.1025641 | AE16: WARNING | AF16: 8.917378917e-05 | AG16: 3600 | AH16: 1 | AI16: 0.321025641 | AJ16: 0.321025641
A17: I | B17: MULTIBROCHE | C17: =IFERROR(VLOOKUP(D17,Pieces!A:B,2,0)," ") -> MPS000300 | D17: raccord HEX 17 | E17: 0 | F17: 0 | G17: 0 | H17: 0 | I17: =IFERROR(VLOOKUP(D17,Pieces!A:C,3,0),"") -> 500 | J17: 1 | K17: 0 | L17: 0 | M17: 0 | N17: 0 | O17: 0 | P17: 0 | Q17: 13 | S17: 0 | U17: 0 | Z17: 0 | AA17: 0 | AE17: WARNING | AF17: 0 | AJ17: 0
A18: J | B18: Tour CNC WEILER UD 24 - 100 | C18: =IFERROR(VLOOKUP(D18,Pieces!A:B,2,0)," ") -> PT8666 | D18: Rehausse-NAKAMURHA | E18: 507 | F18: 977 | G18: 977 | H18: 977 | I18: =IFERROR(VLOOKUP(D18,Pieces!A:C,3,0),"") -> 150 | J18: 1 | K18: 470 | L18: 0 | M18: 0 | N18: 3.133333333 | O18: 0 | P18: 0 | Q18: 9 | R18: avec 475 pcs fini | S18: 0 | U18: 470 | Z18: 3.133333333 | AA18: 34.81481481 | AE18: WARNING | AF18: 9.670781893e-05 | AG18: 3600 | AH18: 1 | AI18: 0.3481481481 | AJ18: 0.3481481481
A19: K | B19: TOUR WEILER | C19: =IFERROR(VLOOKUP(D19,Pieces!A:B,2,0)," ") -> I143-CP1 | D19: ECROU DE ROUE ISUZU-CP1 | E19: 1448 | F19: 1881 | G19: 1881 | H19: 1922 | I19: =IFERROR(VLOOKUP(D19,Pieces!A:C,3,0),"") -> 60 | J19: 1 | K19: 433 | L19: 0 | M19: 41 | N19: 7.216666667 | O19: 0 | P19: 0.6833333333 | Q19: 9 | S19: 0 | U19: 474 | Z19: 7.9 | AA19: 87.77777778 | AF19: 0.0002438271605 | AG19: 3600 | AH19: 1 | AI19: 0.8777777778 | AJ19: 0.8777777778
A20: L | B20: NAKAMURA | C20: =IFERROR(VLOOKUP(D20,Pieces!A:B,2,0)," ") -> F046-CP2 | D20: BADUE DECOLLETTE TUBE D'EAU PALIO-CP2 | E20: 610 | F20: 702 | G20: 702 | H20: 720 | I20: =IFERROR(VLOOKUP(D20,Pieces!A:C,3,0),"") -> 17 | J20: 1 | K20: 92 | L20: 0 | M20: 18 | N20: 5.411764706 | O20: 0 | P20: 1.058823529 | Q20: 9 | R20: TC= 3mn et 25s | S20: 0 | U20: 110 | Z20: 6.470588235 | AA20: 71.89542484 | AE20: WARNING | AF20: 0.0001997095134 | AG20: 3600 | AH20: 1 | AI20: 0.7189542484 | AJ20: 0.7189542484
A21: M | B21: MORI SEIKI 3 axes | C21: =IFERROR(VLOOKUP(D21,Pieces!A:B,2,0)," ") -> I110-01-004 | D21: INSERT LEVIER SURMOULEE 345833-01 - fraisage | E21: 941 | F21: 969 | G21: 969 | H21: 969 | I21: =IFERROR(VLOOKUP(D21,Pieces!A:C,3,0),"") -> 32 | J21: 9 | K21: 252 | L21: 0 | M21: 0 | N21: 7.875 | O21: 0 | P21: 0 | Q21: 9 | S21: 0 | U21: 252 | Z21: 7.875 | AA21: 87.5 | AF21: 0.0002430555556 | AG21: 3600 | AH21: 1 | AI21: 0.875 | AJ21: 0.875
A22: N | B22: MORI SEIKI 5 axes | C22: =IFERROR(VLOOKUP(D22,Pieces!A:B,2,0)," ") -> PIG-11D | D22: PIGNON 11 DENTS FRAISAGE | E22: 270 | F22: 270 | G22: 270 | H22: 270 | I22: =IFERROR(VLOOKUP(D22,Pieces!A:C,3,0),"") -> 120 | J22: 20 | K22: 0 | L22: 0 | M22: 0 | N22: 0 | O22: 0 | P22: 0 | Q22: 9 | S22: 0 | U22: 0 | Z22: 0 | AA22: 0 | AE22: WARNING | AF22: 0 | AJ22: 0
A23: O | B23: HARDING | C23: =IFERROR(VLOOKUP(D23,Pieces!A:B,2,0)," ") -> I006 | D23: CAL SUSPENSION PM ISUZU-HARDING | E23: 0 | F23: 0 | G23: 0 | H23: 0 | I23: =IFERROR(VLOOKUP(D23,Pieces!A:C,3,0),"") -> 48 | J23: 24 | K23: 0 | L23: 0 | M23: 0 | N23: 0 | O23: 0 | P23: 0 | Q23: 9 | S23: 0 | U23: 0 | Z23: 0 | AA23: 0 | AE23: WARNING | AF23: 0 | AJ23: 0
A24: P | B24: KITAMURA | C24: =IFERROR(VLOOKUP(D24,Pieces!A:B,2,0)," ") -> 9518-maj | D24: USINAGE BORNE RBD-1 | E24: 3975 | F24: 4137 | G24: 4137 | H24: 4167 | I24: =IFERROR(VLOOKUP(D24,Pieces!A:C,3,0),"") -> 300 | J24: 12 | K24: =(F24-E24)*J24 -> 1944 | L24: =(G24-F24)*J24 -> 0 | M24: =(H24-G24)*J24 -> 360 | N24: =IF(I24="","",K24/I24) -> 6.48 | O24: =IF(I24="","",L24/I24) -> 0 | P24: =IF(I24="","",M24/I24) -> 1.2 | Q24: 9 | S24: =U24+T24-K24-L24-M24 -> 0 | U24: =(K24+L24+M24)-T24-V24 -> 2304 | Z24: =IF(OR(I24="",I24=0),0,(U24+T24)/I24) -> 7.68 | AA24: =IF(OR(Q24=0,I24=0),"",Z24/Q24*100) -> 85.33333333 | AE24: =IF(AA24>85," ","WARNING") ->  | AF24: 0.000237037037 | AG24: 3600 | AH24: 1 | AI24: 0.8533333333 | AJ24: 0.8533333333
J30: Approbateur:
J31: Date:
J32: Visa:

Sheet 23-3-22
A1: 23-03-2022 | Z1: CODE: DAS-PRO-16
Z2: DATE:30/08/2019
Z3: VERSION:07
Z4: PAGE:1
A8: SYMBOLE | B8: MACHINE | C8: REF ARTICLE | D8: DESIGNATION | E8: COMPTEUR AUJOURD’HUI à 8h | F8: COMPTEUR HIER à 17H | G8: COMPTEUR HIER à 22H | H8: COMPTEUR AUJOURD’HUI à 8h | I8: CADENCE | J8: NOMBRE DE PIECES FINIS PAR CYCLE | K8: PIECES SUIVANT COMPTEU 8h-->17h | L8: PIECES SUIVANT COMPTEUR 17H-->22H | M8: PIECES SUIVANT COMPTEUR 6h-->8h | N8: NOMBRE D'HEURES DE TRAVAIL 8h-->17h | O8: NOMBRE D'HEURES DE TRAVAIL 17H-->22H | P8: NOMBRE D'HEURES DE TRAVAIL 6h-->8h | Q8: NOMBRE D'HEURES DE TRAVAIL | R8: OBSERVATIONS | S8: Pieces manquantes | T8: PIECES NC | U8: Pieces REELLES | V8: Nombre des pieces à retoucher | W8: Cause de la non-conformité | X8: Effet de la non-conformité | Y8: Valeur de l'effet | Z8: NOMBRES D'HEURES SUIVANT LES PIECES REELLES | AA8: RENDEMENT | AB8: Fiche de contrôle qualité début de serie | AC8: Affutage | AD8: Gamme d'usingae | AE8: ALERTES | AF8: A | AG8: P | AH8: Q | AI8: OEE | AJ8: OEE
A9: A | B9: SST16 | C9: =IFERROR(VLOOKUP(D9,Pieces!A:B,2,0)," ") -> 200101 | D9: AXE D'ARTICULATION | E9: 2574 | F9: 3508 | G9: 3715 | H9: 3885 | I9: =IFERROR(VLOOKUP(D9,Pieces!A:C,3,0),"") -> 120 | J9: 1 | K9: =(F9-E9)*J9 -> 934 | L9: =(G9-F9)*J9 -> 207 | M9: =(H9-G9)*J9 -> 170 | N9: =IF(I9="","",K9/I9) -> 7.783333333 | O9: =IF(I9="","",L9/I9) -> 1.725 | P9: =IF(I9="","",M9/I9) -> 1.416666667 | Q9: 13 | S9: =U9+T9-K9-L9-M9 -> 0 | U9: =(K9+L9+M9)-T9-V9 -> 1311 | Z9: =IF(OR(I9="",I9=0),0,(U9+T9)/I9) -> 10.925 | AA9: =IF(OR(Q9=0,I9=0),"",Z9/Q9*100) -> 84.03846154 | AE9: =IF(AA9>85," ","WARNING") -> WARNING | AF9: =(N9+O9+P9)/(Q9*3600) -> 0.0002334401709 | AG9: =((3600/I9)*U9)/(N9+O9+P9) -> 3600 | AH9: =(U9-T9)/U9 -> 1 | AI9: =AF9*AG9*AH9 -> 0.8403846154 | AJ9: =((U9-T9)*(3600/I9))/(Q9*3600) -> 0.8403846154
A10: B | B10: SB16 | C10: =IFERROR(VLOOKUP(D10,Pieces!A:B,2,0)," ") -> G022-CP1 | D10: AXE D15-M11x100 | E10: 1352 | F10: 1533 | G10: 1640 | H10: 1725 | I10: =IFERROR(VLOOKUP(D10,Pieces!A:C,3,0),"") -> 30 | J10: 1 | K10: =(F10-E10)*J10 -> 181 | L10: =(G10-F10)*J10 -> 107 | M10: =(H10-G10)*J10 -> 85 | N10: =IF(I10="","",K10/I10) -> 6.033333333 | O10: =IF(I10="","",L10/I10) -> 3.566666667 | P10: =IF(I10="","",M10/I10) -> 2.833333333 | Q10: 13 | S10: =U10+T10-K10-L10-M10 -> 0 | U10: =(K10+L10+M10)-T10-V10 -> 373 | Z10: =IF(OR(I10="",I10=0),0,(U10+T10)/I10) -> 12.43333333 | AA10: =IF(OR(Q10=0,I10=0),"",Z10/Q10*100) -> 95.64102564 | AE10: =IF(AA10>85," ","WARNING") ->  | AF10: =(N10+O10+P10)/(Q10*3600) -> 0.0002656695157 | AG10: =((3600/I10)*U10)/(N10+O10+P10) -> 3600 | AH10: =(U10-T10)/U10 -> 1 | AI10: =AF10*AG10*AH10 -> 0.9564102564 | AJ10: =((U10-T10)*(3600/I10))/(Q10*3600) -> 0.9564102564
A11: C | B11: BIGLIA 301 SM | C11: =IFERROR(VLOOKUP(D11,Pieces!A:B,2,0)," ") -> 230500 | D11: BRAS DE MANOEUVRE G MAN | E11: 376 | F11: 551 | G11: 585 | H11: 616 | I11: =IFERROR(VLOOKUP(D11,Pieces!A:C,3,0),"") -> 20 | J11: 1 | K11: 175 | L11: 34 | M11: 31 | N11: 8.75 | O11: 1.7 | P11: 1.55 | Q11: 13 | S11: =U11+T11-K11-L11-M11 -> 0 | U11: 240 | Z11: 12 | AA11: 92.30769231 | AF11: 0.0002564102564 | AG11: 3600 | AH11: 1 | AI11: 0.9230769231 | AJ11: 0.9230769231
A12: D | B12: BIGLIA 42 S2M bitourelle | C12: =IFERROR(VLOOKUP(D12,Pieces!A:B,2,0)," ") -> MI018-B42 | D12: GOUJON DE ROUE MITSIBITCHI GM-SUR-B42 | E12: 6251 | F12: 6480 | G12: 6480 | H12: 6480 | I12: =IFERROR(VLOOKUP(D12,Pieces!A:C,3,0),"") -> 55 | J12: 1 | K12: 229 | L12: 0 | M12: 0 | N12: 4.163636364 | O12: 0 | P12: 0 | Q12: 9 | S12: 0 | U12: 229 | Z12: 4.163636364 | AA12: 46.26262626 | AE12: WARNING | AF12: 0.0001285072952 | AG12: 3600 | AH12: 1 | AI12: 0.4626262626 | AJ12: 0.4626262626
A13: E | B13: L32 | C13: =IFERROR(VLOOKUP(D13,Pieces!A:B,2,0)," ") -> 200200-2022 | D13: Embout de tige-2022 | E13: 4771 | F13: 4771 | G13: 4771 | H13: 4771 | I13: =IFERROR(VLOOKUP(D13,Pieces!A:C,3,0),"") -> 40 | J13: 1 | K13: 0 | L13: 0 | M13: 0 | N13: 0 | O13: 0 | P13: 0 | Q13: 13 | S13: 0 | U13: 0 | Z13: 0 | AA13: 0 | AE13: WARNING | AF13: 0 | AJ13: 0
A14: F | B14: TSUGAMI | C14: =IFERROR(VLOOKUP(D14,Pieces!A:B,2,0)," ") -> i097-tsughami | D14: ECROU DE ROUE FORD RANGER- finition rayon | E14: 627 | F14: 1257 | G14: 1386 | H14: 1386 | I14: =IFERROR(VLOOKUP(D14,Pieces!A:C,3,0),"") -> 100 | J14: 1 | K14: 630 | L14: 129 | M14: 0 | N14: 6.3 | O14: 1.29 | P14: 0 | Q14: 11 | S14: 0 | U14: 759 | Z14: 7.59 | AA14: 69 | AE14: WARNING | AF14: 0.0001916666667 | AG14: 3600 | AH14: 1 | AI14: 0.69 | AJ14: 0.69
A15: G | B15: Tour STAR SV-32-J | C15: =IFERROR(VLOOKUP(D15,Pieces!A:B,2,0)," ") -> 68.0815 | D15: Buse droite à collerette Ø8 M445 FRD | E15: 2635 | F15: 2953 | G15: 3034 | H15: 3120 | I15: =IFERROR(VLOOKUP(D15,Pieces!A:C,3,0),"") -> 60 | J15: 1 | K15: 318 | L15: 81 | M15: 86 | N15: 5.3 | O15: 1.35 | P15: 1.433333333 | Q15: 13 | S15: 0 | U15: 485 | Z15: 8.083333333 | AA15: 62.17948718 | AE15: WARNING | AF15: 0.0001727207977 | AG15: 3600 | AH15: 1 | AI15: 0.6217948718 | AJ15: 0.6217948718
A16: H | B16: Tour CNC STAR SB avec embarreur LNS Express 220 | C16: =IFERROR(VLOOKUP(D16,Pieces!A:B,2,0)," ") -> AXE-INOX-D8-L58-maj-c | D16: AXE INOX D8 L58 maj-c | E16: 0 | F16: 0 | G16: 0 | H16: 0 | I16: =IFERROR(VLOOKUP(D16,Pieces!A:C,3,0),"") -> 104 | J16: 1 | K16: 0 | L16: 0 | M16: 0 | N16: 0 | O16: 0 | P16: 0 | Q16: 13 | S16: 0 | U16: 0 | Z16: 0 | AA16: 0 | AE16: WARNING | AF16: 0 | AJ16: 0
A17: I | B17: MULTIBROCHE | C17: =IFERROR(VLOOKUP(D17,Pieces!A:B,2,0)," ") -> MPS000300 | D17: raccord HEX 17 | E17: 0 | F17: 0 | G17: 0 | H17: 0 | I17: =IFERROR(VLOOKUP(D17,Pieces!A:C,3,0),"") -> 500 | J17: 1 | K17: 0 | L17: 0 | M17: 0 | N17: 0 | O17: 0 | P17: 0 | Q17: 13 | S17: 0 | U17: 0 | Z17: 0 | AA17: 0 | AE17: WARNING | AF17: 0 | AJ17: 0
A18: J | B18: Tour CNC WEILER UD 24 - 100 | C18: =IFERROR(VLOOKUP(D18,Pieces!A:B,2,0)," ") -> PT8666 | D18: Rehausse-NAKAMURHA | E18: 127 | F18: 467 | G18: 467 | H18: 507 | I18: =IFERROR(VLOOKUP(D18,Pieces!A:C,3,0),"") -> 150 | J18: 1 | K18: 340 | L18: 0 | M18: 40 | N18: 2.266666667 | O18: 0 | P18: 0.2666666667 | Q18: 9 | R18: avec 375 pcs fini | S18: 0 | U18: 380 | Z18: 2.533333333 | AA18: 28.14814815 | AE18: WARNING | AF18: 7.818930041e-05 | AG18: 3600 | AH18: 1 | AI18: 0.2814814815 | AJ18: 0.2814814815
A19: K | B19: TOUR WEILER | C19: =IFERROR(VLOOKUP(D19,Pieces!A:B,2,0)," ") -> I143-CP1 | D19: ECROU DE ROUE ISUZU-CP1 | E19: 1086 | F19: 1448 | G19: 1448 | H19: 1448 | I19: =IFERROR(VLOOKUP(D19,Pieces!A:C,3,0),"") -> 60 | J19: 1 | K19: 362 | L19: 0 | M19: 0 | N19: 6.033333333 | O19: 0 | P19: 0 | Q19: 9 | S19: 0 | U19: 362 | Z19: 6.033333333 | AA19: 67.03703704 | AE19: WARNING | AF19: 0.0001862139918 | AG19: 3600 | AH19: 1 | AI19: 0.6703703704 | AJ19: 0.6703703704
A20: L | B20: NAKAMURA | C20: =IFERROR(VLOOKUP(D20,Pieces!A:B,2,0)," ") -> F046-CP2 | D20: BAGUE DECOLLETEE TUBE D'EAU PALIO -CP2 | E20: 514 | F20: 602 | G20: 602 | H20: 610 | I20: =IFERROR(VLOOKUP(D20,Pieces!A:C,3,0),"") -> 30 | J20: 1 | K20: 88 | L20: 0 | M20: 8 | N20: 2.933333333 | O20: 0 | P20: 0.2666666667 | Q20: 9 | S20: 0 | U20: 96 | Z20: 3.2 | AA20: 35.55555556 | AE20: WARNING | AF20: 9.87654321e-05 | AG20: 3600 | AH20: 1 | AI20: 0.3555555556 | AJ20: 0.3555555556
A21: M | B21: MORI SEIKI 3 axes | C21: =IFERROR(VLOOKUP(D21,Pieces!A:B,2,0)," ") -> I110-01-004 | D21: INSERT LEVIER SURMOULEE 345833-01 - fraisage | E21: 917 | F21: 941 | G21: 941 | H21: 941 | I21: =IFERROR(VLOOKUP(D21,Pieces!A:C,3,0),"") -> 32 | J21: 9 | K21: 216 | L21: 0 | M21: 0 | N21: 6.75 | O21: 0 | P21: 0 | Q21: 9 | S21: 0 | U21: 216 | Z21: 6.75 | AA21: 75 | AE21: WARNING | AF21: 0.0002083333333 | AG21: 3600 | AH21: 1 | AI21: 0.75 | AJ21: 0.75
A22: N | B22: MORI SEIKI 5 axes | C22: =IFERROR(VLOOKUP(D22,Pieces!A:B,2,0)," ") -> PIG-11D | D22: PIGNON 11 DENTS FRAISAGE | E22: 270 | F22: 270 | G22: 270 | H22: 270 | I22: =IFERROR(VLOOKUP(D22,Pieces!A:C,3,0),"") -> 120 | J22: 20 | K22: 0 | L22: 0 | M22: 0 | N22: 0 | O22: 0 | P22: 0 | Q22: 9 | S22: 0 | U22: 0 | Z22: 0 | AA22: 0 | AE22: WARNING | AF22: 0 | AJ22: 0
A23: O | B23: HARDING | C23: =IFERROR(VLOOKUP(D23,Pieces!A:B,2,0)," ") -> I006 | D23: CAL SUSPENSION PM ISUZU-HARDING | E23: 0 | F23: 0 | G23: 0 | H23: 0 | I23: =IFERROR(VLOOKUP(D23,Pieces!A:C,3,0),"") -> 48 | J23: 24 | K23: 0 | L23: 0 | M23: 0 | N23: 0 | O23: 0 | P23: 0 | Q23: 9 | S23: 0 | U23: 0 | Z23: 0 | AA23: 0 | AE23: WARNING | AF23: 0 | AJ23: 0
A24: P | B24: HARDING | C24: =IFERROR(VLOOKUP(D24,Pieces!A:B,2,0)," ") -> I004 | D24: ECROU SUSPENSION ISUZU-HARDING | E24: 0 | F24: 0 | G24: 0 | H24: 0 | I24: =IFERROR(VLOOKUP(D24,Pieces!A:C,3,0),"") -> 18 | J24: 9 | K24: 0 | L24: 0 | M24: 0 | N24: 0 | O24: 0 | P24: 0 | Q24: 9 | S24: 0 | U24: 0 | Z24: 0 | AA24: 0 | AE24: WARNING | AF24: 0 | AJ24: 0
A25: K | B25: KITAMURA | C25: =IFERROR(VLOOKUP(D25,Pieces!A:B,2,0)," ") -> 9518-maj | D25: USINAGE BORNE RBD-1 | E25: 3793 | F25: 3975 | G25: 3975 | H25: 3975 | I25: =IFERROR(VLOOKUP(D25,Pieces!A:C,3,0),"") -> 300 | J25: 12 | K25: =(F25-E25)*J25 -> 2184 | L25: =(G25-F25)*J25 -> 0 | M25: =(H25-G25)*J25 -> 0 | N25: =IF(I25="","",K25/I25) -> 7.28 | O25: =IF(I25="","",L25/I25) -> 0 | P25: =IF(I25="","",M25/I25) -> 0 | Q25: 9 | S25: =U25+T25-K25-L25-M25 -> 0 | U25: =(K25+L25+M25)-T25-V25 -> 2184 | Z25: =IF(OR(I25="",I25=0),0,(U25+T25)/I25) -> 7.28 | AA25: =IF(OR(Q25=0,I25=0),"",Z25/Q25*100) -> 80.88888889 | AE25: =IF(AA25>85," ","WARNING") -> WARNING | AF25: 0.000224691358 | AG25: 3600 | AH25: 1 | AI25: 0.8088888889 | AJ25: 0.8088888889
J31: Approbateur:
J32: Date:
J33: Visa:

Sheet 22-3-22
A1: 22-03-2022 | Z1: CODE: DAS-PRO-16
Z2: DATE:30/08/2019
Z3: VERSION:07
Z4: PAGE:1
A8: SYMBOLE | B8: MACHINE | C8: REF ARTICLE | D8: DESIGNATION | E8: COMPTEUR AUJOURD’HUI à 8h | F8: COMPTEUR HIER à 17H | G8: COMPTEUR HIER à 22H | H8: COMPTEUR AUJOURD’HUI à 8h | I8: CADENCE | J8: NOMBRE DE PIECES FINIS PAR CYCLE | K8: PIECES SUIVANT COMPTEU 8h-->17h | L8: PIECES SUIVANT COMPTEUR 17H-->22H | M8: PIECES SUIVANT COMPTEUR 6h-->8h | N8: NOMBRE D'HEURES DE TRAVAIL 8h-->17h | O8: NOMBRE D'HEURES DE TRAVAIL 17H-->22H | P8: NOMBRE D'HEURES DE TRAVAIL 6h-->8h | Q8: NOMBRE D'HEURES DE TRAVAIL | R8: OBSERVATIONS | S8: Pieces manquantes | T8: PIECES NC | U8: Pieces REELLES | V8: Nombre des pieces à retoucher | W8: Cause de la non-conformité | X8: Effet de la non-conformité | Y8: Valeur de l'effet | Z8: NOMBRES D'HEURES SUIVANT LES PIECES REELLES | AA8: RENDEMENT | AB8: Fiche de contrôle qualité début de serie | AC8: Affutage | AD8: Gamme d'usingae | AE8: ALERTES | AF8: A | AG8: P | AH8: Q | AI8: OEE | AJ8: OEE
A9: A | B9: SST16 | C9: =IFERROR(VLOOKUP(D9,Pieces!A:B,2,0)," ") -> 200101 | D9: AXE D'ARTICULATION | E9: 1380 | F9: 2209 | G9: 2400 | H9: 2574 | I9: =IFERROR(VLOOKUP(D9,Pieces!A:C,3,0),"") -> 120 | J9: 1 | K9: =(F9-E9)*J9 -> 829 | L9: =(G9-F9)*J9 -> 191 | M9: =(H9-G9)*J9 -> 174 | N9: =IF(I9="","",K9/I9) -> 6.908333333 | O9: =IF(I9="","",L9/I9) -> 1.591666667 | P9: =IF(I9="","",M9/I9) -> 1.45 | Q9: 13 | S9: =U9+T9-K9-L9-M9 -> 0 | U9: =(K9+L9+M9)-T9-V9 -> 1194 | Z9: =IF(OR(I9="",I9=0),0,(U9+T9)/I9) -> 9.95 | AA9: =IF(OR(Q9=0,I9=0),"",Z9/Q9*100) -> 76.53846154 | AE9: =IF(AA9>85," ","WARNING") -> WARNING | AF9: =(N9+O9+P9)/(Q9*3600) -> 0.0002126068376 | AG9: =((3600/I9)*U9)/(N9+O9+P9) -> 3600 | AH9: =(U9-T9)/U9 -> 1 | AI9: =AF9*AG9*AH9 -> 0.7653846154 | AJ9: =((U9-T9)*(3600/I9))/(Q9*3600) -> 0.7653846154
A10: B | B10: SB16 | C10: =IFERROR(VLOOKUP(D10,Pieces!A:B,2,0)," ") -> G022-CP1 | D10: AXE D15-M11x100 | E10: 1352 | F10: 1352 | G10: 1352 | H10: 1352 | I10: =IFERROR(VLOOKUP(D10,Pieces!A:C,3,0),"") -> 30 | J10: 1 | K10: =(F10-E10)*J10 -> 0 | L10: =(G10-F10)*J10 -> 0 | M10: =(H10-G10)*J10 -> 0 | N10: =IF(I10="","",K10/I10) -> 0 | O10: =IF(I10="","",L10/I10) -> 0 | P10: =IF(I10="","",M10/I10) -> 0 | Q10: 13 | S10: =U10+T10-K10-L10-M10 -> 0 | U10: =(K10+L10+M10)-T10-V10 -> 0 | Z10: =IF(OR(I10="",I10=0),0,(U10+T10)/I10) -> 0 | AA10: =IF(OR(Q10=0,I10=0),"",Z10/Q10*100) -> 0 | AE10: =IF(AA10>85," ","WARNING") -> WARNING | AF10: =(N10+O10+P10)/(Q10*3600) -> 0 | AG10: =((3600/I10)*U10)/(N10+O10+P10) ->  | AH10: =(U10-T10)/U10 ->  | AI10: =AF10*AG10*AH10 ->  | AJ10: =((U10-T10)*(3600/I10))/(Q10*3600) -> 0
A11: C | B11: BIGLIA 301 SM | C11: =IFERROR(VLOOKUP(D11,Pieces!A:B,2,0)," ") -> 230500 | D11: BRAS DE MANOEUVRE G MAN | E11: 122 | F11: 307 | G11: 344 | H11: 376 | I11: =IFERROR(VLOOKUP(D11,Pieces!A:C,3,0),"") -> 20 | J11: 1 | K11: 185 | L11: 37 | M11: 32 | N11: 9.25 | O11: 1.85 | P11: 1.6 | Q11: 13 | S11: =U11+T11-K11-L11-M11 -> 0 | U11: 254 | Z11: 12.7 | AA11: 97.69230769 | AF11: 0.0002713675214 | AG11: 3600 | AH11: 1 | AI11: 0.9769230769 | AJ11: 0.9769230769
A12: D | B12: BIGLIA 42 S2M bitourelle | C12: =IFERROR(VLOOKUP(D12,Pieces!A:B,2,0)," ") -> MI018-B42 | D12: GOUJON DE ROUE MITSIBITCHI GM-SUR-B42 | E12: 5971 | F12: 6251 | G12: 6251 | H12: 6251 | I12: =IFERROR(VLOOKUP(D12,Pieces!A:C,3,0),"") -> 55 | J12: 1 | K12: 280 | L12: 0 | M12: 0 | N12: 5.090909091 | O12: 0 | P12: 0 | Q12: 9 | S12: 0 | U12: 280 | Z12: 5.090909091 | AA12: 56.56565657 | AE12: WARNING | AF12: 0.0001571268238 | AG12: 3600 | AH12: 1 | AI12: 0.5656565657 | AJ12: 0.5656565657
A13: E | B13: L32 | C13: =IFERROR(VLOOKUP(D13,Pieces!A:B,2,0)," ") -> 200200-2022 | D13: Embout de tige-2022 | E13: 4771 | F13: 4771 | G13: 4771 | H13: 4771 | I13: =IFERROR(VLOOKUP(D13,Pieces!A:C,3,0),"") -> 40 | J13: 1 | K13: 0 | L13: 0 | M13: 0 | N13: 0 | O13: 0 | P13: 0 | Q13: 13 | S13: 0 | U13: 0 | Z13: 0 | AA13: 0 | AE13: WARNING | AF13: 0 | AJ13: 0
A14: F | B14: TSUGAMI | C14: =IFERROR(VLOOKUP(D14,Pieces!A:B,2,0)," ") -> i097-tsughami | D14: ECROU DE ROUE FORD RANGER- finition rayon | E14: 0 | F14: 348 | G14: 505 | H14: 627 | I14: =IFERROR(VLOOKUP(D14,Pieces!A:C,3,0),"") -> 100 | J14: 1 | K14: 348 | L14: 157 | M14: 122 | N14: 3.48 | O14: 1.57 | P14: 1.22 | Q14: 13 | S14: 0 | U14: 627 | Z14: 6.27 | AA14: 48.23076923 | AE14: WARNING | AF14: 0.000133974359 | AG14: 3600 | AH14: 1 | AI14: 0.4823076923 | AJ14: 0.4823076923
A15: G | B15: Tour STAR SV-32-J | C15: =IFERROR(VLOOKUP(D15,Pieces!A:B,2,0)," ") -> 68.0815 | D15: Buse droite à collerette Ø8 M445 FRD | E15: 2153 | F15: 2460 | G15: 2530 | H15: 2635 | I15: =IFERROR(VLOOKUP(D15,Pieces!A:C,3,0),"") -> 60 | J15: 1 | K15: 307 | L15: 70 | M15: 105 | N15: 5.116666667 | O15: 1.166666667 | P15: 1.75 | Q15: 13 | S15: 0 | U15: 482 | Z15: 8.033333333 | AA15: 61.79487179 | AE15: WARNING | AF15: 0.0001716524217 | AG15: 3600 | AH15: 1 | AI15: 0.6179487179 | AJ15: 0.6179487179
A16: H | B16: Tour CNC STAR SB avec embarreur LNS Express 220 | C16: =IFERROR(VLOOKUP(D16,Pieces!A:B,2,0)," ") -> AXE-INOX-D8-L58-maj-c | D16: AXE INOX D8 L58 maj-c | E16: 19510 | F16: 20370 | G16: 20550 | H16: 20734 | I16: =IFERROR(VLOOKUP(D16,Pieces!A:C,3,0),"") -> 104 | J16: 1 | K16: 860 | L16: 180 | M16: 184 | N16: 8.269230769 | O16: 1.730769231 | P16: 1.769230769 | Q16: 13 | S16: 0 | U16: 1224 | Z16: 11.76923077 | AA16: 90.53254438 | AF16: 0.0002514792899 | AG16: 3600 | AH16: 1 | AI16: 0.9053254438 | AJ16: 0.9053254438
A17: I | B17: MULTIBROCHE | C17: =IFERROR(VLOOKUP(D17,Pieces!A:B,2,0)," ") -> MPS000300 | D17: raccord HEX 17 | E17: 0 | F17: 0 | G17: 0 | H17: 0 | I17: =IFERROR(VLOOKUP(D17,Pieces!A:C,3,0),"") -> 500 | J17: 1 | K17: 0 | L17: 0 | M17: 0 | N17: 0 | O17: 0 | P17: 0 | Q17: 13 | S17: 0 | U17: 0 | Z17: 0 | AA17: 0 | AE17: WARNING | AF17: 0 | AJ17: 0
A18: J | B18: Tour CNC WEILER UD 24 - 100 | C18: =IFERROR(VLOOKUP(D18,Pieces!A:B,2,0)," ") -> PT8666 | D18: Rehausse-NAKAMURHA | E18: 0 | F18: 90 | G18: 90 | H18: 127 | I18: =IFERROR(VLOOKUP(D18,Pieces!A:C,3,0),"") -> 150 | J18: 1 | K18: 90 | L18: 0 | M18: 37 | N18: 0.6 | O18: 0 | P18: 0.2466666667 | Q18: 9 | R18: 345 pcs non fini | S18: 0 | U18: 127 | Z18: 0.8466666667 | AA18: 9.407407407 | AE18: WARNING | AF18: 2.613168724e-05 | AG18: 3600 | AH18: 1 | AI18: 0.09407407407 | AJ18: 0.09407407407
A19: K | B19: TOUR WEILER | C19: =IFERROR(VLOOKUP(D19,Pieces!A:B,2,0)," ") -> I143-CP1 | D19: ECROU DE ROUE ISUZU-CP1 | E19: 747 | F19: 1086 | G19: 1086 | H19: 1086 | I19: =IFERROR(VLOOKUP(D19,Pieces!A:C,3,0),"") -> 60 | J19: 1 | K19: 339 | L19: 0 | M19: 0 | N19: 5.65 | O19: 0 | P19: 0 | Q19: 9 | S19: 0 | U19: 339 | Z19: 5.65 | AA19: 62.77777778 | AE19: WARNING | AF19: 0.000174382716 | AG19: 3600 | AH19: 1 | AI19: 0.6277777778 | AJ19: 0.6277777778
A20: L | B20: NAKAMURA | C20: =IFERROR(VLOOKUP(D20,Pieces!A:B,2,0)," ") -> F046-CP2 | D20: BAGUE DECOLLETEE TUBE D'EAU PALIO -CP2 | E20: 409 | F20: 486 | G20: 486 | H20: 514 | I20: =IFERROR(VLOOKUP(D20,Pieces!A:C,3,0),"") -> 30 | J20: 1 | K20: 77 | L20: 0 | M20: 28 | N20: 2.566666667 | O20: 0 | P20: 0.9333333333 | Q20: 9 | S20: 0 | U20: 105 | Z20: 3.5 | AA20: 38.88888889 | AE20: WARNING | AF20: 0.0001080246914 | AG20: 3600 | AH20: 1 | AI20: 0.3888888889 | AJ20: 0.3888888889
A21: M | B21: MORI SEIKI 3 axes | C21: =IFERROR(VLOOKUP(D21,Pieces!A:B,2,0)," ") -> I110-01-004 | D21: INSERT LEVIER SURMOULEE 345833-01 - fraisage | E21: 878 | F21: 909 | G21: 917 | H21: 917 | I21: =IFERROR(VLOOKUP(D21,Pieces!A:C,3,0),"") -> 32 | J21: 9 | K21: 279 | L21: 72 | M21: 0 | N21: 8.71875 | O21: 2.25 | P21: 0 | Q21: 8 | S21: 0 | U21: 351 | Z21: 10.96875 | AA21: 137.109375 | AF21: 0.000380859375 | AG21: 3600 | AH21: 1 | AI21: 1.37109375 | AJ21: 1.37109375
A22: N | B22: MORI SEIKI 5 axes | C22: =IFERROR(VLOOKUP(D22,Pieces!A:B,2,0)," ") -> PIG-11D | D22: PIGNON 11 DENTS FRAISAGE | E22: 270 | F22: 270 | G22: 270 | H22: 270 | I22: =IFERROR(VLOOKUP(D22,Pieces!A:C,3,0),"") -> 120 | J22: 20 | K22: 0 | L22: 0 | M22: 0 | N22: 0 | O22: 0 | P22: 0 | Q22: 15 | S22: 0 | U22: 0 | Z22: 0 | AA22: 0 | AE22: WARNING | AF22: 0 | AJ22: 0
A23: O | B23: HARDING | C23: =IFERROR(VLOOKUP(D23,Pieces!A:B,2,0)," ") -> I006 | D23: CAL SUSPENSION PM ISUZU-HARDING | E23: 298 | F23: 298 | G23: 298 | H23: 298 | I23: =IFERROR(VLOOKUP(D23,Pieces!A:C,3,0),"") -> 48 | J23: 24 | K23: 0 | L23: 0 | M23: 0 | N23: 0 | O23: 0 | P23: 0 | Q23: 9 | S23: 0 | U23: 0 | Z23: 0 | AA23: 0 | AE23: WARNING | AF23: 0 | AJ23: 0
A24: P | B24: HARDING | C24: =IFERROR(VLOOKUP(D24,Pieces!A:B,2,0)," ") -> I004 | D24: ECROU SUSPENSION ISUZU-HARDING | E24: 298 | F24: 298 | G24: 298 | H24: 298 | I24: =IFERROR(VLOOKUP(D24,Pieces!A:C,3,0),"") -> 18 | J24: 9 | K24: 0 | L24: 0 | M24: 0 | N24: 0 | O24: 0 | P24: 0 | Q24: 9 | S24: 0 | U24: 0 | Z24: 0 | AA24: 0 | AE24: WARNING | AF24: 0 | AJ24: 0
A25: K | B25: KITAMURA | C25: =IFERROR(VLOOKUP(D25,Pieces!A:B,2,0)," ") -> 9518-maj | D25: USINAGE BORNE RBD-1 | E25: 3564 | F25: 3763 | G25: 3763 | H25: 3793 | I25: =IFERROR(VLOOKUP(D25,Pieces!A:C,3,0),"") -> 300 | J25: 12 | K25: =(F25-E25)*J25 -> 2388 | L25: =(G25-F25)*J25 -> 0 | M25: =(H25-G25)*J25 -> 360 | N25: =IF(I25="","",K25/I25) -> 7.96 | O25: =IF(I25="","",L25/I25) -> 0 | P25: =IF(I25="","",M25/I25) -> 1.2 | Q25: 9 | S25: =U25+T25-K25-L25-M25 -> 0 | U25: =(K25+L25+M25)-T25-V25 -> 2748 | Z25: =IF(OR(I25="",I25=0),0,(U25+T25)/I25) -> 9.16 | AA25: =IF(OR(Q25=0,I25=0),"",Z25/Q25*100) -> 101.7777778 | AE25: =IF(AA25>85," ","WARNING") ->  | AF25: 0.0002827160494 | AG25: 3600 | AH25: 1 | AI25: 1.017777778 | AJ25: 1.017777778
J31: Approbateur:
J32: Date:
J33: Visa:

Sheet 21-3-22
A1: 21-03-2022 | Z1: CODE: DAS-PRO-16
Z2: DATE:30/08/2019
Z3: VERSION:07
Z4: PAGE:1
A8: SYMBOLE | B8: MACHINE | C8: REF ARTICLE | D8: DESIGNATION | E8: COMPTEUR AUJOURD’HUI à 8h | F8: COMPTEUR HIER à 17H | G8: COMPTEUR HIER à 22H | H8: COMPTEUR AUJOURD’HUI à 8h | I8: CADENCE | J8: NOMBRE DE PIECES FINIS PAR CYCLE | K8: PIECES SUIVANT COMPTEU 8h-->17h | L8: PIECES SUIVANT COMPTEUR 17H-->22H | M8: PIECES SUIVANT COMPTEUR 6h-->8h | N8: NOMBRE D'HEURES DE TRAVAIL 8h-->17h | O8: NOMBRE D'HEURES DE TRAVAIL 17H-->22H | P8: NOMBRE D'HEURES DE TRAVAIL 6h-->8h | Q8: NOMBRE D'HEURES DE TRAVAIL | R8: OBSERVATIONS | S8: Pieces manquantes | T8: PIECES NC | U8: Pieces REELLES | V8: Nombre des pieces à retoucher | W8: Cause de la non-conformité | X8: Effet de la non-conformité | Y8: Valeur de l'effet | Z8: NOMBRES D'HEURES SUIVANT LES PIECES REELLES | AA8: RENDEMENT | AB8: Fiche de contrôle qualité début de serie | AC8: Affutage | AD8: Gamme d'usingae | AE8: ALERTES | AF8: A | AG8: P | AH8: Q | AI8: OEE | AJ8: OEE
A9: A | B9: SST16 | C9: =IFERROR(VLOOKUP(D9,Pieces!A:B,2,0)," ") -> 200101 | D9: AXE D'ARTICULATION | E9: 119 | F9: 970 | G9: 1380 | H9: 1380 | I9: =IFERROR(VLOOKUP(D9,Pieces!A:C,3,0),"") -> 120 | J9: 1 | K9: =(F9-E9)*J9 -> 851 | L9: =(G9-F9)*J9 -> 410 | M9: =(H9-G9)*J9 -> 0 | N9: =IF(I9="","",K9/I9) -> 7.091666667 | O9: =IF(I9="","",L9/I9) -> 3.416666667 | P9: =IF(I9="","",M9/I9) -> 0 | Q9: 15 | S9: =U9+T9-K9-L9-M9 -> 0 | U9: =(K9+L9+M9)-T9-V9 -> 1261 | Z9: =IF(OR(I9="",I9=0),0,(U9+T9)/I9) -> 10.50833333 | AA9: =IF(OR(Q9=0,I9=0),"",Z9/Q9*100) -> 70.05555556 | AE9: =IF(AA9>85," ","WARNING") -> WARNING | AF9: =(N9+O9+P9)/(Q9*3600) -> 0.0001945987654 | AG9: =((3600/I9)*U9)/(N9+O9+P9) -> 3600 | AH9: =(U9-T9)/U9 -> 1 | AI9: =AF9*AG9*AH9 -> 0.7005555556 | AJ9: =((U9-T9)*(3600/I9))/(Q9*3600) -> 0.7005555556
A10: B | B10: SB16 | C10: =IFERROR(VLOOKUP(D10,Pieces!A:B,2,0)," ") -> G022-CP1 | D10: AXE D15-M11x100 | E10: 1301 | F10: 1352 | G10: 1352 | H10: 1352 | I10: =IFERROR(VLOOKUP(D10,Pieces!A:C,3,0),"") -> 30 | J10: 1 | K10: =(F10-E10)*J10 -> 51 | L10: =(G10-F10)*J10 -> 0 | M10: =(H10-G10)*J10 -> 0 | N10: =IF(I10="","",K10/I10) -> 1.7 | O10: =IF(I10="","",L10/I10) -> 0 | P10: =IF(I10="","",M10/I10) -> 0 | Q10: 15 | S10: =U10+T10-K10-L10-M10 -> 0 | U10: =(K10+L10+M10)-T10-V10 -> 51 | Z10: =IF(OR(I10="",I10=0),0,(U10+T10)/I10) -> 1.7 | AA10: =IF(OR(Q10=0,I10=0),"",Z10/Q10*100) -> 11.33333333 | AE10: =IF(AA10>85," ","WARNING") -> WARNING | AF10: =(N10+O10+P10)/(Q10*3600) -> 3.148148148e-05 | AG10: =((3600/I10)*U10)/(N10+O10+P10) -> 3600 | AH10: =(U10-T10)/U10 -> 1 | AI10: =AF10*AG10*AH10 -> 0.1133333333 | AJ10: =((U10-T10)*(3600/I10))/(Q10*3600) -> 0.1133333333
A11: C | B11: BIGLIA 301 SM | C11: =IFERROR(VLOOKUP(D11,Pieces!A:B,2,0)," ") -> 230500 | D11: BRAS DE MANOEUVRE G MAN | E11: 0 | F11: 41 | G11: 122 | H11: 122 | I11: =IFERROR(VLOOKUP(D11,Pieces!A:C,3,0),"") -> 20 | J11: 1 | K11: 41 | L11: 81 | M11: 0 | N11: 2.05 | O11: 4.05 | P11: 0 | Q11: 15 | S11: =U11+T11-K11-L11-M11 -> 0 | U11: 122 | Z11: 6.1 | AA11: 40.66666667 | AE11: WARNING | AF11: 0.000112962963 | AG11: 3600 | AH11: 1 | AI11: 0.4066666667 | AJ11: 0.4066666667
A12: D | B12: BIGLIA 42 S2M bitourelle | C12: =IFERROR(VLOOKUP(D12,Pieces!A:B,2,0)," ") -> MI018-B42 | D12: GOUJON DE ROUE MITSIBITCHI GM-SUR-B42 | E12: 5460 | F12: 5821 | G12: 5971 | H12: 5971 | I12: =IFERROR(VLOOKUP(D12,Pieces!A:C,3,0),"") -> 55 | J12: 1 | K12: 361 | L12: 150 | M12: 0 | N12: 6.563636364 | O12: 2.727272727 | P12: 0 | Q12: 15 | S12: 0 | U12: 511 | Z12: 9.290909091 | AA12: 61.93939394 | AE12: WARNING | AF12: 0.0001720538721 | AG12: 3600 | AH12: 1 | AI12: 0.6193939394 | AJ12: 0.6193939394
A13: E | B13: L32 | C13: =IFERROR(VLOOKUP(D13,Pieces!A:B,2,0)," ") -> 200200-2022 | D13: Embout de tige-2022 | E13: 4771 | F13: 4771 | G13: 4771 | H13: 4771 | I13: =IFERROR(VLOOKUP(D13,Pieces!A:C,3,0),"") -> 40 | J13: 1 | K13: 0 | L13: 0 | M13: 0 | N13: 0 | O13: 0 | P13: 0 | Q13: 15 | S13: 0 | U13: 0 | Z13: 0 | AA13: 0 | AE13: WARNING | AF13: 0 | AJ13: 0
A14: F | B14: TSUGAMI | C14: =IFERROR(VLOOKUP(D14,Pieces!A:B,2,0)," ") -> B55 6*14.8 | D14: Rivet couvercle B55 | E14: 36473 | F14: 36473 | G14: 36473 | H14: 36473 | I14: =IFERROR(VLOOKUP(D14,Pieces!A:C,3,0),"") -> 180 | J14: 1 | K14: 0 | L14: 0 | M14: 0 | N14: 0 | O14: 0 | P14: 0 | Q14: 9 | S14: 0 | U14: 0 | Z14: 0 | AA14: 0 | AE14: WARNING | AF14: 0 | AJ14: 0
A15: G | B15: Tour STAR SV-32-J | C15: =IFERROR(VLOOKUP(D15,Pieces!A:B,2,0)," ") -> 68.0815 | D15: Buse droite à collerette Ø8 M445 FRD | E15: 1495 | F15: 1960 | G15: 2153 | H15: 2153 | I15: =IFERROR(VLOOKUP(D15,Pieces!A:C,3,0),"") -> 60 | J15: 1 | K15: 465 | L15: 193 | M15: 0 | N15: 7.75 | O15: 3.216666667 | P15: 0 | Q15: 15 | S15: 0 | U15: 658 | Z15: 10.96666667 | AA15: 73.11111111 | AE15: WARNING | AF15: 0.0002030864198 | AG15: 3600 | AH15: 1 | AI15: 0.7311111111 | AJ15: 0.7311111111
A16: H | B16: Tour CNC STAR SB avec embarreur LNS Express 220 | C16: =IFERROR(VLOOKUP(D16,Pieces!A:B,2,0)," ") -> AXE-INOX-D8-L58-maj-c | D16: AXE INOX D8 L58 maj-c | E16: 18235 | F16: 19130 | G16: 19510 | H16: 19510 | I16: =IFERROR(VLOOKUP(D16,Pieces!A:C,3,0),"") -> 104 | J16: 1 | K16: 895 | L16: 380 | M16: 0 | N16: 8.605769231 | O16: 3.653846154 | P16: 0 | Q16: 15 | S16: 0 | U16: 1275 | Z16: 12.25961538 | AA16: 81.73076923 | AE16: WARNING | AF16: 0.0002270299145 | AG16: 3600 | AH16: 1 | AI16: 0.8173076923 | AJ16: 0.8173076923
A17: I | B17: MULTIBROCHE | C17: =IFERROR(VLOOKUP(D17,Pieces!A:B,2,0)," ") -> MPS000300 | D17: raccord HEX 17 | E17: 0 | F17: 0 | G17: 0 | H17: 0 | I17: =IFERROR(VLOOKUP(D17,Pieces!A:C,3,0),"") -> 500 | J17: 1 | K17: 0 | L17: 0 | M17: 0 | N17: 0 | O17: 0 | P17: 0 | Q17: 15 | S17: 0 | U17: 0 | Z17: 0 | AA17: 0 | AE17: WARNING | AF17: 0 | AJ17: 0
A18: J | B18: Tour CNC WEILER UD 24 - 100 | C18: =IFERROR(VLOOKUP(D18,Pieces!A:B,2,0)," ") -> PT8666 | D18: Rehausse-NAKAMURHA | E18: 0 | F18: 252 | G18: 252 | H18: 252 | I18: =IFERROR(VLOOKUP(D18,Pieces!A:C,3,0),"") -> 150 | J18: 1 | K18: 252 | L18: 0 | M18: 0 | N18: 1.68 | O18: 0 | P18: 0 | Q18: 9 | S18: 0 | U18: 252 | Z18: 1.68 | AA18: 18.66666667 | AE18: WARNING | AF18: 5.185185185e-05 | AG18: 3600 | AH18: 1 | AI18: 0.1866666667 | AJ18: 0.1866666667
A19: K | B19: TOUR WEILER | C19: =IFERROR(VLOOKUP(D19,Pieces!A:B,2,0)," ") -> I143-CP1 | D19: ECROU DE ROUE ISUZU-CP1 | E19: 308 | F19: 661 | G19: 747 | H19: 747 | I19: =IFERROR(VLOOKUP(D19,Pieces!A:C,3,0),"") -> 60 | J19: 1 | K19: 353 | L19: 86 | M19: 0 | N19: 5.883333333 | O19: 1.433333333 | P19: 0 | Q19: 13 | S19: 0 | U19: 439 | Z19: 7.316666667 | AA19: 56.28205128 | AE19: WARNING | AF19: 0.0001563390313 | AG19: 3600 | AH19: 1 | AI19: 0.5628205128 | AJ19: 0.5628205128
A20: L | B20: NAKAMURA | C20: =IFERROR(VLOOKUP(D20,Pieces!A:B,2,0)," ") -> F046-CP2 | D20: BAGUE DECOLLETEE TUBE D'EAU PALIO -CP2 | E20: 283 | F20: 400 | G20: 400 | H20: 409 | I20: =IFERROR(VLOOKUP(D20,Pieces!A:C,3,0),"") -> 30 | J20: 1 | K20: 117 | L20: 0 | M20: 9 | N20: 3.9 | O20: 0 | P20: 0.3 | Q20: 11 | S20: 0 | U20: 126 | Z20: 4.2 | AA20: 38.18181818 | AE20: WARNING | AF20: 0.0001060606061 | AG20: 3600 | AH20: 1 | AI20: 0.3818181818 | AJ20: 0.3818181818
A21: M | B21: MORI SEIKI 3 axes | C21: =IFERROR(VLOOKUP(D21,Pieces!A:B,2,0)," ") -> I110-01-004 | D21: INSERT LEVIER SURMOULEE 345833-01 - fraisage | E21: 842 | F21: 870 | G21: 878 | H21: 878 | I21: =IFERROR(VLOOKUP(D21,Pieces!A:C,3,0),"") -> 32 | J21: 9 | K21: 252 | L21: 72 | M21: 0 | N21: 7.875 | O21: 2.25 | P21: 0 | Q21: 9 | S21: 0 | U21: 324 | Z21: 10.125 | AA21: 112.5 | AF21: 0.0003125 | AG21: 3600 | AH21: 1 | AI21: 1.125 | AJ21: 1.125
A22: N | B22: MORI SEIKI 5 axes | C22: =IFERROR(VLOOKUP(D22,Pieces!A:B,2,0)," ") -> PIG-11D | D22: PIGNON 11 DENTS FRAISAGE | E22: 270 | F22: 270 | G22: 270 | H22: 270 | I22: =IFERROR(VLOOKUP(D22,Pieces!A:C,3,0),"") -> 120 | J22: 20 | K22: 0 | L22: 0 | M22: 0 | N22: 0 | O22: 0 | P22: 0 | Q22: 9 | S22: 0 | U22: 0 | Z22: 0 | AA22: 0 | AE22: WARNING | AF22: 0 | AJ22: 0
A23: O | B23: HARDING | C23: =IFERROR(VLOOKUP(D23,Pieces!A:B,2,0)," ") -> I006 | D23: CAL SUSPENSION PM ISUZU-HARDING | E23: 287 | F23: 298 | G23: 298 | H23: 298 | I23: =IFERROR(VLOOKUP(D23,Pieces!A:C,3,0),"") -> 48 | J23: 24 | K23: 264 | L23: 0 | M23: 0 | N23: 5.5 | O23: 0 | P23: 0 | Q23: 9 | S23: 0 | U23: 264 | Z23: 5.5 | AA23: 61.11111111 | AE23: WARNING | AF23: 0.0001697530864 | AG23: 3600 | AH23: 1 | AI23: 0.6111111111 | AJ23: 0.6111111111
A24: P | B24: HARDING | C24: =IFERROR(VLOOKUP(D24,Pieces!A:B,2,0)," ") -> I004 | D24: ECROU SUSPENSION ISUZU-HARDING | E24: 287 | F24: 298 | G24: 298 | H24: 298 | I24: =IFERROR(VLOOKUP(D24,Pieces!A:C,3,0),"") -> 18 | J24: 9 | K24: 99 | L24: 0 | M24: 0 | N24: 5.5 | O24: 0 | P24: 0 | Q24: 9 | S24: 0 | U24: 99 | Z24: 5.5 | AA24: 61.11111111 | AE24: WARNING | AF24: 0.0001697530864 | AG24: 3600 | AH24: 1 | AI24: 0.6111111111 | AJ24: 0.6111111111
A25: K | B25: KITAMURA | C25: =IFERROR(VLOOKUP(D25,Pieces!A:B,2,0)," ") -> 9518-maj | D25: USINAGE BORNE RBD-1 | E25: 3393 | F25: 3564 | G25: 3564 | H25: 3564 | I25: =IFERROR(VLOOKUP(D25,Pieces!A:C,3,0),"") -> 300 | J25: 12 | K25: =(F25-E25)*J25 -> 2052 | L25: =(G25-F25)*J25 -> 0 | M25: =(H25-G25)*J25 -> 0 | N25: =IF(I25="","",K25/I25) -> 6.84 | O25: =IF(I25="","",L25/I25) -> 0 | P25: =IF(I25="","",M25/I25) -> 0 | Q25: 9 | S25: =U25+T25-K25-L25-M25 -> 0 | U25: =(K25+L25+M25)-T25-V25 -> 2052 | Z25: =IF(OR(I25="",I25=0),0,(U25+T25)/I25) -> 6.84 | AA25: =IF(OR(Q25=0,I25=0),"",Z25/Q25*100) -> 76 | AE25: =IF(AA25>85," ","WARNING") -> WARNING | AF25: 0.0002111111111 | AG25: 3600 | AH25: 1 | AI25: 0.76 | AJ25: 0.76
J31: Approbateur:
J32: Date:
J33: Visa:

Sheet 19-3-22
A1: 19-03-2022 | Z1: CODE: DAS-PRO-16
Z2: DATE:30/08/2019
Z3: VERSION:07
Z4: PAGE:1
A8: SYMBOLE | B8: MACHINE | C8: REF ARTICLE | D8: DESIGNATION | E8: COMPTEUR AUJOURD’HUI à 8h | F8: COMPTEUR HIER à 17H | G8: COMPTEUR HIER à 22H | H8: COMPTEUR AUJOURD’HUI à 8h | I8: CADENCE | J8: NOMBRE DE PIECES FINIS PAR CYCLE | K8: PIECES SUIVANT COMPTEU 8h-->17h | L8: PIECES SUIVANT COMPTEUR 17H-->22H | M8: PIECES SUIVANT COMPTEUR 6h-->8h | N8: NOMBRE D'HEURES DE TRAVAIL 8h-->17h | O8: NOMBRE D'HEURES DE TRAVAIL 17H-->22H | P8: NOMBRE D'HEURES DE TRAVAIL 6h-->8h | Q8: NOMBRE D'HEURES DE TRAVAIL | R8: OBSERVATIONS | S8: Pieces manquantes | T8: PIECES NC | U8: Pieces REELLES | V8: Nombre des pieces à retoucher | W8: Cause de la non-conformité | X8: Effet de la non-conformité | Y8: Valeur de l'effet | Z8: NOMBRES D'HEURES SUIVANT LES PIECES REELLES | AA8: RENDEMENT | AB8: Fiche de contrôle qualité début de serie | AC8: Affutage | AD8: Gamme d'usingae | AE8: ALERTES | AF8: A | AG8: P | AH8: Q | AI8: OEE | AJ8: OEE
A9: A | B9: SST16 | C9: =IFERROR(VLOOKUP(D9,Pieces!A:B,2,0)," ") -> 200101 | D9: AXE D'ARTICULATION | E9: 0 | F9: 0 | G9: 0 | H9: 119 | I9: =IFERROR(VLOOKUP(D9,Pieces!A:C,3,0),"") -> 120 | J9: 1 | K9: =(F9-E9)*J9 -> 0 | L9: =(G9-F9)*J9 -> 0 | M9: =(H9-G9)*J9 -> 119 | N9: =IF(I9="","",K9/I9) -> 0 | O9: =IF(I9="","",L9/I9) -> 0 | P9: =IF(I9="","",M9/I9) -> 0.9916666667 | Q9: 7 | S9: =U9+T9-K9-L9-M9 -> 0 | U9: =(K9+L9+M9)-T9-V9 -> 119 | Z9: =IF(OR(I9="",I9=0),0,(U9+T9)/I9) -> 0.9916666667 | AA9: =IF(OR(Q9=0,I9=0),"",Z9/Q9*100) -> 14.16666667 | AE9: =IF(AA9>85," ","WARNING") -> WARNING | AF9: =(N9+O9+P9)/(Q9*3600) -> 3.935185185e-05 | AG9: =((3600/I9)*U9)/(N9+O9+P9) -> 3600 | AH9: =(U9-T9)/U9 -> 1 | AI9: =AF9*AG9*AH9 -> 0.1416666667 | AJ9: =((U9-T9)*(3600/I9))/(Q9*3600) -> 0.1416666667
A10: B | B10: SB16 | C10: =IFERROR(VLOOKUP(D10,Pieces!A:B,2,0)," ") -> G022-CP1 | D10: AXE D15-M11x100 | E10: 1156 | F10: 1250 | G10: 1250 | H10: 1301 | I10: =IFERROR(VLOOKUP(D10,Pieces!A:C,3,0),"") -> 30 | J10: 1 | K10: =(F10-E10)*J10 -> 94 | L10: =(G10-F10)*J10 -> 0 | M10: =(H10-G10)*J10 -> 51 | N10: =IF(I10="","",K10/I10) -> 3.133333333 | O10: =IF(I10="","",L10/I10) -> 0 | P10: =IF(I10="","",M10/I10) -> 1.7 | Q10: 7 | S10: =U10+T10-K10-L10-M10 -> 0 | U10: =(K10+L10+M10)-T10-V10 -> 145 | Z10: =IF(OR(I10="",I10=0),0,(U10+T10)/I10) -> 4.833333333 | AA10: =IF(OR(Q10=0,I10=0),"",Z10/Q10*100) -> 69.04761905 | AE10: =IF(AA10>85," ","WARNING") -> WARNING | AF10: =(N10+O10+P10)/(Q10*3600) -> 0.0001917989418 | AG10: =((3600/I10)*U10)/(N10+O10+P10) -> 3600 | AH10: =(U10-T10)/U10 -> 1 | AI10: =AF10*AG10*AH10 -> 0.6904761905 | AJ10: =((U10-T10)*(3600/I10))/(Q10*3600) -> 0.6904761905
A11: C | B11: BIGLIA 301 SM | C11: =IFERROR(VLOOKUP(D11,Pieces!A:B,2,0)," ") -> G011-A | D11: Bague Acier D32*22 L=21 maj-c | E11: 6190 | F11: 6395 | G11: 6395 | H11: 6434 | I11: =IFERROR(VLOOKUP(D11,Pieces!A:C,3,0),"") -> 42 | J11: 1 | K11: 205 | L11: 0 | M11: 39 | N11: 4.880952381 | O11: 0 | P11: 0.9285714286 | Q11: 7 | S11: =U11+T11-K11-L11-M11 -> 0 | U11: 244 | Z11: 5.80952381 | AA11: 82.99319728 | AE11: WARNING | AF11: 0.0002305366591 | AG11: 3600 | AH11: 1 | AI11: 0.8299319728 | AJ11: 0.8299319728
A12: D | B12: BIGLIA 42 S2M bitourelle | C12: =IFERROR(VLOOKUP(D12,Pieces!A:B,2,0)," ") -> MI018-B42 | D12: GOUJON DE ROUE MITSIBITCHI GM-SUR-B42 | E12: 5232 | F12: 5460 | G12: 5460 | H12: 5460 | I12: =IFERROR(VLOOKUP(D12,Pieces!A:C,3,0),"") -> 55 | J12: 1 | K12: 228 | L12: 0 | M12: 0 | N12: 4.145454545 | O12: 0 | P12: 0 | Q12: 5 | S12: 0 | U12: 228 | Z12: 4.145454545 | AA12: 82.90909091 | AE12: WARNING | AF12: 0.0002303030303 | AG12: 3600 | AH12: 1 | AI12: 0.8290909091 | AJ12: 0.8290909091
A13: E | B13: L32 | C13: =IFERROR(VLOOKUP(D13,Pieces!A:B,2,0)," ") -> 200200-2022 | D13: Embout de tige-2022 | E13: 4771 | F13: 4771 | G13: 4771 | H13: 4771 | I13: =IFERROR(VLOOKUP(D13,Pieces!A:C,3,0),"") -> 40 | J13: 1 | K13: 0 | L13: 0 | M13: 0 | N13: 0 | O13: 0 | P13: 0 | Q13: 7 | S13: 0 | U13: 0 | Z13: 0 | AA13: 0 | AE13: WARNING | AF13: 0 | AJ13: 0
A14: F | B14: TSUGAMI | C14: =IFERROR(VLOOKUP(D14,Pieces!A:B,2,0)," ") -> B55 6*14.8 | D14: Rivet couvercle B55 | E14: 35351 | F14: 36147 | G14: 36147 | H14: 36473 | I14: =IFERROR(VLOOKUP(D14,Pieces!A:C,3,0),"") -> 180 | J14: 1 | K14: 796 | L14: 0 | M14: 326 | N14: 4.422222222 | O14: 0 | P14: 1.811111111 | Q14: 7 | S14: 0 | U14: 1122 | Z14: 6.233333333 | AA14: 89.04761905 | AF14: 0.0002473544974 | AG14: 3600 | AH14: 1 | AI14: 0.8904761905 | AJ14: 0.8904761905
A15: G | B15: Tour STAR SV-32-J | C15: =IFERROR(VLOOKUP(D15,Pieces!A:B,2,0)," ") -> 68.0815 | D15: Buse droite à collerette Ø8 M445 FRD | E15: 1070 | F15: 1370 | G15: 1370 | H15: 1495 | I15: =IFERROR(VLOOKUP(D15,Pieces!A:C,3,0),"") -> 60 | J15: 1 | K15: 300 | L15: 0 | M15: 125 | N15: 5 | O15: 0 | P15: 2.083333333 | Q15: 7 | S15: 0 | U15: 425 | Z15: 7.083333333 | AA15: 101.1904762 | AF15: 0.0002810846561 | AG15: 3600 | AH15: 1 | AI15: 1.011904762 | AJ15: 1.011904762
A16: H | B16: Tour CNC STAR SB avec embarreur LNS Express 220 | C16: =IFERROR(VLOOKUP(D16,Pieces!A:B,2,0)," ") -> AXE-INOX-D8-L58-maj-c | D16: AXE INOX D8 L58 maj-c | E16: 17500 | F16: 18015 | G16: 18015 | H16: 18235 | I16: =IFERROR(VLOOKUP(D16,Pieces!A:C,3,0),"") -> 104 | J16: 1 | K16: 515 | L16: 0 | M16: 220 | N16: 4.951923077 | O16: 0 | P16: 2.115384615 | Q16: 7 | S16: 0 | U16: 735 | Z16: 7.067307692 | AA16: 100.9615385 | AF16: 0.0002804487179 | AG16: 3600 | AH16: 1 | AI16: 1.009615385 | AJ16: 1.009615385
A17: I | B17: MULTIBROCHE | C17: =IFERROR(VLOOKUP(D17,Pieces!A:B,2,0)," ") -> MPS000300 | D17: raccord HEX 17 | E17: 0 | F17: 0 | G17: 0 | H17: 0 | I17: =IFERROR(VLOOKUP(D17,Pieces!A:C,3,0),"") -> 500 | J17: 1 | K17: 0 | L17: 0 | M17: 0 | N17: 0 | O17: 0 | P17: 0 | Q17: 7 | S17: 0 | U17: 0 | Z17: 0 | AA17: 0 | AE17: WARNING | AF17: 0 | AJ17: 0
A18: J | B18: Tour CNC WEILER UD 24 - 100 | C18: =IFERROR(VLOOKUP(D18,Pieces!A:B,2,0)," ") -> PT8666 | D18: Rehausse-NAKAMURHA | E18: 1003 | F18: 1363 | G18: 1363 | H18: 1363 | I18: =IFERROR(VLOOKUP(D18,Pieces!A:C,3,0),"") -> 150 | J18: 1 | K18: 360 | L18: 0 | M18: 0 | N18: 2.4 | O18: 0 | P18: 0 | Q18: 5 | S18: 0 | U18: 360 | Z18: 2.4 | AA18: 48 | AE18: WARNING | AF18: 0.0001333333333 | AG18: 3600 | AH18: 1 | AI18: 0.48 | AJ18: 0.48
A19: K | B19: TOUR WEILER | C19: =IFERROR(VLOOKUP(D19,Pieces!A:B,2,0)," ") -> I143-CP1 | D19: ECROU DE ROUE ISUZU-CP1 | E19: 65 | F19: 308 | G19: 308 | H19: 308 | I19: =IFERROR(VLOOKUP(D19,Pieces!A:C,3,0),"") -> 60 | J19: 1 | K19: 243 | L19: 0 | M19: 0 | N19: 4.05 | O19: 0 | P19: 0 | Q19: 5 | S19: 0 | U19: 243 | Z19: 4.05 | AA19: 81 | AE19: WARNING | AF19: 0.000225 | AG19: 3600 | AH19: 1 | AI19: 0.81 | AJ19: 0.81
A20: L | B20: NAKAMURA | C20: =IFERROR(VLOOKUP(D20,Pieces!A:B,2,0)," ") -> F046-CP2 | D20: BAGUE DECOLLETEE TUBE D'EAU PALIO -CP2 | E20: 207 | F20: 270 | G20: 270 | H20: 283 | I20: =IFERROR(VLOOKUP(D20,Pieces!A:C,3,0),"") -> 30 | J20: 1 | K20: 63 | L20: 0 | M20: 13 | N20: 2.1 | O20: 0 | P20: 0.4333333333 | Q20: 7 | S20: 0 | U20: 76 | Z20: 2.533333333 | AA20: 36.19047619 | AE20: WARNING | AF20: 0.0001005291005 | AG20: 3600 | AH20: 1 | AI20: 0.3619047619 | AJ20: 0.3619047619
A21: M | B21: MORI SEIKI 3 axes | C21: =IFERROR(VLOOKUP(D21,Pieces!A:B,2,0)," ") -> I110-01-004 | D21: INSERT LEVIER SURMOULEE 345833-01 - fraisage | E21: 833 | F21: 834 | G21: 834 | H21: 842 | I21: =IFERROR(VLOOKUP(D21,Pieces!A:C,3,0),"") -> 32 | J21: 9 | K21: 9 | L21: 0 | M21: 72 | N21: 0.28125 | O21: 0 | P21: 2.25 | Q21: 7 | S21: 0 | U21: 81 | Z21: 2.53125 | AA21: 36.16071429 | AE21: WARNING | AF21: 0.0001004464286 | AG21: 3600 | AH21: 1 | AI21: 0.3616071429 | AJ21: 0.3616071429
A22: N | B22: MORI SEIKI 5 axes | C22: =IFERROR(VLOOKUP(D22,Pieces!A:B,2,0)," ") -> PIG-11D | D22: PIGNON 11 DENTS FRAISAGE | E22: 270 | F22: 270 | G22: 270 | H22: 270 | I22: =IFERROR(VLOOKUP(D22,Pieces!A:C,3,0),"") -> 120 | J22: 20 | K22: 0 | L22: 0 | M22: 0 | N22: 0 | O22: 0 | P22: 0 | Q22: 7 | S22: 0 | U22: 0 | Z22: 0 | AA22: 0 | AE22: WARNING | AF22: 0 | AJ22: 0
A23: O | B23: HARDING | C23: =IFERROR(VLOOKUP(D23,Pieces!A:B,2,0)," ") -> I006 | D23: CAL SUSPENSION PM ISUZU-HARDING | E23: 285 | F23: 285 | G23: 285 | H23: 287 | I23: =IFERROR(VLOOKUP(D23,Pieces!A:C,3,0),"") -> 48 | J23: 24 | K23: 0 | L23: 0 | M23: 48 | N23: 0 | O23: 0 | P23: 1 | Q23: 7 | S23: 0 | U23: 48 | Z23: 1 | AA23: 14.28571429 | AE23: WARNING | AF23: 3.968253968e-05 | AG23: 3600 | AH23: 1 | AI23: 0.1428571429 | AJ23: 0.1428571429
A24: P | B24: HARDING | C24: =IFERROR(VLOOKUP(D24,Pieces!A:B,2,0)," ") -> I004 | D24: ECROU SUSPENSION ISUZU-HARDING | E24: 285 | F24: 285 | G24: 285 | H24: 287 | I24: =IFERROR(VLOOKUP(D24,Pieces!A:C,3,0),"") -> 18 | J24: 9 | K24: 0 | L24: 0 | M24: 18 | N24: 0 | O24: 0 | P24: 1 | Q24: 7 | S24: 0 | U24: 18 | Z24: 1 | AA24: 14.28571429 | AE24: WARNING | AF24: 3.968253968e-05 | AG24: 3600 | AH24: 1 | AI24: 0.1428571429 | AJ24: 0.1428571429
A25: K | B25: KITAMURA | C25: =IFERROR(VLOOKUP(D25,Pieces!A:B,2,0)," ") -> 9518-maj | D25: USINAGE BORNE RBD-1 | E25: 3315 | F25: 3393 | G25: 3393 | H25: 3393 | I25: =IFERROR(VLOOKUP(D25,Pieces!A:C,3,0),"") -> 300 | J25: 12 | K25: =(F25-E25)*J25 -> 936 | L25: =(G25-F25)*J25 -> 0 | M25: =(H25-G25)*J25 -> 0 | N25: =IF(I25="","",K25/I25) -> 3.12 | O25: =IF(I25="","",L25/I25) -> 0 | P25: =IF(I25="","",M25/I25) -> 0 | Q25: 5 | S25: =U25+T25-K25-L25-M25 -> 0 | U25: =(K25+L25+M25)-T25-V25 -> 936 | Z25: =IF(OR(I25="",I25=0),0,(U25+T25)/I25) -> 3.12 | AA25: =IF(OR(Q25=0,I25=0),"",Z25/Q25*100) -> 62.4 | AE25: =IF(AA25>85," ","WARNING") -> WARNING | AF25: 0.0001733333333 | AG25: 3600 | AH25: 1 | AI25: 0.624 | AJ25: 0.624
J31: Approbateur:
J32: Date:
J33: Visa:

Sheet 18-3-22
A1: 18-03-2022 | Z1: CODE: DAS-PRO-16
Z2: DATE:30/08/2019
Z3: VERSION:07
Z4: PAGE:1
A8: SYMBOLE | B8: MACHINE | C8: REF ARTICLE | D8: DESIGNATION | E8: COMPTEUR AUJOURD’HUI à 8h | F8: COMPTEUR HIER à 17H | G8: COMPTEUR HIER à 22H | H8: COMPTEUR AUJOURD’HUI à 8h | I8: CADENCE | J8: NOMBRE DE PIECES FINIS PAR CYCLE | K8: PIECES SUIVANT COMPTEU 8h-->17h | L8: PIECES SUIVANT COMPTEUR 17H-->22H | M8: PIECES SUIVANT COMPTEUR 6h-->8h | N8: NOMBRE D'HEURES DE TRAVAIL 8h-->17h | O8: NOMBRE D'HEURES DE TRAVAIL 17H-->22H | P8: NOMBRE D'HEURES DE TRAVAIL 6h-->8h | Q8: NOMBRE D'HEURES DE TRAVAIL | R8: OBSERVATIONS | S8: Pieces manquantes | T8: PIECES NC | U8: Pieces REELLES | V8: Nombre des pieces à retoucher | W8: Cause de la non-conformité | X8: Effet de la non-conformité | Y8: Valeur de l'effet | Z8: NOMBRES D'HEURES SUIVANT LES PIECES REELLES | AA8: RENDEMENT | AB8: Fiche de contrôle qualité début de serie | AC8: Affutage | AD8: Gamme d'usingae | AE8: ALERTES | AF8: A | AG8: P | AH8: Q | AI8: OEE | AJ8: OEE
A9: A | B9: SST16 | C9: =IFERROR(VLOOKUP(D9,Pieces!A:B,2,0)," ") -> T-RB400-MajC | D9: RIVET TRB400-MajC | E9: 0 | F9: 0 | G9: 0 | H9: 0 | I9: =IFERROR(VLOOKUP(D9,Pieces!A:C,3,0),"") -> 120 | J9: 1 | K9: =(F9-E9)*J9 -> 0 | L9: =(G9-F9)*J9 -> 0 | M9: =(H9-G9)*J9 -> 0 | N9: =IF(I9="","",K9/I9) -> 0 | O9: =IF(I9="","",L9/I9) -> 0 | P9: =IF(I9="","",M9/I9) -> 0 | Q9: 15 | S9: =U9+T9-K9-L9-M9 -> 0 | U9: =(K9+L9+M9)-T9-V9 -> 0 | Z9: =IF(OR(I9="",I9=0),0,(U9+T9)/I9) -> 0 | AA9: =IF(OR(Q9=0,I9=0),"",Z9/Q9*100) -> 0 | AE9: =IF(AA9>85," ","WARNING") -> WARNING | AF9: =(N9+O9+P9)/(Q9*3600) -> 0 | AG9: =((3600/I9)*U9)/(N9+O9+P9) ->  | AH9: =(U9-T9)/U9 ->  | AI9: =AF9*AG9*AH9 ->  | AJ9: =((U9-T9)*(3600/I9))/(Q9*3600) -> 0
A10: B | B10: SB16 | C10: =IFERROR(VLOOKUP(D10,Pieces!A:B,2,0)," ") -> G022-CP1 | D10: AXE D15-M11x100 | E10: 586 | F10: 940 | G10: 1107 | H10: 1156 | I10: =IFERROR(VLOOKUP(D10,Pieces!A:C,3,0),"") -> 30 | J10: 1 | K10: =(F10-E10)*J10 -> 354 | L10: =(G10-F10)*J10 -> 167 | M10: =(H10-G10)*J10 -> 49 | N10: =IF(I10="","",K10/I10) -> 11.8 | O10: =IF(I10="","",L10/I10) -> 5.566666667 | P10: =IF(I10="","",M10/I10) -> 1.633333333 | Q10: 15 | S10: =U10+T10-K10-L10-M10 -> 0 | U10: =(K10+L10+M10)-T10-V10 -> 570 | Z10: =IF(OR(I10="",I10=0),0,(U10+T10)/I10) -> 19 | AA10: =IF(OR(Q10=0,I10=0),"",Z10/Q10*100) -> 126.6666667 | AE10: =IF(AA10>85," ","WARNING") ->  | AF10: =(N10+O10+P10)/(Q10*3600) -> 0.0003518518519 | AG10: =((3600/I10)*U10)/(N10+O10+P10) -> 3600 | AH10: =(U10-T10)/U10 -> 1 | AI10: =AF10*AG10*AH10 -> 1.266666667 | AJ10: =((U10-T10)*(3600/I10))/(Q10*3600) -> 1.266666667
A11: C | B11: BIGLIA 301 SM | C11: =IFERROR(VLOOKUP(D11,Pieces!A:B,2,0)," ") -> G011-A | D11: Bague Acier D32*22 L=21 maj-c | E11: 5575 | F11: 5955 | G11: 6115 | H11: 6190 | I11: =IFERROR(VLOOKUP(D11,Pieces!A:C,3,0),"") -> 42 | J11: 1 | K11: 380 | L11: 160 | M11: 75 | N11: 9.047619048 | O11: 3.80952381 | P11: 1.785714286 | Q11: 15 | S11: =U11+T11-K11-L11-M11 -> 0 | U11: 615 | Z11: 14.64285714 | AA11: 97.61904762 | AF11: 0.0002711640212 | AG11: 3600 | AH11: 1 | AI11: 0.9761904762 | AJ11: 0.9761904762
A12: D | B12: BIGLIA 42 S2M bitourelle | C12: =IFERROR(VLOOKUP(D12,Pieces!A:B,2,0)," ") -> MI018-B42 | D12: GOUJON DE ROUE MITSIBITCHI GM-SUR-B42 | E12: 4918 | F12: 5226 | G12: 5226 | H12: 5232 | I12: =IFERROR(VLOOKUP(D12,Pieces!A:C,3,0),"") -> 55 | J12: 1 | K12: 308 | L12: 0 | M12: 6 | N12: 5.6 | O12: 0 | P12: 0.1090909091 | Q12: 15 | S12: 0 | U12: 314 | Z12: 5.709090909 | AA12: 38.06060606 | AE12: WARNING | AF12: 0.0001057239057 | AG12: 3600 | AH12: 1 | AI12: 0.3806060606 | AJ12: 0.3806060606
A13: E | B13: L32 | C13: =IFERROR(VLOOKUP(D13,Pieces!A:B,2,0)," ") -> 200200-2022 | D13: Embout de tige-2022 | E13: 4771 | F13: 4771 | G13: 4771 | H13: 4771 | I13: =IFERROR(VLOOKUP(D13,Pieces!A:C,3,0),"") -> 40 | J13: 1 | K13: 0 | L13: 0 | M13: 0 | N13: 0 | O13: 0 | P13: 0 | Q13: 15 | S13: 0 | U13: 0 | Z13: 0 | AA13: 0 | AE13: WARNING | AF13: 0 | AJ13: 0
A14: F | B14: TSUGAMI | C14: =IFERROR(VLOOKUP(D14,Pieces!A:B,2,0)," ") -> B55 6*14.8 | D14: Rivet couvercle B55 | E14: 32917 | F14: 34436 | G14: 35093 | H14: 35351 | I14: =IFERROR(VLOOKUP(D14,Pieces!A:C,3,0),"") -> 180 | J14: 1 | K14: 1519 | L14: 657 | M14: 258 | N14: 8.438888889 | O14: 3.65 | P14: 1.433333333 | Q14: 15 | S14: 0 | U14: 2434 | Z14: 13.52222222 | AA14: 90.14814815 | AF14: 0.0002504115226 | AG14: 3600 | AH14: 1 | AI14: 0.9014814815 | AJ14: 0.9014814815
A15: G | B15: Tour STAR SV-32-J | C15: =IFERROR(VLOOKUP(D15,Pieces!A:B,2,0)," ") -> 68.0815 | D15: Buse droite à collerette Ø8 M445 FRD | E15: 348 | F15: 770 | G15: 998 | H15: 1070 | I15: =IFERROR(VLOOKUP(D15,Pieces!A:C,3,0),"") -> 60 | J15: 1 | K15: 422 | L15: 228 | M15: 72 | N15: 7.033333333 | O15: 3.8 | P15: 1.2 | Q15: 15 | S15: 0 | T15: 10 | U15: 712 | Z15: 12.03333333 | AA15: 80.22222222 | AE15: WARNING | AF15: 0.0002228395062 | AG15: 3550.138504 | AH15: 0.9859550562 | AI15: 0.78 | AJ15: 0.78
A16: H | B16: Tour CNC STAR SB avec embarreur LNS Express 220 | C16: =IFERROR(VLOOKUP(D16,Pieces!A:B,2,0)," ") -> AXE-INOX-D8-L58-maj-c | D16: AXE INOX D8 L58 maj-c | E16: 16032 | F16: 16932 | G16: 17319 | H16: 17500 | I16: =IFERROR(VLOOKUP(D16,Pieces!A:C,3,0),"") -> 104 | J16: 1 | K16: 900 | L16: 387 | M16: 181 | N16: 8.653846154 | O16: 3.721153846 | P16: 1.740384615 | Q16: 15 | S16: 0 | U16: 1468 | Z16: 14.11538462 | AA16: 94.1025641 | AF16: 0.0002613960114 | AG16: 3600 | AH16: 1 | AI16: 0.941025641 | AJ16: 0.941025641
A17: I | B17: MULTIBROCHE | C17: =IFERROR(VLOOKUP(D17,Pieces!A:B,2,0)," ") -> MPS000300 | D17: raccord HEX 17 | E17: 0 | F17: 0 | G17: 0 | H17: 0 | I17: =IFERROR(VLOOKUP(D17,Pieces!A:C,3,0),"") -> 500 | J17: 1 | K17: 0 | L17: 0 | M17: 0 | N17: 0 | O17: 0 | P17: 0 | Q17: 15 | S17: 0 | U17: 0 | Z17: 0 | AA17: 0 | AE17: WARNING | AF17: 0 | AJ17: 0
A18: J | B18: Tour CNC WEILER UD 24 - 100 | C18: =IFERROR(VLOOKUP(D18,Pieces!A:B,2,0)," ") -> PT8666 | D18: Rehausse-NAKAMURHA | E18: 523 | F18: 1003 | G18: 1003 | H18: 1003 | I18: =IFERROR(VLOOKUP(D18,Pieces!A:C,3,0),"") -> 150 | J18: 1 | K18: 480 | L18: 0 | M18: 0 | N18: 3.2 | O18: 0 | P18: 0 | Q18: 9 | S18: 0 | U18: 480 | Z18: 3.2 | AA18: 35.55555556 | AE18: WARNING | AF18: 9.87654321e-05 | AG18: 3600 | AH18: 1 | AI18: 0.3555555556 | AJ18: 0.3555555556
A19: K | B19: TOUR WEILER | C19: =IFERROR(VLOOKUP(D19,Pieces!A:B,2,0)," ") -> I143-CP1 | D19: ECROU DE ROUE ISUZU-CP1 | E19: 0 | F19: 41 | G19: 41 | H19: 65 | I19: =IFERROR(VLOOKUP(D19,Pieces!A:C,3,0),"") -> 60 | J19: 1 | K19: 41 | L19: 0 | M19: 24 | N19: 0.6833333333 | O19: 0 | P19: 0.4 | Q19: 13 | S19: 0 | U19: 65 | Z19: 1.083333333 | AA19: 8.333333333 | AE19: WARNING | AF19: 2.314814815e-05 | AG19: 3600 | AH19: 1 | AI19: 0.08333333333 | AJ19: 0.08333333333
A20: L | B20: NAKAMURA | C20: =IFERROR(VLOOKUP(D20,Pieces!A:B,2,0)," ") -> F046-CP2 | D20: BAGUE DECOLLETEE TUBE D'EAU PALIO -CP2 | E20: 32 | F20: 132 | G20: 207 | H20: 207 | I20: =IFERROR(VLOOKUP(D20,Pieces!A:C,3,0),"") -> 30 | J20: 1 | K20: 100 | L20: 75 | M20: 0 | N20: 3.333333333 | O20: 2.5 | P20: 0 | Q20: 13 | S20: 0 | U20: 175 | Z20: 5.833333333 | AA20: 44.87179487 | AE20: WARNING | AF20: 0.0001246438746 | AG20: 3600 | AH20: 1 | AI20: 0.4487179487 | AJ20: 0.4487179487
A21: M | B21: MORI SEIKI 3 axes | C21: =IFERROR(VLOOKUP(D21,Pieces!A:B,2,0)," ") -> I110-01-004 | D21: INSERT LEVIER SURMOULEE 345833-01 - fraisage | E21: 784 | F21: 816 | G21: 833 | H21: 833 | I21: =IFERROR(VLOOKUP(D21,Pieces!A:C,3,0),"") -> 32 | J21: 9 | K21: 288 | L21: 153 | M21: 0 | N21: 9 | O21: 4.78125 | P21: 0 | Q21: 13 | S21: 0 | U21: 441 | Z21: 13.78125 | AA21: 106.0096154 | AF21: 0.0002944711538 | AG21: 3600 | AH21: 1 | AI21: 1.060096154 | AJ21: 1.060096154
A22: N | B22: MORI SEIKI 5 axes | C22: =IFERROR(VLOOKUP(D22,Pieces!A:B,2,0)," ") -> PIG-11D | D22: PIGNON 11 DENTS FRAISAGE | E22: 270 | F22: 270 | G22: 270 | H22: 270 | I22: =IFERROR(VLOOKUP(D22,Pieces!A:C,3,0),"") -> 120 | J22: 20 | K22: 0 | L22: 0 | M22: 0 | N22: 0 | O22: 0 | P22: 0 | Q22: 7 | S22: 0 | U22: 0 | Z22: 0 | AA22: 0 | AE22: WARNING | AF22: 0 | AJ22: 0
A23: O | B23: HARDING | C23: =IFERROR(VLOOKUP(D23,Pieces!A:B,2,0)," ") -> I006 | D23: CAL SUSPENSION PM ISUZU-HARDING | E23: 285 | F23: 285 | G23: 285 | H23: 285 | I23: =IFERROR(VLOOKUP(D23,Pieces!A:C,3,0),"") -> 48 | J23: 24 | K23: 0 | L23: 0 | M23: 0 | N23: 0 | O23: 0 | P23: 0 | Q23: 15 | S23: 0 | U23: 0 | Z23: 0 | AA23: 0 | AE23: WARNING | AF23: 0 | AJ23: 0
A24: P | B24: HARDING | C24: =IFERROR(VLOOKUP(D24,Pieces!A:B,2,0)," ") -> I004 | D24: ECROU SUSPENSION ISUZU-HARDING | E24: 285 | F24: 285 | G24: 285 | H24: 285 | I24: =IFERROR(VLOOKUP(D24,Pieces!A:C,3,0),"") -> 18 | J24: 9 | K24: 0 | L24: 0 | M24: 0 | N24: 0 | O24: 0 | P24: 0 | Q24: 15 | S24: 0 | U24: 0 | Z24: 0 | AA24: 0 | AE24: WARNING | AF24: 0 | AJ24: 0
A25: K | B25: KITAMURA | C25: =IFERROR(VLOOKUP(D25,Pieces!A:B,2,0)," ") -> 9518-maj | D25: USINAGE BORNE RBD-1 | E25: 3088 | F25: 3283 | G25: 3283 | H25: 3315 | I25: =IFERROR(VLOOKUP(D25,Pieces!A:C,3,0),"") -> 300 | J25: 12 | K25: =(F25-E25)*J25 -> 2340 | L25: =(G25-F25)*J25 -> 0 | M25: =(H25-G25)*J25 -> 384 | N25: =IF(I25="","",K25/I25) -> 7.8 | O25: =IF(I25="","",L25/I25) -> 0 | P25: =IF(I25="","",M25/I25) -> 1.28 | Q25: 11 | S25: =U25+T25-K25-L25-M25 -> 0 | U25: =(K25+L25+M25)-T25-V25 -> 2724 | Z25: =IF(OR(I25="",I25=0),0,(U25+T25)/I25) -> 9.08 | AA25: =IF(OR(Q25=0,I25=0),"",Z25/Q25*100) -> 82.54545455 | AE25: =IF(AA25>85," ","WARNING") -> WARNING | AF25: 0.0002292929293 | AG25: 3600 | AH25: 1 | AI25: 0.8254545455 | AJ25: 0.8254545455
J31: Approbateur:
J32: Date:
J33: Visa:

Sheet 17-3-22
A1: 17-03-2022 | Z1: CODE: DAS-PRO-16
Z2: DATE:30/08/2019
Z3: VERSION:07
Z4: PAGE:1
A8: SYMBOLE | B8: MACHINE | C8: REF ARTICLE | D8: DESIGNATION | E8: COMPTEUR AUJOURD’HUI à 8h | F8: COMPTEUR HIER à 17H | G8: COMPTEUR HIER à 22H | H8: COMPTEUR AUJOURD’HUI à 8h | I8: CADENCE | J8: NOMBRE DE PIECES FINIS PAR CYCLE | K8: PIECES SUIVANT COMPTEU 8h-->17h | L8: PIECES SUIVANT COMPTEUR 17H-->22H | M8: PIECES SUIVANT COMPTEUR 6h-->8h | N8: NOMBRE D'HEURES DE TRAVAIL 8h-->17h | O8: NOMBRE D'HEURES DE TRAVAIL 17H-->22H | P8: NOMBRE D'HEURES DE TRAVAIL 6h-->8h | Q8: NOMBRE D'HEURES DE TRAVAIL | R8: OBSERVATIONS | S8: Pieces manquantes | T8: PIECES NC | U8: Pieces REELLES | V8: Nombre des pieces à retoucher | W8: Cause de la non-conformité | X8: Effet de la non-conformité | Y8: Valeur de l'effet | Z8: NOMBRES D'HEURES SUIVANT LES PIECES REELLES | AA8: RENDEMENT | AB8: Fiche de contrôle qualité début de serie | AC8: Affutage | AD8: Gamme d'usingae | AE8: ALERTES | AF8: A | AG8: P | AH8: Q | AI8: OEE | AJ8: OEE
A9: A | B9: SST16 | C9: =IFERROR(VLOOKUP(D9,Pieces!A:B,2,0)," ") -> T-RB400-MajC | D9: RIVET TRB400-MajC | E9: 51700 | F9: 52632 | G9: 52632 | H9: 52632 | I9: =IFERROR(VLOOKUP(D9,Pieces!A:C,3,0),"") -> 120 | J9: 1 | K9: =(F9-E9)*J9 -> 932 | L9: =(G9-F9)*J9 -> 0 | M9: =(H9-G9)*J9 -> 0 | N9: =IF(I9="","",K9/I9) -> 7.766666667 | O9: =IF(I9="","",L9/I9) -> 0 | P9: =IF(I9="","",M9/I9) -> 0 | Q9: 15 | R9: f | S9: =U9+T9-K9-L9-M9 -> 0 | U9: =(K9+L9+M9)-T9-V9 -> 932 | Z9: =IF(OR(I9="",I9=0),0,(U9+T9)/I9) -> 7.766666667 | AA9: =IF(OR(Q9=0,I9=0),"",Z9/Q9*100) -> 51.77777778 | AE9: =IF(AA9>85," ","WARNING") -> WARNING | AF9: =(N9+O9+P9)/(Q9*3600) -> 0.0001438271605 | AG9: =((3600/I9)*U9)/(N9+O9+P9) -> 3600 | AH9: =(U9-T9)/U9 -> 1 | AI9: =AF9*AG9*AH9 -> 0.5177777778 | AJ9: =((U9-T9)*(3600/I9))/(Q9*3600) -> 0.5177777778
A10: B | B10: SB16 | C10: =IFERROR(VLOOKUP(D10,Pieces!A:B,2,0)," ") -> G022-CP1 | D10: AXE D15-M11x100 | E10: 243 | F10: 439 | G10: 531 | H10: 586 | I10: =IFERROR(VLOOKUP(D10,Pieces!A:C,3,0),"") -> 30 | J10: 1 | K10: =(F10-E10)*J10 -> 196 | L10: =(G10-F10)*J10 -> 92 | M10: =(H10-G10)*J10 -> 55 | N10: =IF(I10="","",K10/I10) -> 6.533333333 | O10: =IF(I10="","",L10/I10) -> 3.066666667 | P10: =IF(I10="","",M10/I10) -> 1.833333333 | Q10: 15 | S10: =U10+T10-K10-L10-M10 -> 0 | U10: =(K10+L10+M10)-T10-V10 -> 343 | Z10: =IF(OR(I10="",I10=0),0,(U10+T10)/I10) -> 11.43333333 | AA10: =IF(OR(Q10=0,I10=0),"",Z10/Q10*100) -> 76.22222222 | AE10: =IF(AA10>85," ","WARNING") -> WARNING | AF10: =(N10+O10+P10)/(Q10*3600) -> 0.0002117283951 | AG10: =((3600/I10)*U10)/(N10+O10+P10) -> 3600 | AH10: =(U10-T10)/U10 -> 1 | AI10: =AF10*AG10*AH10 -> 0.7622222222 | AJ10: =((U10-T10)*(3600/I10))/(Q10*3600) -> 0.7622222222
